Workbook

Sheet HM-400
B1: HM-400 known data
B3: cmd 82 | D3: inv serial | H3: inv serial | L3: cmd | M3: Freq | O3: P AC | Q3: ? | S3: I AC | U3: ? | W3: Temp | Y3: ? | AA3: ? | AC3: ? | AG3: =B4 -> cmd 01 | AM3: =B3 -> cmd 82
B4: cmd 01 | M4: ? | O4: U DC | Q4: I DC | S4: P DC | U4: P total | Y4: P daily | AA4: U AC | AE4: CRC8 | AF4: EOF | AG4: =O4 -> U DC | AH4: =Q4 -> I DC | AI4: =S4 -> P DC | AJ4: =U4 -> P total | AK4: =Y4 -> P daily | AL4: =AA4 -> U AC | AM4: =M3 -> Freq | AN4: =O3 -> P AC | AO4: =S3 -> I AC | AP4: =W3 -> Temp | AQ4: unknown Cmd01 | AS4: unknown Cmd82
B5: example message | C5: 0 | D5: 1 | E5: 2 | F5: 3 | G5: 4 | H5: 5 | I5: 6 | J5: 7 | K5: 8 | L5: 9 | M5: 10 | N5: 11 | O5: 12 | P5: 13 | Q5: 14 | R5: 15 | S5: 16 | T5: 17 | U5: 18 | V5: 19 | W5: 20 | X5: 21 | Y5: 22 | Z5: 23 | AA5: 24 | AB5: 25 | AC5: 26 | AD5: 27 | AE5: 28 | AF5: 29 | AG5: 10 | AH5: 100 | AI5: 10 | AJ5: 1000 | AK5: 1 | AL5: 10 | AM5: 100 | AN5: 10 | AO5: 100 | AP5: 10 | AQ5: Byte 10 / 11 | AR5: Byte 26 / 27 | AS5: Byte 14 / 15 | AT5: Byte 18 / 19 | AU5: Byte 22 / 23 | AV5: Byte 24 / 25 | AW5: Byte 26 / 27
B6: 95 7310xxyy 7310xxyy 010001019A004601210000FAE60084090CF5DDBD7F | C6: =MID(SUBSTITUTE($B6," ",""),C$5*2+1,2) -> 95 | D6: =MID(SUBSTITUTE($B6," ",""),D$5*2+1,2) -> 73 | E6: =MID(SUBSTITUTE($B6," ",""),E$5*2+1,2) -> 10 | F6: =MID(SUBSTITUTE($B6," ",""),F$5*2+1,2) -> xx | G6: =MID(SUBSTITUTE($B6," ",""),G$5*2+1,2) -> yy | H6: =MID(SUBSTITUTE($B6," ",""),H$5*2+1,2) -> 73 | I6: =MID(SUBSTITUTE($B6," ",""),I$5*2+1,2) -> 10 | J6: =MID(SUBSTITUTE($B6," ",""),J$5*2+1,2) -> xx | K6: =MID(SUBSTITUTE($B6," ",""),K$5*2+1,2) -> yy | L6: =MID(SUBSTITUTE($B6," ",""),L$5*2+1,2) -> 01 | M6: =MID(SUBSTITUTE($B6," ",""),M$5*2+1,2) -> 00 | N6: =MID(SUBSTITUTE($B6," ",""),N$5*2+1,2) -> 01 | O6: =MID(SUBSTITUTE($B6," ",""),O$5*2+1,2) -> 01 | P6: =MID(SUBSTITUTE($B6," ",""),P$5*2+1,2) -> 9A | Q6: =MID(SUBSTITUTE($B6," ",""),Q$5*2+1,2) -> 00 | R6: =MID(SUBSTITUTE($B6," ",""),R$5*2+1,2) -> 46 | S6: =MID(SUBSTITUTE($B6," ",""),S$5*2+1,2) -> 01 | T6: =MID(SUBSTITUTE($B6," ",""),T$5*2+1,2) -> 21 | U6: =MID(SUBSTITUTE($B6," ",""),U$5*2+1,2) -> 00 | V6: =MID(SUBSTITUTE($B6," ",""),V$5*2+1,2) -> 00 | W6: =MID(SUBSTITUTE($B6," ",""),W$5*2+1,2) -> FA | X6: =MID(SUBSTITUTE($B6," ",""),X$5*2+1,2) -> E6 | Y6: =MID(SUBSTITUTE($B6," ",""),Y$5*2+1,2) -> 00 | Z6: =MID(SUBSTITUTE($B6," ",""),Z$5*2+1,2) -> 84 | AA6: =MID(SUBSTITUTE($B6," ",""),AA$5*2+1,2) -> 09 | AB6: =MID(SUBSTITUTE($B6," ",""),AB$5*2+1,2) -> 0C | AC6: =MID(SUBSTITUTE($B6," ",""),AC$5*2+1,2) -> F5 | AD6: =MID(SUBSTITUTE($B6," ",""),AD$5*2+1,2) -> DD | AE6: =MID(SUBSTITUTE($B6," ",""),AE$5*2+1,2) -> BD | AF6: =MID(SUBSTITUTE($B6," ",""),AF$5*2+1,2) -> 7F | AG6: =IF(L6="01",HEX2DEC(O6&P6)/10,"-") -> 41 | AH6: =IF(L6="01",HEX2DEC(Q6&R6)/100,"-") -> 0.7 | AI6: =IF(L6="01",HEX2DEC(S6&T6)/10,"-") -> 28.9 | AJ6: =IF(L6="01",HEX2DEC(U6&V6&W6&X6)/1000,"-") -> 64.23 | AK6: =IF(L6="01",HEX2DEC(Y6&Z6)/1000,"-") -> 0.132 | AL6: =IF(L6="01",HEX2DEC(AA6&AB6)/10,"-") -> 231.6 | AM6: =IF(L6="82",HEX2DEC(M6&N6)/100,"-") -> - | AN6: =IF(L6="82",HEX2DEC(O6&P6)/10,"-") -> - | AO6: =IF(L6="82",HEX2DEC(S6&T6)/100,"-") -> - | AP6: =IF(L6="82",HEX2DEC(W6&X6)/10,"-") -> - | AQ6: =IF(L6="01",HEX2DEC(M6&N6),"-") -> 1 | AR6: =IF(L6="01",HEX2DEC(AC6&AD6),"-") -> 62941 | AS6: =IF(L6="82",HEX2DEC(Q6&R6),"-") -> - | AT6: =IF(L6="82",HEX2DEC(U6&V6),"-") -> - | AU6: =IF(L6="82",HEX2DEC(Y6&Z6),"-") -> - | AV6: =IF(L6="82",HEX2DEC(AA6&AB6),"-") -> - | AW6: =IF(L6="82",HEX2DEC(AC6&AD6),"-") -> -
B7: 95 7310xxyy 7310xxyy 82138A011C0000000C03E8006500063C1D369E8D1 | C7: =MID(SUBSTITUTE($B7," ",""),C$5*2+1,2) -> 95 | D7: =MID(SUBSTITUTE($B7," ",""),D$5*2+1,2) -> 73 | E7: =MID(SUBSTITUTE($B7," ",""),E$5*2+1,2) -> 10 | F7: =MID(SUBSTITUTE($B7," ",""),F$5*2+1,2) -> xx | G7: =MID(SUBSTITUTE($B7," ",""),G$5*2+1,2) -> yy | H7: =MID(SUBSTITUTE($B7," ",""),H$5*2+1,2) -> 73 | I7: =MID(SUBSTITUTE($B7," ",""),I$5*2+1,2) -> 10 | J7: =MID(SUBSTITUTE($B7," ",""),J$5*2+1,2) -> xx | K7: =MID(SUBSTITUTE($B7," ",""),K$5*2+1,2) -> yy | L7: =MID(SUBSTITUTE($B7," ",""),L$5*2+1,2) -> 82 | M7: =MID(SUBSTITUTE($B7," ",""),M$5*2+1,2) -> 13 | N7: =MID(SUBSTITUTE($B7," ",""),N$5*2+1,2) -> 8A | O7: =MID(SUBSTITUTE($B7," ",""),O$5*2+1,2) -> 01 | P7: =MID(SUBSTITUTE($B7," ",""),P$5*2+1,2) -> 1C | Q7: =MID(SUBSTITUTE($B7," ",""),Q$5*2+1,2) -> 00 | R7: =MID(SUBSTITUTE($B7," ",""),R$5*2+1,2) -> 00 | S7: =MID(SUBSTITUTE($B7," ",""),S$5*2+1,2) -> 00 | T7: =MID(SUBSTITUTE($B7," ",""),T$5*2+1,2) -> 0C | U7: =MID(SUBSTITUTE($B7," ",""),U$5*2+1,2) -> 03 | V7: =MID(SUBSTITUTE($B7," ",""),V$5*2+1,2) -> E8 | W7: =MID(SUBSTITUTE($B7," ",""),W$5*2+1,2) -> 00 | X7: =MID(SUBSTITUTE($B7," ",""),X$5*2+1,2) -> 65 | Y7: =MID(SUBSTITUTE($B7," ",""),Y$5*2+1,2) -> 00 | Z7: =MID(SUBSTITUTE($B7," ",""),Z$5*2+1,2) -> 06 | AA7: =MID(SUBSTITUTE($B7," ",""),AA$5*2+1,2) -> 3C | AB7: =MID(SUBSTITUTE($B7," ",""),AB$5*2+1,2) -> 1D | AC7: =MID(SUBSTITUTE($B7," ",""),AC$5*2+1,2) -> 36 | AD7: =MID(SUBSTITUTE($B7," ",""),AD$5*2+1,2) -> 9E | AE7: =MID(SUBSTITUTE($B7," ",""),AE$5*2+1,2) -> 8D | AF7: =MID(SUBSTITUTE($B7," ",""),AF$5*2+1,2) -> 1 | AG7: =IF(L7="01",HEX2DEC(O7&P7)/10,"-") -> - | AH7: =IF(L7="01",HEX2DEC(Q7&R7)/100,"-") -> - | AI7: =IF(L7="01",HEX2DEC(S7&T7)/10,"-") -> - | AJ7: =IF(L7="01",HEX2DEC(U7&V7&W7&X7)/1000,"-") -> - | AK7: =IF(L7="01",HEX2DEC(Y7&Z7)/1000,"-") -> - | AL7: =IF(L7="01",HEX2DEC(AA7&AB7)/10,"-") -> - | AM7: =IF(L7="82",HEX2DEC(M7&N7)/100,"-") -> 50.02 | AN7: =IF(L7="82",HEX2DEC(O7&P7)/10,"-") -> 28.4 | AO7: =IF(L7="82",HEX2DEC(S7&T7)/100,"-") -> 0.12 | AP7: =IF(L7="82",HEX2DEC(W7&X7)/10,"-") -> 10.1 | AQ7: =IF(L7="01",HEX2DEC(M7&N7),"-") -> - | AR7: =IF(L7="01",HEX2DEC(AC7&AD7),"-") -> - | AS7: =IF(L7="82",HEX2DEC(Q7&R7),"-") -> 0 | AT7: =IF(L7="82",HEX2DEC(U7&V7),"-") -> 1000 | AU7: =IF(L7="82",HEX2DEC(Y7&Z7),"-") -> 6 | AV7: =IF(L7="82",HEX2DEC(AA7&AB7),"-") -> 15389 | AW7: =IF(L7="82",HEX2DEC(AC7&AD7),"-") -> 13982
C8: =MID(SUBSTITUTE($B8," ",""),C$5*2+1,2) ->  | D8: =MID(SUBSTITUTE($B8," ",""),D$5*2+1,2) ->  | E8: =MID(SUBSTITUTE($B8," ",""),E$5*2+1,2) ->  | F8: =MID(SUBSTITUTE($B8," ",""),F$5*2+1,2) ->  | G8: =MID(SUBSTITUTE($B8," ",""),G$5*2+1,2) ->  | H8: =MID(SUBSTITUTE($B8," ",""),H$5*2+1,2) ->  | I8: =MID(SUBSTITUTE($B8," ",""),I$5*2+1,2) ->  | J8: =MID(SUBSTITUTE($B8," ",""),J$5*2+1,2) ->  | K8: =MID(SUBSTITUTE($B8," ",""),K$5*2+1,2) ->  | L8: =MID(SUBSTITUTE($B8," ",""),L$5*2+1,2) ->  | M8: =MID(SUBSTITUTE($B8," ",""),M$5*2+1,2) ->  | N8: =MID(SUBSTITUTE($B8," ",""),N$5*2+1,2) ->  | O8: =MID(SUBSTITUTE($B8," ",""),O$5*2+1,2) ->  | P8: =MID(SUBSTITUTE($B8," ",""),P$5*2+1,2) ->  | Q8: =MID(SUBSTITUTE($B8," ",""),Q$5*2+1,2) ->  | R8: =MID(SUBSTITUTE($B8," ",""),R$5*2+1,2) ->  | S8: =MID(SUBSTITUTE($B8," ",""),S$5*2+1,2) ->  | T8: =MID(SUBSTITUTE($B8," ",""),T$5*2+1,2) ->  | U8: =MID(SUBSTITUTE($B8," ",""),U$5*2+1,2) ->  | V8: =MID(SUBSTITUTE($B8," ",""),V$5*2+1,2) ->  | W8: =MID(SUBSTITUTE($B8," ",""),W$5*2+1,2) ->  | X8: =MID(SUBSTITUTE($B8," ",""),X$5*2+1,2) ->  | Y8: =MID(SUBSTITUTE($B8," ",""),Y$5*2+1,2) ->  | Z8: =MID(SUBSTITUTE($B8," ",""),Z$5*2+1,2) ->  | AA8: =MID(SUBSTITUTE($B8," ",""),AA$5*2+1,2) ->  | AB8: =MID(SUBSTITUTE($B8," ",""),AB$5*2+1,2) ->  | AC8: =MID(SUBSTITUTE($B8," ",""),AC$5*2+1,2) ->  | AD8: =MID(SUBSTITUTE($B8," ",""),AD$5*2+1,2) ->  | AE8: =MID(SUBSTITUTE($B8," ",""),AE$5*2+1,2) ->  | AF8: =MID(SUBSTITUTE($B8," ",""),AF$5*2+1,2) ->  | AG8: =IF(L8="01",HEX2DEC(O8&P8)/10,"-") -> - | AH8: =IF(L8="01",HEX2DEC(Q8&R8)/100,"-") -> - | AI8: =IF(L8="01",HEX2DEC(S8&T8)/10,"-") -> - | AJ8: =IF(L8="01",HEX2DEC(U8&V8&W8&X8)/1000,"-") -> - | AK8: =IF(L8="01",HEX2DEC(Y8&Z8)/1000,"-") -> - | AL8: =IF(L8="01",HEX2DEC(AA8&AB8)/10,"-") -> - | AM8: =IF(L8="82",HEX2DEC(M8&N8)/100,"-") -> - | AN8: =IF(L8="82",HEX2DEC(O8&P8)/10,"-") -> - | AO8: =IF(L8="82",HEX2DEC(S8&T8)/100,"-") -> - | AP8: =IF(L8="82",HEX2DEC(W8&X8)/10,"-") -> - | AQ8: =IF(L8="01",HEX2DEC(M8&N8),"-") -> - | AR8: =IF(L8="01",HEX2DEC(AC8&AD8),"-") -> - | AS8: =IF(L8="82",HEX2DEC(Q8&R8),"-") -> - | AT8: =IF(L8="82",HEX2DEC(U8&V8),"-") -> - | AU8: =IF(L8="82",HEX2DEC(Y8&Z8),"-") -> - | AV8: =IF(L8="82",HEX2DEC(AA8&AB8),"-") -> - | AW8: =IF(L8="82",HEX2DEC(AC8&AD8),"-") -> -
A9: time | B9: messages at 2022-04-25 | AG9: =IF(L9="01",HEX2DEC(O9&P9)/10,"-") -> - | AH9: =IF(L9="01",HEX2DEC(Q9&R9)/100,"-") -> - | AI9: =IF(L9="01",HEX2DEC(S9&T9)/10,"-") -> - | AJ9: =IF(L9="01",HEX2DEC(U9&V9&W9&X9)/1000,"-") -> - | AK9: =IF(L9="01",HEX2DEC(Y9&Z9)/1000,"-") -> - | AL9: =IF(L9="01",HEX2DEC(AA9&AB9)/10,"-") -> - | AM9: =IF(L9="82",HEX2DEC(M9&N9)/100,"-") -> - | AN9: =IF(L9="82",HEX2DEC(O9&P9)/10,"-") -> - | AO9: =IF(L9="82",HEX2DEC(S9&T9)/100,"-") -> - | AP9: =IF(L9="82",HEX2DEC(W9&X9)/10,"-") -> - | AQ9: =IF(L9="01",HEX2DEC(M9&N9),"-") -> - | AR9: =IF(L9="01",HEX2DEC(AC9&AD9),"-") -> - | AS9: =IF(L9="82",HEX2DEC(Q9&R9),"-") -> - | AT9: =IF(L9="82",HEX2DEC(U9&V9),"-") -> - | AU9: =IF(L9="82",HEX2DEC(Y9&Z9),"-") -> - | AV9: =IF(L9="82",HEX2DEC(AA9&AB9),"-") -> - | AW9: =IF(L9="82",HEX2DEC(AC9&AD9),"-") -> -
A10: 09:10:16 | B10: 95 7310xxyy 7310xxyy 82138700F90000000B03E8005F0006C54E48F09A 1 | C10: =MID(SUBSTITUTE($B10," ",""),C$5*2+1,2) -> 95 | D10: =MID(SUBSTITUTE($B10," ",""),D$5*2+1,2) -> 73 | E10: =MID(SUBSTITUTE($B10," ",""),E$5*2+1,2) -> 10 | F10: =MID(SUBSTITUTE($B10," ",""),F$5*2+1,2) -> xx | G10: =MID(SUBSTITUTE($B10," ",""),G$5*2+1,2) -> yy | H10: =MID(SUBSTITUTE($B10," ",""),H$5*2+1,2) -> 73 | I10: =MID(SUBSTITUTE($B10," ",""),I$5*2+1,2) -> 10 | J10: =MID(SUBSTITUTE($B10," ",""),J$5*2+1,2) -> xx | K10: =MID(SUBSTITUTE($B10," ",""),K$5*2+1,2) -> yy | L10: =MID(SUBSTITUTE($B10," ",""),L$5*2+1,2) -> 82 | M10: =MID(SUBSTITUTE($B10," ",""),M$5*2+1,2) -> 13 | N10: =MID(SUBSTITUTE($B10," ",""),N$5*2+1,2) -> 87 | O10: =MID(SUBSTITUTE($B10," ",""),O$5*2+1,2) -> 00 | P10: =MID(SUBSTITUTE($B10," ",""),P$5*2+1,2) -> F9 | Q10: =MID(SUBSTITUTE($B10," ",""),Q$5*2+1,2) -> 00 | R10: =MID(SUBSTITUTE($B10," ",""),R$5*2+1,2) -> 00 | S10: =MID(SUBSTITUTE($B10," ",""),S$5*2+1,2) -> 00 | T10: =MID(SUBSTITUTE($B10," ",""),T$5*2+1,2) -> 0B | U10: =MID(SUBSTITUTE($B10," ",""),U$5*2+1,2) -> 03 | V10: =MID(SUBSTITUTE($B10," ",""),V$5*2+1,2) -> E8 | W10: =MID(SUBSTITUTE($B10," ",""),W$5*2+1,2) -> 00 | X10: =MID(SUBSTITUTE($B10," ",""),X$5*2+1,2) -> 5F | Y10: =MID(SUBSTITUTE($B10," ",""),Y$5*2+1,2) -> 00 | Z10: =MID(SUBSTITUTE($B10," ",""),Z$5*2+1,2) -> 06 | AA10: =MID(SUBSTITUTE($B10," ",""),AA$5*2+1,2) -> C5 | AB10: =MID(SUBSTITUTE($B10," ",""),AB$5*2+1,2) -> 4E | AC10: =MID(SUBSTITUTE($B10," ",""),AC$5*2+1,2) -> 48 | AD10: =MID(SUBSTITUTE($B10," ",""),AD$5*2+1,2) -> F0 | AE10: =MID(SUBSTITUTE($B10," ",""),AE$5*2+1,2) -> 9A | AF10: =MID(SUBSTITUTE($B10," ",""),AF$5*2+1,2) -> 1 | AG10: =IF(L10="01",HEX2DEC(O10&P10)/10,"-") -> - | AH10: =IF(L10="01",HEX2DEC(Q10&R10)/100,"-") -> - | AI10: =IF(L10="01",HEX2DEC(S10&T10)/10,"-") -> - | AJ10: =IF(L10="01",HEX2DEC(U10&V10&W10&X10)/1000,"-") -> - | AK10: =IF(L10="01",HEX2DEC(Y10&Z10)/1000,"-") -> - | AL10: =IF(L10="01",HEX2DEC(AA10&AB10)/10,"-") -> - | AM10: =IF(L10="82",HEX2DEC(M10&N10)/100,"-") -> 49.99 | AN10: =IF(L10="82",HEX2DEC(O10&P10)/10,"-") -> 24.9 | AO10: =IF(L10="82",HEX2DEC(S10&T10)/100,"-") -> 0.11 | AP10: =IF(L10="82",HEX2DEC(W10&X10)/10,"-") -> 9.5 | AQ10: =IF(L10="01",HEX2DEC(M10&N10),"-") -> - | AR10: =IF(L10="01",HEX2DEC(AC10&AD10),"-") -> - | AS10: =IF(L10="82",HEX2DEC(Q10&R10),"-") -> 0 | AT10: =IF(L10="82",HEX2DEC(U10&V10),"-") -> 1000 | AU10: =IF(L10="82",HEX2DEC(Y10&Z10),"-") -> 6 | AV10: =IF(L10="82",HEX2DEC(AA10&AB10),"-") -> 50510 | AW10: =IF(L10="82",HEX2DEC(AC10&AD10),"-") -> 18672
A11: 09:10:17 | B11: 95 7310xxyy 7310xxyy 0100010198004001060000FA7B00190922F8C75E 1 | C11: =MID(SUBSTITUTE($B11," ",""),C$5*2+1,2) -> 95 | D11: =MID(SUBSTITUTE($B11," ",""),D$5*2+1,2) -> 73 | E11: =MID(SUBSTITUTE($B11," ",""),E$5*2+1,2) -> 10 | F11: =MID(SUBSTITUTE($B11," ",""),F$5*2+1,2) -> xx | G11: =MID(SUBSTITUTE($B11," ",""),G$5*2+1,2) -> yy | H11: =MID(SUBSTITUTE($B11," ",""),H$5*2+1,2) -> 73 | I11: =MID(SUBSTITUTE($B11," ",""),I$5*2+1,2) -> 10 | J11: =MID(SUBSTITUTE($B11," ",""),J$5*2+1,2) -> xx | K11: =MID(SUBSTITUTE($B11," ",""),K$5*2+1,2) -> yy | L11: =MID(SUBSTITUTE($B11," ",""),L$5*2+1,2) -> 01 | M11: =MID(SUBSTITUTE($B11," ",""),M$5*2+1,2) -> 00 | N11: =MID(SUBSTITUTE($B11," ",""),N$5*2+1,2) -> 01 | O11: =MID(SUBSTITUTE($B11," ",""),O$5*2+1,2) -> 01 | P11: =MID(SUBSTITUTE($B11," ",""),P$5*2+1,2) -> 98 | Q11: =MID(SUBSTITUTE($B11," ",""),Q$5*2+1,2) -> 00 | R11: =MID(SUBSTITUTE($B11," ",""),R$5*2+1,2) -> 40 | S11: =MID(SUBSTITUTE($B11," ",""),S$5*2+1,2) -> 01 | T11: =MID(SUBSTITUTE($B11," ",""),T$5*2+1,2) -> 06 | U11: =MID(SUBSTITUTE($B11," ",""),U$5*2+1,2) -> 00 | V11: =MID(SUBSTITUTE($B11," ",""),V$5*2+1,2) -> 00 | W11: =MID(SUBSTITUTE($B11," ",""),W$5*2+1,2) -> FA | X11: =MID(SUBSTITUTE($B11," ",""),X$5*2+1,2) -> 7B | Y11: =MID(SUBSTITUTE($B11," ",""),Y$5*2+1,2) -> 00 | Z11: =MID(SUBSTITUTE($B11," ",""),Z$5*2+1,2) -> 19 | AA11: =MID(SUBSTITUTE($B11," ",""),AA$5*2+1,2) -> 09 | AB11: =MID(SUBSTITUTE($B11," ",""),AB$5*2+1,2) -> 22 | AC11: =MID(SUBSTITUTE($B11," ",""),AC$5*2+1,2) -> F8 | AD11: =MID(SUBSTITUTE($B11," ",""),AD$5*2+1,2) -> C7 | AE11: =MID(SUBSTITUTE($B11," ",""),AE$5*2+1,2) -> 5E | AF11: =MID(SUBSTITUTE($B11," ",""),AF$5*2+1,2) -> 1 | AG11: =IF(L11="01",HEX2DEC(O11&P11)/10,"-") -> 40.8 | AH11: =IF(L11="01",HEX2DEC(Q11&R11)/100,"-") -> 0.64 | AI11: =IF(L11="01",HEX2DEC(S11&T11)/10,"-") -> 26.2 | AJ11: =IF(L11="01",HEX2DEC(U11&V11&W11&X11)/1000,"-") -> 64.123 | AK11: =IF(L11="01",HEX2DEC(Y11&Z11)/1000,"-") -> 0.025 | AL11: =IF(L11="01",HEX2DEC(AA11&AB11)/10,"-") -> 233.8 | AM11: =IF(L11="82",HEX2DEC(M11&N11)/100,"-") -> - | AN11: =IF(L11="82",HEX2DEC(O11&P11)/10,"-") -> - | AO11: =IF(L11="82",HEX2DEC(S11&T11)/100,"-") -> - | AP11: =IF(L11="82",HEX2DEC(W11&X11)/10,"-") -> - | AQ11: =IF(L11="01",HEX2DEC(M11&N11),"-") -> 1 | AR11: =IF(L11="01",HEX2DEC(AC11&AD11),"-") -> 63687 | AS11: =IF(L11="82",HEX2DEC(Q11&R11),"-") -> - | AT11: =IF(L11="82",HEX2DEC(U11&V11),"-") -> - | AU11: =IF(L11="82",HEX2DEC(Y11&Z11),"-") -> - | AV11: =IF(L11="82",HEX2DEC(AA11&AB11),"-") -> - | AW11: =IF(L11="82",HEX2DEC(AC11&AD11),"-") -> -
A12: 09:10:28 | B12: 95 7310xxyy 7310xxyy 82138600FA0000000B03E8006000060D30C3BB71 1 | C12: =MID(SUBSTITUTE($B12," ",""),C$5*2+1,2) -> 95 | D12: =MID(SUBSTITUTE($B12," ",""),D$5*2+1,2) -> 73 | E12: =MID(SUBSTITUTE($B12," ",""),E$5*2+1,2) -> 10 | F12: =MID(SUBSTITUTE($B12," ",""),F$5*2+1,2) -> xx | G12: =MID(SUBSTITUTE($B12," ",""),G$5*2+1,2) -> yy | H12: =MID(SUBSTITUTE($B12," ",""),H$5*2+1,2) -> 73 | I12: =MID(SUBSTITUTE($B12," ",""),I$5*2+1,2) -> 10 | J12: =MID(SUBSTITUTE($B12," ",""),J$5*2+1,2) -> xx | K12: =MID(SUBSTITUTE($B12," ",""),K$5*2+1,2) -> yy | L12: =MID(SUBSTITUTE($B12," ",""),L$5*2+1,2) -> 82 | M12: =MID(SUBSTITUTE($B12," ",""),M$5*2+1,2) -> 13 | N12: =MID(SUBSTITUTE($B12," ",""),N$5*2+1,2) -> 86 | O12: =MID(SUBSTITUTE($B12," ",""),O$5*2+1,2) -> 00 | P12: =MID(SUBSTITUTE($B12," ",""),P$5*2+1,2) -> FA | Q12: =MID(SUBSTITUTE($B12," ",""),Q$5*2+1,2) -> 00 | R12: =MID(SUBSTITUTE($B12," ",""),R$5*2+1,2) -> 00 | S12: =MID(SUBSTITUTE($B12," ",""),S$5*2+1,2) -> 00 | T12: =MID(SUBSTITUTE($B12," ",""),T$5*2+1,2) -> 0B | U12: =MID(SUBSTITUTE($B12," ",""),U$5*2+1,2) -> 03 | V12: =MID(SUBSTITUTE($B12," ",""),V$5*2+1,2) -> E8 | W12: =MID(SUBSTITUTE($B12," ",""),W$5*2+1,2) -> 00 | X12: =MID(SUBSTITUTE($B12," ",""),X$5*2+1,2) -> 60 | Y12: =MID(SUBSTITUTE($B12," ",""),Y$5*2+1,2) -> 00 | Z12: =MID(SUBSTITUTE($B12," ",""),Z$5*2+1,2) -> 06 | AA12: =MID(SUBSTITUTE($B12," ",""),AA$5*2+1,2) -> 0D | AB12: =MID(SUBSTITUTE($B12," ",""),AB$5*2+1,2) -> 30 | AC12: =MID(SUBSTITUTE($B12," ",""),AC$5*2+1,2) -> C3 | AD12: =MID(SUBSTITUTE($B12," ",""),AD$5*2+1,2) -> BB | AE12: =MID(SUBSTITUTE($B12," ",""),AE$5*2+1,2) -> 71 | AF12: =MID(SUBSTITUTE($B12," ",""),AF$5*2+1,2) -> 1 | AG12: =IF(L12="01",HEX2DEC(O12&P12)/10,"-") -> - | AH12: =IF(L12="01",HEX2DEC(Q12&R12)/100,"-") -> - | AI12: =IF(L12="01",HEX2DEC(S12&T12)/10,"-") -> - | AJ12: =IF(L12="01",HEX2DEC(U12&V12&W12&X12)/1000,"-") -> - | AK12: =IF(L12="01",HEX2DEC(Y12&Z12)/1000,"-") -> - | AL12: =IF(L12="01",HEX2DEC(AA12&AB12)/10,"-") -> - | AM12: =IF(L12="82",HEX2DEC(M12&N12)/100,"-") -> 49.98 | AN12: =IF(L12="82",HEX2DEC(O12&P12)/10,"-") -> 25 | AO12: =IF(L12="82",HEX2DEC(S12&T12)/100,"-") -> 0.11 | AP12: =IF(L12="82",HEX2DEC(W12&X12)/10,"-") -> 9.6 | AQ12: =IF(L12="01",HEX2DEC(M12&N12),"-") -> - | AR12: =IF(L12="01",HEX2DEC(AC12&AD12),"-") -> - | AS12: =IF(L12="82",HEX2DEC(Q12&R12),"-") -> 0 | AT12: =IF(L12="82",HEX2DEC(U12&V12),"-") -> 1000 | AU12: =IF(L12="82",HEX2DEC(Y12&Z12),"-") -> 6 | AV12: =IF(L12="82",HEX2DEC(AA12&AB12),"-") -> 3376 | AW12: =IF(L12="82",HEX2DEC(AC12&AD12),"-") -> 50107
A13: 09:11:04 | B13: 95 7310xxyy 7310xxyy 0100010197004001030000FA7C001A092DF9CDC1 1 | C13: =MID(SUBSTITUTE($B13," ",""),C$5*2+1,2) -> 95 | D13: =MID(SUBSTITUTE($B13," ",""),D$5*2+1,2) -> 73 | E13: =MID(SUBSTITUTE($B13," ",""),E$5*2+1,2) -> 10 | F13: =MID(SUBSTITUTE($B13," ",""),F$5*2+1,2) -> xx | G13: =MID(SUBSTITUTE($B13," ",""),G$5*2+1,2) -> yy | H13: =MID(SUBSTITUTE($B13," ",""),H$5*2+1,2) -> 73 | I13: =MID(SUBSTITUTE($B13," ",""),I$5*2+1,2) -> 10 | J13: =MID(SUBSTITUTE($B13," ",""),J$5*2+1,2) -> xx | K13: =MID(SUBSTITUTE($B13," ",""),K$5*2+1,2) -> yy | L13: =MID(SUBSTITUTE($B13," ",""),L$5*2+1,2) -> 01 | M13: =MID(SUBSTITUTE($B13," ",""),M$5*2+1,2) -> 00 | N13: =MID(SUBSTITUTE($B13," ",""),N$5*2+1,2) -> 01 | O13: =MID(SUBSTITUTE($B13," ",""),O$5*2+1,2) -> 01 | P13: =MID(SUBSTITUTE($B13," ",""),P$5*2+1,2) -> 97 | Q13: =MID(SUBSTITUTE($B13," ",""),Q$5*2+1,2) -> 00 | R13: =MID(SUBSTITUTE($B13," ",""),R$5*2+1,2) -> 40 | S13: =MID(SUBSTITUTE($B13," ",""),S$5*2+1,2) -> 01 | T13: =MID(SUBSTITUTE($B13," ",""),T$5*2+1,2) -> 03 | U13: =MID(SUBSTITUTE($B13," ",""),U$5*2+1,2) -> 00 | V13: =MID(SUBSTITUTE($B13," ",""),V$5*2+1,2) -> 00 | W13: =MID(SUBSTITUTE($B13," ",""),W$5*2+1,2) -> FA | X13: =MID(SUBSTITUTE($B13," ",""),X$5*2+1,2) -> 7C | Y13: =MID(SUBSTITUTE($B13," ",""),Y$5*2+1,2) -> 00 | Z13: =MID(SUBSTITUTE($B13," ",""),Z$5*2+1,2) -> 1A | AA13: =MID(SUBSTITUTE($B13," ",""),AA$5*2+1,2) -> 09 | AB13: =MID(SUBSTITUTE($B13," ",""),AB$5*2+1,2) -> 2D | AC13: =MID(SUBSTITUTE($B13," ",""),AC$5*2+1,2) -> F9 | AD13: =MID(SUBSTITUTE($B13," ",""),AD$5*2+1,2) -> CD | AE13: =MID(SUBSTITUTE($B13," ",""),AE$5*2+1,2) -> C1 | AF13: =MID(SUBSTITUTE($B13," ",""),AF$5*2+1,2) -> 1 | AG13: =IF(L13="01",HEX2DEC(O13&P13)/10,"-") -> 40.7 | AH13: =IF(L13="01",HEX2DEC(Q13&R13)/100,"-") -> 0.64 | AI13: =IF(L13="01",HEX2DEC(S13&T13)/10,"-") -> 25.9 | AJ13: =IF(L13="01",HEX2DEC(U13&V13&W13&X13)/1000,"-") -> 64.124 | AK13: =IF(L13="01",HEX2DEC(Y13&Z13)/1000,"-") -> 0.026 | AL13: =IF(L13="01",HEX2DEC(AA13&AB13)/10,"-") -> 234.9 | AM13: =IF(L13="82",HEX2DEC(M13&N13)/100,"-") -> - | AN13: =IF(L13="82",HEX2DEC(O13&P13)/10,"-") -> - | AO13: =IF(L13="82",HEX2DEC(S13&T13)/100,"-") -> - | AP13: =IF(L13="82",HEX2DEC(W13&X13)/10,"-") -> - | AQ13: =IF(L13="01",HEX2DEC(M13&N13),"-") -> 1 | AR13: =IF(L13="01",HEX2DEC(AC13&AD13),"-") -> 63949 | AS13: =IF(L13="82",HEX2DEC(Q13&R13),"-") -> - | AT13: =IF(L13="82",HEX2DEC(U13&V13),"-") -> - | AU13: =IF(L13="82",HEX2DEC(Y13&Z13),"-") -> - | AV13: =IF(L13="82",HEX2DEC(AA13&AB13),"-") -> - | AW13: =IF(L13="82",HEX2DEC(AC13&AD13),"-") -> -
A14: 09:11:04 | B14: 95 7310xxyy 7310xxyy 82138600F70000000B03E80061000694EC8AB559 1 | C14: =MID(SUBSTITUTE($B14," ",""),C$5*2+1,2) -> 95 | D14: =MID(SUBSTITUTE($B14," ",""),D$5*2+1,2) -> 73 | E14: =MID(SUBSTITUTE($B14," ",""),E$5*2+1,2) -> 10 | F14: =MID(SUBSTITUTE($B14," ",""),F$5*2+1,2) -> xx | G14: =MID(SUBSTITUTE($B14," ",""),G$5*2+1,2) -> yy | H14: =MID(SUBSTITUTE($B14," ",""),H$5*2+1,2) -> 73 | I14: =MID(SUBSTITUTE($B14," ",""),I$5*2+1,2) -> 10 | J14: =MID(SUBSTITUTE($B14," ",""),J$5*2+1,2) -> xx | K14: =MID(SUBSTITUTE($B14," ",""),K$5*2+1,2) -> yy | L14: =MID(SUBSTITUTE($B14," ",""),L$5*2+1,2) -> 82 | M14: =MID(SUBSTITUTE($B14," ",""),M$5*2+1,2) -> 13 | N14: =MID(SUBSTITUTE($B14," ",""),N$5*2+1,2) -> 86 | O14: =MID(SUBSTITUTE($B14," ",""),O$5*2+1,2) -> 00 | P14: =MID(SUBSTITUTE($B14," ",""),P$5*2+1,2) -> F7 | Q14: =MID(SUBSTITUTE($B14," ",""),Q$5*2+1,2) -> 00 | R14: =MID(SUBSTITUTE($B14," ",""),R$5*2+1,2) -> 00 | S14: =MID(SUBSTITUTE($B14," ",""),S$5*2+1,2) -> 00 | T14: =MID(SUBSTITUTE($B14," ",""),T$5*2+1,2) -> 0B | U14: =MID(SUBSTITUTE($B14," ",""),U$5*2+1,2) -> 03 | V14: =MID(SUBSTITUTE($B14," ",""),V$5*2+1,2) -> E8 | W14: =MID(SUBSTITUTE($B14," ",""),W$5*2+1,2) -> 00 | X14: =MID(SUBSTITUTE($B14," ",""),X$5*2+1,2) -> 61 | Y14: =MID(SUBSTITUTE($B14," ",""),Y$5*2+1,2) -> 00 | Z14: =MID(SUBSTITUTE($B14," ",""),Z$5*2+1,2) -> 06 | AA14: =MID(SUBSTITUTE($B14," ",""),AA$5*2+1,2) -> 94 | AB14: =MID(SUBSTITUTE($B14," ",""),AB$5*2+1,2) -> EC | AC14: =MID(SUBSTITUTE($B14," ",""),AC$5*2+1,2) -> 8A | AD14: =MID(SUBSTITUTE($B14," ",""),AD$5*2+1,2) -> B5 | AE14: =MID(SUBSTITUTE($B14," ",""),AE$5*2+1,2) -> 59 | AF14: =MID(SUBSTITUTE($B14," ",""),AF$5*2+1,2) -> 1 | AG14: =IF(L14="01",HEX2DEC(O14&P14)/10,"-") -> - | AH14: =IF(L14="01",HEX2DEC(Q14&R14)/100,"-") -> - | AI14: =IF(L14="01",HEX2DEC(S14&T14)/10,"-") -> - | AJ14: =IF(L14="01",HEX2DEC(U14&V14&W14&X14)/1000,"-") -> - | AK14: =IF(L14="01",HEX2DEC(Y14&Z14)/1000,"-") -> - | AL14: =IF(L14="01",HEX2DEC(AA14&AB14)/10,"-") -> - | AM14: =IF(L14="82",HEX2DEC(M14&N14)/100,"-") -> 49.98 | AN14: =IF(L14="82",HEX2DEC(O14&P14)/10,"-") -> 24.7 | AO14: =IF(L14="82",HEX2DEC(S14&T14)/100,"-") -> 0.11 | AP14: =IF(L14="82",HEX2DEC(W14&X14)/10,"-") -> 9.7 | AQ14: =IF(L14="01",HEX2DEC(M14&N14),"-") -> - | AR14: =IF(L14="01",HEX2DEC(AC14&AD14),"-") -> - | AS14: =IF(L14="82",HEX2DEC(Q14&R14),"-") -> 0 | AT14: =IF(L14="82",HEX2DEC(U14&V14),"-") -> 1000 | AU14: =IF(L14="82",HEX2DEC(Y14&Z14),"-") -> 6 | AV14: =IF(L14="82",HEX2DEC(AA14&AB14),"-") -> 38124 | AW14: =IF(L14="82",HEX2DEC(AC14&AD14),"-") -> 35509
A15: 09:11:16 | B15: 95 7310xxyy 7310xxyy 0100010196004001020000FA7C001A092DF990CD 1 | C15: =MID(SUBSTITUTE($B15," ",""),C$5*2+1,2) -> 95 | D15: =MID(SUBSTITUTE($B15," ",""),D$5*2+1,2) -> 73 | E15: =MID(SUBSTITUTE($B15," ",""),E$5*2+1,2) -> 10 | F15: =MID(SUBSTITUTE($B15," ",""),F$5*2+1,2) -> xx | G15: =MID(SUBSTITUTE($B15," ",""),G$5*2+1,2) -> yy | H15: =MID(SUBSTITUTE($B15," ",""),H$5*2+1,2) -> 73 | I15: =MID(SUBSTITUTE($B15," ",""),I$5*2+1,2) -> 10 | J15: =MID(SUBSTITUTE($B15," ",""),J$5*2+1,2) -> xx | K15: =MID(SUBSTITUTE($B15," ",""),K$5*2+1,2) -> yy | L15: =MID(SUBSTITUTE($B15," ",""),L$5*2+1,2) -> 01 | M15: =MID(SUBSTITUTE($B15," ",""),M$5*2+1,2) -> 00 | N15: =MID(SUBSTITUTE($B15," ",""),N$5*2+1,2) -> 01 | O15: =MID(SUBSTITUTE($B15," ",""),O$5*2+1,2) -> 01 | P15: =MID(SUBSTITUTE($B15," ",""),P$5*2+1,2) -> 96 | Q15: =MID(SUBSTITUTE($B15," ",""),Q$5*2+1,2) -> 00 | R15: =MID(SUBSTITUTE($B15," ",""),R$5*2+1,2) -> 40 | S15: =MID(SUBSTITUTE($B15," ",""),S$5*2+1,2) -> 01 | T15: =MID(SUBSTITUTE($B15," ",""),T$5*2+1,2) -> 02 | U15: =MID(SUBSTITUTE($B15," ",""),U$5*2+1,2) -> 00 | V15: =MID(SUBSTITUTE($B15," ",""),V$5*2+1,2) -> 00 | W15: =MID(SUBSTITUTE($B15," ",""),W$5*2+1,2) -> FA | X15: =MID(SUBSTITUTE($B15," ",""),X$5*2+1,2) -> 7C | Y15: =MID(SUBSTITUTE($B15," ",""),Y$5*2+1,2) -> 00 | Z15: =MID(SUBSTITUTE($B15," ",""),Z$5*2+1,2) -> 1A | AA15: =MID(SUBSTITUTE($B15," ",""),AA$5*2+1,2) -> 09 | AB15: =MID(SUBSTITUTE($B15," ",""),AB$5*2+1,2) -> 2D | AC15: =MID(SUBSTITUTE($B15," ",""),AC$5*2+1,2) -> F9 | AD15: =MID(SUBSTITUTE($B15," ",""),AD$5*2+1,2) -> 90 | AE15: =MID(SUBSTITUTE($B15," ",""),AE$5*2+1,2) -> CD | AF15: =MID(SUBSTITUTE($B15," ",""),AF$5*2+1,2) -> 1 | AG15: =IF(L15="01",HEX2DEC(O15&P15)/10,"-") -> 40.6 | AH15: =IF(L15="01",HEX2DEC(Q15&R15)/100,"-") -> 0.64 | AI15: =IF(L15="01",HEX2DEC(S15&T15)/10,"-") -> 25.8 | AJ15: =IF(L15="01",HEX2DEC(U15&V15&W15&X15)/1000,"-") -> 64.124 | AK15: =IF(L15="01",HEX2DEC(Y15&Z15)/1000,"-") -> 0.026 | AL15: =IF(L15="01",HEX2DEC(AA15&AB15)/10,"-") -> 234.9 | AM15: =IF(L15="82",HEX2DEC(M15&N15)/100,"-") -> - | AN15: =IF(L15="82",HEX2DEC(O15&P15)/10,"-") -> - | AO15: =IF(L15="82",HEX2DEC(S15&T15)/100,"-") -> - | AP15: =IF(L15="82",HEX2DEC(W15&X15)/10,"-") -> - | AQ15: =IF(L15="01",HEX2DEC(M15&N15),"-") -> 1 | AR15: =IF(L15="01",HEX2DEC(AC15&AD15),"-") -> 63888 | AS15: =IF(L15="82",HEX2DEC(Q15&R15),"-") -> - | AT15: =IF(L15="82",HEX2DEC(U15&V15),"-") -> - | AU15: =IF(L15="82",HEX2DEC(Y15&Z15),"-") -> - | AV15: =IF(L15="82",HEX2DEC(AA15&AB15),"-") -> - | AW15: =IF(L15="82",HEX2DEC(AC15&AD15),"-") -> -
A16: 09:11:16 | B16: 95 7310xxyy 7310xxyy 82138700F60000000A03E80061000637C90D2E91 1 | C16: =MID(SUBSTITUTE($B16," ",""),C$5*2+1,2) -> 95 | D16: =MID(SUBSTITUTE($B16," ",""),D$5*2+1,2) -> 73 | E16: =MID(SUBSTITUTE($B16," ",""),E$5*2+1,2) -> 10 | F16: =MID(SUBSTITUTE($B16," ",""),F$5*2+1,2) -> xx | G16: =MID(SUBSTITUTE($B16," ",""),G$5*2+1,2) -> yy | H16: =MID(SUBSTITUTE($B16," ",""),H$5*2+1,2) -> 73 | I16: =MID(SUBSTITUTE($B16," ",""),I$5*2+1,2) -> 10 | J16: =MID(SUBSTITUTE($B16," ",""),J$5*2+1,2) -> xx | K16: =MID(SUBSTITUTE($B16," ",""),K$5*2+1,2) -> yy | L16: =MID(SUBSTITUTE($B16," ",""),L$5*2+1,2) -> 82 | M16: =MID(SUBSTITUTE($B16," ",""),M$5*2+1,2) -> 13 | N16: =MID(SUBSTITUTE($B16," ",""),N$5*2+1,2) -> 87 | O16: =MID(SUBSTITUTE($B16," ",""),O$5*2+1,2) -> 00 | P16: =MID(SUBSTITUTE($B16," ",""),P$5*2+1,2) -> F6 | Q16: =MID(SUBSTITUTE($B16," ",""),Q$5*2+1,2) -> 00 | R16: =MID(SUBSTITUTE($B16," ",""),R$5*2+1,2) -> 00 | S16: =MID(SUBSTITUTE($B16," ",""),S$5*2+1,2) -> 00 | T16: =MID(SUBSTITUTE($B16," ",""),T$5*2+1,2) -> 0A | U16: =MID(SUBSTITUTE($B16," ",""),U$5*2+1,2) -> 03 | V16: =MID(SUBSTITUTE($B16," ",""),V$5*2+1,2) -> E8 | W16: =MID(SUBSTITUTE($B16," ",""),W$5*2+1,2) -> 00 | X16: =MID(SUBSTITUTE($B16," ",""),X$5*2+1,2) -> 61 | Y16: =MID(SUBSTITUTE($B16," ",""),Y$5*2+1,2) -> 00 | Z16: =MID(SUBSTITUTE($B16," ",""),Z$5*2+1,2) -> 06 | AA16: =MID(SUBSTITUTE($B16," ",""),AA$5*2+1,2) -> 37 | AB16: =MID(SUBSTITUTE($B16," ",""),AB$5*2+1,2) -> C9 | AC16: =MID(SUBSTITUTE($B16," ",""),AC$5*2+1,2) -> 0D | AD16: =MID(SUBSTITUTE($B16," ",""),AD$5*2+1,2) -> 2E | AE16: =MID(SUBSTITUTE($B16," ",""),AE$5*2+1,2) -> 91 | AF16: =MID(SUBSTITUTE($B16," ",""),AF$5*2+1,2) -> 1 | AG16: =IF(L16="01",HEX2DEC(O16&P16)/10,"-") -> - | AH16: =IF(L16="01",HEX2DEC(Q16&R16)/100,"-") -> - | AI16: =IF(L16="01",HEX2DEC(S16&T16)/10,"-") -> - | AJ16: =IF(L16="01",HEX2DEC(U16&V16&W16&X16)/1000,"-") -> - | AK16: =IF(L16="01",HEX2DEC(Y16&Z16)/1000,"-") -> - | AL16: =IF(L16="01",HEX2DEC(AA16&AB16)/10,"-") -> - | AM16: =IF(L16="82",HEX2DEC(M16&N16)/100,"-") -> 49.99 | AN16: =IF(L16="82",HEX2DEC(O16&P16)/10,"-") -> 24.6 | AO16: =IF(L16="82",HEX2DEC(S16&T16)/100,"-") -> 0.1 | AP16: =IF(L16="82",HEX2DEC(W16&X16)/10,"-") -> 9.7 | AQ16: =IF(L16="01",HEX2DEC(M16&N16),"-") -> - | AR16: =IF(L16="01",HEX2DEC(AC16&AD16),"-") -> - | AS16: =IF(L16="82",HEX2DEC(Q16&R16),"-") -> 0 | AT16: =IF(L16="82",HEX2DEC(U16&V16),"-") -> 1000 | AU16: =IF(L16="82",HEX2DEC(Y16&Z16),"-") -> 6 | AV16: =IF(L16="82",HEX2DEC(AA16&AB16),"-") -> 14281 | AW16: =IF(L16="82",HEX2DEC(AC16&AD16),"-") -> 3374
A17: 09:11:52 | B17: 95 7310xxyy 7310xxyy 82138900FC0000000B03E800600006C25E6BDF0D 1 | C17: =MID(SUBSTITUTE($B17," ",""),C$5*2+1,2) -> 95 | D17: =MID(SUBSTITUTE($B17," ",""),D$5*2+1,2) -> 73 | E17: =MID(SUBSTITUTE($B17," ",""),E$5*2+1,2) -> 10 | F17: =MID(SUBSTITUTE($B17," ",""),F$5*2+1,2) -> xx | G17: =MID(SUBSTITUTE($B17," ",""),G$5*2+1,2) -> yy | H17: =MID(SUBSTITUTE($B17," ",""),H$5*2+1,2) -> 73 | I17: =MID(SUBSTITUTE($B17," ",""),I$5*2+1,2) -> 10 | J17: =MID(SUBSTITUTE($B17," ",""),J$5*2+1,2) -> xx | K17: =MID(SUBSTITUTE($B17," ",""),K$5*2+1,2) -> yy | L17: =MID(SUBSTITUTE($B17," ",""),L$5*2+1,2) -> 82 | M17: =MID(SUBSTITUTE($B17," ",""),M$5*2+1,2) -> 13 | N17: =MID(SUBSTITUTE($B17," ",""),N$5*2+1,2) -> 89 | O17: =MID(SUBSTITUTE($B17," ",""),O$5*2+1,2) -> 00 | P17: =MID(SUBSTITUTE($B17," ",""),P$5*2+1,2) -> FC | Q17: =MID(SUBSTITUTE($B17," ",""),Q$5*2+1,2) -> 00 | R17: =MID(SUBSTITUTE($B17," ",""),R$5*2+1,2) -> 00 | S17: =MID(SUBSTITUTE($B17," ",""),S$5*2+1,2) -> 00 | T17: =MID(SUBSTITUTE($B17," ",""),T$5*2+1,2) -> 0B | U17: =MID(SUBSTITUTE($B17," ",""),U$5*2+1,2) -> 03 | V17: =MID(SUBSTITUTE($B17," ",""),V$5*2+1,2) -> E8 | W17: =MID(SUBSTITUTE($B17," ",""),W$5*2+1,2) -> 00 | X17: =MID(SUBSTITUTE($B17," ",""),X$5*2+1,2) -> 60 | Y17: =MID(SUBSTITUTE($B17," ",""),Y$5*2+1,2) -> 00 | Z17: =MID(SUBSTITUTE($B17," ",""),Z$5*2+1,2) -> 06 | AA17: =MID(SUBSTITUTE($B17," ",""),AA$5*2+1,2) -> C2 | AB17: =MID(SUBSTITUTE($B17," ",""),AB$5*2+1,2) -> 5E | AC17: =MID(SUBSTITUTE($B17," ",""),AC$5*2+1,2) -> 6B | AD17: =MID(SUBSTITUTE($B17," ",""),AD$5*2+1,2) -> DF | AE17: =MID(SUBSTITUTE($B17," ",""),AE$5*2+1,2) -> 0D | AF17: =MID(SUBSTITUTE($B17," ",""),AF$5*2+1,2) -> 1 | AG17: =IF(L17="01",HEX2DEC(O17&P17)/10,"-") -> - | AH17: =IF(L17="01",HEX2DEC(Q17&R17)/100,"-") -> - | AI17: =IF(L17="01",HEX2DEC(S17&T17)/10,"-") -> - | AJ17: =IF(L17="01",HEX2DEC(U17&V17&W17&X17)/1000,"-") -> - | AK17: =IF(L17="01",HEX2DEC(Y17&Z17)/1000,"-") -> - | AL17: =IF(L17="01",HEX2DEC(AA17&AB17)/10,"-") -> - | AM17: =IF(L17="82",HEX2DEC(M17&N17)/100,"-") -> 50.01 | AN17: =IF(L17="82",HEX2DEC(O17&P17)/10,"-") -> 25.2 | AO17: =IF(L17="82",HEX2DEC(S17&T17)/100,"-") -> 0.11 | AP17: =IF(L17="82",HEX2DEC(W17&X17)/10,"-") -> 9.6 | AQ17: =IF(L17="01",HEX2DEC(M17&N17),"-") -> - | AR17: =IF(L17="01",HEX2DEC(AC17&AD17),"-") -> - | AS17: =IF(L17="82",HEX2DEC(Q17&R17),"-") -> 0 | AT17: =IF(L17="82",HEX2DEC(U17&V17),"-") -> 1000 | AU17: =IF(L17="82",HEX2DEC(Y17&Z17),"-") -> 6 | AV17: =IF(L17="82",HEX2DEC(AA17&AB17),"-") -> 49758 | AW17: =IF(L17="82",HEX2DEC(AC17&AD17),"-") -> 27615
A18: 09:11:53 | B18: 95 7310xxyy 7310xxyy 0100010199004101090000FA7C001A092BFA20BC 1 | C18: =MID(SUBSTITUTE($B18," ",""),C$5*2+1,2) -> 95 | D18: =MID(SUBSTITUTE($B18," ",""),D$5*2+1,2) -> 73 | E18: =MID(SUBSTITUTE($B18," ",""),E$5*2+1,2) -> 10 | F18: =MID(SUBSTITUTE($B18," ",""),F$5*2+1,2) -> xx | G18: =MID(SUBSTITUTE($B18," ",""),G$5*2+1,2) -> yy | H18: =MID(SUBSTITUTE($B18," ",""),H$5*2+1,2) -> 73 | I18: =MID(SUBSTITUTE($B18," ",""),I$5*2+1,2) -> 10 | J18: =MID(SUBSTITUTE($B18," ",""),J$5*2+1,2) -> xx | K18: =MID(SUBSTITUTE($B18," ",""),K$5*2+1,2) -> yy | L18: =MID(SUBSTITUTE($B18," ",""),L$5*2+1,2) -> 01 | M18: =MID(SUBSTITUTE($B18," ",""),M$5*2+1,2) -> 00 | N18: =MID(SUBSTITUTE($B18," ",""),N$5*2+1,2) -> 01 | O18: =MID(SUBSTITUTE($B18," ",""),O$5*2+1,2) -> 01 | P18: =MID(SUBSTITUTE($B18," ",""),P$5*2+1,2) -> 99 | Q18: =MID(SUBSTITUTE($B18," ",""),Q$5*2+1,2) -> 00 | R18: =MID(SUBSTITUTE($B18," ",""),R$5*2+1,2) -> 41 | S18: =MID(SUBSTITUTE($B18," ",""),S$5*2+1,2) -> 01 | T18: =MID(SUBSTITUTE($B18," ",""),T$5*2+1,2) -> 09 | U18: =MID(SUBSTITUTE($B18," ",""),U$5*2+1,2) -> 00 | V18: =MID(SUBSTITUTE($B18," ",""),V$5*2+1,2) -> 00 | W18: =MID(SUBSTITUTE($B18," ",""),W$5*2+1,2) -> FA | X18: =MID(SUBSTITUTE($B18," ",""),X$5*2+1,2) -> 7C | Y18: =MID(SUBSTITUTE($B18," ",""),Y$5*2+1,2) -> 00 | Z18: =MID(SUBSTITUTE($B18," ",""),Z$5*2+1,2) -> 1A | AA18: =MID(SUBSTITUTE($B18," ",""),AA$5*2+1,2) -> 09 | AB18: =MID(SUBSTITUTE($B18," ",""),AB$5*2+1,2) -> 2B | AC18: =MID(SUBSTITUTE($B18," ",""),AC$5*2+1,2) -> FA | AD18: =MID(SUBSTITUTE($B18," ",""),AD$5*2+1,2) -> 20 | AE18: =MID(SUBSTITUTE($B18," ",""),AE$5*2+1,2) -> BC | AF18: =MID(SUBSTITUTE($B18," ",""),AF$5*2+1,2) -> 1 | AG18: =IF(L18="01",HEX2DEC(O18&P18)/10,"-") -> 40.9 | AH18: =IF(L18="01",HEX2DEC(Q18&R18)/100,"-") -> 0.65 | AI18: =IF(L18="01",HEX2DEC(S18&T18)/10,"-") -> 26.5 | AJ18: =IF(L18="01",HEX2DEC(U18&V18&W18&X18)/1000,"-") -> 64.124 | AK18: =IF(L18="01",HEX2DEC(Y18&Z18)/1000,"-") -> 0.026 | AL18: =IF(L18="01",HEX2DEC(AA18&AB18)/10,"-") -> 234.7 | AM18: =IF(L18="82",HEX2DEC(M18&N18)/100,"-") -> - | AN18: =IF(L18="82",HEX2DEC(O18&P18)/10,"-") -> - | AO18: =IF(L18="82",HEX2DEC(S18&T18)/100,"-") -> - | AP18: =IF(L18="82",HEX2DEC(W18&X18)/10,"-") -> - | AQ18: =IF(L18="01",HEX2DEC(M18&N18),"-") -> 1 | AR18: =IF(L18="01",HEX2DEC(AC18&AD18),"-") -> 64032 | AS18: =IF(L18="82",HEX2DEC(Q18&R18),"-") -> - | AT18: =IF(L18="82",HEX2DEC(U18&V18),"-") -> - | AU18: =IF(L18="82",HEX2DEC(Y18&Z18),"-") -> - | AV18: =IF(L18="82",HEX2DEC(AA18&AB18),"-") -> - | AW18: =IF(L18="82",HEX2DEC(AC18&AD18),"-") -> -
A19: 09:12:08 | B19: 95 7310xxyy 7310xxyy 82138900FC0000000B03E800600006C25E6B9625 1 | C19: =MID(SUBSTITUTE($B19," ",""),C$5*2+1,2) -> 95 | D19: =MID(SUBSTITUTE($B19," ",""),D$5*2+1,2) -> 73 | E19: =MID(SUBSTITUTE($B19," ",""),E$5*2+1,2) -> 10 | F19: =MID(SUBSTITUTE($B19," ",""),F$5*2+1,2) -> xx | G19: =MID(SUBSTITUTE($B19," ",""),G$5*2+1,2) -> yy | H19: =MID(SUBSTITUTE($B19," ",""),H$5*2+1,2) -> 73 | I19: =MID(SUBSTITUTE($B19," ",""),I$5*2+1,2) -> 10 | J19: =MID(SUBSTITUTE($B19," ",""),J$5*2+1,2) -> xx | K19: =MID(SUBSTITUTE($B19," ",""),K$5*2+1,2) -> yy | L19: =MID(SUBSTITUTE($B19," ",""),L$5*2+1,2) -> 82 | M19: =MID(SUBSTITUTE($B19," ",""),M$5*2+1,2) -> 13 | N19: =MID(SUBSTITUTE($B19," ",""),N$5*2+1,2) -> 89 | O19: =MID(SUBSTITUTE($B19," ",""),O$5*2+1,2) -> 00 | P19: =MID(SUBSTITUTE($B19," ",""),P$5*2+1,2) -> FC | Q19: =MID(SUBSTITUTE($B19," ",""),Q$5*2+1,2) -> 00 | R19: =MID(SUBSTITUTE($B19," ",""),R$5*2+1,2) -> 00 | S19: =MID(SUBSTITUTE($B19," ",""),S$5*2+1,2) -> 00 | T19: =MID(SUBSTITUTE($B19," ",""),T$5*2+1,2) -> 0B | U19: =MID(SUBSTITUTE($B19," ",""),U$5*2+1,2) -> 03 | V19: =MID(SUBSTITUTE($B19," ",""),V$5*2+1,2) -> E8 | W19: =MID(SUBSTITUTE($B19," ",""),W$5*2+1,2) -> 00 | X19: =MID(SUBSTITUTE($B19," ",""),X$5*2+1,2) -> 60 | Y19: =MID(SUBSTITUTE($B19," ",""),Y$5*2+1,2) -> 00 | Z19: =MID(SUBSTITUTE($B19," ",""),Z$5*2+1,2) -> 06 | AA19: =MID(SUBSTITUTE($B19," ",""),AA$5*2+1,2) -> C2 | AB19: =MID(SUBSTITUTE($B19," ",""),AB$5*2+1,2) -> 5E | AC19: =MID(SUBSTITUTE($B19," ",""),AC$5*2+1,2) -> 6B | AD19: =MID(SUBSTITUTE($B19," ",""),AD$5*2+1,2) -> 96 | AE19: =MID(SUBSTITUTE($B19," ",""),AE$5*2+1,2) -> 25 | AF19: =MID(SUBSTITUTE($B19," ",""),AF$5*2+1,2) -> 1 | AG19: =IF(L19="01",HEX2DEC(O19&P19)/10,"-") -> - | AH19: =IF(L19="01",HEX2DEC(Q19&R19)/100,"-") -> - | AI19: =IF(L19="01",HEX2DEC(S19&T19)/10,"-") -> - | AJ19: =IF(L19="01",HEX2DEC(U19&V19&W19&X19)/1000,"-") -> - | AK19: =IF(L19="01",HEX2DEC(Y19&Z19)/1000,"-") -> - | AL19: =IF(L19="01",HEX2DEC(AA19&AB19)/10,"-") -> - | AM19: =IF(L19="82",HEX2DEC(M19&N19)/100,"-") -> 50.01 | AN19: =IF(L19="82",HEX2DEC(O19&P19)/10,"-") -> 25.2 | AO19: =IF(L19="82",HEX2DEC(S19&T19)/100,"-") -> 0.11 | AP19: =IF(L19="82",HEX2DEC(W19&X19)/10,"-") -> 9.6 | AQ19: =IF(L19="01",HEX2DEC(M19&N19),"-") -> - | AR19: =IF(L19="01",HEX2DEC(AC19&AD19),"-") -> - | AS19: =IF(L19="82",HEX2DEC(Q19&R19),"-") -> 0 | AT19: =IF(L19="82",HEX2DEC(U19&V19),"-") -> 1000 | AU19: =IF(L19="82",HEX2DEC(Y19&Z19),"-") -> 6 | AV19: =IF(L19="82",HEX2DEC(AA19&AB19),"-") -> 49758 | AW19: =IF(L19="82",HEX2DEC(AC19&AD19),"-") -> 27542
A20: 09:12:20 | B20: 95 7310xxyy 7310xxyy 82138801090000000B03E80060000674B2C4FE15 1 | C20: =MID(SUBSTITUTE($B20," ",""),C$5*2+1,2) -> 95 | D20: =MID(SUBSTITUTE($B20," ",""),D$5*2+1,2) -> 73 | E20: =MID(SUBSTITUTE($B20," ",""),E$5*2+1,2) -> 10 | F20: =MID(SUBSTITUTE($B20," ",""),F$5*2+1,2) -> xx | G20: =MID(SUBSTITUTE($B20," ",""),G$5*2+1,2) -> yy | H20: =MID(SUBSTITUTE($B20," ",""),H$5*2+1,2) -> 73 | I20: =MID(SUBSTITUTE($B20," ",""),I$5*2+1,2) -> 10 | J20: =MID(SUBSTITUTE($B20," ",""),J$5*2+1,2) -> xx | K20: =MID(SUBSTITUTE($B20," ",""),K$5*2+1,2) -> yy | L20: =MID(SUBSTITUTE($B20," ",""),L$5*2+1,2) -> 82 | M20: =MID(SUBSTITUTE($B20," ",""),M$5*2+1,2) -> 13 | N20: =MID(SUBSTITUTE($B20," ",""),N$5*2+1,2) -> 88 | O20: =MID(SUBSTITUTE($B20," ",""),O$5*2+1,2) -> 01 | P20: =MID(SUBSTITUTE($B20," ",""),P$5*2+1,2) -> 09 | Q20: =MID(SUBSTITUTE($B20," ",""),Q$5*2+1,2) -> 00 | R20: =MID(SUBSTITUTE($B20," ",""),R$5*2+1,2) -> 00 | S20: =MID(SUBSTITUTE($B20," ",""),S$5*2+1,2) -> 00 | T20: =MID(SUBSTITUTE($B20," ",""),T$5*2+1,2) -> 0B | U20: =MID(SUBSTITUTE($B20," ",""),U$5*2+1,2) -> 03 | V20: =MID(SUBSTITUTE($B20," ",""),V$5*2+1,2) -> E8 | W20: =MID(SUBSTITUTE($B20," ",""),W$5*2+1,2) -> 00 | X20: =MID(SUBSTITUTE($B20," ",""),X$5*2+1,2) -> 60 | Y20: =MID(SUBSTITUTE($B20," ",""),Y$5*2+1,2) -> 00 | Z20: =MID(SUBSTITUTE($B20," ",""),Z$5*2+1,2) -> 06 | AA20: =MID(SUBSTITUTE($B20," ",""),AA$5*2+1,2) -> 74 | AB20: =MID(SUBSTITUTE($B20," ",""),AB$5*2+1,2) -> B2 | AC20: =MID(SUBSTITUTE($B20," ",""),AC$5*2+1,2) -> C4 | AD20: =MID(SUBSTITUTE($B20," ",""),AD$5*2+1,2) -> FE | AE20: =MID(SUBSTITUTE($B20," ",""),AE$5*2+1,2) -> 15 | AF20: =MID(SUBSTITUTE($B20," ",""),AF$5*2+1,2) -> 1 | AG20: =IF(L20="01",HEX2DEC(O20&P20)/10,"-") -> - | AH20: =IF(L20="01",HEX2DEC(Q20&R20)/100,"-") -> - | AI20: =IF(L20="01",HEX2DEC(S20&T20)/10,"-") -> - | AJ20: =IF(L20="01",HEX2DEC(U20&V20&W20&X20)/1000,"-") -> - | AK20: =IF(L20="01",HEX2DEC(Y20&Z20)/1000,"-") -> - | AL20: =IF(L20="01",HEX2DEC(AA20&AB20)/10,"-") -> - | AM20: =IF(L20="82",HEX2DEC(M20&N20)/100,"-") -> 50 | AN20: =IF(L20="82",HEX2DEC(O20&P20)/10,"-") -> 26.5 | AO20: =IF(L20="82",HEX2DEC(S20&T20)/100,"-") -> 0.11 | AP20: =IF(L20="82",HEX2DEC(W20&X20)/10,"-") -> 9.6 | AQ20: =IF(L20="01",HEX2DEC(M20&N20),"-") -> - | AR20: =IF(L20="01",HEX2DEC(AC20&AD20),"-") -> - | AS20: =IF(L20="82",HEX2DEC(Q20&R20),"-") -> 0 | AT20: =IF(L20="82",HEX2DEC(U20&V20),"-") -> 1000 | AU20: =IF(L20="82",HEX2DEC(Y20&Z20),"-") -> 6 | AV20: =IF(L20="82",HEX2DEC(AA20&AB20),"-") -> 29874 | AW20: =IF(L20="82",HEX2DEC(AC20&AD20),"-") -> 50430
A21: 09:12:28 | B21: 95 7310xxyy 7310xxyy 010001019A0046011F0000FA7C001A092FECB566 1 | C21: =MID(SUBSTITUTE($B21," ",""),C$5*2+1,2) -> 95 | D21: =MID(SUBSTITUTE($B21," ",""),D$5*2+1,2) -> 73 | E21: =MID(SUBSTITUTE($B21," ",""),E$5*2+1,2) -> 10 | F21: =MID(SUBSTITUTE($B21," ",""),F$5*2+1,2) -> xx | G21: =MID(SUBSTITUTE($B21," ",""),G$5*2+1,2) -> yy | H21: =MID(SUBSTITUTE($B21," ",""),H$5*2+1,2) -> 73 | I21: =MID(SUBSTITUTE($B21," ",""),I$5*2+1,2) -> 10 | J21: =MID(SUBSTITUTE($B21," ",""),J$5*2+1,2) -> xx | K21: =MID(SUBSTITUTE($B21," ",""),K$5*2+1,2) -> yy | L21: =MID(SUBSTITUTE($B21," ",""),L$5*2+1,2) -> 01 | M21: =MID(SUBSTITUTE($B21," ",""),M$5*2+1,2) -> 00 | N21: =MID(SUBSTITUTE($B21," ",""),N$5*2+1,2) -> 01 | O21: =MID(SUBSTITUTE($B21," ",""),O$5*2+1,2) -> 01 | P21: =MID(SUBSTITUTE($B21," ",""),P$5*2+1,2) -> 9A | Q21: =MID(SUBSTITUTE($B21," ",""),Q$5*2+1,2) -> 00 | R21: =MID(SUBSTITUTE($B21," ",""),R$5*2+1,2) -> 46 | S21: =MID(SUBSTITUTE($B21," ",""),S$5*2+1,2) -> 01 | T21: =MID(SUBSTITUTE($B21," ",""),T$5*2+1,2) -> 1F | U21: =MID(SUBSTITUTE($B21," ",""),U$5*2+1,2) -> 00 | V21: =MID(SUBSTITUTE($B21," ",""),V$5*2+1,2) -> 00 | W21: =MID(SUBSTITUTE($B21," ",""),W$5*2+1,2) -> FA | X21: =MID(SUBSTITUTE($B21," ",""),X$5*2+1,2) -> 7C | Y21: =MID(SUBSTITUTE($B21," ",""),Y$5*2+1,2) -> 00 | Z21: =MID(SUBSTITUTE($B21," ",""),Z$5*2+1,2) -> 1A | AA21: =MID(SUBSTITUTE($B21," ",""),AA$5*2+1,2) -> 09 | AB21: =MID(SUBSTITUTE($B21," ",""),AB$5*2+1,2) -> 2F | AC21: =MID(SUBSTITUTE($B21," ",""),AC$5*2+1,2) -> EC | AD21: =MID(SUBSTITUTE($B21," ",""),AD$5*2+1,2) -> B5 | AE21: =MID(SUBSTITUTE($B21," ",""),AE$5*2+1,2) -> 66 | AF21: =MID(SUBSTITUTE($B21," ",""),AF$5*2+1,2) -> 1 | AG21: =IF(L21="01",HEX2DEC(O21&P21)/10,"-") -> 41 | AH21: =IF(L21="01",HEX2DEC(Q21&R21)/100,"-") -> 0.7 | AI21: =IF(L21="01",HEX2DEC(S21&T21)/10,"-") -> 28.7 | AJ21: =IF(L21="01",HEX2DEC(U21&V21&W21&X21)/1000,"-") -> 64.124 | AK21: =IF(L21="01",HEX2DEC(Y21&Z21)/1000,"-") -> 0.026 | AL21: =IF(L21="01",HEX2DEC(AA21&AB21)/10,"-") -> 235.1 | AM21: =IF(L21="82",HEX2DEC(M21&N21)/100,"-") -> - | AN21: =IF(L21="82",HEX2DEC(O21&P21)/10,"-") -> - | AO21: =IF(L21="82",HEX2DEC(S21&T21)/100,"-") -> - | AP21: =IF(L21="82",HEX2DEC(W21&X21)/10,"-") -> - | AQ21: =IF(L21="01",HEX2DEC(M21&N21),"-") -> 1 | AR21: =IF(L21="01",HEX2DEC(AC21&AD21),"-") -> 60597 | AS21: =IF(L21="82",HEX2DEC(Q21&R21),"-") -> - | AT21: =IF(L21="82",HEX2DEC(U21&V21),"-") -> - | AU21: =IF(L21="82",HEX2DEC(Y21&Z21),"-") -> - | AV21: =IF(L21="82",HEX2DEC(AA21&AB21),"-") -> - | AW21: =IF(L21="82",HEX2DEC(AC21&AD21),"-") -> -
A22: 09:12:28 | B22: 95 7310xxyy 7310xxyy 82138701110000000C03E8005F000600567B9B44 1 | C22: =MID(SUBSTITUTE($B22," ",""),C$5*2+1,2) -> 95 | D22: =MID(SUBSTITUTE($B22," ",""),D$5*2+1,2) -> 73 | E22: =MID(SUBSTITUTE($B22," ",""),E$5*2+1,2) -> 10 | F22: =MID(SUBSTITUTE($B22," ",""),F$5*2+1,2) -> xx | G22: =MID(SUBSTITUTE($B22," ",""),G$5*2+1,2) -> yy | H22: =MID(SUBSTITUTE($B22," ",""),H$5*2+1,2) -> 73 | I22: =MID(SUBSTITUTE($B22," ",""),I$5*2+1,2) -> 10 | J22: =MID(SUBSTITUTE($B22," ",""),J$5*2+1,2) -> xx | K22: =MID(SUBSTITUTE($B22," ",""),K$5*2+1,2) -> yy | L22: =MID(SUBSTITUTE($B22," ",""),L$5*2+1,2) -> 82 | M22: =MID(SUBSTITUTE($B22," ",""),M$5*2+1,2) -> 13 | N22: =MID(SUBSTITUTE($B22," ",""),N$5*2+1,2) -> 87 | O22: =MID(SUBSTITUTE($B22," ",""),O$5*2+1,2) -> 01 | P22: =MID(SUBSTITUTE($B22," ",""),P$5*2+1,2) -> 11 | Q22: =MID(SUBSTITUTE($B22," ",""),Q$5*2+1,2) -> 00 | R22: =MID(SUBSTITUTE($B22," ",""),R$5*2+1,2) -> 00 | S22: =MID(SUBSTITUTE($B22," ",""),S$5*2+1,2) -> 00 | T22: =MID(SUBSTITUTE($B22," ",""),T$5*2+1,2) -> 0C | U22: =MID(SUBSTITUTE($B22," ",""),U$5*2+1,2) -> 03 | V22: =MID(SUBSTITUTE($B22," ",""),V$5*2+1,2) -> E8 | W22: =MID(SUBSTITUTE($B22," ",""),W$5*2+1,2) -> 00 | X22: =MID(SUBSTITUTE($B22," ",""),X$5*2+1,2) -> 5F | Y22: =MID(SUBSTITUTE($B22," ",""),Y$5*2+1,2) -> 00 | Z22: =MID(SUBSTITUTE($B22," ",""),Z$5*2+1,2) -> 06 | AA22: =MID(SUBSTITUTE($B22," ",""),AA$5*2+1,2) -> 00 | AB22: =MID(SUBSTITUTE($B22," ",""),AB$5*2+1,2) -> 56 | AC22: =MID(SUBSTITUTE($B22," ",""),AC$5*2+1,2) -> 7B | AD22: =MID(SUBSTITUTE($B22," ",""),AD$5*2+1,2) -> 9B | AE22: =MID(SUBSTITUTE($B22," ",""),AE$5*2+1,2) -> 44 | AF22: =MID(SUBSTITUTE($B22," ",""),AF$5*2+1,2) -> 1 | AG22: =IF(L22="01",HEX2DEC(O22&P22)/10,"-") -> - | AH22: =IF(L22="01",HEX2DEC(Q22&R22)/100,"-") -> - | AI22: =IF(L22="01",HEX2DEC(S22&T22)/10,"-") -> - | AJ22: =IF(L22="01",HEX2DEC(U22&V22&W22&X22)/1000,"-") -> - | AK22: =IF(L22="01",HEX2DEC(Y22&Z22)/1000,"-") -> - | AL22: =IF(L22="01",HEX2DEC(AA22&AB22)/10,"-") -> - | AM22: =IF(L22="82",HEX2DEC(M22&N22)/100,"-") -> 49.99 | AN22: =IF(L22="82",HEX2DEC(O22&P22)/10,"-") -> 27.3 | AO22: =IF(L22="82",HEX2DEC(S22&T22)/100,"-") -> 0.12 | AP22: =IF(L22="82",HEX2DEC(W22&X22)/10,"-") -> 9.5 | AQ22: =IF(L22="01",HEX2DEC(M22&N22),"-") -> - | AR22: =IF(L22="01",HEX2DEC(AC22&AD22),"-") -> - | AS22: =IF(L22="82",HEX2DEC(Q22&R22),"-") -> 0 | AT22: =IF(L22="82",HEX2DEC(U22&V22),"-") -> 1000 | AU22: =IF(L22="82",HEX2DEC(Y22&Z22),"-") -> 6 | AV22: =IF(L22="82",HEX2DEC(AA22&AB22),"-") -> 86 | AW22: =IF(L22="82",HEX2DEC(AC22&AD22),"-") -> 31643
A23: 09:12:32 | B23: 95 7310xxyy 7310xxyy 82138701110000000C03E8005F000600567BD26C BE5C F09A C75E B8B6 BB71 B388 B8B6 BE5C CDC1 B559 B562 B388 90CD 2E91 BE5C B388 BE5C DF0D 20BC 9625 B562 FE15 B8B6 B566 9B44 D261 | C23: =MID(SUBSTITUTE($B23," ",""),C$5*2+1,2) -> 95 | D23: =MID(SUBSTITUTE($B23," ",""),D$5*2+1,2) -> 73 | E23: =MID(SUBSTITUTE($B23," ",""),E$5*2+1,2) -> 10 | F23: =MID(SUBSTITUTE($B23," ",""),F$5*2+1,2) -> xx | G23: =MID(SUBSTITUTE($B23," ",""),G$5*2+1,2) -> yy | H23: =MID(SUBSTITUTE($B23," ",""),H$5*2+1,2) -> 73 | I23: =MID(SUBSTITUTE($B23," ",""),I$5*2+1,2) -> 10 | J23: =MID(SUBSTITUTE($B23," ",""),J$5*2+1,2) -> xx | K23: =MID(SUBSTITUTE($B23," ",""),K$5*2+1,2) -> yy | L23: =MID(SUBSTITUTE($B23," ",""),L$5*2+1,2) -> 82 | M23: =MID(SUBSTITUTE($B23," ",""),M$5*2+1,2) -> 13 | N23: =MID(SUBSTITUTE($B23," ",""),N$5*2+1,2) -> 87 | O23: =MID(SUBSTITUTE($B23," ",""),O$5*2+1,2) -> 01 | P23: =MID(SUBSTITUTE($B23," ",""),P$5*2+1,2) -> 11 | Q23: =MID(SUBSTITUTE($B23," ",""),Q$5*2+1,2) -> 00 | R23: =MID(SUBSTITUTE($B23," ",""),R$5*2+1,2) -> 00 | S23: =MID(SUBSTITUTE($B23," ",""),S$5*2+1,2) -> 00 | T23: =MID(SUBSTITUTE($B23," ",""),T$5*2+1,2) -> 0C | U23: =MID(SUBSTITUTE($B23," ",""),U$5*2+1,2) -> 03 | V23: =MID(SUBSTITUTE($B23," ",""),V$5*2+1,2) -> E8 | W23: =MID(SUBSTITUTE($B23," ",""),W$5*2+1,2) -> 00 | X23: =MID(SUBSTITUTE($B23," ",""),X$5*2+1,2) -> 5F | Y23: =MID(SUBSTITUTE($B23," ",""),Y$5*2+1,2) -> 00 | Z23: =MID(SUBSTITUTE($B23," ",""),Z$5*2+1,2) -> 06 | AA23: =MID(SUBSTITUTE($B23," ",""),AA$5*2+1,2) -> 00 | AB23: =MID(SUBSTITUTE($B23," ",""),AB$5*2+1,2) -> 56 | AC23: =MID(SUBSTITUTE($B23," ",""),AC$5*2+1,2) -> 7B | AD23: =MID(SUBSTITUTE($B23," ",""),AD$5*2+1,2) -> D2 | AE23: =MID(SUBSTITUTE($B23," ",""),AE$5*2+1,2) -> 6C | AF23: =MID(SUBSTITUTE($B23," ",""),AF$5*2+1,2) -> BE | AG23: =IF(L23="01",HEX2DEC(O23&P23)/10,"-") -> - | AH23: =IF(L23="01",HEX2DEC(Q23&R23)/100,"-") -> - | AI23: =IF(L23="01",HEX2DEC(S23&T23)/10,"-") -> - | AJ23: =IF(L23="01",HEX2DEC(U23&V23&W23&X23)/1000,"-") -> - | AK23: =IF(L23="01",HEX2DEC(Y23&Z23)/1000,"-") -> - | AL23: =IF(L23="01",HEX2DEC(AA23&AB23)/10,"-") -> - | AM23: =IF(L23="82",HEX2DEC(M23&N23)/100,"-") -> 49.99 | AN23: =IF(L23="82",HEX2DEC(O23&P23)/10,"-") -> 27.3 | AO23: =IF(L23="82",HEX2DEC(S23&T23)/100,"-") -> 0.12 | AP23: =IF(L23="82",HEX2DEC(W23&X23)/10,"-") -> 9.5 | AQ23: =IF(L23="01",HEX2DEC(M23&N23),"-") -> - | AR23: =IF(L23="01",HEX2DEC(AC23&AD23),"-") -> - | AS23: =IF(L23="82",HEX2DEC(Q23&R23),"-") -> 0 | AT23: =IF(L23="82",HEX2DEC(U23&V23),"-") -> 1000 | AU23: =IF(L23="82",HEX2DEC(Y23&Z23),"-") -> 6 | AV23: =IF(L23="82",HEX2DEC(AA23&AB23),"-") -> 86 | AW23: =IF(L23="82",HEX2DEC(AC23&AD23),"-") -> 31698
A24: 09:12:40 | B24: 95 7310xxyy 7310xxyy 010001019B0049012C0000FA7C001A092CD2437E 1 | C24: =MID(SUBSTITUTE($B24," ",""),C$5*2+1,2) -> 95 | D24: =MID(SUBSTITUTE($B24," ",""),D$5*2+1,2) -> 73 | E24: =MID(SUBSTITUTE($B24," ",""),E$5*2+1,2) -> 10 | F24: =MID(SUBSTITUTE($B24," ",""),F$5*2+1,2) -> xx | G24: =MID(SUBSTITUTE($B24," ",""),G$5*2+1,2) -> yy | H24: =MID(SUBSTITUTE($B24," ",""),H$5*2+1,2) -> 73 | I24: =MID(SUBSTITUTE($B24," ",""),I$5*2+1,2) -> 10 | J24: =MID(SUBSTITUTE($B24," ",""),J$5*2+1,2) -> xx | K24: =MID(SUBSTITUTE($B24," ",""),K$5*2+1,2) -> yy | L24: =MID(SUBSTITUTE($B24," ",""),L$5*2+1,2) -> 01 | M24: =MID(SUBSTITUTE($B24," ",""),M$5*2+1,2) -> 00 | N24: =MID(SUBSTITUTE($B24," ",""),N$5*2+1,2) -> 01 | O24: =MID(SUBSTITUTE($B24," ",""),O$5*2+1,2) -> 01 | P24: =MID(SUBSTITUTE($B24," ",""),P$5*2+1,2) -> 9B | Q24: =MID(SUBSTITUTE($B24," ",""),Q$5*2+1,2) -> 00 | R24: =MID(SUBSTITUTE($B24," ",""),R$5*2+1,2) -> 49 | S24: =MID(SUBSTITUTE($B24," ",""),S$5*2+1,2) -> 01 | T24: =MID(SUBSTITUTE($B24," ",""),T$5*2+1,2) -> 2C | U24: =MID(SUBSTITUTE($B24," ",""),U$5*2+1,2) -> 00 | V24: =MID(SUBSTITUTE($B24," ",""),V$5*2+1,2) -> 00 | W24: =MID(SUBSTITUTE($B24," ",""),W$5*2+1,2) -> FA | X24: =MID(SUBSTITUTE($B24," ",""),X$5*2+1,2) -> 7C | Y24: =MID(SUBSTITUTE($B24," ",""),Y$5*2+1,2) -> 00 | Z24: =MID(SUBSTITUTE($B24," ",""),Z$5*2+1,2) -> 1A | AA24: =MID(SUBSTITUTE($B24," ",""),AA$5*2+1,2) -> 09 | AB24: =MID(SUBSTITUTE($B24," ",""),AB$5*2+1,2) -> 2C | AC24: =MID(SUBSTITUTE($B24," ",""),AC$5*2+1,2) -> D2 | AD24: =MID(SUBSTITUTE($B24," ",""),AD$5*2+1,2) -> 43 | AE24: =MID(SUBSTITUTE($B24," ",""),AE$5*2+1,2) -> 7E | AF24: =MID(SUBSTITUTE($B24," ",""),AF$5*2+1,2) -> 1 | AG24: =IF(L24="01",HEX2DEC(O24&P24)/10,"-") -> 41.1 | AH24: =IF(L24="01",HEX2DEC(Q24&R24)/100,"-") -> 0.73 | AI24: =IF(L24="01",HEX2DEC(S24&T24)/10,"-") -> 30 | AJ24: =IF(L24="01",HEX2DEC(U24&V24&W24&X24)/1000,"-") -> 64.124 | AK24: =IF(L24="01",HEX2DEC(Y24&Z24)/1000,"-") -> 0.026 | AL24: =IF(L24="01",HEX2DEC(AA24&AB24)/10,"-") -> 234.8 | AM24: =IF(L24="82",HEX2DEC(M24&N24)/100,"-") -> - | AN24: =IF(L24="82",HEX2DEC(O24&P24)/10,"-") -> - | AO24: =IF(L24="82",HEX2DEC(S24&T24)/100,"-") -> - | AP24: =IF(L24="82",HEX2DEC(W24&X24)/10,"-") -> - | AQ24: =IF(L24="01",HEX2DEC(M24&N24),"-") -> 1 | AR24: =IF(L24="01",HEX2DEC(AC24&AD24),"-") -> 53827 | AS24: =IF(L24="82",HEX2DEC(Q24&R24),"-") -> - | AT24: =IF(L24="82",HEX2DEC(U24&V24),"-") -> - | AU24: =IF(L24="82",HEX2DEC(Y24&Z24),"-") -> - | AV24: =IF(L24="82",HEX2DEC(AA24&AB24),"-") -> - | AW24: =IF(L24="82",HEX2DEC(AC24&AD24),"-") -> -
A25: 09:12:40 | B25: 95 7310xxyy 7310xxyy 821387011D0000000C03E800620006CB46916554 1 | C25: =MID(SUBSTITUTE($B25," ",""),C$5*2+1,2) -> 95 | D25: =MID(SUBSTITUTE($B25," ",""),D$5*2+1,2) -> 73 | E25: =MID(SUBSTITUTE($B25," ",""),E$5*2+1,2) -> 10 | F25: =MID(SUBSTITUTE($B25," ",""),F$5*2+1,2) -> xx | G25: =MID(SUBSTITUTE($B25," ",""),G$5*2+1,2) -> yy | H25: =MID(SUBSTITUTE($B25," ",""),H$5*2+1,2) -> 73 | I25: =MID(SUBSTITUTE($B25," ",""),I$5*2+1,2) -> 10 | J25: =MID(SUBSTITUTE($B25," ",""),J$5*2+1,2) -> xx | K25: =MID(SUBSTITUTE($B25," ",""),K$5*2+1,2) -> yy | L25: =MID(SUBSTITUTE($B25," ",""),L$5*2+1,2) -> 82 | M25: =MID(SUBSTITUTE($B25," ",""),M$5*2+1,2) -> 13 | N25: =MID(SUBSTITUTE($B25," ",""),N$5*2+1,2) -> 87 | O25: =MID(SUBSTITUTE($B25," ",""),O$5*2+1,2) -> 01 | P25: =MID(SUBSTITUTE($B25," ",""),P$5*2+1,2) -> 1D | Q25: =MID(SUBSTITUTE($B25," ",""),Q$5*2+1,2) -> 00 | R25: =MID(SUBSTITUTE($B25," ",""),R$5*2+1,2) -> 00 | S25: =MID(SUBSTITUTE($B25," ",""),S$5*2+1,2) -> 00 | T25: =MID(SUBSTITUTE($B25," ",""),T$5*2+1,2) -> 0C | U25: =MID(SUBSTITUTE($B25," ",""),U$5*2+1,2) -> 03 | V25: =MID(SUBSTITUTE($B25," ",""),V$5*2+1,2) -> E8 | W25: =MID(SUBSTITUTE($B25," ",""),W$5*2+1,2) -> 00 | X25: =MID(SUBSTITUTE($B25," ",""),X$5*2+1,2) -> 62 | Y25: =MID(SUBSTITUTE($B25," ",""),Y$5*2+1,2) -> 00 | Z25: =MID(SUBSTITUTE($B25," ",""),Z$5*2+1,2) -> 06 | AA25: =MID(SUBSTITUTE($B25," ",""),AA$5*2+1,2) -> CB | AB25: =MID(SUBSTITUTE($B25," ",""),AB$5*2+1,2) -> 46 | AC25: =MID(SUBSTITUTE($B25," ",""),AC$5*2+1,2) -> 91 | AD25: =MID(SUBSTITUTE($B25," ",""),AD$5*2+1,2) -> 65 | AE25: =MID(SUBSTITUTE($B25," ",""),AE$5*2+1,2) -> 54 | AF25: =MID(SUBSTITUTE($B25," ",""),AF$5*2+1,2) -> 1 | AG25: =IF(L25="01",HEX2DEC(O25&P25)/10,"-") -> - | AH25: =IF(L25="01",HEX2DEC(Q25&R25)/100,"-") -> - | AI25: =IF(L25="01",HEX2DEC(S25&T25)/10,"-") -> - | AJ25: =IF(L25="01",HEX2DEC(U25&V25&W25&X25)/1000,"-") -> - | AK25: =IF(L25="01",HEX2DEC(Y25&Z25)/1000,"-") -> - | AL25: =IF(L25="01",HEX2DEC(AA25&AB25)/10,"-") -> - | AM25: =IF(L25="82",HEX2DEC(M25&N25)/100,"-") -> 49.99 | AN25: =IF(L25="82",HEX2DEC(O25&P25)/10,"-") -> 28.5 | AO25: =IF(L25="82",HEX2DEC(S25&T25)/100,"-") -> 0.12 | AP25: =IF(L25="82",HEX2DEC(W25&X25)/10,"-") -> 9.8 | AQ25: =IF(L25="01",HEX2DEC(M25&N25),"-") -> - | AR25: =IF(L25="01",HEX2DEC(AC25&AD25),"-") -> - | AS25: =IF(L25="82",HEX2DEC(Q25&R25),"-") -> 0 | AT25: =IF(L25="82",HEX2DEC(U25&V25),"-") -> 1000 | AU25: =IF(L25="82",HEX2DEC(Y25&Z25),"-") -> 6 | AV25: =IF(L25="82",HEX2DEC(AA25&AB25),"-") -> 52038 | AW25: =IF(L25="82",HEX2DEC(AC25&AD25),"-") -> 37221
A26: 09:13:04 | B26: 95 7310xxyy 7310xxyy 821389013B0000000D03E800610006E192454B02 1 | C26: =MID(SUBSTITUTE($B26," ",""),C$5*2+1,2) -> 95 | D26: =MID(SUBSTITUTE($B26," ",""),D$5*2+1,2) -> 73 | E26: =MID(SUBSTITUTE($B26," ",""),E$5*2+1,2) -> 10 | F26: =MID(SUBSTITUTE($B26," ",""),F$5*2+1,2) -> xx | G26: =MID(SUBSTITUTE($B26," ",""),G$5*2+1,2) -> yy | H26: =MID(SUBSTITUTE($B26," ",""),H$5*2+1,2) -> 73 | I26: =MID(SUBSTITUTE($B26," ",""),I$5*2+1,2) -> 10 | J26: =MID(SUBSTITUTE($B26," ",""),J$5*2+1,2) -> xx | K26: =MID(SUBSTITUTE($B26," ",""),K$5*2+1,2) -> yy | L26: =MID(SUBSTITUTE($B26," ",""),L$5*2+1,2) -> 82 | M26: =MID(SUBSTITUTE($B26," ",""),M$5*2+1,2) -> 13 | N26: =MID(SUBSTITUTE($B26," ",""),N$5*2+1,2) -> 89 | O26: =MID(SUBSTITUTE($B26," ",""),O$5*2+1,2) -> 01 | P26: =MID(SUBSTITUTE($B26," ",""),P$5*2+1,2) -> 3B | Q26: =MID(SUBSTITUTE($B26," ",""),Q$5*2+1,2) -> 00 | R26: =MID(SUBSTITUTE($B26," ",""),R$5*2+1,2) -> 00 | S26: =MID(SUBSTITUTE($B26," ",""),S$5*2+1,2) -> 00 | T26: =MID(SUBSTITUTE($B26," ",""),T$5*2+1,2) -> 0D | U26: =MID(SUBSTITUTE($B26," ",""),U$5*2+1,2) -> 03 | V26: =MID(SUBSTITUTE($B26," ",""),V$5*2+1,2) -> E8 | W26: =MID(SUBSTITUTE($B26," ",""),W$5*2+1,2) -> 00 | X26: =MID(SUBSTITUTE($B26," ",""),X$5*2+1,2) -> 61 | Y26: =MID(SUBSTITUTE($B26," ",""),Y$5*2+1,2) -> 00 | Z26: =MID(SUBSTITUTE($B26," ",""),Z$5*2+1,2) -> 06 | AA26: =MID(SUBSTITUTE($B26," ",""),AA$5*2+1,2) -> E1 | AB26: =MID(SUBSTITUTE($B26," ",""),AB$5*2+1,2) -> 92 | AC26: =MID(SUBSTITUTE($B26," ",""),AC$5*2+1,2) -> 45 | AD26: =MID(SUBSTITUTE($B26," ",""),AD$5*2+1,2) -> 4B | AE26: =MID(SUBSTITUTE($B26," ",""),AE$5*2+1,2) -> 02 | AF26: =MID(SUBSTITUTE($B26," ",""),AF$5*2+1,2) -> 1 | AG26: =IF(L26="01",HEX2DEC(O26&P26)/10,"-") -> - | AH26: =IF(L26="01",HEX2DEC(Q26&R26)/100,"-") -> - | AI26: =IF(L26="01",HEX2DEC(S26&T26)/10,"-") -> - | AJ26: =IF(L26="01",HEX2DEC(U26&V26&W26&X26)/1000,"-") -> - | AK26: =IF(L26="01",HEX2DEC(Y26&Z26)/1000,"-") -> - | AL26: =IF(L26="01",HEX2DEC(AA26&AB26)/10,"-") -> - | AM26: =IF(L26="82",HEX2DEC(M26&N26)/100,"-") -> 50.01 | AN26: =IF(L26="82",HEX2DEC(O26&P26)/10,"-") -> 31.5 | AO26: =IF(L26="82",HEX2DEC(S26&T26)/100,"-") -> 0.13 | AP26: =IF(L26="82",HEX2DEC(W26&X26)/10,"-") -> 9.7 | AQ26: =IF(L26="01",HEX2DEC(M26&N26),"-") -> - | AR26: =IF(L26="01",HEX2DEC(AC26&AD26),"-") -> - | AS26: =IF(L26="82",HEX2DEC(Q26&R26),"-") -> 0 | AT26: =IF(L26="82",HEX2DEC(U26&V26),"-") -> 1000 | AU26: =IF(L26="82",HEX2DEC(Y26&Z26),"-") -> 6 | AV26: =IF(L26="82",HEX2DEC(AA26&AB26),"-") -> 57746 | AW26: =IF(L26="82",HEX2DEC(AC26&AD26),"-") -> 17739
A27: 09:13:16 | B27: 95 7310xxyy 7310xxyy 821388014C0000000E03E8006100061A6E37009A 1 | C27: =MID(SUBSTITUTE($B27," ",""),C$5*2+1,2) -> 95 | D27: =MID(SUBSTITUTE($B27," ",""),D$5*2+1,2) -> 73 | E27: =MID(SUBSTITUTE($B27," ",""),E$5*2+1,2) -> 10 | F27: =MID(SUBSTITUTE($B27," ",""),F$5*2+1,2) -> xx | G27: =MID(SUBSTITUTE($B27," ",""),G$5*2+1,2) -> yy | H27: =MID(SUBSTITUTE($B27," ",""),H$5*2+1,2) -> 73 | I27: =MID(SUBSTITUTE($B27," ",""),I$5*2+1,2) -> 10 | J27: =MID(SUBSTITUTE($B27," ",""),J$5*2+1,2) -> xx | K27: =MID(SUBSTITUTE($B27," ",""),K$5*2+1,2) -> yy | L27: =MID(SUBSTITUTE($B27," ",""),L$5*2+1,2) -> 82 | M27: =MID(SUBSTITUTE($B27," ",""),M$5*2+1,2) -> 13 | N27: =MID(SUBSTITUTE($B27," ",""),N$5*2+1,2) -> 88 | O27: =MID(SUBSTITUTE($B27," ",""),O$5*2+1,2) -> 01 | P27: =MID(SUBSTITUTE($B27," ",""),P$5*2+1,2) -> 4C | Q27: =MID(SUBSTITUTE($B27," ",""),Q$5*2+1,2) -> 00 | R27: =MID(SUBSTITUTE($B27," ",""),R$5*2+1,2) -> 00 | S27: =MID(SUBSTITUTE($B27," ",""),S$5*2+1,2) -> 00 | T27: =MID(SUBSTITUTE($B27," ",""),T$5*2+1,2) -> 0E | U27: =MID(SUBSTITUTE($B27," ",""),U$5*2+1,2) -> 03 | V27: =MID(SUBSTITUTE($B27," ",""),V$5*2+1,2) -> E8 | W27: =MID(SUBSTITUTE($B27," ",""),W$5*2+1,2) -> 00 | X27: =MID(SUBSTITUTE($B27," ",""),X$5*2+1,2) -> 61 | Y27: =MID(SUBSTITUTE($B27," ",""),Y$5*2+1,2) -> 00 | Z27: =MID(SUBSTITUTE($B27," ",""),Z$5*2+1,2) -> 06 | AA27: =MID(SUBSTITUTE($B27," ",""),AA$5*2+1,2) -> 1A | AB27: =MID(SUBSTITUTE($B27," ",""),AB$5*2+1,2) -> 6E | AC27: =MID(SUBSTITUTE($B27," ",""),AC$5*2+1,2) -> 37 | AD27: =MID(SUBSTITUTE($B27," ",""),AD$5*2+1,2) -> 00 | AE27: =MID(SUBSTITUTE($B27," ",""),AE$5*2+1,2) -> 9A | AF27: =MID(SUBSTITUTE($B27," ",""),AF$5*2+1,2) -> 1 | AG27: =IF(L27="01",HEX2DEC(O27&P27)/10,"-") -> - | AH27: =IF(L27="01",HEX2DEC(Q27&R27)/100,"-") -> - | AI27: =IF(L27="01",HEX2DEC(S27&T27)/10,"-") -> - | AJ27: =IF(L27="01",HEX2DEC(U27&V27&W27&X27)/1000,"-") -> - | AK27: =IF(L27="01",HEX2DEC(Y27&Z27)/1000,"-") -> - | AL27: =IF(L27="01",HEX2DEC(AA27&AB27)/10,"-") -> - | AM27: =IF(L27="82",HEX2DEC(M27&N27)/100,"-") -> 50 | AN27: =IF(L27="82",HEX2DEC(O27&P27)/10,"-") -> 33.2 | AO27: =IF(L27="82",HEX2DEC(S27&T27)/100,"-") -> 0.14 | AP27: =IF(L27="82",HEX2DEC(W27&X27)/10,"-") -> 9.7 | AQ27: =IF(L27="01",HEX2DEC(M27&N27),"-") -> - | AR27: =IF(L27="01",HEX2DEC(AC27&AD27),"-") -> - | AS27: =IF(L27="82",HEX2DEC(Q27&R27),"-") -> 0 | AT27: =IF(L27="82",HEX2DEC(U27&V27),"-") -> 1000 | AU27: =IF(L27="82",HEX2DEC(Y27&Z27),"-") -> 6 | AV27: =IF(L27="82",HEX2DEC(AA27&AB27),"-") -> 6766 | AW27: =IF(L27="82",HEX2DEC(AC27&AD27),"-") -> 14080
A28: 09:13:28 | B28: 95 7310xxyy 7310xxyy 010001019D0059016E0000FA7D001B092D874BFC 1 | C28: =MID(SUBSTITUTE($B28," ",""),C$5*2+1,2) -> 95 | D28: =MID(SUBSTITUTE($B28," ",""),D$5*2+1,2) -> 73 | E28: =MID(SUBSTITUTE($B28," ",""),E$5*2+1,2) -> 10 | F28: =MID(SUBSTITUTE($B28," ",""),F$5*2+1,2) -> xx | G28: =MID(SUBSTITUTE($B28," ",""),G$5*2+1,2) -> yy | H28: =MID(SUBSTITUTE($B28," ",""),H$5*2+1,2) -> 73 | I28: =MID(SUBSTITUTE($B28," ",""),I$5*2+1,2) -> 10 | J28: =MID(SUBSTITUTE($B28," ",""),J$5*2+1,2) -> xx | K28: =MID(SUBSTITUTE($B28," ",""),K$5*2+1,2) -> yy | L28: =MID(SUBSTITUTE($B28," ",""),L$5*2+1,2) -> 01 | M28: =MID(SUBSTITUTE($B28," ",""),M$5*2+1,2) -> 00 | N28: =MID(SUBSTITUTE($B28," ",""),N$5*2+1,2) -> 01 | O28: =MID(SUBSTITUTE($B28," ",""),O$5*2+1,2) -> 01 | P28: =MID(SUBSTITUTE($B28," ",""),P$5*2+1,2) -> 9D | Q28: =MID(SUBSTITUTE($B28," ",""),Q$5*2+1,2) -> 00 | R28: =MID(SUBSTITUTE($B28," ",""),R$5*2+1,2) -> 59 | S28: =MID(SUBSTITUTE($B28," ",""),S$5*2+1,2) -> 01 | T28: =MID(SUBSTITUTE($B28," ",""),T$5*2+1,2) -> 6E | U28: =MID(SUBSTITUTE($B28," ",""),U$5*2+1,2) -> 00 | V28: =MID(SUBSTITUTE($B28," ",""),V$5*2+1,2) -> 00 | W28: =MID(SUBSTITUTE($B28," ",""),W$5*2+1,2) -> FA | X28: =MID(SUBSTITUTE($B28," ",""),X$5*2+1,2) -> 7D | Y28: =MID(SUBSTITUTE($B28," ",""),Y$5*2+1,2) -> 00 | Z28: =MID(SUBSTITUTE($B28," ",""),Z$5*2+1,2) -> 1B | AA28: =MID(SUBSTITUTE($B28," ",""),AA$5*2+1,2) -> 09 | AB28: =MID(SUBSTITUTE($B28," ",""),AB$5*2+1,2) -> 2D | AC28: =MID(SUBSTITUTE($B28," ",""),AC$5*2+1,2) -> 87 | AD28: =MID(SUBSTITUTE($B28," ",""),AD$5*2+1,2) -> 4B | AE28: =MID(SUBSTITUTE($B28," ",""),AE$5*2+1,2) -> FC | AF28: =MID(SUBSTITUTE($B28," ",""),AF$5*2+1,2) -> 1 | AG28: =IF(L28="01",HEX2DEC(O28&P28)/10,"-") -> 41.3 | AH28: =IF(L28="01",HEX2DEC(Q28&R28)/100,"-") -> 0.89 | AI28: =IF(L28="01",HEX2DEC(S28&T28)/10,"-") -> 36.6 | AJ28: =IF(L28="01",HEX2DEC(U28&V28&W28&X28)/1000,"-") -> 64.125 | AK28: =IF(L28="01",HEX2DEC(Y28&Z28)/1000,"-") -> 0.027 | AL28: =IF(L28="01",HEX2DEC(AA28&AB28)/10,"-") -> 234.9 | AM28: =IF(L28="82",HEX2DEC(M28&N28)/100,"-") -> - | AN28: =IF(L28="82",HEX2DEC(O28&P28)/10,"-") -> - | AO28: =IF(L28="82",HEX2DEC(S28&T28)/100,"-") -> - | AP28: =IF(L28="82",HEX2DEC(W28&X28)/10,"-") -> - | AQ28: =IF(L28="01",HEX2DEC(M28&N28),"-") -> 1 | AR28: =IF(L28="01",HEX2DEC(AC28&AD28),"-") -> 34635 | AS28: =IF(L28="82",HEX2DEC(Q28&R28),"-") -> - | AT28: =IF(L28="82",HEX2DEC(U28&V28),"-") -> - | AU28: =IF(L28="82",HEX2DEC(Y28&Z28),"-") -> - | AV28: =IF(L28="82",HEX2DEC(AA28&AB28),"-") -> - | AW28: =IF(L28="82",HEX2DEC(AC28&AD28),"-") -> -
A29: 09:13:40 | B29: 95 7310xxyy 7310xxyy 821388016B0000000F03E800620006E74DCCA91C 1 | C29: =MID(SUBSTITUTE($B29," ",""),C$5*2+1,2) -> 95 | D29: =MID(SUBSTITUTE($B29," ",""),D$5*2+1,2) -> 73 | E29: =MID(SUBSTITUTE($B29," ",""),E$5*2+1,2) -> 10 | F29: =MID(SUBSTITUTE($B29," ",""),F$5*2+1,2) -> xx | G29: =MID(SUBSTITUTE($B29," ",""),G$5*2+1,2) -> yy | H29: =MID(SUBSTITUTE($B29," ",""),H$5*2+1,2) -> 73 | I29: =MID(SUBSTITUTE($B29," ",""),I$5*2+1,2) -> 10 | J29: =MID(SUBSTITUTE($B29," ",""),J$5*2+1,2) -> xx | K29: =MID(SUBSTITUTE($B29," ",""),K$5*2+1,2) -> yy | L29: =MID(SUBSTITUTE($B29," ",""),L$5*2+1,2) -> 82 | M29: =MID(SUBSTITUTE($B29," ",""),M$5*2+1,2) -> 13 | N29: =MID(SUBSTITUTE($B29," ",""),N$5*2+1,2) -> 88 | O29: =MID(SUBSTITUTE($B29," ",""),O$5*2+1,2) -> 01 | P29: =MID(SUBSTITUTE($B29," ",""),P$5*2+1,2) -> 6B | Q29: =MID(SUBSTITUTE($B29," ",""),Q$5*2+1,2) -> 00 | R29: =MID(SUBSTITUTE($B29," ",""),R$5*2+1,2) -> 00 | S29: =MID(SUBSTITUTE($B29," ",""),S$5*2+1,2) -> 00 | T29: =MID(SUBSTITUTE($B29," ",""),T$5*2+1,2) -> 0F | U29: =MID(SUBSTITUTE($B29," ",""),U$5*2+1,2) -> 03 | V29: =MID(SUBSTITUTE($B29," ",""),V$5*2+1,2) -> E8 | W29: =MID(SUBSTITUTE($B29," ",""),W$5*2+1,2) -> 00 | X29: =MID(SUBSTITUTE($B29," ",""),X$5*2+1,2) -> 62 | Y29: =MID(SUBSTITUTE($B29," ",""),Y$5*2+1,2) -> 00 | Z29: =MID(SUBSTITUTE($B29," ",""),Z$5*2+1,2) -> 06 | AA29: =MID(SUBSTITUTE($B29," ",""),AA$5*2+1,2) -> E7 | AB29: =MID(SUBSTITUTE($B29," ",""),AB$5*2+1,2) -> 4D | AC29: =MID(SUBSTITUTE($B29," ",""),AC$5*2+1,2) -> CC | AD29: =MID(SUBSTITUTE($B29," ",""),AD$5*2+1,2) -> A9 | AE29: =MID(SUBSTITUTE($B29," ",""),AE$5*2+1,2) -> 1C | AF29: =MID(SUBSTITUTE($B29," ",""),AF$5*2+1,2) -> 1 | AG29: =IF(L29="01",HEX2DEC(O29&P29)/10,"-") -> - | AH29: =IF(L29="01",HEX2DEC(Q29&R29)/100,"-") -> - | AI29: =IF(L29="01",HEX2DEC(S29&T29)/10,"-") -> - | AJ29: =IF(L29="01",HEX2DEC(U29&V29&W29&X29)/1000,"-") -> - | AK29: =IF(L29="01",HEX2DEC(Y29&Z29)/1000,"-") -> - | AL29: =IF(L29="01",HEX2DEC(AA29&AB29)/10,"-") -> - | AM29: =IF(L29="82",HEX2DEC(M29&N29)/100,"-") -> 50 | AN29: =IF(L29="82",HEX2DEC(O29&P29)/10,"-") -> 36.3 | AO29: =IF(L29="82",HEX2DEC(S29&T29)/100,"-") -> 0.15 | AP29: =IF(L29="82",HEX2DEC(W29&X29)/10,"-") -> 9.8 | AQ29: =IF(L29="01",HEX2DEC(M29&N29),"-") -> - | AR29: =IF(L29="01",HEX2DEC(AC29&AD29),"-") -> - | AS29: =IF(L29="82",HEX2DEC(Q29&R29),"-") -> 0 | AT29: =IF(L29="82",HEX2DEC(U29&V29),"-") -> 1000 | AU29: =IF(L29="82",HEX2DEC(Y29&Z29),"-") -> 6 | AV29: =IF(L29="82",HEX2DEC(AA29&AB29),"-") -> 59213 | AW29: =IF(L29="82",HEX2DEC(AC29&AD29),"-") -> 52393
A30: 09:13:52 | B30: 95 7310xxyy 7310xxyy 010001019F005E01860000FA7D001B092D6AEECE 1 | C30: =MID(SUBSTITUTE($B30," ",""),C$5*2+1,2) -> 95 | D30: =MID(SUBSTITUTE($B30," ",""),D$5*2+1,2) -> 73 | E30: =MID(SUBSTITUTE($B30," ",""),E$5*2+1,2) -> 10 | F30: =MID(SUBSTITUTE($B30," ",""),F$5*2+1,2) -> xx | G30: =MID(SUBSTITUTE($B30," ",""),G$5*2+1,2) -> yy | H30: =MID(SUBSTITUTE($B30," ",""),H$5*2+1,2) -> 73 | I30: =MID(SUBSTITUTE($B30," ",""),I$5*2+1,2) -> 10 | J30: =MID(SUBSTITUTE($B30," ",""),J$5*2+1,2) -> xx | K30: =MID(SUBSTITUTE($B30," ",""),K$5*2+1,2) -> yy | L30: =MID(SUBSTITUTE($B30," ",""),L$5*2+1,2) -> 01 | M30: =MID(SUBSTITUTE($B30," ",""),M$5*2+1,2) -> 00 | N30: =MID(SUBSTITUTE($B30," ",""),N$5*2+1,2) -> 01 | O30: =MID(SUBSTITUTE($B30," ",""),O$5*2+1,2) -> 01 | P30: =MID(SUBSTITUTE($B30," ",""),P$5*2+1,2) -> 9F | Q30: =MID(SUBSTITUTE($B30," ",""),Q$5*2+1,2) -> 00 | R30: =MID(SUBSTITUTE($B30," ",""),R$5*2+1,2) -> 5E | S30: =MID(SUBSTITUTE($B30," ",""),S$5*2+1,2) -> 01 | T30: =MID(SUBSTITUTE($B30," ",""),T$5*2+1,2) -> 86 | U30: =MID(SUBSTITUTE($B30," ",""),U$5*2+1,2) -> 00 | V30: =MID(SUBSTITUTE($B30," ",""),V$5*2+1,2) -> 00 | W30: =MID(SUBSTITUTE($B30," ",""),W$5*2+1,2) -> FA | X30: =MID(SUBSTITUTE($B30," ",""),X$5*2+1,2) -> 7D | Y30: =MID(SUBSTITUTE($B30," ",""),Y$5*2+1,2) -> 00 | Z30: =MID(SUBSTITUTE($B30," ",""),Z$5*2+1,2) -> 1B | AA30: =MID(SUBSTITUTE($B30," ",""),AA$5*2+1,2) -> 09 | AB30: =MID(SUBSTITUTE($B30," ",""),AB$5*2+1,2) -> 2D | AC30: =MID(SUBSTITUTE($B30," ",""),AC$5*2+1,2) -> 6A | AD30: =MID(SUBSTITUTE($B30," ",""),AD$5*2+1,2) -> EE | AE30: =MID(SUBSTITUTE($B30," ",""),AE$5*2+1,2) -> CE | AF30: =MID(SUBSTITUTE($B30," ",""),AF$5*2+1,2) -> 1 | AG30: =IF(L30="01",HEX2DEC(O30&P30)/10,"-") -> 41.5 | AH30: =IF(L30="01",HEX2DEC(Q30&R30)/100,"-") -> 0.94 | AI30: =IF(L30="01",HEX2DEC(S30&T30)/10,"-") -> 39 | AJ30: =IF(L30="01",HEX2DEC(U30&V30&W30&X30)/1000,"-") -> 64.125 | AK30: =IF(L30="01",HEX2DEC(Y30&Z30)/1000,"-") -> 0.027 | AL30: =IF(L30="01",HEX2DEC(AA30&AB30)/10,"-") -> 234.9 | AM30: =IF(L30="82",HEX2DEC(M30&N30)/100,"-") -> - | AN30: =IF(L30="82",HEX2DEC(O30&P30)/10,"-") -> - | AO30: =IF(L30="82",HEX2DEC(S30&T30)/100,"-") -> - | AP30: =IF(L30="82",HEX2DEC(W30&X30)/10,"-") -> - | AQ30: =IF(L30="01",HEX2DEC(M30&N30),"-") -> 1 | AR30: =IF(L30="01",HEX2DEC(AC30&AD30),"-") -> 27374 | AS30: =IF(L30="82",HEX2DEC(Q30&R30),"-") -> - | AT30: =IF(L30="82",HEX2DEC(U30&V30),"-") -> - | AU30: =IF(L30="82",HEX2DEC(Y30&Z30),"-") -> - | AV30: =IF(L30="82",HEX2DEC(AA30&AB30),"-") -> - | AW30: =IF(L30="82",HEX2DEC(AC30&AD30),"-") -> -
A31: 09:13:52 | B31: 95 7310xxyy 7310xxyy 82138801730000001003E8005F00069C75B5B76B 1 | C31: =MID(SUBSTITUTE($B31," ",""),C$5*2+1,2) -> 95 | D31: =MID(SUBSTITUTE($B31," ",""),D$5*2+1,2) -> 73 | E31: =MID(SUBSTITUTE($B31," ",""),E$5*2+1,2) -> 10 | F31: =MID(SUBSTITUTE($B31," ",""),F$5*2+1,2) -> xx | G31: =MID(SUBSTITUTE($B31," ",""),G$5*2+1,2) -> yy | H31: =MID(SUBSTITUTE($B31," ",""),H$5*2+1,2) -> 73 | I31: =MID(SUBSTITUTE($B31," ",""),I$5*2+1,2) -> 10 | J31: =MID(SUBSTITUTE($B31," ",""),J$5*2+1,2) -> xx | K31: =MID(SUBSTITUTE($B31," ",""),K$5*2+1,2) -> yy | L31: =MID(SUBSTITUTE($B31," ",""),L$5*2+1,2) -> 82 | M31: =MID(SUBSTITUTE($B31," ",""),M$5*2+1,2) -> 13 | N31: =MID(SUBSTITUTE($B31," ",""),N$5*2+1,2) -> 88 | O31: =MID(SUBSTITUTE($B31," ",""),O$5*2+1,2) -> 01 | P31: =MID(SUBSTITUTE($B31," ",""),P$5*2+1,2) -> 73 | Q31: =MID(SUBSTITUTE($B31," ",""),Q$5*2+1,2) -> 00 | R31: =MID(SUBSTITUTE($B31," ",""),R$5*2+1,2) -> 00 | S31: =MID(SUBSTITUTE($B31," ",""),S$5*2+1,2) -> 00 | T31: =MID(SUBSTITUTE($B31," ",""),T$5*2+1,2) -> 10 | U31: =MID(SUBSTITUTE($B31," ",""),U$5*2+1,2) -> 03 | V31: =MID(SUBSTITUTE($B31," ",""),V$5*2+1,2) -> E8 | W31: =MID(SUBSTITUTE($B31," ",""),W$5*2+1,2) -> 00 | X31: =MID(SUBSTITUTE($B31," ",""),X$5*2+1,2) -> 5F | Y31: =MID(SUBSTITUTE($B31," ",""),Y$5*2+1,2) -> 00 | Z31: =MID(SUBSTITUTE($B31," ",""),Z$5*2+1,2) -> 06 | AA31: =MID(SUBSTITUTE($B31," ",""),AA$5*2+1,2) -> 9C | AB31: =MID(SUBSTITUTE($B31," ",""),AB$5*2+1,2) -> 75 | AC31: =MID(SUBSTITUTE($B31," ",""),AC$5*2+1,2) -> B5 | AD31: =MID(SUBSTITUTE($B31," ",""),AD$5*2+1,2) -> B7 | AE31: =MID(SUBSTITUTE($B31," ",""),AE$5*2+1,2) -> 6B | AF31: =MID(SUBSTITUTE($B31," ",""),AF$5*2+1,2) -> 1 | AG31: =IF(L31="01",HEX2DEC(O31&P31)/10,"-") -> - | AH31: =IF(L31="01",HEX2DEC(Q31&R31)/100,"-") -> - | AI31: =IF(L31="01",HEX2DEC(S31&T31)/10,"-") -> - | AJ31: =IF(L31="01",HEX2DEC(U31&V31&W31&X31)/1000,"-") -> - | AK31: =IF(L31="01",HEX2DEC(Y31&Z31)/1000,"-") -> - | AL31: =IF(L31="01",HEX2DEC(AA31&AB31)/10,"-") -> - | AM31: =IF(L31="82",HEX2DEC(M31&N31)/100,"-") -> 50 | AN31: =IF(L31="82",HEX2DEC(O31&P31)/10,"-") -> 37.1 | AO31: =IF(L31="82",HEX2DEC(S31&T31)/100,"-") -> 0.16 | AP31: =IF(L31="82",HEX2DEC(W31&X31)/10,"-") -> 9.5 | AQ31: =IF(L31="01",HEX2DEC(M31&N31),"-") -> - | AR31: =IF(L31="01",HEX2DEC(AC31&AD31),"-") -> - | AS31: =IF(L31="82",HEX2DEC(Q31&R31),"-") -> 0 | AT31: =IF(L31="82",HEX2DEC(U31&V31),"-") -> 1000 | AU31: =IF(L31="82",HEX2DEC(Y31&Z31),"-") -> 6 | AV31: =IF(L31="82",HEX2DEC(AA31&AB31),"-") -> 40053 | AW31: =IF(L31="82",HEX2DEC(AC31&AD31),"-") -> 46519
A32: 09:14:08 | B32: 95 7310xxyy 7310xxyy 82138901740000001003E8005F000644233D85B5 1 | C32: =MID(SUBSTITUTE($B32," ",""),C$5*2+1,2) -> 95 | D32: =MID(SUBSTITUTE($B32," ",""),D$5*2+1,2) -> 73 | E32: =MID(SUBSTITUTE($B32," ",""),E$5*2+1,2) -> 10 | F32: =MID(SUBSTITUTE($B32," ",""),F$5*2+1,2) -> xx | G32: =MID(SUBSTITUTE($B32," ",""),G$5*2+1,2) -> yy | H32: =MID(SUBSTITUTE($B32," ",""),H$5*2+1,2) -> 73 | I32: =MID(SUBSTITUTE($B32," ",""),I$5*2+1,2) -> 10 | J32: =MID(SUBSTITUTE($B32," ",""),J$5*2+1,2) -> xx | K32: =MID(SUBSTITUTE($B32," ",""),K$5*2+1,2) -> yy | L32: =MID(SUBSTITUTE($B32," ",""),L$5*2+1,2) -> 82 | M32: =MID(SUBSTITUTE($B32," ",""),M$5*2+1,2) -> 13 | N32: =MID(SUBSTITUTE($B32," ",""),N$5*2+1,2) -> 89 | O32: =MID(SUBSTITUTE($B32," ",""),O$5*2+1,2) -> 01 | P32: =MID(SUBSTITUTE($B32," ",""),P$5*2+1,2) -> 74 | Q32: =MID(SUBSTITUTE($B32," ",""),Q$5*2+1,2) -> 00 | R32: =MID(SUBSTITUTE($B32," ",""),R$5*2+1,2) -> 00 | S32: =MID(SUBSTITUTE($B32," ",""),S$5*2+1,2) -> 00 | T32: =MID(SUBSTITUTE($B32," ",""),T$5*2+1,2) -> 10 | U32: =MID(SUBSTITUTE($B32," ",""),U$5*2+1,2) -> 03 | V32: =MID(SUBSTITUTE($B32," ",""),V$5*2+1,2) -> E8 | W32: =MID(SUBSTITUTE($B32," ",""),W$5*2+1,2) -> 00 | X32: =MID(SUBSTITUTE($B32," ",""),X$5*2+1,2) -> 5F | Y32: =MID(SUBSTITUTE($B32," ",""),Y$5*2+1,2) -> 00 | Z32: =MID(SUBSTITUTE($B32," ",""),Z$5*2+1,2) -> 06 | AA32: =MID(SUBSTITUTE($B32," ",""),AA$5*2+1,2) -> 44 | AB32: =MID(SUBSTITUTE($B32," ",""),AB$5*2+1,2) -> 23 | AC32: =MID(SUBSTITUTE($B32," ",""),AC$5*2+1,2) -> 3D | AD32: =MID(SUBSTITUTE($B32," ",""),AD$5*2+1,2) -> 85 | AE32: =MID(SUBSTITUTE($B32," ",""),AE$5*2+1,2) -> B5 | AF32: =MID(SUBSTITUTE($B32," ",""),AF$5*2+1,2) -> 1 | AG32: =IF(L32="01",HEX2DEC(O32&P32)/10,"-") -> - | AH32: =IF(L32="01",HEX2DEC(Q32&R32)/100,"-") -> - | AI32: =IF(L32="01",HEX2DEC(S32&T32)/10,"-") -> - | AJ32: =IF(L32="01",HEX2DEC(U32&V32&W32&X32)/1000,"-") -> - | AK32: =IF(L32="01",HEX2DEC(Y32&Z32)/1000,"-") -> - | AL32: =IF(L32="01",HEX2DEC(AA32&AB32)/10,"-") -> - | AM32: =IF(L32="82",HEX2DEC(M32&N32)/100,"-") -> 50.01 | AN32: =IF(L32="82",HEX2DEC(O32&P32)/10,"-") -> 37.2 | AO32: =IF(L32="82",HEX2DEC(S32&T32)/100,"-") -> 0.16 | AP32: =IF(L32="82",HEX2DEC(W32&X32)/10,"-") -> 9.5 | AQ32: =IF(L32="01",HEX2DEC(M32&N32),"-") -> - | AR32: =IF(L32="01",HEX2DEC(AC32&AD32),"-") -> - | AS32: =IF(L32="82",HEX2DEC(Q32&R32),"-") -> 0 | AT32: =IF(L32="82",HEX2DEC(U32&V32),"-") -> 1000 | AU32: =IF(L32="82",HEX2DEC(Y32&Z32),"-") -> 6 | AV32: =IF(L32="82",HEX2DEC(AA32&AB32),"-") -> 17443 | AW32: =IF(L32="82",HEX2DEC(AC32&AD32),"-") -> 15749
A33: 09:14:16 | B33: 95 7310xxyy 7310xxyy 010001019F005E01850000FA7D001B092F6BBB12 1 | C33: =MID(SUBSTITUTE($B33," ",""),C$5*2+1,2) -> 95 | D33: =MID(SUBSTITUTE($B33," ",""),D$5*2+1,2) -> 73 | E33: =MID(SUBSTITUTE($B33," ",""),E$5*2+1,2) -> 10 | F33: =MID(SUBSTITUTE($B33," ",""),F$5*2+1,2) -> xx | G33: =MID(SUBSTITUTE($B33," ",""),G$5*2+1,2) -> yy | H33: =MID(SUBSTITUTE($B33," ",""),H$5*2+1,2) -> 73 | I33: =MID(SUBSTITUTE($B33," ",""),I$5*2+1,2) -> 10 | J33: =MID(SUBSTITUTE($B33," ",""),J$5*2+1,2) -> xx | K33: =MID(SUBSTITUTE($B33," ",""),K$5*2+1,2) -> yy | L33: =MID(SUBSTITUTE($B33," ",""),L$5*2+1,2) -> 01 | M33: =MID(SUBSTITUTE($B33," ",""),M$5*2+1,2) -> 00 | N33: =MID(SUBSTITUTE($B33," ",""),N$5*2+1,2) -> 01 | O33: =MID(SUBSTITUTE($B33," ",""),O$5*2+1,2) -> 01 | P33: =MID(SUBSTITUTE($B33," ",""),P$5*2+1,2) -> 9F | Q33: =MID(SUBSTITUTE($B33," ",""),Q$5*2+1,2) -> 00 | R33: =MID(SUBSTITUTE($B33," ",""),R$5*2+1,2) -> 5E | S33: =MID(SUBSTITUTE($B33," ",""),S$5*2+1,2) -> 01 | T33: =MID(SUBSTITUTE($B33," ",""),T$5*2+1,2) -> 85 | U33: =MID(SUBSTITUTE($B33," ",""),U$5*2+1,2) -> 00 | V33: =MID(SUBSTITUTE($B33," ",""),V$5*2+1,2) -> 00 | W33: =MID(SUBSTITUTE($B33," ",""),W$5*2+1,2) -> FA | X33: =MID(SUBSTITUTE($B33," ",""),X$5*2+1,2) -> 7D | Y33: =MID(SUBSTITUTE($B33," ",""),Y$5*2+1,2) -> 00 | Z33: =MID(SUBSTITUTE($B33," ",""),Z$5*2+1,2) -> 1B | AA33: =MID(SUBSTITUTE($B33," ",""),AA$5*2+1,2) -> 09 | AB33: =MID(SUBSTITUTE($B33," ",""),AB$5*2+1,2) -> 2F | AC33: =MID(SUBSTITUTE($B33," ",""),AC$5*2+1,2) -> 6B | AD33: =MID(SUBSTITUTE($B33," ",""),AD$5*2+1,2) -> BB | AE33: =MID(SUBSTITUTE($B33," ",""),AE$5*2+1,2) -> 12 | AF33: =MID(SUBSTITUTE($B33," ",""),AF$5*2+1,2) -> 1 | AG33: =IF(L33="01",HEX2DEC(O33&P33)/10,"-") -> 41.5 | AH33: =IF(L33="01",HEX2DEC(Q33&R33)/100,"-") -> 0.94 | AI33: =IF(L33="01",HEX2DEC(S33&T33)/10,"-") -> 38.9 | AJ33: =IF(L33="01",HEX2DEC(U33&V33&W33&X33)/1000,"-") -> 64.125 | AK33: =IF(L33="01",HEX2DEC(Y33&Z33)/1000,"-") -> 0.027 | AL33: =IF(L33="01",HEX2DEC(AA33&AB33)/10,"-") -> 235.1 | AM33: =IF(L33="82",HEX2DEC(M33&N33)/100,"-") -> - | AN33: =IF(L33="82",HEX2DEC(O33&P33)/10,"-") -> - | AO33: =IF(L33="82",HEX2DEC(S33&T33)/100,"-") -> - | AP33: =IF(L33="82",HEX2DEC(W33&X33)/10,"-") -> - | AQ33: =IF(L33="01",HEX2DEC(M33&N33),"-") -> 1 | AR33: =IF(L33="01",HEX2DEC(AC33&AD33),"-") -> 27579 | AS33: =IF(L33="82",HEX2DEC(Q33&R33),"-") -> - | AT33: =IF(L33="82",HEX2DEC(U33&V33),"-") -> - | AU33: =IF(L33="82",HEX2DEC(Y33&Z33),"-") -> - | AV33: =IF(L33="82",HEX2DEC(AA33&AB33),"-") -> - | AW33: =IF(L33="82",HEX2DEC(AC33&AD33),"-") -> -
A34: 09:14:16 | B34: 95 7310xxyy 7310xxyy 82138901720000001003E8005F000605A5FCDC1C 1 | C34: =MID(SUBSTITUTE($B34," ",""),C$5*2+1,2) -> 95 | D34: =MID(SUBSTITUTE($B34," ",""),D$5*2+1,2) -> 73 | E34: =MID(SUBSTITUTE($B34," ",""),E$5*2+1,2) -> 10 | F34: =MID(SUBSTITUTE($B34," ",""),F$5*2+1,2) -> xx | G34: =MID(SUBSTITUTE($B34," ",""),G$5*2+1,2) -> yy | H34: =MID(SUBSTITUTE($B34," ",""),H$5*2+1,2) -> 73 | I34: =MID(SUBSTITUTE($B34," ",""),I$5*2+1,2) -> 10 | J34: =MID(SUBSTITUTE($B34," ",""),J$5*2+1,2) -> xx | K34: =MID(SUBSTITUTE($B34," ",""),K$5*2+1,2) -> yy | L34: =MID(SUBSTITUTE($B34," ",""),L$5*2+1,2) -> 82 | M34: =MID(SUBSTITUTE($B34," ",""),M$5*2+1,2) -> 13 | N34: =MID(SUBSTITUTE($B34," ",""),N$5*2+1,2) -> 89 | O34: =MID(SUBSTITUTE($B34," ",""),O$5*2+1,2) -> 01 | P34: =MID(SUBSTITUTE($B34," ",""),P$5*2+1,2) -> 72 | Q34: =MID(SUBSTITUTE($B34," ",""),Q$5*2+1,2) -> 00 | R34: =MID(SUBSTITUTE($B34," ",""),R$5*2+1,2) -> 00 | S34: =MID(SUBSTITUTE($B34," ",""),S$5*2+1,2) -> 00 | T34: =MID(SUBSTITUTE($B34," ",""),T$5*2+1,2) -> 10 | U34: =MID(SUBSTITUTE($B34," ",""),U$5*2+1,2) -> 03 | V34: =MID(SUBSTITUTE($B34," ",""),V$5*2+1,2) -> E8 | W34: =MID(SUBSTITUTE($B34," ",""),W$5*2+1,2) -> 00 | X34: =MID(SUBSTITUTE($B34," ",""),X$5*2+1,2) -> 5F | Y34: =MID(SUBSTITUTE($B34," ",""),Y$5*2+1,2) -> 00 | Z34: =MID(SUBSTITUTE($B34," ",""),Z$5*2+1,2) -> 06 | AA34: =MID(SUBSTITUTE($B34," ",""),AA$5*2+1,2) -> 05 | AB34: =MID(SUBSTITUTE($B34," ",""),AB$5*2+1,2) -> A5 | AC34: =MID(SUBSTITUTE($B34," ",""),AC$5*2+1,2) -> FC | AD34: =MID(SUBSTITUTE($B34," ",""),AD$5*2+1,2) -> DC | AE34: =MID(SUBSTITUTE($B34," ",""),AE$5*2+1,2) -> 1C | AF34: =MID(SUBSTITUTE($B34," ",""),AF$5*2+1,2) -> 1 | AG34: =IF(L34="01",HEX2DEC(O34&P34)/10,"-") -> - | AH34: =IF(L34="01",HEX2DEC(Q34&R34)/100,"-") -> - | AI34: =IF(L34="01",HEX2DEC(S34&T34)/10,"-") -> - | AJ34: =IF(L34="01",HEX2DEC(U34&V34&W34&X34)/1000,"-") -> - | AK34: =IF(L34="01",HEX2DEC(Y34&Z34)/1000,"-") -> - | AL34: =IF(L34="01",HEX2DEC(AA34&AB34)/10,"-") -> - | AM34: =IF(L34="82",HEX2DEC(M34&N34)/100,"-") -> 50.01 | AN34: =IF(L34="82",HEX2DEC(O34&P34)/10,"-") -> 37 | AO34: =IF(L34="82",HEX2DEC(S34&T34)/100,"-") -> 0.16 | AP34: =IF(L34="82",HEX2DEC(W34&X34)/10,"-") -> 9.5 | AQ34: =IF(L34="01",HEX2DEC(M34&N34),"-") -> - | AR34: =IF(L34="01",HEX2DEC(AC34&AD34),"-") -> - | AS34: =IF(L34="82",HEX2DEC(Q34&R34),"-") -> 0 | AT34: =IF(L34="82",HEX2DEC(U34&V34),"-") -> 1000 | AU34: =IF(L34="82",HEX2DEC(Y34&Z34),"-") -> 6 | AV34: =IF(L34="82",HEX2DEC(AA34&AB34),"-") -> 1445 | AW34: =IF(L34="82",HEX2DEC(AC34&AD34),"-") -> 64732
A35: 09:14:28 | B35: 95 7310xxyy 7310xxyy 821389016E0000001003E8005F0006ACF9159AAD 1 | C35: =MID(SUBSTITUTE($B35," ",""),C$5*2+1,2) -> 95 | D35: =MID(SUBSTITUTE($B35," ",""),D$5*2+1,2) -> 73 | E35: =MID(SUBSTITUTE($B35," ",""),E$5*2+1,2) -> 10 | F35: =MID(SUBSTITUTE($B35," ",""),F$5*2+1,2) -> xx | G35: =MID(SUBSTITUTE($B35," ",""),G$5*2+1,2) -> yy | H35: =MID(SUBSTITUTE($B35," ",""),H$5*2+1,2) -> 73 | I35: =MID(SUBSTITUTE($B35," ",""),I$5*2+1,2) -> 10 | J35: =MID(SUBSTITUTE($B35," ",""),J$5*2+1,2) -> xx | K35: =MID(SUBSTITUTE($B35," ",""),K$5*2+1,2) -> yy | L35: =MID(SUBSTITUTE($B35," ",""),L$5*2+1,2) -> 82 | M35: =MID(SUBSTITUTE($B35," ",""),M$5*2+1,2) -> 13 | N35: =MID(SUBSTITUTE($B35," ",""),N$5*2+1,2) -> 89 | O35: =MID(SUBSTITUTE($B35," ",""),O$5*2+1,2) -> 01 | P35: =MID(SUBSTITUTE($B35," ",""),P$5*2+1,2) -> 6E | Q35: =MID(SUBSTITUTE($B35," ",""),Q$5*2+1,2) -> 00 | R35: =MID(SUBSTITUTE($B35," ",""),R$5*2+1,2) -> 00 | S35: =MID(SUBSTITUTE($B35," ",""),S$5*2+1,2) -> 00 | T35: =MID(SUBSTITUTE($B35," ",""),T$5*2+1,2) -> 10 | U35: =MID(SUBSTITUTE($B35," ",""),U$5*2+1,2) -> 03 | V35: =MID(SUBSTITUTE($B35," ",""),V$5*2+1,2) -> E8 | W35: =MID(SUBSTITUTE($B35," ",""),W$5*2+1,2) -> 00 | X35: =MID(SUBSTITUTE($B35," ",""),X$5*2+1,2) -> 5F | Y35: =MID(SUBSTITUTE($B35," ",""),Y$5*2+1,2) -> 00 | Z35: =MID(SUBSTITUTE($B35," ",""),Z$5*2+1,2) -> 06 | AA35: =MID(SUBSTITUTE($B35," ",""),AA$5*2+1,2) -> AC | AB35: =MID(SUBSTITUTE($B35," ",""),AB$5*2+1,2) -> F9 | AC35: =MID(SUBSTITUTE($B35," ",""),AC$5*2+1,2) -> 15 | AD35: =MID(SUBSTITUTE($B35," ",""),AD$5*2+1,2) -> 9A | AE35: =MID(SUBSTITUTE($B35," ",""),AE$5*2+1,2) -> AD | AF35: =MID(SUBSTITUTE($B35," ",""),AF$5*2+1,2) -> 1 | AG35: =IF(L35="01",HEX2DEC(O35&P35)/10,"-") -> - | AH35: =IF(L35="01",HEX2DEC(Q35&R35)/100,"-") -> - | AI35: =IF(L35="01",HEX2DEC(S35&T35)/10,"-") -> - | AJ35: =IF(L35="01",HEX2DEC(U35&V35&W35&X35)/1000,"-") -> - | AK35: =IF(L35="01",HEX2DEC(Y35&Z35)/1000,"-") -> - | AL35: =IF(L35="01",HEX2DEC(AA35&AB35)/10,"-") -> - | AM35: =IF(L35="82",HEX2DEC(M35&N35)/100,"-") -> 50.01 | AN35: =IF(L35="82",HEX2DEC(O35&P35)/10,"-") -> 36.6 | AO35: =IF(L35="82",HEX2DEC(S35&T35)/100,"-") -> 0.16 | AP35: =IF(L35="82",HEX2DEC(W35&X35)/10,"-") -> 9.5 | AQ35: =IF(L35="01",HEX2DEC(M35&N35),"-") -> - | AR35: =IF(L35="01",HEX2DEC(AC35&AD35),"-") -> - | AS35: =IF(L35="82",HEX2DEC(Q35&R35),"-") -> 0 | AT35: =IF(L35="82",HEX2DEC(U35&V35),"-") -> 1000 | AU35: =IF(L35="82",HEX2DEC(Y35&Z35),"-") -> 6 | AV35: =IF(L35="82",HEX2DEC(AA35&AB35),"-") -> 44281 | AW35: =IF(L35="82",HEX2DEC(AC35&AD35),"-") -> 5530
A36: 09:14:32 | B36: 95 7310xxyy 7310xxyy 821389016E0000001003E8005F0006ACF91508FD 1 | C36: =MID(SUBSTITUTE($B36," ",""),C$5*2+1,2) -> 95 | D36: =MID(SUBSTITUTE($B36," ",""),D$5*2+1,2) -> 73 | E36: =MID(SUBSTITUTE($B36," ",""),E$5*2+1,2) -> 10 | F36: =MID(SUBSTITUTE($B36," ",""),F$5*2+1,2) -> xx | G36: =MID(SUBSTITUTE($B36," ",""),G$5*2+1,2) -> yy | H36: =MID(SUBSTITUTE($B36," ",""),H$5*2+1,2) -> 73 | I36: =MID(SUBSTITUTE($B36," ",""),I$5*2+1,2) -> 10 | J36: =MID(SUBSTITUTE($B36," ",""),J$5*2+1,2) -> xx | K36: =MID(SUBSTITUTE($B36," ",""),K$5*2+1,2) -> yy | L36: =MID(SUBSTITUTE($B36," ",""),L$5*2+1,2) -> 82 | M36: =MID(SUBSTITUTE($B36," ",""),M$5*2+1,2) -> 13 | N36: =MID(SUBSTITUTE($B36," ",""),N$5*2+1,2) -> 89 | O36: =MID(SUBSTITUTE($B36," ",""),O$5*2+1,2) -> 01 | P36: =MID(SUBSTITUTE($B36," ",""),P$5*2+1,2) -> 6E | Q36: =MID(SUBSTITUTE($B36," ",""),Q$5*2+1,2) -> 00 | R36: =MID(SUBSTITUTE($B36," ",""),R$5*2+1,2) -> 00 | S36: =MID(SUBSTITUTE($B36," ",""),S$5*2+1,2) -> 00 | T36: =MID(SUBSTITUTE($B36," ",""),T$5*2+1,2) -> 10 | U36: =MID(SUBSTITUTE($B36," ",""),U$5*2+1,2) -> 03 | V36: =MID(SUBSTITUTE($B36," ",""),V$5*2+1,2) -> E8 | W36: =MID(SUBSTITUTE($B36," ",""),W$5*2+1,2) -> 00 | X36: =MID(SUBSTITUTE($B36," ",""),X$5*2+1,2) -> 5F | Y36: =MID(SUBSTITUTE($B36," ",""),Y$5*2+1,2) -> 00 | Z36: =MID(SUBSTITUTE($B36," ",""),Z$5*2+1,2) -> 06 | AA36: =MID(SUBSTITUTE($B36," ",""),AA$5*2+1,2) -> AC | AB36: =MID(SUBSTITUTE($B36," ",""),AB$5*2+1,2) -> F9 | AC36: =MID(SUBSTITUTE($B36," ",""),AC$5*2+1,2) -> 15 | AD36: =MID(SUBSTITUTE($B36," ",""),AD$5*2+1,2) -> 08 | AE36: =MID(SUBSTITUTE($B36," ",""),AE$5*2+1,2) -> FD | AF36: =MID(SUBSTITUTE($B36," ",""),AF$5*2+1,2) -> 1 | AG36: =IF(L36="01",HEX2DEC(O36&P36)/10,"-") -> - | AH36: =IF(L36="01",HEX2DEC(Q36&R36)/100,"-") -> - | AI36: =IF(L36="01",HEX2DEC(S36&T36)/10,"-") -> - | AJ36: =IF(L36="01",HEX2DEC(U36&V36&W36&X36)/1000,"-") -> - | AK36: =IF(L36="01",HEX2DEC(Y36&Z36)/1000,"-") -> - | AL36: =IF(L36="01",HEX2DEC(AA36&AB36)/10,"-") -> - | AM36: =IF(L36="82",HEX2DEC(M36&N36)/100,"-") -> 50.01 | AN36: =IF(L36="82",HEX2DEC(O36&P36)/10,"-") -> 36.6 | AO36: =IF(L36="82",HEX2DEC(S36&T36)/100,"-") -> 0.16 | AP36: =IF(L36="82",HEX2DEC(W36&X36)/10,"-") -> 9.5 | AQ36: =IF(L36="01",HEX2DEC(M36&N36),"-") -> - | AR36: =IF(L36="01",HEX2DEC(AC36&AD36),"-") -> - | AS36: =IF(L36="82",HEX2DEC(Q36&R36),"-") -> 0 | AT36: =IF(L36="82",HEX2DEC(U36&V36),"-") -> 1000 | AU36: =IF(L36="82",HEX2DEC(Y36&Z36),"-") -> 6 | AV36: =IF(L36="82",HEX2DEC(AA36&AB36),"-") -> 44281 | AW36: =IF(L36="82",HEX2DEC(AC36&AD36),"-") -> 5384
A37: 09:14:40 | B37: 95 7310xxyy 7310xxyy 82138A01660000000F03E800600006C4EA455444 1 | C37: =MID(SUBSTITUTE($B37," ",""),C$5*2+1,2) -> 95 | D37: =MID(SUBSTITUTE($B37," ",""),D$5*2+1,2) -> 73 | E37: =MID(SUBSTITUTE($B37," ",""),E$5*2+1,2) -> 10 | F37: =MID(SUBSTITUTE($B37," ",""),F$5*2+1,2) -> xx | G37: =MID(SUBSTITUTE($B37," ",""),G$5*2+1,2) -> yy | H37: =MID(SUBSTITUTE($B37," ",""),H$5*2+1,2) -> 73 | I37: =MID(SUBSTITUTE($B37," ",""),I$5*2+1,2) -> 10 | J37: =MID(SUBSTITUTE($B37," ",""),J$5*2+1,2) -> xx | K37: =MID(SUBSTITUTE($B37," ",""),K$5*2+1,2) -> yy | L37: =MID(SUBSTITUTE($B37," ",""),L$5*2+1,2) -> 82 | M37: =MID(SUBSTITUTE($B37," ",""),M$5*2+1,2) -> 13 | N37: =MID(SUBSTITUTE($B37," ",""),N$5*2+1,2) -> 8A | O37: =MID(SUBSTITUTE($B37," ",""),O$5*2+1,2) -> 01 | P37: =MID(SUBSTITUTE($B37," ",""),P$5*2+1,2) -> 66 | Q37: =MID(SUBSTITUTE($B37," ",""),Q$5*2+1,2) -> 00 | R37: =MID(SUBSTITUTE($B37," ",""),R$5*2+1,2) -> 00 | S37: =MID(SUBSTITUTE($B37," ",""),S$5*2+1,2) -> 00 | T37: =MID(SUBSTITUTE($B37," ",""),T$5*2+1,2) -> 0F | U37: =MID(SUBSTITUTE($B37," ",""),U$5*2+1,2) -> 03 | V37: =MID(SUBSTITUTE($B37," ",""),V$5*2+1,2) -> E8 | W37: =MID(SUBSTITUTE($B37," ",""),W$5*2+1,2) -> 00 | X37: =MID(SUBSTITUTE($B37," ",""),X$5*2+1,2) -> 60 | Y37: =MID(SUBSTITUTE($B37," ",""),Y$5*2+1,2) -> 00 | Z37: =MID(SUBSTITUTE($B37," ",""),Z$5*2+1,2) -> 06 | AA37: =MID(SUBSTITUTE($B37," ",""),AA$5*2+1,2) -> C4 | AB37: =MID(SUBSTITUTE($B37," ",""),AB$5*2+1,2) -> EA | AC37: =MID(SUBSTITUTE($B37," ",""),AC$5*2+1,2) -> 45 | AD37: =MID(SUBSTITUTE($B37," ",""),AD$5*2+1,2) -> 54 | AE37: =MID(SUBSTITUTE($B37," ",""),AE$5*2+1,2) -> 44 | AF37: =MID(SUBSTITUTE($B37," ",""),AF$5*2+1,2) -> 1 | AG37: =IF(L37="01",HEX2DEC(O37&P37)/10,"-") -> - | AH37: =IF(L37="01",HEX2DEC(Q37&R37)/100,"-") -> - | AI37: =IF(L37="01",HEX2DEC(S37&T37)/10,"-") -> - | AJ37: =IF(L37="01",HEX2DEC(U37&V37&W37&X37)/1000,"-") -> - | AK37: =IF(L37="01",HEX2DEC(Y37&Z37)/1000,"-") -> - | AL37: =IF(L37="01",HEX2DEC(AA37&AB37)/10,"-") -> - | AM37: =IF(L37="82",HEX2DEC(M37&N37)/100,"-") -> 50.02 | AN37: =IF(L37="82",HEX2DEC(O37&P37)/10,"-") -> 35.8 | AO37: =IF(L37="82",HEX2DEC(S37&T37)/100,"-") -> 0.15 | AP37: =IF(L37="82",HEX2DEC(W37&X37)/10,"-") -> 9.6 | AQ37: =IF(L37="01",HEX2DEC(M37&N37),"-") -> - | AR37: =IF(L37="01",HEX2DEC(AC37&AD37),"-") -> - | AS37: =IF(L37="82",HEX2DEC(Q37&R37),"-") -> 0 | AT37: =IF(L37="82",HEX2DEC(U37&V37),"-") -> 1000 | AU37: =IF(L37="82",HEX2DEC(Y37&Z37),"-") -> 6 | AV37: =IF(L37="82",HEX2DEC(AA37&AB37),"-") -> 50410 | AW37: =IF(L37="82",HEX2DEC(AC37&AD37),"-") -> 17748
A38: 09:14:52 | B38: 95 7310xxyy 7310xxyy 010001019E005901700000FA7E001C092B9866F0 C B388 437E 6554 B388 4B02 BE5C 009A B8B6 4BFC B562 BE5C A91C B562 EECE B76B B388 BE5C 85B5 B388 BB12 DC1C 9AAD 08FD B8B6 5444 61 | C38: =MID(SUBSTITUTE($B38," ",""),C$5*2+1,2) -> 95 | D38: =MID(SUBSTITUTE($B38," ",""),D$5*2+1,2) -> 73 | E38: =MID(SUBSTITUTE($B38," ",""),E$5*2+1,2) -> 10 | F38: =MID(SUBSTITUTE($B38," ",""),F$5*2+1,2) -> xx | G38: =MID(SUBSTITUTE($B38," ",""),G$5*2+1,2) -> yy | H38: =MID(SUBSTITUTE($B38," ",""),H$5*2+1,2) -> 73 | I38: =MID(SUBSTITUTE($B38," ",""),I$5*2+1,2) -> 10 | J38: =MID(SUBSTITUTE($B38," ",""),J$5*2+1,2) -> xx | K38: =MID(SUBSTITUTE($B38," ",""),K$5*2+1,2) -> yy | L38: =MID(SUBSTITUTE($B38," ",""),L$5*2+1,2) -> 01 | M38: =MID(SUBSTITUTE($B38," ",""),M$5*2+1,2) -> 00 | N38: =MID(SUBSTITUTE($B38," ",""),N$5*2+1,2) -> 01 | O38: =MID(SUBSTITUTE($B38," ",""),O$5*2+1,2) -> 01 | P38: =MID(SUBSTITUTE($B38," ",""),P$5*2+1,2) -> 9E | Q38: =MID(SUBSTITUTE($B38," ",""),Q$5*2+1,2) -> 00 | R38: =MID(SUBSTITUTE($B38," ",""),R$5*2+1,2) -> 59 | S38: =MID(SUBSTITUTE($B38," ",""),S$5*2+1,2) -> 01 | T38: =MID(SUBSTITUTE($B38," ",""),T$5*2+1,2) -> 70 | U38: =MID(SUBSTITUTE($B38," ",""),U$5*2+1,2) -> 00 | V38: =MID(SUBSTITUTE($B38," ",""),V$5*2+1,2) -> 00 | W38: =MID(SUBSTITUTE($B38," ",""),W$5*2+1,2) -> FA | X38: =MID(SUBSTITUTE($B38," ",""),X$5*2+1,2) -> 7E | Y38: =MID(SUBSTITUTE($B38," ",""),Y$5*2+1,2) -> 00 | Z38: =MID(SUBSTITUTE($B38," ",""),Z$5*2+1,2) -> 1C | AA38: =MID(SUBSTITUTE($B38," ",""),AA$5*2+1,2) -> 09 | AB38: =MID(SUBSTITUTE($B38," ",""),AB$5*2+1,2) -> 2B | AC38: =MID(SUBSTITUTE($B38," ",""),AC$5*2+1,2) -> 98 | AD38: =MID(SUBSTITUTE($B38," ",""),AD$5*2+1,2) -> 66 | AE38: =MID(SUBSTITUTE($B38," ",""),AE$5*2+1,2) -> F0 | AF38: =MID(SUBSTITUTE($B38," ",""),AF$5*2+1,2) -> CB | AG38: =IF(L38="01",HEX2DEC(O38&P38)/10,"-") -> 41.4 | AH38: =IF(L38="01",HEX2DEC(Q38&R38)/100,"-") -> 0.89 | AI38: =IF(L38="01",HEX2DEC(S38&T38)/10,"-") -> 36.8 | AJ38: =IF(L38="01",HEX2DEC(U38&V38&W38&X38)/1000,"-") -> 64.126 | AK38: =IF(L38="01",HEX2DEC(Y38&Z38)/1000,"-") -> 0.028 | AL38: =IF(L38="01",HEX2DEC(AA38&AB38)/10,"-") -> 234.7 | AM38: =IF(L38="82",HEX2DEC(M38&N38)/100,"-") -> - | AN38: =IF(L38="82",HEX2DEC(O38&P38)/10,"-") -> - | AO38: =IF(L38="82",HEX2DEC(S38&T38)/100,"-") -> - | AP38: =IF(L38="82",HEX2DEC(W38&X38)/10,"-") -> - | AQ38: =IF(L38="01",HEX2DEC(M38&N38),"-") -> 1 | AR38: =IF(L38="01",HEX2DEC(AC38&AD38),"-") -> 39014 | AS38: =IF(L38="82",HEX2DEC(Q38&R38),"-") -> - | AT38: =IF(L38="82",HEX2DEC(U38&V38),"-") -> - | AU38: =IF(L38="82",HEX2DEC(Y38&Z38),"-") -> - | AV38: =IF(L38="82",HEX2DEC(AA38&AB38),"-") -> - | AW38: =IF(L38="82",HEX2DEC(AC38&AD38),"-") -> -
A39: 09:14:56 | B39: 95 7310xxyy 7310xxyy 82138A015E0000000F03E8006000062EB8C5E8E2 1 | C39: =MID(SUBSTITUTE($B39," ",""),C$5*2+1,2) -> 95 | D39: =MID(SUBSTITUTE($B39," ",""),D$5*2+1,2) -> 73 | E39: =MID(SUBSTITUTE($B39," ",""),E$5*2+1,2) -> 10 | F39: =MID(SUBSTITUTE($B39," ",""),F$5*2+1,2) -> xx | G39: =MID(SUBSTITUTE($B39," ",""),G$5*2+1,2) -> yy | H39: =MID(SUBSTITUTE($B39," ",""),H$5*2+1,2) -> 73 | I39: =MID(SUBSTITUTE($B39," ",""),I$5*2+1,2) -> 10 | J39: =MID(SUBSTITUTE($B39," ",""),J$5*2+1,2) -> xx | K39: =MID(SUBSTITUTE($B39," ",""),K$5*2+1,2) -> yy | L39: =MID(SUBSTITUTE($B39," ",""),L$5*2+1,2) -> 82 | M39: =MID(SUBSTITUTE($B39," ",""),M$5*2+1,2) -> 13 | N39: =MID(SUBSTITUTE($B39," ",""),N$5*2+1,2) -> 8A | O39: =MID(SUBSTITUTE($B39," ",""),O$5*2+1,2) -> 01 | P39: =MID(SUBSTITUTE($B39," ",""),P$5*2+1,2) -> 5E | Q39: =MID(SUBSTITUTE($B39," ",""),Q$5*2+1,2) -> 00 | R39: =MID(SUBSTITUTE($B39," ",""),R$5*2+1,2) -> 00 | S39: =MID(SUBSTITUTE($B39," ",""),S$5*2+1,2) -> 00 | T39: =MID(SUBSTITUTE($B39," ",""),T$5*2+1,2) -> 0F | U39: =MID(SUBSTITUTE($B39," ",""),U$5*2+1,2) -> 03 | V39: =MID(SUBSTITUTE($B39," ",""),V$5*2+1,2) -> E8 | W39: =MID(SUBSTITUTE($B39," ",""),W$5*2+1,2) -> 00 | X39: =MID(SUBSTITUTE($B39," ",""),X$5*2+1,2) -> 60 | Y39: =MID(SUBSTITUTE($B39," ",""),Y$5*2+1,2) -> 00 | Z39: =MID(SUBSTITUTE($B39," ",""),Z$5*2+1,2) -> 06 | AA39: =MID(SUBSTITUTE($B39," ",""),AA$5*2+1,2) -> 2E | AB39: =MID(SUBSTITUTE($B39," ",""),AB$5*2+1,2) -> B8 | AC39: =MID(SUBSTITUTE($B39," ",""),AC$5*2+1,2) -> C5 | AD39: =MID(SUBSTITUTE($B39," ",""),AD$5*2+1,2) -> E8 | AE39: =MID(SUBSTITUTE($B39," ",""),AE$5*2+1,2) -> E2 | AF39: =MID(SUBSTITUTE($B39," ",""),AF$5*2+1,2) -> 1 | AG39: =IF(L39="01",HEX2DEC(O39&P39)/10,"-") -> - | AH39: =IF(L39="01",HEX2DEC(Q39&R39)/100,"-") -> - | AI39: =IF(L39="01",HEX2DEC(S39&T39)/10,"-") -> - | AJ39: =IF(L39="01",HEX2DEC(U39&V39&W39&X39)/1000,"-") -> - | AK39: =IF(L39="01",HEX2DEC(Y39&Z39)/1000,"-") -> - | AL39: =IF(L39="01",HEX2DEC(AA39&AB39)/10,"-") -> - | AM39: =IF(L39="82",HEX2DEC(M39&N39)/100,"-") -> 50.02 | AN39: =IF(L39="82",HEX2DEC(O39&P39)/10,"-") -> 35 | AO39: =IF(L39="82",HEX2DEC(S39&T39)/100,"-") -> 0.15 | AP39: =IF(L39="82",HEX2DEC(W39&X39)/10,"-") -> 9.6 | AQ39: =IF(L39="01",HEX2DEC(M39&N39),"-") -> - | AR39: =IF(L39="01",HEX2DEC(AC39&AD39),"-") -> - | AS39: =IF(L39="82",HEX2DEC(Q39&R39),"-") -> 0 | AT39: =IF(L39="82",HEX2DEC(U39&V39),"-") -> 1000 | AU39: =IF(L39="82",HEX2DEC(Y39&Z39),"-") -> 6 | AV39: =IF(L39="82",HEX2DEC(AA39&AB39),"-") -> 11960 | AW39: =IF(L39="82",HEX2DEC(AC39&AD39),"-") -> 50664
A40: 09:15:08 | B40: 95 7310xxyy 7310xxyy 82138A01570000000F03E800600006087123EFFA 1 | C40: =MID(SUBSTITUTE($B40," ",""),C$5*2+1,2) -> 95 | D40: =MID(SUBSTITUTE($B40," ",""),D$5*2+1,2) -> 73 | E40: =MID(SUBSTITUTE($B40," ",""),E$5*2+1,2) -> 10 | F40: =MID(SUBSTITUTE($B40," ",""),F$5*2+1,2) -> xx | G40: =MID(SUBSTITUTE($B40," ",""),G$5*2+1,2) -> yy | H40: =MID(SUBSTITUTE($B40," ",""),H$5*2+1,2) -> 73 | I40: =MID(SUBSTITUTE($B40," ",""),I$5*2+1,2) -> 10 | J40: =MID(SUBSTITUTE($B40," ",""),J$5*2+1,2) -> xx | K40: =MID(SUBSTITUTE($B40," ",""),K$5*2+1,2) -> yy | L40: =MID(SUBSTITUTE($B40," ",""),L$5*2+1,2) -> 82 | M40: =MID(SUBSTITUTE($B40," ",""),M$5*2+1,2) -> 13 | N40: =MID(SUBSTITUTE($B40," ",""),N$5*2+1,2) -> 8A | O40: =MID(SUBSTITUTE($B40," ",""),O$5*2+1,2) -> 01 | P40: =MID(SUBSTITUTE($B40," ",""),P$5*2+1,2) -> 57 | Q40: =MID(SUBSTITUTE($B40," ",""),Q$5*2+1,2) -> 00 | R40: =MID(SUBSTITUTE($B40," ",""),R$5*2+1,2) -> 00 | S40: =MID(SUBSTITUTE($B40," ",""),S$5*2+1,2) -> 00 | T40: =MID(SUBSTITUTE($B40," ",""),T$5*2+1,2) -> 0F | U40: =MID(SUBSTITUTE($B40," ",""),U$5*2+1,2) -> 03 | V40: =MID(SUBSTITUTE($B40," ",""),V$5*2+1,2) -> E8 | W40: =MID(SUBSTITUTE($B40," ",""),W$5*2+1,2) -> 00 | X40: =MID(SUBSTITUTE($B40," ",""),X$5*2+1,2) -> 60 | Y40: =MID(SUBSTITUTE($B40," ",""),Y$5*2+1,2) -> 00 | Z40: =MID(SUBSTITUTE($B40," ",""),Z$5*2+1,2) -> 06 | AA40: =MID(SUBSTITUTE($B40," ",""),AA$5*2+1,2) -> 08 | AB40: =MID(SUBSTITUTE($B40," ",""),AB$5*2+1,2) -> 71 | AC40: =MID(SUBSTITUTE($B40," ",""),AC$5*2+1,2) -> 23 | AD40: =MID(SUBSTITUTE($B40," ",""),AD$5*2+1,2) -> EF | AE40: =MID(SUBSTITUTE($B40," ",""),AE$5*2+1,2) -> FA | AF40: =MID(SUBSTITUTE($B40," ",""),AF$5*2+1,2) -> 1 | AG40: =IF(L40="01",HEX2DEC(O40&P40)/10,"-") -> - | AH40: =IF(L40="01",HEX2DEC(Q40&R40)/100,"-") -> - | AI40: =IF(L40="01",HEX2DEC(S40&T40)/10,"-") -> - | AJ40: =IF(L40="01",HEX2DEC(U40&V40&W40&X40)/1000,"-") -> - | AK40: =IF(L40="01",HEX2DEC(Y40&Z40)/1000,"-") -> - | AL40: =IF(L40="01",HEX2DEC(AA40&AB40)/10,"-") -> - | AM40: =IF(L40="82",HEX2DEC(M40&N40)/100,"-") -> 50.02 | AN40: =IF(L40="82",HEX2DEC(O40&P40)/10,"-") -> 34.3 | AO40: =IF(L40="82",HEX2DEC(S40&T40)/100,"-") -> 0.15 | AP40: =IF(L40="82",HEX2DEC(W40&X40)/10,"-") -> 9.6 | AQ40: =IF(L40="01",HEX2DEC(M40&N40),"-") -> - | AR40: =IF(L40="01",HEX2DEC(AC40&AD40),"-") -> - | AS40: =IF(L40="82",HEX2DEC(Q40&R40),"-") -> 0 | AT40: =IF(L40="82",HEX2DEC(U40&V40),"-") -> 1000 | AU40: =IF(L40="82",HEX2DEC(Y40&Z40),"-") -> 6 | AV40: =IF(L40="82",HEX2DEC(AA40&AB40),"-") -> 2161 | AW40: =IF(L40="82",HEX2DEC(AC40&AD40),"-") -> 9199
A41: 09:15:16 | B41: 95 7310xxyy 7310xxyy 010001019D005601630000FA7E001C092F83690F 1 | C41: =MID(SUBSTITUTE($B41," ",""),C$5*2+1,2) -> 95 | D41: =MID(SUBSTITUTE($B41," ",""),D$5*2+1,2) -> 73 | E41: =MID(SUBSTITUTE($B41," ",""),E$5*2+1,2) -> 10 | F41: =MID(SUBSTITUTE($B41," ",""),F$5*2+1,2) -> xx | G41: =MID(SUBSTITUTE($B41," ",""),G$5*2+1,2) -> yy | H41: =MID(SUBSTITUTE($B41," ",""),H$5*2+1,2) -> 73 | I41: =MID(SUBSTITUTE($B41," ",""),I$5*2+1,2) -> 10 | J41: =MID(SUBSTITUTE($B41," ",""),J$5*2+1,2) -> xx | K41: =MID(SUBSTITUTE($B41," ",""),K$5*2+1,2) -> yy | L41: =MID(SUBSTITUTE($B41," ",""),L$5*2+1,2) -> 01 | M41: =MID(SUBSTITUTE($B41," ",""),M$5*2+1,2) -> 00 | N41: =MID(SUBSTITUTE($B41," ",""),N$5*2+1,2) -> 01 | O41: =MID(SUBSTITUTE($B41," ",""),O$5*2+1,2) -> 01 | P41: =MID(SUBSTITUTE($B41," ",""),P$5*2+1,2) -> 9D | Q41: =MID(SUBSTITUTE($B41," ",""),Q$5*2+1,2) -> 00 | R41: =MID(SUBSTITUTE($B41," ",""),R$5*2+1,2) -> 56 | S41: =MID(SUBSTITUTE($B41," ",""),S$5*2+1,2) -> 01 | T41: =MID(SUBSTITUTE($B41," ",""),T$5*2+1,2) -> 63 | U41: =MID(SUBSTITUTE($B41," ",""),U$5*2+1,2) -> 00 | V41: =MID(SUBSTITUTE($B41," ",""),V$5*2+1,2) -> 00 | W41: =MID(SUBSTITUTE($B41," ",""),W$5*2+1,2) -> FA | X41: =MID(SUBSTITUTE($B41," ",""),X$5*2+1,2) -> 7E | Y41: =MID(SUBSTITUTE($B41," ",""),Y$5*2+1,2) -> 00 | Z41: =MID(SUBSTITUTE($B41," ",""),Z$5*2+1,2) -> 1C | AA41: =MID(SUBSTITUTE($B41," ",""),AA$5*2+1,2) -> 09 | AB41: =MID(SUBSTITUTE($B41," ",""),AB$5*2+1,2) -> 2F | AC41: =MID(SUBSTITUTE($B41," ",""),AC$5*2+1,2) -> 83 | AD41: =MID(SUBSTITUTE($B41," ",""),AD$5*2+1,2) -> 69 | AE41: =MID(SUBSTITUTE($B41," ",""),AE$5*2+1,2) -> 0F | AF41: =MID(SUBSTITUTE($B41," ",""),AF$5*2+1,2) -> 1 | AG41: =IF(L41="01",HEX2DEC(O41&P41)/10,"-") -> 41.3 | AH41: =IF(L41="01",HEX2DEC(Q41&R41)/100,"-") -> 0.86 | AI41: =IF(L41="01",HEX2DEC(S41&T41)/10,"-") -> 35.5 | AJ41: =IF(L41="01",HEX2DEC(U41&V41&W41&X41)/1000,"-") -> 64.126 | AK41: =IF(L41="01",HEX2DEC(Y41&Z41)/1000,"-") -> 0.028 | AL41: =IF(L41="01",HEX2DEC(AA41&AB41)/10,"-") -> 235.1 | AM41: =IF(L41="82",HEX2DEC(M41&N41)/100,"-") -> - | AN41: =IF(L41="82",HEX2DEC(O41&P41)/10,"-") -> - | AO41: =IF(L41="82",HEX2DEC(S41&T41)/100,"-") -> - | AP41: =IF(L41="82",HEX2DEC(W41&X41)/10,"-") -> - | AQ41: =IF(L41="01",HEX2DEC(M41&N41),"-") -> 1 | AR41: =IF(L41="01",HEX2DEC(AC41&AD41),"-") -> 33641 | AS41: =IF(L41="82",HEX2DEC(Q41&R41),"-") -> - | AT41: =IF(L41="82",HEX2DEC(U41&V41),"-") -> - | AU41: =IF(L41="82",HEX2DEC(Y41&Z41),"-") -> - | AV41: =IF(L41="82",HEX2DEC(AA41&AB41),"-") -> - | AW41: =IF(L41="82",HEX2DEC(AC41&AD41),"-") -> -
A42: 09:15:16 | B42: 95 7310xxyy 7310xxyy 82138A01520000000E03E8005F0006BB3BE1197A 1 | C42: =MID(SUBSTITUTE($B42," ",""),C$5*2+1,2) -> 95 | D42: =MID(SUBSTITUTE($B42," ",""),D$5*2+1,2) -> 73 | E42: =MID(SUBSTITUTE($B42," ",""),E$5*2+1,2) -> 10 | F42: =MID(SUBSTITUTE($B42," ",""),F$5*2+1,2) -> xx | G42: =MID(SUBSTITUTE($B42," ",""),G$5*2+1,2) -> yy | H42: =MID(SUBSTITUTE($B42," ",""),H$5*2+1,2) -> 73 | I42: =MID(SUBSTITUTE($B42," ",""),I$5*2+1,2) -> 10 | J42: =MID(SUBSTITUTE($B42," ",""),J$5*2+1,2) -> xx | K42: =MID(SUBSTITUTE($B42," ",""),K$5*2+1,2) -> yy | L42: =MID(SUBSTITUTE($B42," ",""),L$5*2+1,2) -> 82 | M42: =MID(SUBSTITUTE($B42," ",""),M$5*2+1,2) -> 13 | N42: =MID(SUBSTITUTE($B42," ",""),N$5*2+1,2) -> 8A | O42: =MID(SUBSTITUTE($B42," ",""),O$5*2+1,2) -> 01 | P42: =MID(SUBSTITUTE($B42," ",""),P$5*2+1,2) -> 52 | Q42: =MID(SUBSTITUTE($B42," ",""),Q$5*2+1,2) -> 00 | R42: =MID(SUBSTITUTE($B42," ",""),R$5*2+1,2) -> 00 | S42: =MID(SUBSTITUTE($B42," ",""),S$5*2+1,2) -> 00 | T42: =MID(SUBSTITUTE($B42," ",""),T$5*2+1,2) -> 0E | U42: =MID(SUBSTITUTE($B42," ",""),U$5*2+1,2) -> 03 | V42: =MID(SUBSTITUTE($B42," ",""),V$5*2+1,2) -> E8 | W42: =MID(SUBSTITUTE($B42," ",""),W$5*2+1,2) -> 00 | X42: =MID(SUBSTITUTE($B42," ",""),X$5*2+1,2) -> 5F | Y42: =MID(SUBSTITUTE($B42," ",""),Y$5*2+1,2) -> 00 | Z42: =MID(SUBSTITUTE($B42," ",""),Z$5*2+1,2) -> 06 | AA42: =MID(SUBSTITUTE($B42," ",""),AA$5*2+1,2) -> BB | AB42: =MID(SUBSTITUTE($B42," ",""),AB$5*2+1,2) -> 3B | AC42: =MID(SUBSTITUTE($B42," ",""),AC$5*2+1,2) -> E1 | AD42: =MID(SUBSTITUTE($B42," ",""),AD$5*2+1,2) -> 19 | AE42: =MID(SUBSTITUTE($B42," ",""),AE$5*2+1,2) -> 7A | AF42: =MID(SUBSTITUTE($B42," ",""),AF$5*2+1,2) -> 1 | AG42: =IF(L42="01",HEX2DEC(O42&P42)/10,"-") -> - | AH42: =IF(L42="01",HEX2DEC(Q42&R42)/100,"-") -> - | AI42: =IF(L42="01",HEX2DEC(S42&T42)/10,"-") -> - | AJ42: =IF(L42="01",HEX2DEC(U42&V42&W42&X42)/1000,"-") -> - | AK42: =IF(L42="01",HEX2DEC(Y42&Z42)/1000,"-") -> - | AL42: =IF(L42="01",HEX2DEC(AA42&AB42)/10,"-") -> - | AM42: =IF(L42="82",HEX2DEC(M42&N42)/100,"-") -> 50.02 | AN42: =IF(L42="82",HEX2DEC(O42&P42)/10,"-") -> 33.8 | AO42: =IF(L42="82",HEX2DEC(S42&T42)/100,"-") -> 0.14 | AP42: =IF(L42="82",HEX2DEC(W42&X42)/10,"-") -> 9.5 | AQ42: =IF(L42="01",HEX2DEC(M42&N42),"-") -> - | AR42: =IF(L42="01",HEX2DEC(AC42&AD42),"-") -> - | AS42: =IF(L42="82",HEX2DEC(Q42&R42),"-") -> 0 | AT42: =IF(L42="82",HEX2DEC(U42&V42),"-") -> 1000 | AU42: =IF(L42="82",HEX2DEC(Y42&Z42),"-") -> 6 | AV42: =IF(L42="82",HEX2DEC(AA42&AB42),"-") -> 47931 | AW42: =IF(L42="82",HEX2DEC(AC42&AD42),"-") -> 57625
A43: 09:15:28 | B43: 95 7310xxyy 7310xxyy 010001019D005601620000FA7E001C09319C1E90 1 | C43: =MID(SUBSTITUTE($B43," ",""),C$5*2+1,2) -> 95 | D43: =MID(SUBSTITUTE($B43," ",""),D$5*2+1,2) -> 73 | E43: =MID(SUBSTITUTE($B43," ",""),E$5*2+1,2) -> 10 | F43: =MID(SUBSTITUTE($B43," ",""),F$5*2+1,2) -> xx | G43: =MID(SUBSTITUTE($B43," ",""),G$5*2+1,2) -> yy | H43: =MID(SUBSTITUTE($B43," ",""),H$5*2+1,2) -> 73 | I43: =MID(SUBSTITUTE($B43," ",""),I$5*2+1,2) -> 10 | J43: =MID(SUBSTITUTE($B43," ",""),J$5*2+1,2) -> xx | K43: =MID(SUBSTITUTE($B43," ",""),K$5*2+1,2) -> yy | L43: =MID(SUBSTITUTE($B43," ",""),L$5*2+1,2) -> 01 | M43: =MID(SUBSTITUTE($B43," ",""),M$5*2+1,2) -> 00 | N43: =MID(SUBSTITUTE($B43," ",""),N$5*2+1,2) -> 01 | O43: =MID(SUBSTITUTE($B43," ",""),O$5*2+1,2) -> 01 | P43: =MID(SUBSTITUTE($B43," ",""),P$5*2+1,2) -> 9D | Q43: =MID(SUBSTITUTE($B43," ",""),Q$5*2+1,2) -> 00 | R43: =MID(SUBSTITUTE($B43," ",""),R$5*2+1,2) -> 56 | S43: =MID(SUBSTITUTE($B43," ",""),S$5*2+1,2) -> 01 | T43: =MID(SUBSTITUTE($B43," ",""),T$5*2+1,2) -> 62 | U43: =MID(SUBSTITUTE($B43," ",""),U$5*2+1,2) -> 00 | V43: =MID(SUBSTITUTE($B43," ",""),V$5*2+1,2) -> 00 | W43: =MID(SUBSTITUTE($B43," ",""),W$5*2+1,2) -> FA | X43: =MID(SUBSTITUTE($B43," ",""),X$5*2+1,2) -> 7E | Y43: =MID(SUBSTITUTE($B43," ",""),Y$5*2+1,2) -> 00 | Z43: =MID(SUBSTITUTE($B43," ",""),Z$5*2+1,2) -> 1C | AA43: =MID(SUBSTITUTE($B43," ",""),AA$5*2+1,2) -> 09 | AB43: =MID(SUBSTITUTE($B43," ",""),AB$5*2+1,2) -> 31 | AC43: =MID(SUBSTITUTE($B43," ",""),AC$5*2+1,2) -> 9C | AD43: =MID(SUBSTITUTE($B43," ",""),AD$5*2+1,2) -> 1E | AE43: =MID(SUBSTITUTE($B43," ",""),AE$5*2+1,2) -> 90 | AF43: =MID(SUBSTITUTE($B43," ",""),AF$5*2+1,2) -> 1 | AG43: =IF(L43="01",HEX2DEC(O43&P43)/10,"-") -> 41.3 | AH43: =IF(L43="01",HEX2DEC(Q43&R43)/100,"-") -> 0.86 | AI43: =IF(L43="01",HEX2DEC(S43&T43)/10,"-") -> 35.4 | AJ43: =IF(L43="01",HEX2DEC(U43&V43&W43&X43)/1000,"-") -> 64.126 | AK43: =IF(L43="01",HEX2DEC(Y43&Z43)/1000,"-") -> 0.028 | AL43: =IF(L43="01",HEX2DEC(AA43&AB43)/10,"-") -> 235.3 | AM43: =IF(L43="82",HEX2DEC(M43&N43)/100,"-") -> - | AN43: =IF(L43="82",HEX2DEC(O43&P43)/10,"-") -> - | AO43: =IF(L43="82",HEX2DEC(S43&T43)/100,"-") -> - | AP43: =IF(L43="82",HEX2DEC(W43&X43)/10,"-") -> - | AQ43: =IF(L43="01",HEX2DEC(M43&N43),"-") -> 1 | AR43: =IF(L43="01",HEX2DEC(AC43&AD43),"-") -> 39966 | AS43: =IF(L43="82",HEX2DEC(Q43&R43),"-") -> - | AT43: =IF(L43="82",HEX2DEC(U43&V43),"-") -> - | AU43: =IF(L43="82",HEX2DEC(Y43&Z43),"-") -> - | AV43: =IF(L43="82",HEX2DEC(AA43&AB43),"-") -> - | AW43: =IF(L43="82",HEX2DEC(AC43&AD43),"-") -> -
A44: 09:15:28 | B44: 95 7310xxyy 7310xxyy 82138901510000000E03E8005F0006A862AB7226 1 | C44: =MID(SUBSTITUTE($B44," ",""),C$5*2+1,2) -> 95 | D44: =MID(SUBSTITUTE($B44," ",""),D$5*2+1,2) -> 73 | E44: =MID(SUBSTITUTE($B44," ",""),E$5*2+1,2) -> 10 | F44: =MID(SUBSTITUTE($B44," ",""),F$5*2+1,2) -> xx | G44: =MID(SUBSTITUTE($B44," ",""),G$5*2+1,2) -> yy | H44: =MID(SUBSTITUTE($B44," ",""),H$5*2+1,2) -> 73 | I44: =MID(SUBSTITUTE($B44," ",""),I$5*2+1,2) -> 10 | J44: =MID(SUBSTITUTE($B44," ",""),J$5*2+1,2) -> xx | K44: =MID(SUBSTITUTE($B44," ",""),K$5*2+1,2) -> yy | L44: =MID(SUBSTITUTE($B44," ",""),L$5*2+1,2) -> 82 | M44: =MID(SUBSTITUTE($B44," ",""),M$5*2+1,2) -> 13 | N44: =MID(SUBSTITUTE($B44," ",""),N$5*2+1,2) -> 89 | O44: =MID(SUBSTITUTE($B44," ",""),O$5*2+1,2) -> 01 | P44: =MID(SUBSTITUTE($B44," ",""),P$5*2+1,2) -> 51 | Q44: =MID(SUBSTITUTE($B44," ",""),Q$5*2+1,2) -> 00 | R44: =MID(SUBSTITUTE($B44," ",""),R$5*2+1,2) -> 00 | S44: =MID(SUBSTITUTE($B44," ",""),S$5*2+1,2) -> 00 | T44: =MID(SUBSTITUTE($B44," ",""),T$5*2+1,2) -> 0E | U44: =MID(SUBSTITUTE($B44," ",""),U$5*2+1,2) -> 03 | V44: =MID(SUBSTITUTE($B44," ",""),V$5*2+1,2) -> E8 | W44: =MID(SUBSTITUTE($B44," ",""),W$5*2+1,2) -> 00 | X44: =MID(SUBSTITUTE($B44," ",""),X$5*2+1,2) -> 5F | Y44: =MID(SUBSTITUTE($B44," ",""),Y$5*2+1,2) -> 00 | Z44: =MID(SUBSTITUTE($B44," ",""),Z$5*2+1,2) -> 06 | AA44: =MID(SUBSTITUTE($B44," ",""),AA$5*2+1,2) -> A8 | AB44: =MID(SUBSTITUTE($B44," ",""),AB$5*2+1,2) -> 62 | AC44: =MID(SUBSTITUTE($B44," ",""),AC$5*2+1,2) -> AB | AD44: =MID(SUBSTITUTE($B44," ",""),AD$5*2+1,2) -> 72 | AE44: =MID(SUBSTITUTE($B44," ",""),AE$5*2+1,2) -> 26 | AF44: =MID(SUBSTITUTE($B44," ",""),AF$5*2+1,2) -> 1 | AG44: =IF(L44="01",HEX2DEC(O44&P44)/10,"-") -> - | AH44: =IF(L44="01",HEX2DEC(Q44&R44)/100,"-") -> - | AI44: =IF(L44="01",HEX2DEC(S44&T44)/10,"-") -> - | AJ44: =IF(L44="01",HEX2DEC(U44&V44&W44&X44)/1000,"-") -> - | AK44: =IF(L44="01",HEX2DEC(Y44&Z44)/1000,"-") -> - | AL44: =IF(L44="01",HEX2DEC(AA44&AB44)/10,"-") -> - | AM44: =IF(L44="82",HEX2DEC(M44&N44)/100,"-") -> 50.01 | AN44: =IF(L44="82",HEX2DEC(O44&P44)/10,"-") -> 33.7 | AO44: =IF(L44="82",HEX2DEC(S44&T44)/100,"-") -> 0.14 | AP44: =IF(L44="82",HEX2DEC(W44&X44)/10,"-") -> 9.5 | AQ44: =IF(L44="01",HEX2DEC(M44&N44),"-") -> - | AR44: =IF(L44="01",HEX2DEC(AC44&AD44),"-") -> - | AS44: =IF(L44="82",HEX2DEC(Q44&R44),"-") -> 0 | AT44: =IF(L44="82",HEX2DEC(U44&V44),"-") -> 1000 | AU44: =IF(L44="82",HEX2DEC(Y44&Z44),"-") -> 6 | AV44: =IF(L44="82",HEX2DEC(AA44&AB44),"-") -> 43106 | AW44: =IF(L44="82",HEX2DEC(AC44&AD44),"-") -> 43890
A45: 09:15:52 | B45: 95 7310xxyy 7310xxyy 821388015B0000000F03E8005F00069A8776BF94 1 | C45: =MID(SUBSTITUTE($B45," ",""),C$5*2+1,2) -> 95 | D45: =MID(SUBSTITUTE($B45," ",""),D$5*2+1,2) -> 73 | E45: =MID(SUBSTITUTE($B45," ",""),E$5*2+1,2) -> 10 | F45: =MID(SUBSTITUTE($B45," ",""),F$5*2+1,2) -> xx | G45: =MID(SUBSTITUTE($B45," ",""),G$5*2+1,2) -> yy | H45: =MID(SUBSTITUTE($B45," ",""),H$5*2+1,2) -> 73 | I45: =MID(SUBSTITUTE($B45," ",""),I$5*2+1,2) -> 10 | J45: =MID(SUBSTITUTE($B45," ",""),J$5*2+1,2) -> xx | K45: =MID(SUBSTITUTE($B45," ",""),K$5*2+1,2) -> yy | L45: =MID(SUBSTITUTE($B45," ",""),L$5*2+1,2) -> 82 | M45: =MID(SUBSTITUTE($B45," ",""),M$5*2+1,2) -> 13 | N45: =MID(SUBSTITUTE($B45," ",""),N$5*2+1,2) -> 88 | O45: =MID(SUBSTITUTE($B45," ",""),O$5*2+1,2) -> 01 | P45: =MID(SUBSTITUTE($B45," ",""),P$5*2+1,2) -> 5B | Q45: =MID(SUBSTITUTE($B45," ",""),Q$5*2+1,2) -> 00 | R45: =MID(SUBSTITUTE($B45," ",""),R$5*2+1,2) -> 00 | S45: =MID(SUBSTITUTE($B45," ",""),S$5*2+1,2) -> 00 | T45: =MID(SUBSTITUTE($B45," ",""),T$5*2+1,2) -> 0F | U45: =MID(SUBSTITUTE($B45," ",""),U$5*2+1,2) -> 03 | V45: =MID(SUBSTITUTE($B45," ",""),V$5*2+1,2) -> E8 | W45: =MID(SUBSTITUTE($B45," ",""),W$5*2+1,2) -> 00 | X45: =MID(SUBSTITUTE($B45," ",""),X$5*2+1,2) -> 5F | Y45: =MID(SUBSTITUTE($B45," ",""),Y$5*2+1,2) -> 00 | Z45: =MID(SUBSTITUTE($B45," ",""),Z$5*2+1,2) -> 06 | AA45: =MID(SUBSTITUTE($B45," ",""),AA$5*2+1,2) -> 9A | AB45: =MID(SUBSTITUTE($B45," ",""),AB$5*2+1,2) -> 87 | AC45: =MID(SUBSTITUTE($B45," ",""),AC$5*2+1,2) -> 76 | AD45: =MID(SUBSTITUTE($B45," ",""),AD$5*2+1,2) -> BF | AE45: =MID(SUBSTITUTE($B45," ",""),AE$5*2+1,2) -> 94 | AF45: =MID(SUBSTITUTE($B45," ",""),AF$5*2+1,2) -> 1 | AG45: =IF(L45="01",HEX2DEC(O45&P45)/10,"-") -> - | AH45: =IF(L45="01",HEX2DEC(Q45&R45)/100,"-") -> - | AI45: =IF(L45="01",HEX2DEC(S45&T45)/10,"-") -> - | AJ45: =IF(L45="01",HEX2DEC(U45&V45&W45&X45)/1000,"-") -> - | AK45: =IF(L45="01",HEX2DEC(Y45&Z45)/1000,"-") -> - | AL45: =IF(L45="01",HEX2DEC(AA45&AB45)/10,"-") -> - | AM45: =IF(L45="82",HEX2DEC(M45&N45)/100,"-") -> 50 | AN45: =IF(L45="82",HEX2DEC(O45&P45)/10,"-") -> 34.7 | AO45: =IF(L45="82",HEX2DEC(S45&T45)/100,"-") -> 0.15 | AP45: =IF(L45="82",HEX2DEC(W45&X45)/10,"-") -> 9.5 | AQ45: =IF(L45="01",HEX2DEC(M45&N45),"-") -> - | AR45: =IF(L45="01",HEX2DEC(AC45&AD45),"-") -> - | AS45: =IF(L45="82",HEX2DEC(Q45&R45),"-") -> 0 | AT45: =IF(L45="82",HEX2DEC(U45&V45),"-") -> 1000 | AU45: =IF(L45="82",HEX2DEC(Y45&Z45),"-") -> 6 | AV45: =IF(L45="82",HEX2DEC(AA45&AB45),"-") -> 39559 | AW45: =IF(L45="82",HEX2DEC(AC45&AD45),"-") -> 30399
A46: 09:15:59 | B46: 95 7310xxyy 7310xxyy 010001019E0058016D0000FA7E001C09339CB376 1 | C46: =MID(SUBSTITUTE($B46," ",""),C$5*2+1,2) -> 95 | D46: =MID(SUBSTITUTE($B46," ",""),D$5*2+1,2) -> 73 | E46: =MID(SUBSTITUTE($B46," ",""),E$5*2+1,2) -> 10 | F46: =MID(SUBSTITUTE($B46," ",""),F$5*2+1,2) -> xx | G46: =MID(SUBSTITUTE($B46," ",""),G$5*2+1,2) -> yy | H46: =MID(SUBSTITUTE($B46," ",""),H$5*2+1,2) -> 73 | I46: =MID(SUBSTITUTE($B46," ",""),I$5*2+1,2) -> 10 | J46: =MID(SUBSTITUTE($B46," ",""),J$5*2+1,2) -> xx | K46: =MID(SUBSTITUTE($B46," ",""),K$5*2+1,2) -> yy | L46: =MID(SUBSTITUTE($B46," ",""),L$5*2+1,2) -> 01 | M46: =MID(SUBSTITUTE($B46," ",""),M$5*2+1,2) -> 00 | N46: =MID(SUBSTITUTE($B46," ",""),N$5*2+1,2) -> 01 | O46: =MID(SUBSTITUTE($B46," ",""),O$5*2+1,2) -> 01 | P46: =MID(SUBSTITUTE($B46," ",""),P$5*2+1,2) -> 9E | Q46: =MID(SUBSTITUTE($B46," ",""),Q$5*2+1,2) -> 00 | R46: =MID(SUBSTITUTE($B46," ",""),R$5*2+1,2) -> 58 | S46: =MID(SUBSTITUTE($B46," ",""),S$5*2+1,2) -> 01 | T46: =MID(SUBSTITUTE($B46," ",""),T$5*2+1,2) -> 6D | U46: =MID(SUBSTITUTE($B46," ",""),U$5*2+1,2) -> 00 | V46: =MID(SUBSTITUTE($B46," ",""),V$5*2+1,2) -> 00 | W46: =MID(SUBSTITUTE($B46," ",""),W$5*2+1,2) -> FA | X46: =MID(SUBSTITUTE($B46," ",""),X$5*2+1,2) -> 7E | Y46: =MID(SUBSTITUTE($B46," ",""),Y$5*2+1,2) -> 00 | Z46: =MID(SUBSTITUTE($B46," ",""),Z$5*2+1,2) -> 1C | AA46: =MID(SUBSTITUTE($B46," ",""),AA$5*2+1,2) -> 09 | AB46: =MID(SUBSTITUTE($B46," ",""),AB$5*2+1,2) -> 33 | AC46: =MID(SUBSTITUTE($B46," ",""),AC$5*2+1,2) -> 9C | AD46: =MID(SUBSTITUTE($B46," ",""),AD$5*2+1,2) -> B3 | AE46: =MID(SUBSTITUTE($B46," ",""),AE$5*2+1,2) -> 76 | AF46: =MID(SUBSTITUTE($B46," ",""),AF$5*2+1,2) -> 1 | AG46: =IF(L46="01",HEX2DEC(O46&P46)/10,"-") -> 41.4 | AH46: =IF(L46="01",HEX2DEC(Q46&R46)/100,"-") -> 0.88 | AI46: =IF(L46="01",HEX2DEC(S46&T46)/10,"-") -> 36.5 | AJ46: =IF(L46="01",HEX2DEC(U46&V46&W46&X46)/1000,"-") -> 64.126 | AK46: =IF(L46="01",HEX2DEC(Y46&Z46)/1000,"-") -> 0.028 | AL46: =IF(L46="01",HEX2DEC(AA46&AB46)/10,"-") -> 235.5 | AM46: =IF(L46="82",HEX2DEC(M46&N46)/100,"-") -> - | AN46: =IF(L46="82",HEX2DEC(O46&P46)/10,"-") -> - | AO46: =IF(L46="82",HEX2DEC(S46&T46)/100,"-") -> - | AP46: =IF(L46="82",HEX2DEC(W46&X46)/10,"-") -> - | AQ46: =IF(L46="01",HEX2DEC(M46&N46),"-") -> 1 | AR46: =IF(L46="01",HEX2DEC(AC46&AD46),"-") -> 40115 | AS46: =IF(L46="82",HEX2DEC(Q46&R46),"-") -> - | AT46: =IF(L46="82",HEX2DEC(U46&V46),"-") -> - | AU46: =IF(L46="82",HEX2DEC(Y46&Z46),"-") -> - | AV46: =IF(L46="82",HEX2DEC(AA46&AB46),"-") -> - | AW46: =IF(L46="82",HEX2DEC(AC46&AD46),"-") -> -
A47: 09:16:04 | B47: 95 7310xxyy 7310xxyy 82138C01660000000F03E8005F0006068CD8572F 1 | C47: =MID(SUBSTITUTE($B47," ",""),C$5*2+1,2) -> 95 | D47: =MID(SUBSTITUTE($B47," ",""),D$5*2+1,2) -> 73 | E47: =MID(SUBSTITUTE($B47," ",""),E$5*2+1,2) -> 10 | F47: =MID(SUBSTITUTE($B47," ",""),F$5*2+1,2) -> xx | G47: =MID(SUBSTITUTE($B47," ",""),G$5*2+1,2) -> yy | H47: =MID(SUBSTITUTE($B47," ",""),H$5*2+1,2) -> 73 | I47: =MID(SUBSTITUTE($B47," ",""),I$5*2+1,2) -> 10 | J47: =MID(SUBSTITUTE($B47," ",""),J$5*2+1,2) -> xx | K47: =MID(SUBSTITUTE($B47," ",""),K$5*2+1,2) -> yy | L47: =MID(SUBSTITUTE($B47," ",""),L$5*2+1,2) -> 82 | M47: =MID(SUBSTITUTE($B47," ",""),M$5*2+1,2) -> 13 | N47: =MID(SUBSTITUTE($B47," ",""),N$5*2+1,2) -> 8C | O47: =MID(SUBSTITUTE($B47," ",""),O$5*2+1,2) -> 01 | P47: =MID(SUBSTITUTE($B47," ",""),P$5*2+1,2) -> 66 | Q47: =MID(SUBSTITUTE($B47," ",""),Q$5*2+1,2) -> 00 | R47: =MID(SUBSTITUTE($B47," ",""),R$5*2+1,2) -> 00 | S47: =MID(SUBSTITUTE($B47," ",""),S$5*2+1,2) -> 00 | T47: =MID(SUBSTITUTE($B47," ",""),T$5*2+1,2) -> 0F | U47: =MID(SUBSTITUTE($B47," ",""),U$5*2+1,2) -> 03 | V47: =MID(SUBSTITUTE($B47," ",""),V$5*2+1,2) -> E8 | W47: =MID(SUBSTITUTE($B47," ",""),W$5*2+1,2) -> 00 | X47: =MID(SUBSTITUTE($B47," ",""),X$5*2+1,2) -> 5F | Y47: =MID(SUBSTITUTE($B47," ",""),Y$5*2+1,2) -> 00 | Z47: =MID(SUBSTITUTE($B47," ",""),Z$5*2+1,2) -> 06 | AA47: =MID(SUBSTITUTE($B47," ",""),AA$5*2+1,2) -> 06 | AB47: =MID(SUBSTITUTE($B47," ",""),AB$5*2+1,2) -> 8C | AC47: =MID(SUBSTITUTE($B47," ",""),AC$5*2+1,2) -> D8 | AD47: =MID(SUBSTITUTE($B47," ",""),AD$5*2+1,2) -> 57 | AE47: =MID(SUBSTITUTE($B47," ",""),AE$5*2+1,2) -> 2F | AF47: =MID(SUBSTITUTE($B47," ",""),AF$5*2+1,2) -> 1 | AG47: =IF(L47="01",HEX2DEC(O47&P47)/10,"-") -> - | AH47: =IF(L47="01",HEX2DEC(Q47&R47)/100,"-") -> - | AI47: =IF(L47="01",HEX2DEC(S47&T47)/10,"-") -> - | AJ47: =IF(L47="01",HEX2DEC(U47&V47&W47&X47)/1000,"-") -> - | AK47: =IF(L47="01",HEX2DEC(Y47&Z47)/1000,"-") -> - | AL47: =IF(L47="01",HEX2DEC(AA47&AB47)/10,"-") -> - | AM47: =IF(L47="82",HEX2DEC(M47&N47)/100,"-") -> 50.04 | AN47: =IF(L47="82",HEX2DEC(O47&P47)/10,"-") -> 35.8 | AO47: =IF(L47="82",HEX2DEC(S47&T47)/100,"-") -> 0.15 | AP47: =IF(L47="82",HEX2DEC(W47&X47)/10,"-") -> 9.5 | AQ47: =IF(L47="01",HEX2DEC(M47&N47),"-") -> - | AR47: =IF(L47="01",HEX2DEC(AC47&AD47),"-") -> - | AS47: =IF(L47="82",HEX2DEC(Q47&R47),"-") -> 0 | AT47: =IF(L47="82",HEX2DEC(U47&V47),"-") -> 1000 | AU47: =IF(L47="82",HEX2DEC(Y47&Z47),"-") -> 6 | AV47: =IF(L47="82",HEX2DEC(AA47&AB47),"-") -> 1676 | AW47: =IF(L47="82",HEX2DEC(AC47&AD47),"-") -> 55383
A48: 09:16:16 | B48: 95 7310xxyy 7310xxyy 82138B01740000001003E800610006E8FD737404 1 | C48: =MID(SUBSTITUTE($B48," ",""),C$5*2+1,2) -> 95 | D48: =MID(SUBSTITUTE($B48," ",""),D$5*2+1,2) -> 73 | E48: =MID(SUBSTITUTE($B48," ",""),E$5*2+1,2) -> 10 | F48: =MID(SUBSTITUTE($B48," ",""),F$5*2+1,2) -> xx | G48: =MID(SUBSTITUTE($B48," ",""),G$5*2+1,2) -> yy | H48: =MID(SUBSTITUTE($B48," ",""),H$5*2+1,2) -> 73 | I48: =MID(SUBSTITUTE($B48," ",""),I$5*2+1,2) -> 10 | J48: =MID(SUBSTITUTE($B48," ",""),J$5*2+1,2) -> xx | K48: =MID(SUBSTITUTE($B48," ",""),K$5*2+1,2) -> yy | L48: =MID(SUBSTITUTE($B48," ",""),L$5*2+1,2) -> 82 | M48: =MID(SUBSTITUTE($B48," ",""),M$5*2+1,2) -> 13 | N48: =MID(SUBSTITUTE($B48," ",""),N$5*2+1,2) -> 8B | O48: =MID(SUBSTITUTE($B48," ",""),O$5*2+1,2) -> 01 | P48: =MID(SUBSTITUTE($B48," ",""),P$5*2+1,2) -> 74 | Q48: =MID(SUBSTITUTE($B48," ",""),Q$5*2+1,2) -> 00 | R48: =MID(SUBSTITUTE($B48," ",""),R$5*2+1,2) -> 00 | S48: =MID(SUBSTITUTE($B48," ",""),S$5*2+1,2) -> 00 | T48: =MID(SUBSTITUTE($B48," ",""),T$5*2+1,2) -> 10 | U48: =MID(SUBSTITUTE($B48," ",""),U$5*2+1,2) -> 03 | V48: =MID(SUBSTITUTE($B48," ",""),V$5*2+1,2) -> E8 | W48: =MID(SUBSTITUTE($B48," ",""),W$5*2+1,2) -> 00 | X48: =MID(SUBSTITUTE($B48," ",""),X$5*2+1,2) -> 61 | Y48: =MID(SUBSTITUTE($B48," ",""),Y$5*2+1,2) -> 00 | Z48: =MID(SUBSTITUTE($B48," ",""),Z$5*2+1,2) -> 06 | AA48: =MID(SUBSTITUTE($B48," ",""),AA$5*2+1,2) -> E8 | AB48: =MID(SUBSTITUTE($B48," ",""),AB$5*2+1,2) -> FD | AC48: =MID(SUBSTITUTE($B48," ",""),AC$5*2+1,2) -> 73 | AD48: =MID(SUBSTITUTE($B48," ",""),AD$5*2+1,2) -> 74 | AE48: =MID(SUBSTITUTE($B48," ",""),AE$5*2+1,2) -> 04 | AF48: =MID(SUBSTITUTE($B48," ",""),AF$5*2+1,2) -> 1 | AG48: =IF(L48="01",HEX2DEC(O48&P48)/10,"-") -> - | AH48: =IF(L48="01",HEX2DEC(Q48&R48)/100,"-") -> - | AI48: =IF(L48="01",HEX2DEC(S48&T48)/10,"-") -> - | AJ48: =IF(L48="01",HEX2DEC(U48&V48&W48&X48)/1000,"-") -> - | AK48: =IF(L48="01",HEX2DEC(Y48&Z48)/1000,"-") -> - | AL48: =IF(L48="01",HEX2DEC(AA48&AB48)/10,"-") -> - | AM48: =IF(L48="82",HEX2DEC(M48&N48)/100,"-") -> 50.03 | AN48: =IF(L48="82",HEX2DEC(O48&P48)/10,"-") -> 37.2 | AO48: =IF(L48="82",HEX2DEC(S48&T48)/100,"-") -> 0.16 | AP48: =IF(L48="82",HEX2DEC(W48&X48)/10,"-") -> 9.7 | AQ48: =IF(L48="01",HEX2DEC(M48&N48),"-") -> - | AR48: =IF(L48="01",HEX2DEC(AC48&AD48),"-") -> - | AS48: =IF(L48="82",HEX2DEC(Q48&R48),"-") -> 0 | AT48: =IF(L48="82",HEX2DEC(U48&V48),"-") -> 1000 | AU48: =IF(L48="82",HEX2DEC(Y48&Z48),"-") -> 6 | AV48: =IF(L48="82",HEX2DEC(AA48&AB48),"-") -> 59645 | AW48: =IF(L48="82",HEX2DEC(AC48&AD48),"-") -> 29556
A49: 09:16:28 | B49: 95 7310xxyy 7310xxyy 82138A01800000001003E8006000063C87293DDD 1 | C49: =MID(SUBSTITUTE($B49," ",""),C$5*2+1,2) -> 95 | D49: =MID(SUBSTITUTE($B49," ",""),D$5*2+1,2) -> 73 | E49: =MID(SUBSTITUTE($B49," ",""),E$5*2+1,2) -> 10 | F49: =MID(SUBSTITUTE($B49," ",""),F$5*2+1,2) -> xx | G49: =MID(SUBSTITUTE($B49," ",""),G$5*2+1,2) -> yy | H49: =MID(SUBSTITUTE($B49," ",""),H$5*2+1,2) -> 73 | I49: =MID(SUBSTITUTE($B49," ",""),I$5*2+1,2) -> 10 | J49: =MID(SUBSTITUTE($B49," ",""),J$5*2+1,2) -> xx | K49: =MID(SUBSTITUTE($B49," ",""),K$5*2+1,2) -> yy | L49: =MID(SUBSTITUTE($B49," ",""),L$5*2+1,2) -> 82 | M49: =MID(SUBSTITUTE($B49," ",""),M$5*2+1,2) -> 13 | N49: =MID(SUBSTITUTE($B49," ",""),N$5*2+1,2) -> 8A | O49: =MID(SUBSTITUTE($B49," ",""),O$5*2+1,2) -> 01 | P49: =MID(SUBSTITUTE($B49," ",""),P$5*2+1,2) -> 80 | Q49: =MID(SUBSTITUTE($B49," ",""),Q$5*2+1,2) -> 00 | R49: =MID(SUBSTITUTE($B49," ",""),R$5*2+1,2) -> 00 | S49: =MID(SUBSTITUTE($B49," ",""),S$5*2+1,2) -> 00 | T49: =MID(SUBSTITUTE($B49," ",""),T$5*2+1,2) -> 10 | U49: =MID(SUBSTITUTE($B49," ",""),U$5*2+1,2) -> 03 | V49: =MID(SUBSTITUTE($B49," ",""),V$5*2+1,2) -> E8 | W49: =MID(SUBSTITUTE($B49," ",""),W$5*2+1,2) -> 00 | X49: =MID(SUBSTITUTE($B49," ",""),X$5*2+1,2) -> 60 | Y49: =MID(SUBSTITUTE($B49," ",""),Y$5*2+1,2) -> 00 | Z49: =MID(SUBSTITUTE($B49," ",""),Z$5*2+1,2) -> 06 | AA49: =MID(SUBSTITUTE($B49," ",""),AA$5*2+1,2) -> 3C | AB49: =MID(SUBSTITUTE($B49," ",""),AB$5*2+1,2) -> 87 | AC49: =MID(SUBSTITUTE($B49," ",""),AC$5*2+1,2) -> 29 | AD49: =MID(SUBSTITUTE($B49," ",""),AD$5*2+1,2) -> 3D | AE49: =MID(SUBSTITUTE($B49," ",""),AE$5*2+1,2) -> DD | AF49: =MID(SUBSTITUTE($B49," ",""),AF$5*2+1,2) -> 1 | AG49: =IF(L49="01",HEX2DEC(O49&P49)/10,"-") -> - | AH49: =IF(L49="01",HEX2DEC(Q49&R49)/100,"-") -> - | AI49: =IF(L49="01",HEX2DEC(S49&T49)/10,"-") -> - | AJ49: =IF(L49="01",HEX2DEC(U49&V49&W49&X49)/1000,"-") -> - | AK49: =IF(L49="01",HEX2DEC(Y49&Z49)/1000,"-") -> - | AL49: =IF(L49="01",HEX2DEC(AA49&AB49)/10,"-") -> - | AM49: =IF(L49="82",HEX2DEC(M49&N49)/100,"-") -> 50.02 | AN49: =IF(L49="82",HEX2DEC(O49&P49)/10,"-") -> 38.4 | AO49: =IF(L49="82",HEX2DEC(S49&T49)/100,"-") -> 0.16 | AP49: =IF(L49="82",HEX2DEC(W49&X49)/10,"-") -> 9.6 | AQ49: =IF(L49="01",HEX2DEC(M49&N49),"-") -> - | AR49: =IF(L49="01",HEX2DEC(AC49&AD49),"-") -> - | AS49: =IF(L49="82",HEX2DEC(Q49&R49),"-") -> 0 | AT49: =IF(L49="82",HEX2DEC(U49&V49),"-") -> 1000 | AU49: =IF(L49="82",HEX2DEC(Y49&Z49),"-") -> 6 | AV49: =IF(L49="82",HEX2DEC(AA49&AB49),"-") -> 15495 | AW49: =IF(L49="82",HEX2DEC(AC49&AD49),"-") -> 10557
A50: 09:16:32 | B50: 95 7310xxyy 7310xxyy 82138A01800000001003E8006000063C8729AF8D 1 | C50: =MID(SUBSTITUTE($B50," ",""),C$5*2+1,2) -> 95 | D50: =MID(SUBSTITUTE($B50," ",""),D$5*2+1,2) -> 73 | E50: =MID(SUBSTITUTE($B50," ",""),E$5*2+1,2) -> 10 | F50: =MID(SUBSTITUTE($B50," ",""),F$5*2+1,2) -> xx | G50: =MID(SUBSTITUTE($B50," ",""),G$5*2+1,2) -> yy | H50: =MID(SUBSTITUTE($B50," ",""),H$5*2+1,2) -> 73 | I50: =MID(SUBSTITUTE($B50," ",""),I$5*2+1,2) -> 10 | J50: =MID(SUBSTITUTE($B50," ",""),J$5*2+1,2) -> xx | K50: =MID(SUBSTITUTE($B50," ",""),K$5*2+1,2) -> yy | L50: =MID(SUBSTITUTE($B50," ",""),L$5*2+1,2) -> 82 | M50: =MID(SUBSTITUTE($B50," ",""),M$5*2+1,2) -> 13 | N50: =MID(SUBSTITUTE($B50," ",""),N$5*2+1,2) -> 8A | O50: =MID(SUBSTITUTE($B50," ",""),O$5*2+1,2) -> 01 | P50: =MID(SUBSTITUTE($B50," ",""),P$5*2+1,2) -> 80 | Q50: =MID(SUBSTITUTE($B50," ",""),Q$5*2+1,2) -> 00 | R50: =MID(SUBSTITUTE($B50," ",""),R$5*2+1,2) -> 00 | S50: =MID(SUBSTITUTE($B50," ",""),S$5*2+1,2) -> 00 | T50: =MID(SUBSTITUTE($B50," ",""),T$5*2+1,2) -> 10 | U50: =MID(SUBSTITUTE($B50," ",""),U$5*2+1,2) -> 03 | V50: =MID(SUBSTITUTE($B50," ",""),V$5*2+1,2) -> E8 | W50: =MID(SUBSTITUTE($B50," ",""),W$5*2+1,2) -> 00 | X50: =MID(SUBSTITUTE($B50," ",""),X$5*2+1,2) -> 60 | Y50: =MID(SUBSTITUTE($B50," ",""),Y$5*2+1,2) -> 00 | Z50: =MID(SUBSTITUTE($B50," ",""),Z$5*2+1,2) -> 06 | AA50: =MID(SUBSTITUTE($B50," ",""),AA$5*2+1,2) -> 3C | AB50: =MID(SUBSTITUTE($B50," ",""),AB$5*2+1,2) -> 87 | AC50: =MID(SUBSTITUTE($B50," ",""),AC$5*2+1,2) -> 29 | AD50: =MID(SUBSTITUTE($B50," ",""),AD$5*2+1,2) -> AF | AE50: =MID(SUBSTITUTE($B50," ",""),AE$5*2+1,2) -> 8D | AF50: =MID(SUBSTITUTE($B50," ",""),AF$5*2+1,2) -> 1 | AG50: =IF(L50="01",HEX2DEC(O50&P50)/10,"-") -> - | AH50: =IF(L50="01",HEX2DEC(Q50&R50)/100,"-") -> - | AI50: =IF(L50="01",HEX2DEC(S50&T50)/10,"-") -> - | AJ50: =IF(L50="01",HEX2DEC(U50&V50&W50&X50)/1000,"-") -> - | AK50: =IF(L50="01",HEX2DEC(Y50&Z50)/1000,"-") -> - | AL50: =IF(L50="01",HEX2DEC(AA50&AB50)/10,"-") -> - | AM50: =IF(L50="82",HEX2DEC(M50&N50)/100,"-") -> 50.02 | AN50: =IF(L50="82",HEX2DEC(O50&P50)/10,"-") -> 38.4 | AO50: =IF(L50="82",HEX2DEC(S50&T50)/100,"-") -> 0.16 | AP50: =IF(L50="82",HEX2DEC(W50&X50)/10,"-") -> 9.6 | AQ50: =IF(L50="01",HEX2DEC(M50&N50),"-") -> - | AR50: =IF(L50="01",HEX2DEC(AC50&AD50),"-") -> - | AS50: =IF(L50="82",HEX2DEC(Q50&R50),"-") -> 0 | AT50: =IF(L50="82",HEX2DEC(U50&V50),"-") -> 1000 | AU50: =IF(L50="82",HEX2DEC(Y50&Z50),"-") -> 6 | AV50: =IF(L50="82",HEX2DEC(AA50&AB50),"-") -> 15495 | AW50: =IF(L50="82",HEX2DEC(AC50&AD50),"-") -> 10671
A51: 09:16:40 | B51: 95 7310xxyy 7310xxyy 010001019F0064019E0000FA7F001D093554853F 6F0 E8E2 B8B6 B388 EFFA B562 BE5C 690F 197A B388 B562 1E90 7226 B562 B8B6 BF94 B376 572F 7404 B8B6 B388 3DDD AF8D B562 BE5C 853F1 | C51: =MID(SUBSTITUTE($B51," ",""),C$5*2+1,2) -> 95 | D51: =MID(SUBSTITUTE($B51," ",""),D$5*2+1,2) -> 73 | E51: =MID(SUBSTITUTE($B51," ",""),E$5*2+1,2) -> 10 | F51: =MID(SUBSTITUTE($B51," ",""),F$5*2+1,2) -> xx | G51: =MID(SUBSTITUTE($B51," ",""),G$5*2+1,2) -> yy | H51: =MID(SUBSTITUTE($B51," ",""),H$5*2+1,2) -> 73 | I51: =MID(SUBSTITUTE($B51," ",""),I$5*2+1,2) -> 10 | J51: =MID(SUBSTITUTE($B51," ",""),J$5*2+1,2) -> xx | K51: =MID(SUBSTITUTE($B51," ",""),K$5*2+1,2) -> yy | L51: =MID(SUBSTITUTE($B51," ",""),L$5*2+1,2) -> 01 | M51: =MID(SUBSTITUTE($B51," ",""),M$5*2+1,2) -> 00 | N51: =MID(SUBSTITUTE($B51," ",""),N$5*2+1,2) -> 01 | O51: =MID(SUBSTITUTE($B51," ",""),O$5*2+1,2) -> 01 | P51: =MID(SUBSTITUTE($B51," ",""),P$5*2+1,2) -> 9F | Q51: =MID(SUBSTITUTE($B51," ",""),Q$5*2+1,2) -> 00 | R51: =MID(SUBSTITUTE($B51," ",""),R$5*2+1,2) -> 64 | S51: =MID(SUBSTITUTE($B51," ",""),S$5*2+1,2) -> 01 | T51: =MID(SUBSTITUTE($B51," ",""),T$5*2+1,2) -> 9E | U51: =MID(SUBSTITUTE($B51," ",""),U$5*2+1,2) -> 00 | V51: =MID(SUBSTITUTE($B51," ",""),V$5*2+1,2) -> 00 | W51: =MID(SUBSTITUTE($B51," ",""),W$5*2+1,2) -> FA | X51: =MID(SUBSTITUTE($B51," ",""),X$5*2+1,2) -> 7F | Y51: =MID(SUBSTITUTE($B51," ",""),Y$5*2+1,2) -> 00 | Z51: =MID(SUBSTITUTE($B51," ",""),Z$5*2+1,2) -> 1D | AA51: =MID(SUBSTITUTE($B51," ",""),AA$5*2+1,2) -> 09 | AB51: =MID(SUBSTITUTE($B51," ",""),AB$5*2+1,2) -> 35 | AC51: =MID(SUBSTITUTE($B51," ",""),AC$5*2+1,2) -> 54 | AD51: =MID(SUBSTITUTE($B51," ",""),AD$5*2+1,2) -> 85 | AE51: =MID(SUBSTITUTE($B51," ",""),AE$5*2+1,2) -> 3F | AF51: =MID(SUBSTITUTE($B51," ",""),AF$5*2+1,2) -> 6F | AG51: =IF(L51="01",HEX2DEC(O51&P51)/10,"-") -> 41.5 | AH51: =IF(L51="01",HEX2DEC(Q51&R51)/100,"-") -> 1 | AI51: =IF(L51="01",HEX2DEC(S51&T51)/10,"-") -> 41.4 | AJ51: =IF(L51="01",HEX2DEC(U51&V51&W51&X51)/1000,"-") -> 64.127 | AK51: =IF(L51="01",HEX2DEC(Y51&Z51)/1000,"-") -> 0.029 | AL51: =IF(L51="01",HEX2DEC(AA51&AB51)/10,"-") -> 235.7 | AM51: =IF(L51="82",HEX2DEC(M51&N51)/100,"-") -> - | AN51: =IF(L51="82",HEX2DEC(O51&P51)/10,"-") -> - | AO51: =IF(L51="82",HEX2DEC(S51&T51)/100,"-") -> - | AP51: =IF(L51="82",HEX2DEC(W51&X51)/10,"-") -> - | AQ51: =IF(L51="01",HEX2DEC(M51&N51),"-") -> 1 | AR51: =IF(L51="01",HEX2DEC(AC51&AD51),"-") -> 21637 | AS51: =IF(L51="82",HEX2DEC(Q51&R51),"-") -> - | AT51: =IF(L51="82",HEX2DEC(U51&V51),"-") -> - | AU51: =IF(L51="82",HEX2DEC(Y51&Z51),"-") -> - | AV51: =IF(L51="82",HEX2DEC(AA51&AB51),"-") -> - | AW51: =IF(L51="82",HEX2DEC(AC51&AD51),"-") -> -
A52: 09:16:40 | B52: 95 7310xxyy 7310xxyy 82138A018A0000001103E800610006F3F8931EA1 1 | C52: =MID(SUBSTITUTE($B52," ",""),C$5*2+1,2) -> 95 | D52: =MID(SUBSTITUTE($B52," ",""),D$5*2+1,2) -> 73 | E52: =MID(SUBSTITUTE($B52," ",""),E$5*2+1,2) -> 10 | F52: =MID(SUBSTITUTE($B52," ",""),F$5*2+1,2) -> xx | G52: =MID(SUBSTITUTE($B52," ",""),G$5*2+1,2) -> yy | H52: =MID(SUBSTITUTE($B52," ",""),H$5*2+1,2) -> 73 | I52: =MID(SUBSTITUTE($B52," ",""),I$5*2+1,2) -> 10 | J52: =MID(SUBSTITUTE($B52," ",""),J$5*2+1,2) -> xx | K52: =MID(SUBSTITUTE($B52," ",""),K$5*2+1,2) -> yy | L52: =MID(SUBSTITUTE($B52," ",""),L$5*2+1,2) -> 82 | M52: =MID(SUBSTITUTE($B52," ",""),M$5*2+1,2) -> 13 | N52: =MID(SUBSTITUTE($B52," ",""),N$5*2+1,2) -> 8A | O52: =MID(SUBSTITUTE($B52," ",""),O$5*2+1,2) -> 01 | P52: =MID(SUBSTITUTE($B52," ",""),P$5*2+1,2) -> 8A | Q52: =MID(SUBSTITUTE($B52," ",""),Q$5*2+1,2) -> 00 | R52: =MID(SUBSTITUTE($B52," ",""),R$5*2+1,2) -> 00 | S52: =MID(SUBSTITUTE($B52," ",""),S$5*2+1,2) -> 00 | T52: =MID(SUBSTITUTE($B52," ",""),T$5*2+1,2) -> 11 | U52: =MID(SUBSTITUTE($B52," ",""),U$5*2+1,2) -> 03 | V52: =MID(SUBSTITUTE($B52," ",""),V$5*2+1,2) -> E8 | W52: =MID(SUBSTITUTE($B52," ",""),W$5*2+1,2) -> 00 | X52: =MID(SUBSTITUTE($B52," ",""),X$5*2+1,2) -> 61 | Y52: =MID(SUBSTITUTE($B52," ",""),Y$5*2+1,2) -> 00 | Z52: =MID(SUBSTITUTE($B52," ",""),Z$5*2+1,2) -> 06 | AA52: =MID(SUBSTITUTE($B52," ",""),AA$5*2+1,2) -> F3 | AB52: =MID(SUBSTITUTE($B52," ",""),AB$5*2+1,2) -> F8 | AC52: =MID(SUBSTITUTE($B52," ",""),AC$5*2+1,2) -> 93 | AD52: =MID(SUBSTITUTE($B52," ",""),AD$5*2+1,2) -> 1E | AE52: =MID(SUBSTITUTE($B52," ",""),AE$5*2+1,2) -> A1 | AF52: =MID(SUBSTITUTE($B52," ",""),AF$5*2+1,2) -> 1 | AG52: =IF(L52="01",HEX2DEC(O52&P52)/10,"-") -> - | AH52: =IF(L52="01",HEX2DEC(Q52&R52)/100,"-") -> - | AI52: =IF(L52="01",HEX2DEC(S52&T52)/10,"-") -> - | AJ52: =IF(L52="01",HEX2DEC(U52&V52&W52&X52)/1000,"-") -> - | AK52: =IF(L52="01",HEX2DEC(Y52&Z52)/1000,"-") -> - | AL52: =IF(L52="01",HEX2DEC(AA52&AB52)/10,"-") -> - | AM52: =IF(L52="82",HEX2DEC(M52&N52)/100,"-") -> 50.02 | AN52: =IF(L52="82",HEX2DEC(O52&P52)/10,"-") -> 39.4 | AO52: =IF(L52="82",HEX2DEC(S52&T52)/100,"-") -> 0.17 | AP52: =IF(L52="82",HEX2DEC(W52&X52)/10,"-") -> 9.7 | AQ52: =IF(L52="01",HEX2DEC(M52&N52),"-") -> - | AR52: =IF(L52="01",HEX2DEC(AC52&AD52),"-") -> - | AS52: =IF(L52="82",HEX2DEC(Q52&R52),"-") -> 0 | AT52: =IF(L52="82",HEX2DEC(U52&V52),"-") -> 1000 | AU52: =IF(L52="82",HEX2DEC(Y52&Z52),"-") -> 6 | AV52: =IF(L52="82",HEX2DEC(AA52&AB52),"-") -> 62456 | AW52: =IF(L52="82",HEX2DEC(AC52&AD52),"-") -> 37662
A53: 09:16:44 | B53: 95 7310xxyy 7310xxyy 82138A018A0000001103E800610006F3F8935789 1 | C53: =MID(SUBSTITUTE($B53," ",""),C$5*2+1,2) -> 95 | D53: =MID(SUBSTITUTE($B53," ",""),D$5*2+1,2) -> 73 | E53: =MID(SUBSTITUTE($B53," ",""),E$5*2+1,2) -> 10 | F53: =MID(SUBSTITUTE($B53," ",""),F$5*2+1,2) -> xx | G53: =MID(SUBSTITUTE($B53," ",""),G$5*2+1,2) -> yy | H53: =MID(SUBSTITUTE($B53," ",""),H$5*2+1,2) -> 73 | I53: =MID(SUBSTITUTE($B53," ",""),I$5*2+1,2) -> 10 | J53: =MID(SUBSTITUTE($B53," ",""),J$5*2+1,2) -> xx | K53: =MID(SUBSTITUTE($B53," ",""),K$5*2+1,2) -> yy | L53: =MID(SUBSTITUTE($B53," ",""),L$5*2+1,2) -> 82 | M53: =MID(SUBSTITUTE($B53," ",""),M$5*2+1,2) -> 13 | N53: =MID(SUBSTITUTE($B53," ",""),N$5*2+1,2) -> 8A | O53: =MID(SUBSTITUTE($B53," ",""),O$5*2+1,2) -> 01 | P53: =MID(SUBSTITUTE($B53," ",""),P$5*2+1,2) -> 8A | Q53: =MID(SUBSTITUTE($B53," ",""),Q$5*2+1,2) -> 00 | R53: =MID(SUBSTITUTE($B53," ",""),R$5*2+1,2) -> 00 | S53: =MID(SUBSTITUTE($B53," ",""),S$5*2+1,2) -> 00 | T53: =MID(SUBSTITUTE($B53," ",""),T$5*2+1,2) -> 11 | U53: =MID(SUBSTITUTE($B53," ",""),U$5*2+1,2) -> 03 | V53: =MID(SUBSTITUTE($B53," ",""),V$5*2+1,2) -> E8 | W53: =MID(SUBSTITUTE($B53," ",""),W$5*2+1,2) -> 00 | X53: =MID(SUBSTITUTE($B53," ",""),X$5*2+1,2) -> 61 | Y53: =MID(SUBSTITUTE($B53," ",""),Y$5*2+1,2) -> 00 | Z53: =MID(SUBSTITUTE($B53," ",""),Z$5*2+1,2) -> 06 | AA53: =MID(SUBSTITUTE($B53," ",""),AA$5*2+1,2) -> F3 | AB53: =MID(SUBSTITUTE($B53," ",""),AB$5*2+1,2) -> F8 | AC53: =MID(SUBSTITUTE($B53," ",""),AC$5*2+1,2) -> 93 | AD53: =MID(SUBSTITUTE($B53," ",""),AD$5*2+1,2) -> 57 | AE53: =MID(SUBSTITUTE($B53," ",""),AE$5*2+1,2) -> 89 | AF53: =MID(SUBSTITUTE($B53," ",""),AF$5*2+1,2) -> 1 | AG53: =IF(L53="01",HEX2DEC(O53&P53)/10,"-") -> - | AH53: =IF(L53="01",HEX2DEC(Q53&R53)/100,"-") -> - | AI53: =IF(L53="01",HEX2DEC(S53&T53)/10,"-") -> - | AJ53: =IF(L53="01",HEX2DEC(U53&V53&W53&X53)/1000,"-") -> - | AK53: =IF(L53="01",HEX2DEC(Y53&Z53)/1000,"-") -> - | AL53: =IF(L53="01",HEX2DEC(AA53&AB53)/10,"-") -> - | AM53: =IF(L53="82",HEX2DEC(M53&N53)/100,"-") -> 50.02 | AN53: =IF(L53="82",HEX2DEC(O53&P53)/10,"-") -> 39.4 | AO53: =IF(L53="82",HEX2DEC(S53&T53)/100,"-") -> 0.17 | AP53: =IF(L53="82",HEX2DEC(W53&X53)/10,"-") -> 9.7 | AQ53: =IF(L53="01",HEX2DEC(M53&N53),"-") -> - | AR53: =IF(L53="01",HEX2DEC(AC53&AD53),"-") -> - | AS53: =IF(L53="82",HEX2DEC(Q53&R53),"-") -> 0 | AT53: =IF(L53="82",HEX2DEC(U53&V53),"-") -> 1000 | AU53: =IF(L53="82",HEX2DEC(Y53&Z53),"-") -> 6 | AV53: =IF(L53="82",HEX2DEC(AA53&AB53),"-") -> 62456 | AW53: =IF(L53="82",HEX2DEC(AC53&AD53),"-") -> 37719
A54: 09:16:56 | B54: 95 7310xxyy 7310xxyy 82138901930000001103E8006000062A41E8AEA5 1 | C54: =MID(SUBSTITUTE($B54," ",""),C$5*2+1,2) -> 95 | D54: =MID(SUBSTITUTE($B54," ",""),D$5*2+1,2) -> 73 | E54: =MID(SUBSTITUTE($B54," ",""),E$5*2+1,2) -> 10 | F54: =MID(SUBSTITUTE($B54," ",""),F$5*2+1,2) -> xx | G54: =MID(SUBSTITUTE($B54," ",""),G$5*2+1,2) -> yy | H54: =MID(SUBSTITUTE($B54," ",""),H$5*2+1,2) -> 73 | I54: =MID(SUBSTITUTE($B54," ",""),I$5*2+1,2) -> 10 | J54: =MID(SUBSTITUTE($B54," ",""),J$5*2+1,2) -> xx | K54: =MID(SUBSTITUTE($B54," ",""),K$5*2+1,2) -> yy | L54: =MID(SUBSTITUTE($B54," ",""),L$5*2+1,2) -> 82 | M54: =MID(SUBSTITUTE($B54," ",""),M$5*2+1,2) -> 13 | N54: =MID(SUBSTITUTE($B54," ",""),N$5*2+1,2) -> 89 | O54: =MID(SUBSTITUTE($B54," ",""),O$5*2+1,2) -> 01 | P54: =MID(SUBSTITUTE($B54," ",""),P$5*2+1,2) -> 93 | Q54: =MID(SUBSTITUTE($B54," ",""),Q$5*2+1,2) -> 00 | R54: =MID(SUBSTITUTE($B54," ",""),R$5*2+1,2) -> 00 | S54: =MID(SUBSTITUTE($B54," ",""),S$5*2+1,2) -> 00 | T54: =MID(SUBSTITUTE($B54," ",""),T$5*2+1,2) -> 11 | U54: =MID(SUBSTITUTE($B54," ",""),U$5*2+1,2) -> 03 | V54: =MID(SUBSTITUTE($B54," ",""),V$5*2+1,2) -> E8 | W54: =MID(SUBSTITUTE($B54," ",""),W$5*2+1,2) -> 00 | X54: =MID(SUBSTITUTE($B54," ",""),X$5*2+1,2) -> 60 | Y54: =MID(SUBSTITUTE($B54," ",""),Y$5*2+1,2) -> 00 | Z54: =MID(SUBSTITUTE($B54," ",""),Z$5*2+1,2) -> 06 | AA54: =MID(SUBSTITUTE($B54," ",""),AA$5*2+1,2) -> 2A | AB54: =MID(SUBSTITUTE($B54," ",""),AB$5*2+1,2) -> 41 | AC54: =MID(SUBSTITUTE($B54," ",""),AC$5*2+1,2) -> E8 | AD54: =MID(SUBSTITUTE($B54," ",""),AD$5*2+1,2) -> AE | AE54: =MID(SUBSTITUTE($B54," ",""),AE$5*2+1,2) -> A5 | AF54: =MID(SUBSTITUTE($B54," ",""),AF$5*2+1,2) -> 1 | AG54: =IF(L54="01",HEX2DEC(O54&P54)/10,"-") -> - | AH54: =IF(L54="01",HEX2DEC(Q54&R54)/100,"-") -> - | AI54: =IF(L54="01",HEX2DEC(S54&T54)/10,"-") -> - | AJ54: =IF(L54="01",HEX2DEC(U54&V54&W54&X54)/1000,"-") -> - | AK54: =IF(L54="01",HEX2DEC(Y54&Z54)/1000,"-") -> - | AL54: =IF(L54="01",HEX2DEC(AA54&AB54)/10,"-") -> - | AM54: =IF(L54="82",HEX2DEC(M54&N54)/100,"-") -> 50.01 | AN54: =IF(L54="82",HEX2DEC(O54&P54)/10,"-") -> 40.3 | AO54: =IF(L54="82",HEX2DEC(S54&T54)/100,"-") -> 0.17 | AP54: =IF(L54="82",HEX2DEC(W54&X54)/10,"-") -> 9.6 | AQ54: =IF(L54="01",HEX2DEC(M54&N54),"-") -> - | AR54: =IF(L54="01",HEX2DEC(AC54&AD54),"-") -> - | AS54: =IF(L54="82",HEX2DEC(Q54&R54),"-") -> 0 | AT54: =IF(L54="82",HEX2DEC(U54&V54),"-") -> 1000 | AU54: =IF(L54="82",HEX2DEC(Y54&Z54),"-") -> 6 | AV54: =IF(L54="82",HEX2DEC(AA54&AB54),"-") -> 10817 | AW54: =IF(L54="82",HEX2DEC(AC54&AD54),"-") -> 59566
A55: 09:16:59 | B55: 95 7310xxyy 7310xxyy 01000101A0006601A80000FA7F001D09345E9D8F 1 | C55: =MID(SUBSTITUTE($B55," ",""),C$5*2+1,2) -> 95 | D55: =MID(SUBSTITUTE($B55," ",""),D$5*2+1,2) -> 73 | E55: =MID(SUBSTITUTE($B55," ",""),E$5*2+1,2) -> 10 | F55: =MID(SUBSTITUTE($B55," ",""),F$5*2+1,2) -> xx | G55: =MID(SUBSTITUTE($B55," ",""),G$5*2+1,2) -> yy | H55: =MID(SUBSTITUTE($B55," ",""),H$5*2+1,2) -> 73 | I55: =MID(SUBSTITUTE($B55," ",""),I$5*2+1,2) -> 10 | J55: =MID(SUBSTITUTE($B55," ",""),J$5*2+1,2) -> xx | K55: =MID(SUBSTITUTE($B55," ",""),K$5*2+1,2) -> yy | L55: =MID(SUBSTITUTE($B55," ",""),L$5*2+1,2) -> 01 | M55: =MID(SUBSTITUTE($B55," ",""),M$5*2+1,2) -> 00 | N55: =MID(SUBSTITUTE($B55," ",""),N$5*2+1,2) -> 01 | O55: =MID(SUBSTITUTE($B55," ",""),O$5*2+1,2) -> 01 | P55: =MID(SUBSTITUTE($B55," ",""),P$5*2+1,2) -> A0 | Q55: =MID(SUBSTITUTE($B55," ",""),Q$5*2+1,2) -> 00 | R55: =MID(SUBSTITUTE($B55," ",""),R$5*2+1,2) -> 66 | S55: =MID(SUBSTITUTE($B55," ",""),S$5*2+1,2) -> 01 | T55: =MID(SUBSTITUTE($B55," ",""),T$5*2+1,2) -> A8 | U55: =MID(SUBSTITUTE($B55," ",""),U$5*2+1,2) -> 00 | V55: =MID(SUBSTITUTE($B55," ",""),V$5*2+1,2) -> 00 | W55: =MID(SUBSTITUTE($B55," ",""),W$5*2+1,2) -> FA | X55: =MID(SUBSTITUTE($B55," ",""),X$5*2+1,2) -> 7F | Y55: =MID(SUBSTITUTE($B55," ",""),Y$5*2+1,2) -> 00 | Z55: =MID(SUBSTITUTE($B55," ",""),Z$5*2+1,2) -> 1D | AA55: =MID(SUBSTITUTE($B55," ",""),AA$5*2+1,2) -> 09 | AB55: =MID(SUBSTITUTE($B55," ",""),AB$5*2+1,2) -> 34 | AC55: =MID(SUBSTITUTE($B55," ",""),AC$5*2+1,2) -> 5E | AD55: =MID(SUBSTITUTE($B55," ",""),AD$5*2+1,2) -> 9D | AE55: =MID(SUBSTITUTE($B55," ",""),AE$5*2+1,2) -> 8F | AF55: =MID(SUBSTITUTE($B55," ",""),AF$5*2+1,2) -> 1 | AG55: =IF(L55="01",HEX2DEC(O55&P55)/10,"-") -> 41.6 | AH55: =IF(L55="01",HEX2DEC(Q55&R55)/100,"-") -> 1.02 | AI55: =IF(L55="01",HEX2DEC(S55&T55)/10,"-") -> 42.4 | AJ55: =IF(L55="01",HEX2DEC(U55&V55&W55&X55)/1000,"-") -> 64.127 | AK55: =IF(L55="01",HEX2DEC(Y55&Z55)/1000,"-") -> 0.029 | AL55: =IF(L55="01",HEX2DEC(AA55&AB55)/10,"-") -> 235.6 | AM55: =IF(L55="82",HEX2DEC(M55&N55)/100,"-") -> - | AN55: =IF(L55="82",HEX2DEC(O55&P55)/10,"-") -> - | AO55: =IF(L55="82",HEX2DEC(S55&T55)/100,"-") -> - | AP55: =IF(L55="82",HEX2DEC(W55&X55)/10,"-") -> - | AQ55: =IF(L55="01",HEX2DEC(M55&N55),"-") -> 1 | AR55: =IF(L55="01",HEX2DEC(AC55&AD55),"-") -> 24221 | AS55: =IF(L55="82",HEX2DEC(Q55&R55),"-") -> - | AT55: =IF(L55="82",HEX2DEC(U55&V55),"-") -> - | AU55: =IF(L55="82",HEX2DEC(Y55&Z55),"-") -> - | AV55: =IF(L55="82",HEX2DEC(AA55&AB55),"-") -> - | AW55: =IF(L55="82",HEX2DEC(AC55&AD55),"-") -> -
A56: 09:17:04 | B56: 95 7310xxyy 7310xxyy 01000101A0006701AC0000FA7F001D09325D3B5A 1 | C56: =MID(SUBSTITUTE($B56," ",""),C$5*2+1,2) -> 95 | D56: =MID(SUBSTITUTE($B56," ",""),D$5*2+1,2) -> 73 | E56: =MID(SUBSTITUTE($B56," ",""),E$5*2+1,2) -> 10 | F56: =MID(SUBSTITUTE($B56," ",""),F$5*2+1,2) -> xx | G56: =MID(SUBSTITUTE($B56," ",""),G$5*2+1,2) -> yy | H56: =MID(SUBSTITUTE($B56," ",""),H$5*2+1,2) -> 73 | I56: =MID(SUBSTITUTE($B56," ",""),I$5*2+1,2) -> 10 | J56: =MID(SUBSTITUTE($B56," ",""),J$5*2+1,2) -> xx | K56: =MID(SUBSTITUTE($B56," ",""),K$5*2+1,2) -> yy | L56: =MID(SUBSTITUTE($B56," ",""),L$5*2+1,2) -> 01 | M56: =MID(SUBSTITUTE($B56," ",""),M$5*2+1,2) -> 00 | N56: =MID(SUBSTITUTE($B56," ",""),N$5*2+1,2) -> 01 | O56: =MID(SUBSTITUTE($B56," ",""),O$5*2+1,2) -> 01 | P56: =MID(SUBSTITUTE($B56," ",""),P$5*2+1,2) -> A0 | Q56: =MID(SUBSTITUTE($B56," ",""),Q$5*2+1,2) -> 00 | R56: =MID(SUBSTITUTE($B56," ",""),R$5*2+1,2) -> 67 | S56: =MID(SUBSTITUTE($B56," ",""),S$5*2+1,2) -> 01 | T56: =MID(SUBSTITUTE($B56," ",""),T$5*2+1,2) -> AC | U56: =MID(SUBSTITUTE($B56," ",""),U$5*2+1,2) -> 00 | V56: =MID(SUBSTITUTE($B56," ",""),V$5*2+1,2) -> 00 | W56: =MID(SUBSTITUTE($B56," ",""),W$5*2+1,2) -> FA | X56: =MID(SUBSTITUTE($B56," ",""),X$5*2+1,2) -> 7F | Y56: =MID(SUBSTITUTE($B56," ",""),Y$5*2+1,2) -> 00 | Z56: =MID(SUBSTITUTE($B56," ",""),Z$5*2+1,2) -> 1D | AA56: =MID(SUBSTITUTE($B56," ",""),AA$5*2+1,2) -> 09 | AB56: =MID(SUBSTITUTE($B56," ",""),AB$5*2+1,2) -> 32 | AC56: =MID(SUBSTITUTE($B56," ",""),AC$5*2+1,2) -> 5D | AD56: =MID(SUBSTITUTE($B56," ",""),AD$5*2+1,2) -> 3B | AE56: =MID(SUBSTITUTE($B56," ",""),AE$5*2+1,2) -> 5A | AF56: =MID(SUBSTITUTE($B56," ",""),AF$5*2+1,2) -> 1 | AG56: =IF(L56="01",HEX2DEC(O56&P56)/10,"-") -> 41.6 | AH56: =IF(L56="01",HEX2DEC(Q56&R56)/100,"-") -> 1.03 | AI56: =IF(L56="01",HEX2DEC(S56&T56)/10,"-") -> 42.8 | AJ56: =IF(L56="01",HEX2DEC(U56&V56&W56&X56)/1000,"-") -> 64.127 | AK56: =IF(L56="01",HEX2DEC(Y56&Z56)/1000,"-") -> 0.029 | AL56: =IF(L56="01",HEX2DEC(AA56&AB56)/10,"-") -> 235.4 | AM56: =IF(L56="82",HEX2DEC(M56&N56)/100,"-") -> - | AN56: =IF(L56="82",HEX2DEC(O56&P56)/10,"-") -> - | AO56: =IF(L56="82",HEX2DEC(S56&T56)/100,"-") -> - | AP56: =IF(L56="82",HEX2DEC(W56&X56)/10,"-") -> - | AQ56: =IF(L56="01",HEX2DEC(M56&N56),"-") -> 1 | AR56: =IF(L56="01",HEX2DEC(AC56&AD56),"-") -> 23867 | AS56: =IF(L56="82",HEX2DEC(Q56&R56),"-") -> - | AT56: =IF(L56="82",HEX2DEC(U56&V56),"-") -> - | AU56: =IF(L56="82",HEX2DEC(Y56&Z56),"-") -> - | AV56: =IF(L56="82",HEX2DEC(AA56&AB56),"-") -> - | AW56: =IF(L56="82",HEX2DEC(AC56&AD56),"-") -> -
A57: 09:17:04 | B57: 95 7310xxyy 7310xxyy 82138901970000001103E80060000612B421402D 1 | C57: =MID(SUBSTITUTE($B57," ",""),C$5*2+1,2) -> 95 | D57: =MID(SUBSTITUTE($B57," ",""),D$5*2+1,2) -> 73 | E57: =MID(SUBSTITUTE($B57," ",""),E$5*2+1,2) -> 10 | F57: =MID(SUBSTITUTE($B57," ",""),F$5*2+1,2) -> xx | G57: =MID(SUBSTITUTE($B57," ",""),G$5*2+1,2) -> yy | H57: =MID(SUBSTITUTE($B57," ",""),H$5*2+1,2) -> 73 | I57: =MID(SUBSTITUTE($B57," ",""),I$5*2+1,2) -> 10 | J57: =MID(SUBSTITUTE($B57," ",""),J$5*2+1,2) -> xx | K57: =MID(SUBSTITUTE($B57," ",""),K$5*2+1,2) -> yy | L57: =MID(SUBSTITUTE($B57," ",""),L$5*2+1,2) -> 82 | M57: =MID(SUBSTITUTE($B57," ",""),M$5*2+1,2) -> 13 | N57: =MID(SUBSTITUTE($B57," ",""),N$5*2+1,2) -> 89 | O57: =MID(SUBSTITUTE($B57," ",""),O$5*2+1,2) -> 01 | P57: =MID(SUBSTITUTE($B57," ",""),P$5*2+1,2) -> 97 | Q57: =MID(SUBSTITUTE($B57," ",""),Q$5*2+1,2) -> 00 | R57: =MID(SUBSTITUTE($B57," ",""),R$5*2+1,2) -> 00 | S57: =MID(SUBSTITUTE($B57," ",""),S$5*2+1,2) -> 00 | T57: =MID(SUBSTITUTE($B57," ",""),T$5*2+1,2) -> 11 | U57: =MID(SUBSTITUTE($B57," ",""),U$5*2+1,2) -> 03 | V57: =MID(SUBSTITUTE($B57," ",""),V$5*2+1,2) -> E8 | W57: =MID(SUBSTITUTE($B57," ",""),W$5*2+1,2) -> 00 | X57: =MID(SUBSTITUTE($B57," ",""),X$5*2+1,2) -> 60 | Y57: =MID(SUBSTITUTE($B57," ",""),Y$5*2+1,2) -> 00 | Z57: =MID(SUBSTITUTE($B57," ",""),Z$5*2+1,2) -> 06 | AA57: =MID(SUBSTITUTE($B57," ",""),AA$5*2+1,2) -> 12 | AB57: =MID(SUBSTITUTE($B57," ",""),AB$5*2+1,2) -> B4 | AC57: =MID(SUBSTITUTE($B57," ",""),AC$5*2+1,2) -> 21 | AD57: =MID(SUBSTITUTE($B57," ",""),AD$5*2+1,2) -> 40 | AE57: =MID(SUBSTITUTE($B57," ",""),AE$5*2+1,2) -> 2D | AF57: =MID(SUBSTITUTE($B57," ",""),AF$5*2+1,2) -> 1 | AG57: =IF(L57="01",HEX2DEC(O57&P57)/10,"-") -> - | AH57: =IF(L57="01",HEX2DEC(Q57&R57)/100,"-") -> - | AI57: =IF(L57="01",HEX2DEC(S57&T57)/10,"-") -> - | AJ57: =IF(L57="01",HEX2DEC(U57&V57&W57&X57)/1000,"-") -> - | AK57: =IF(L57="01",HEX2DEC(Y57&Z57)/1000,"-") -> - | AL57: =IF(L57="01",HEX2DEC(AA57&AB57)/10,"-") -> - | AM57: =IF(L57="82",HEX2DEC(M57&N57)/100,"-") -> 50.01 | AN57: =IF(L57="82",HEX2DEC(O57&P57)/10,"-") -> 40.7 | AO57: =IF(L57="82",HEX2DEC(S57&T57)/100,"-") -> 0.17 | AP57: =IF(L57="82",HEX2DEC(W57&X57)/10,"-") -> 9.6 | AQ57: =IF(L57="01",HEX2DEC(M57&N57),"-") -> - | AR57: =IF(L57="01",HEX2DEC(AC57&AD57),"-") -> - | AS57: =IF(L57="82",HEX2DEC(Q57&R57),"-") -> 0 | AT57: =IF(L57="82",HEX2DEC(U57&V57),"-") -> 1000 | AU57: =IF(L57="82",HEX2DEC(Y57&Z57),"-") -> 6 | AV57: =IF(L57="82",HEX2DEC(AA57&AB57),"-") -> 4788 | AW57: =IF(L57="82",HEX2DEC(AC57&AD57),"-") -> 8512
A58: 09:17:08 | B58: 95 7310xxyy 7310xxyy 82138901970000001103E80060000612B4210905 1 | C58: =MID(SUBSTITUTE($B58," ",""),C$5*2+1,2) -> 95 | D58: =MID(SUBSTITUTE($B58," ",""),D$5*2+1,2) -> 73 | E58: =MID(SUBSTITUTE($B58," ",""),E$5*2+1,2) -> 10 | F58: =MID(SUBSTITUTE($B58," ",""),F$5*2+1,2) -> xx | G58: =MID(SUBSTITUTE($B58," ",""),G$5*2+1,2) -> yy | H58: =MID(SUBSTITUTE($B58," ",""),H$5*2+1,2) -> 73 | I58: =MID(SUBSTITUTE($B58," ",""),I$5*2+1,2) -> 10 | J58: =MID(SUBSTITUTE($B58," ",""),J$5*2+1,2) -> xx | K58: =MID(SUBSTITUTE($B58," ",""),K$5*2+1,2) -> yy | L58: =MID(SUBSTITUTE($B58," ",""),L$5*2+1,2) -> 82 | M58: =MID(SUBSTITUTE($B58," ",""),M$5*2+1,2) -> 13 | N58: =MID(SUBSTITUTE($B58," ",""),N$5*2+1,2) -> 89 | O58: =MID(SUBSTITUTE($B58," ",""),O$5*2+1,2) -> 01 | P58: =MID(SUBSTITUTE($B58," ",""),P$5*2+1,2) -> 97 | Q58: =MID(SUBSTITUTE($B58," ",""),Q$5*2+1,2) -> 00 | R58: =MID(SUBSTITUTE($B58," ",""),R$5*2+1,2) -> 00 | S58: =MID(SUBSTITUTE($B58," ",""),S$5*2+1,2) -> 00 | T58: =MID(SUBSTITUTE($B58," ",""),T$5*2+1,2) -> 11 | U58: =MID(SUBSTITUTE($B58," ",""),U$5*2+1,2) -> 03 | V58: =MID(SUBSTITUTE($B58," ",""),V$5*2+1,2) -> E8 | W58: =MID(SUBSTITUTE($B58," ",""),W$5*2+1,2) -> 00 | X58: =MID(SUBSTITUTE($B58," ",""),X$5*2+1,2) -> 60 | Y58: =MID(SUBSTITUTE($B58," ",""),Y$5*2+1,2) -> 00 | Z58: =MID(SUBSTITUTE($B58," ",""),Z$5*2+1,2) -> 06 | AA58: =MID(SUBSTITUTE($B58," ",""),AA$5*2+1,2) -> 12 | AB58: =MID(SUBSTITUTE($B58," ",""),AB$5*2+1,2) -> B4 | AC58: =MID(SUBSTITUTE($B58," ",""),AC$5*2+1,2) -> 21 | AD58: =MID(SUBSTITUTE($B58," ",""),AD$5*2+1,2) -> 09 | AE58: =MID(SUBSTITUTE($B58," ",""),AE$5*2+1,2) -> 05 | AF58: =MID(SUBSTITUTE($B58," ",""),AF$5*2+1,2) -> 1 | AG58: =IF(L58="01",HEX2DEC(O58&P58)/10,"-") -> - | AH58: =IF(L58="01",HEX2DEC(Q58&R58)/100,"-") -> - | AI58: =IF(L58="01",HEX2DEC(S58&T58)/10,"-") -> - | AJ58: =IF(L58="01",HEX2DEC(U58&V58&W58&X58)/1000,"-") -> - | AK58: =IF(L58="01",HEX2DEC(Y58&Z58)/1000,"-") -> - | AL58: =IF(L58="01",HEX2DEC(AA58&AB58)/10,"-") -> - | AM58: =IF(L58="82",HEX2DEC(M58&N58)/100,"-") -> 50.01 | AN58: =IF(L58="82",HEX2DEC(O58&P58)/10,"-") -> 40.7 | AO58: =IF(L58="82",HEX2DEC(S58&T58)/100,"-") -> 0.17 | AP58: =IF(L58="82",HEX2DEC(W58&X58)/10,"-") -> 9.6 | AQ58: =IF(L58="01",HEX2DEC(M58&N58),"-") -> - | AR58: =IF(L58="01",HEX2DEC(AC58&AD58),"-") -> - | AS58: =IF(L58="82",HEX2DEC(Q58&R58),"-") -> 0 | AT58: =IF(L58="82",HEX2DEC(U58&V58),"-") -> 1000 | AU58: =IF(L58="82",HEX2DEC(Y58&Z58),"-") -> 6 | AV58: =IF(L58="82",HEX2DEC(AA58&AB58),"-") -> 4788 | AW58: =IF(L58="82",HEX2DEC(AC58&AD58),"-") -> 8457
A59: 09:17:16 | B59: 95 7310xxyy 7310xxyy 01000101A0006701AE0000FA7F001D092F427321 1 | C59: =MID(SUBSTITUTE($B59," ",""),C$5*2+1,2) -> 95 | D59: =MID(SUBSTITUTE($B59," ",""),D$5*2+1,2) -> 73 | E59: =MID(SUBSTITUTE($B59," ",""),E$5*2+1,2) -> 10 | F59: =MID(SUBSTITUTE($B59," ",""),F$5*2+1,2) -> xx | G59: =MID(SUBSTITUTE($B59," ",""),G$5*2+1,2) -> yy | H59: =MID(SUBSTITUTE($B59," ",""),H$5*2+1,2) -> 73 | I59: =MID(SUBSTITUTE($B59," ",""),I$5*2+1,2) -> 10 | J59: =MID(SUBSTITUTE($B59," ",""),J$5*2+1,2) -> xx | K59: =MID(SUBSTITUTE($B59," ",""),K$5*2+1,2) -> yy | L59: =MID(SUBSTITUTE($B59," ",""),L$5*2+1,2) -> 01 | M59: =MID(SUBSTITUTE($B59," ",""),M$5*2+1,2) -> 00 | N59: =MID(SUBSTITUTE($B59," ",""),N$5*2+1,2) -> 01 | O59: =MID(SUBSTITUTE($B59," ",""),O$5*2+1,2) -> 01 | P59: =MID(SUBSTITUTE($B59," ",""),P$5*2+1,2) -> A0 | Q59: =MID(SUBSTITUTE($B59," ",""),Q$5*2+1,2) -> 00 | R59: =MID(SUBSTITUTE($B59," ",""),R$5*2+1,2) -> 67 | S59: =MID(SUBSTITUTE($B59," ",""),S$5*2+1,2) -> 01 | T59: =MID(SUBSTITUTE($B59," ",""),T$5*2+1,2) -> AE | U59: =MID(SUBSTITUTE($B59," ",""),U$5*2+1,2) -> 00 | V59: =MID(SUBSTITUTE($B59," ",""),V$5*2+1,2) -> 00 | W59: =MID(SUBSTITUTE($B59," ",""),W$5*2+1,2) -> FA | X59: =MID(SUBSTITUTE($B59," ",""),X$5*2+1,2) -> 7F | Y59: =MID(SUBSTITUTE($B59," ",""),Y$5*2+1,2) -> 00 | Z59: =MID(SUBSTITUTE($B59," ",""),Z$5*2+1,2) -> 1D | AA59: =MID(SUBSTITUTE($B59," ",""),AA$5*2+1,2) -> 09 | AB59: =MID(SUBSTITUTE($B59," ",""),AB$5*2+1,2) -> 2F | AC59: =MID(SUBSTITUTE($B59," ",""),AC$5*2+1,2) -> 42 | AD59: =MID(SUBSTITUTE($B59," ",""),AD$5*2+1,2) -> 73 | AE59: =MID(SUBSTITUTE($B59," ",""),AE$5*2+1,2) -> 21 | AF59: =MID(SUBSTITUTE($B59," ",""),AF$5*2+1,2) -> 1 | AG59: =IF(L59="01",HEX2DEC(O59&P59)/10,"-") -> 41.6 | AH59: =IF(L59="01",HEX2DEC(Q59&R59)/100,"-") -> 1.03 | AI59: =IF(L59="01",HEX2DEC(S59&T59)/10,"-") -> 43 | AJ59: =IF(L59="01",HEX2DEC(U59&V59&W59&X59)/1000,"-") -> 64.127 | AK59: =IF(L59="01",HEX2DEC(Y59&Z59)/1000,"-") -> 0.029 | AL59: =IF(L59="01",HEX2DEC(AA59&AB59)/10,"-") -> 235.1 | AM59: =IF(L59="82",HEX2DEC(M59&N59)/100,"-") -> - | AN59: =IF(L59="82",HEX2DEC(O59&P59)/10,"-") -> - | AO59: =IF(L59="82",HEX2DEC(S59&T59)/100,"-") -> - | AP59: =IF(L59="82",HEX2DEC(W59&X59)/10,"-") -> - | AQ59: =IF(L59="01",HEX2DEC(M59&N59),"-") -> 1 | AR59: =IF(L59="01",HEX2DEC(AC59&AD59),"-") -> 17011 | AS59: =IF(L59="82",HEX2DEC(Q59&R59),"-") -> - | AT59: =IF(L59="82",HEX2DEC(U59&V59),"-") -> - | AU59: =IF(L59="82",HEX2DEC(Y59&Z59),"-") -> - | AV59: =IF(L59="82",HEX2DEC(AA59&AB59),"-") -> - | AW59: =IF(L59="82",HEX2DEC(AC59&AD59),"-") -> -
A60: 09:17:16 | B60: 95 7310xxyy 7310xxyy 82138901990000001103E8005F000686F4C44E10 1 | C60: =MID(SUBSTITUTE($B60," ",""),C$5*2+1,2) -> 95 | D60: =MID(SUBSTITUTE($B60," ",""),D$5*2+1,2) -> 73 | E60: =MID(SUBSTITUTE($B60," ",""),E$5*2+1,2) -> 10 | F60: =MID(SUBSTITUTE($B60," ",""),F$5*2+1,2) -> xx | G60: =MID(SUBSTITUTE($B60," ",""),G$5*2+1,2) -> yy | H60: =MID(SUBSTITUTE($B60," ",""),H$5*2+1,2) -> 73 | I60: =MID(SUBSTITUTE($B60," ",""),I$5*2+1,2) -> 10 | J60: =MID(SUBSTITUTE($B60," ",""),J$5*2+1,2) -> xx | K60: =MID(SUBSTITUTE($B60," ",""),K$5*2+1,2) -> yy | L60: =MID(SUBSTITUTE($B60," ",""),L$5*2+1,2) -> 82 | M60: =MID(SUBSTITUTE($B60," ",""),M$5*2+1,2) -> 13 | N60: =MID(SUBSTITUTE($B60," ",""),N$5*2+1,2) -> 89 | O60: =MID(SUBSTITUTE($B60," ",""),O$5*2+1,2) -> 01 | P60: =MID(SUBSTITUTE($B60," ",""),P$5*2+1,2) -> 99 | Q60: =MID(SUBSTITUTE($B60," ",""),Q$5*2+1,2) -> 00 | R60: =MID(SUBSTITUTE($B60," ",""),R$5*2+1,2) -> 00 | S60: =MID(SUBSTITUTE($B60," ",""),S$5*2+1,2) -> 00 | T60: =MID(SUBSTITUTE($B60," ",""),T$5*2+1,2) -> 11 | U60: =MID(SUBSTITUTE($B60," ",""),U$5*2+1,2) -> 03 | V60: =MID(SUBSTITUTE($B60," ",""),V$5*2+1,2) -> E8 | W60: =MID(SUBSTITUTE($B60," ",""),W$5*2+1,2) -> 00 | X60: =MID(SUBSTITUTE($B60," ",""),X$5*2+1,2) -> 5F | Y60: =MID(SUBSTITUTE($B60," ",""),Y$5*2+1,2) -> 00 | Z60: =MID(SUBSTITUTE($B60," ",""),Z$5*2+1,2) -> 06 | AA60: =MID(SUBSTITUTE($B60," ",""),AA$5*2+1,2) -> 86 | AB60: =MID(SUBSTITUTE($B60," ",""),AB$5*2+1,2) -> F4 | AC60: =MID(SUBSTITUTE($B60," ",""),AC$5*2+1,2) -> C4 | AD60: =MID(SUBSTITUTE($B60," ",""),AD$5*2+1,2) -> 4E | AE60: =MID(SUBSTITUTE($B60," ",""),AE$5*2+1,2) -> 10 | AF60: =MID(SUBSTITUTE($B60," ",""),AF$5*2+1,2) -> 1 | AG60: =IF(L60="01",HEX2DEC(O60&P60)/10,"-") -> - | AH60: =IF(L60="01",HEX2DEC(Q60&R60)/100,"-") -> - | AI60: =IF(L60="01",HEX2DEC(S60&T60)/10,"-") -> - | AJ60: =IF(L60="01",HEX2DEC(U60&V60&W60&X60)/1000,"-") -> - | AK60: =IF(L60="01",HEX2DEC(Y60&Z60)/1000,"-") -> - | AL60: =IF(L60="01",HEX2DEC(AA60&AB60)/10,"-") -> - | AM60: =IF(L60="82",HEX2DEC(M60&N60)/100,"-") -> 50.01 | AN60: =IF(L60="82",HEX2DEC(O60&P60)/10,"-") -> 40.9 | AO60: =IF(L60="82",HEX2DEC(S60&T60)/100,"-") -> 0.17 | AP60: =IF(L60="82",HEX2DEC(W60&X60)/10,"-") -> 9.5 | AQ60: =IF(L60="01",HEX2DEC(M60&N60),"-") -> - | AR60: =IF(L60="01",HEX2DEC(AC60&AD60),"-") -> - | AS60: =IF(L60="82",HEX2DEC(Q60&R60),"-") -> 0 | AT60: =IF(L60="82",HEX2DEC(U60&V60),"-") -> 1000 | AU60: =IF(L60="82",HEX2DEC(Y60&Z60),"-") -> 6 | AV60: =IF(L60="82",HEX2DEC(AA60&AB60),"-") -> 34548 | AW60: =IF(L60="82",HEX2DEC(AC60&AD60),"-") -> 50254
A61: 09:17:19 | B61: 95 7310xxyy 7310xxyy 82138901990000001103E8005F000686F4C49568 1 | C61: =MID(SUBSTITUTE($B61," ",""),C$5*2+1,2) -> 95 | D61: =MID(SUBSTITUTE($B61," ",""),D$5*2+1,2) -> 73 | E61: =MID(SUBSTITUTE($B61," ",""),E$5*2+1,2) -> 10 | F61: =MID(SUBSTITUTE($B61," ",""),F$5*2+1,2) -> xx | G61: =MID(SUBSTITUTE($B61," ",""),G$5*2+1,2) -> yy | H61: =MID(SUBSTITUTE($B61," ",""),H$5*2+1,2) -> 73 | I61: =MID(SUBSTITUTE($B61," ",""),I$5*2+1,2) -> 10 | J61: =MID(SUBSTITUTE($B61," ",""),J$5*2+1,2) -> xx | K61: =MID(SUBSTITUTE($B61," ",""),K$5*2+1,2) -> yy | L61: =MID(SUBSTITUTE($B61," ",""),L$5*2+1,2) -> 82 | M61: =MID(SUBSTITUTE($B61," ",""),M$5*2+1,2) -> 13 | N61: =MID(SUBSTITUTE($B61," ",""),N$5*2+1,2) -> 89 | O61: =MID(SUBSTITUTE($B61," ",""),O$5*2+1,2) -> 01 | P61: =MID(SUBSTITUTE($B61," ",""),P$5*2+1,2) -> 99 | Q61: =MID(SUBSTITUTE($B61," ",""),Q$5*2+1,2) -> 00 | R61: =MID(SUBSTITUTE($B61," ",""),R$5*2+1,2) -> 00 | S61: =MID(SUBSTITUTE($B61," ",""),S$5*2+1,2) -> 00 | T61: =MID(SUBSTITUTE($B61," ",""),T$5*2+1,2) -> 11 | U61: =MID(SUBSTITUTE($B61," ",""),U$5*2+1,2) -> 03 | V61: =MID(SUBSTITUTE($B61," ",""),V$5*2+1,2) -> E8 | W61: =MID(SUBSTITUTE($B61," ",""),W$5*2+1,2) -> 00 | X61: =MID(SUBSTITUTE($B61," ",""),X$5*2+1,2) -> 5F | Y61: =MID(SUBSTITUTE($B61," ",""),Y$5*2+1,2) -> 00 | Z61: =MID(SUBSTITUTE($B61," ",""),Z$5*2+1,2) -> 06 | AA61: =MID(SUBSTITUTE($B61," ",""),AA$5*2+1,2) -> 86 | AB61: =MID(SUBSTITUTE($B61," ",""),AB$5*2+1,2) -> F4 | AC61: =MID(SUBSTITUTE($B61," ",""),AC$5*2+1,2) -> C4 | AD61: =MID(SUBSTITUTE($B61," ",""),AD$5*2+1,2) -> 95 | AE61: =MID(SUBSTITUTE($B61," ",""),AE$5*2+1,2) -> 68 | AF61: =MID(SUBSTITUTE($B61," ",""),AF$5*2+1,2) -> 1 | AG61: =IF(L61="01",HEX2DEC(O61&P61)/10,"-") -> - | AH61: =IF(L61="01",HEX2DEC(Q61&R61)/100,"-") -> - | AI61: =IF(L61="01",HEX2DEC(S61&T61)/10,"-") -> - | AJ61: =IF(L61="01",HEX2DEC(U61&V61&W61&X61)/1000,"-") -> - | AK61: =IF(L61="01",HEX2DEC(Y61&Z61)/1000,"-") -> - | AL61: =IF(L61="01",HEX2DEC(AA61&AB61)/10,"-") -> - | AM61: =IF(L61="82",HEX2DEC(M61&N61)/100,"-") -> 50.01 | AN61: =IF(L61="82",HEX2DEC(O61&P61)/10,"-") -> 40.9 | AO61: =IF(L61="82",HEX2DEC(S61&T61)/100,"-") -> 0.17 | AP61: =IF(L61="82",HEX2DEC(W61&X61)/10,"-") -> 9.5 | AQ61: =IF(L61="01",HEX2DEC(M61&N61),"-") -> - | AR61: =IF(L61="01",HEX2DEC(AC61&AD61),"-") -> - | AS61: =IF(L61="82",HEX2DEC(Q61&R61),"-") -> 0 | AT61: =IF(L61="82",HEX2DEC(U61&V61),"-") -> 1000 | AU61: =IF(L61="82",HEX2DEC(Y61&Z61),"-") -> 6 | AV61: =IF(L61="82",HEX2DEC(AA61&AB61),"-") -> 34548 | AW61: =IF(L61="82",HEX2DEC(AC61&AD61),"-") -> 50325
A62: 09:17:23 | B62: 95 7310xxyy 7310xxyy 01000101A0006701AE0000FA7F001D092F42E171 1 | C62: =MID(SUBSTITUTE($B62," ",""),C$5*2+1,2) -> 95 | D62: =MID(SUBSTITUTE($B62," ",""),D$5*2+1,2) -> 73 | E62: =MID(SUBSTITUTE($B62," ",""),E$5*2+1,2) -> 10 | F62: =MID(SUBSTITUTE($B62," ",""),F$5*2+1,2) -> xx | G62: =MID(SUBSTITUTE($B62," ",""),G$5*2+1,2) -> yy | H62: =MID(SUBSTITUTE($B62," ",""),H$5*2+1,2) -> 73 | I62: =MID(SUBSTITUTE($B62," ",""),I$5*2+1,2) -> 10 | J62: =MID(SUBSTITUTE($B62," ",""),J$5*2+1,2) -> xx | K62: =MID(SUBSTITUTE($B62," ",""),K$5*2+1,2) -> yy | L62: =MID(SUBSTITUTE($B62," ",""),L$5*2+1,2) -> 01 | M62: =MID(SUBSTITUTE($B62," ",""),M$5*2+1,2) -> 00 | N62: =MID(SUBSTITUTE($B62," ",""),N$5*2+1,2) -> 01 | O62: =MID(SUBSTITUTE($B62," ",""),O$5*2+1,2) -> 01 | P62: =MID(SUBSTITUTE($B62," ",""),P$5*2+1,2) -> A0 | Q62: =MID(SUBSTITUTE($B62," ",""),Q$5*2+1,2) -> 00 | R62: =MID(SUBSTITUTE($B62," ",""),R$5*2+1,2) -> 67 | S62: =MID(SUBSTITUTE($B62," ",""),S$5*2+1,2) -> 01 | T62: =MID(SUBSTITUTE($B62," ",""),T$5*2+1,2) -> AE | U62: =MID(SUBSTITUTE($B62," ",""),U$5*2+1,2) -> 00 | V62: =MID(SUBSTITUTE($B62," ",""),V$5*2+1,2) -> 00 | W62: =MID(SUBSTITUTE($B62," ",""),W$5*2+1,2) -> FA | X62: =MID(SUBSTITUTE($B62," ",""),X$5*2+1,2) -> 7F | Y62: =MID(SUBSTITUTE($B62," ",""),Y$5*2+1,2) -> 00 | Z62: =MID(SUBSTITUTE($B62," ",""),Z$5*2+1,2) -> 1D | AA62: =MID(SUBSTITUTE($B62," ",""),AA$5*2+1,2) -> 09 | AB62: =MID(SUBSTITUTE($B62," ",""),AB$5*2+1,2) -> 2F | AC62: =MID(SUBSTITUTE($B62," ",""),AC$5*2+1,2) -> 42 | AD62: =MID(SUBSTITUTE($B62," ",""),AD$5*2+1,2) -> E1 | AE62: =MID(SUBSTITUTE($B62," ",""),AE$5*2+1,2) -> 71 | AF62: =MID(SUBSTITUTE($B62," ",""),AF$5*2+1,2) -> 1 | AG62: =IF(L62="01",HEX2DEC(O62&P62)/10,"-") -> 41.6 | AH62: =IF(L62="01",HEX2DEC(Q62&R62)/100,"-") -> 1.03 | AI62: =IF(L62="01",HEX2DEC(S62&T62)/10,"-") -> 43 | AJ62: =IF(L62="01",HEX2DEC(U62&V62&W62&X62)/1000,"-") -> 64.127 | AK62: =IF(L62="01",HEX2DEC(Y62&Z62)/1000,"-") -> 0.029 | AL62: =IF(L62="01",HEX2DEC(AA62&AB62)/10,"-") -> 235.1 | AM62: =IF(L62="82",HEX2DEC(M62&N62)/100,"-") -> - | AN62: =IF(L62="82",HEX2DEC(O62&P62)/10,"-") -> - | AO62: =IF(L62="82",HEX2DEC(S62&T62)/100,"-") -> - | AP62: =IF(L62="82",HEX2DEC(W62&X62)/10,"-") -> - | AQ62: =IF(L62="01",HEX2DEC(M62&N62),"-") -> 1 | AR62: =IF(L62="01",HEX2DEC(AC62&AD62),"-") -> 17121 | AS62: =IF(L62="82",HEX2DEC(Q62&R62),"-") -> - | AT62: =IF(L62="82",HEX2DEC(U62&V62),"-") -> - | AU62: =IF(L62="82",HEX2DEC(Y62&Z62),"-") -> - | AV62: =IF(L62="82",HEX2DEC(AA62&AB62),"-") -> - | AW62: =IF(L62="82",HEX2DEC(AC62&AD62),"-") -> -
A63: 09:17:28 | B63: 95 7310xxyy 7310xxyy 82138701970000001103E8005F0006998EA159B1 1 | C63: =MID(SUBSTITUTE($B63," ",""),C$5*2+1,2) -> 95 | D63: =MID(SUBSTITUTE($B63," ",""),D$5*2+1,2) -> 73 | E63: =MID(SUBSTITUTE($B63," ",""),E$5*2+1,2) -> 10 | F63: =MID(SUBSTITUTE($B63," ",""),F$5*2+1,2) -> xx | G63: =MID(SUBSTITUTE($B63," ",""),G$5*2+1,2) -> yy | H63: =MID(SUBSTITUTE($B63," ",""),H$5*2+1,2) -> 73 | I63: =MID(SUBSTITUTE($B63," ",""),I$5*2+1,2) -> 10 | J63: =MID(SUBSTITUTE($B63," ",""),J$5*2+1,2) -> xx | K63: =MID(SUBSTITUTE($B63," ",""),K$5*2+1,2) -> yy | L63: =MID(SUBSTITUTE($B63," ",""),L$5*2+1,2) -> 82 | M63: =MID(SUBSTITUTE($B63," ",""),M$5*2+1,2) -> 13 | N63: =MID(SUBSTITUTE($B63," ",""),N$5*2+1,2) -> 87 | O63: =MID(SUBSTITUTE($B63," ",""),O$5*2+1,2) -> 01 | P63: =MID(SUBSTITUTE($B63," ",""),P$5*2+1,2) -> 97 | Q63: =MID(SUBSTITUTE($B63," ",""),Q$5*2+1,2) -> 00 | R63: =MID(SUBSTITUTE($B63," ",""),R$5*2+1,2) -> 00 | S63: =MID(SUBSTITUTE($B63," ",""),S$5*2+1,2) -> 00 | T63: =MID(SUBSTITUTE($B63," ",""),T$5*2+1,2) -> 11 | U63: =MID(SUBSTITUTE($B63," ",""),U$5*2+1,2) -> 03 | V63: =MID(SUBSTITUTE($B63," ",""),V$5*2+1,2) -> E8 | W63: =MID(SUBSTITUTE($B63," ",""),W$5*2+1,2) -> 00 | X63: =MID(SUBSTITUTE($B63," ",""),X$5*2+1,2) -> 5F | Y63: =MID(SUBSTITUTE($B63," ",""),Y$5*2+1,2) -> 00 | Z63: =MID(SUBSTITUTE($B63," ",""),Z$5*2+1,2) -> 06 | AA63: =MID(SUBSTITUTE($B63," ",""),AA$5*2+1,2) -> 99 | AB63: =MID(SUBSTITUTE($B63," ",""),AB$5*2+1,2) -> 8E | AC63: =MID(SUBSTITUTE($B63," ",""),AC$5*2+1,2) -> A1 | AD63: =MID(SUBSTITUTE($B63," ",""),AD$5*2+1,2) -> 59 | AE63: =MID(SUBSTITUTE($B63," ",""),AE$5*2+1,2) -> B1 | AF63: =MID(SUBSTITUTE($B63," ",""),AF$5*2+1,2) -> 1 | AG63: =IF(L63="01",HEX2DEC(O63&P63)/10,"-") -> - | AH63: =IF(L63="01",HEX2DEC(Q63&R63)/100,"-") -> - | AI63: =IF(L63="01",HEX2DEC(S63&T63)/10,"-") -> - | AJ63: =IF(L63="01",HEX2DEC(U63&V63&W63&X63)/1000,"-") -> - | AK63: =IF(L63="01",HEX2DEC(Y63&Z63)/1000,"-") -> - | AL63: =IF(L63="01",HEX2DEC(AA63&AB63)/10,"-") -> - | AM63: =IF(L63="82",HEX2DEC(M63&N63)/100,"-") -> 49.99 | AN63: =IF(L63="82",HEX2DEC(O63&P63)/10,"-") -> 40.7 | AO63: =IF(L63="82",HEX2DEC(S63&T63)/100,"-") -> 0.17 | AP63: =IF(L63="82",HEX2DEC(W63&X63)/10,"-") -> 9.5 | AQ63: =IF(L63="01",HEX2DEC(M63&N63),"-") -> - | AR63: =IF(L63="01",HEX2DEC(AC63&AD63),"-") -> - | AS63: =IF(L63="82",HEX2DEC(Q63&R63),"-") -> 0 | AT63: =IF(L63="82",HEX2DEC(U63&V63),"-") -> 1000 | AU63: =IF(L63="82",HEX2DEC(Y63&Z63),"-") -> 6 | AV63: =IF(L63="82",HEX2DEC(AA63&AB63),"-") -> 39310 | AW63: =IF(L63="82",HEX2DEC(AC63&AD63),"-") -> 41305
A64: 09:17:40 | B64: 95 7310xxyy 7310xxyy 82138901910000001103E8005F00061A72D6B93E 1 | C64: =MID(SUBSTITUTE($B64," ",""),C$5*2+1,2) -> 95 | D64: =MID(SUBSTITUTE($B64," ",""),D$5*2+1,2) -> 73 | E64: =MID(SUBSTITUTE($B64," ",""),E$5*2+1,2) -> 10 | F64: =MID(SUBSTITUTE($B64," ",""),F$5*2+1,2) -> xx | G64: =MID(SUBSTITUTE($B64," ",""),G$5*2+1,2) -> yy | H64: =MID(SUBSTITUTE($B64," ",""),H$5*2+1,2) -> 73 | I64: =MID(SUBSTITUTE($B64," ",""),I$5*2+1,2) -> 10 | J64: =MID(SUBSTITUTE($B64," ",""),J$5*2+1,2) -> xx | K64: =MID(SUBSTITUTE($B64," ",""),K$5*2+1,2) -> yy | L64: =MID(SUBSTITUTE($B64," ",""),L$5*2+1,2) -> 82 | M64: =MID(SUBSTITUTE($B64," ",""),M$5*2+1,2) -> 13 | N64: =MID(SUBSTITUTE($B64," ",""),N$5*2+1,2) -> 89 | O64: =MID(SUBSTITUTE($B64," ",""),O$5*2+1,2) -> 01 | P64: =MID(SUBSTITUTE($B64," ",""),P$5*2+1,2) -> 91 | Q64: =MID(SUBSTITUTE($B64," ",""),Q$5*2+1,2) -> 00 | R64: =MID(SUBSTITUTE($B64," ",""),R$5*2+1,2) -> 00 | S64: =MID(SUBSTITUTE($B64," ",""),S$5*2+1,2) -> 00 | T64: =MID(SUBSTITUTE($B64," ",""),T$5*2+1,2) -> 11 | U64: =MID(SUBSTITUTE($B64," ",""),U$5*2+1,2) -> 03 | V64: =MID(SUBSTITUTE($B64," ",""),V$5*2+1,2) -> E8 | W64: =MID(SUBSTITUTE($B64," ",""),W$5*2+1,2) -> 00 | X64: =MID(SUBSTITUTE($B64," ",""),X$5*2+1,2) -> 5F | Y64: =MID(SUBSTITUTE($B64," ",""),Y$5*2+1,2) -> 00 | Z64: =MID(SUBSTITUTE($B64," ",""),Z$5*2+1,2) -> 06 | AA64: =MID(SUBSTITUTE($B64," ",""),AA$5*2+1,2) -> 1A | AB64: =MID(SUBSTITUTE($B64," ",""),AB$5*2+1,2) -> 72 | AC64: =MID(SUBSTITUTE($B64," ",""),AC$5*2+1,2) -> D6 | AD64: =MID(SUBSTITUTE($B64," ",""),AD$5*2+1,2) -> B9 | AE64: =MID(SUBSTITUTE($B64," ",""),AE$5*2+1,2) -> 3E | AF64: =MID(SUBSTITUTE($B64," ",""),AF$5*2+1,2) -> 1 | AG64: =IF(L64="01",HEX2DEC(O64&P64)/10,"-") -> - | AH64: =IF(L64="01",HEX2DEC(Q64&R64)/100,"-") -> - | AI64: =IF(L64="01",HEX2DEC(S64&T64)/10,"-") -> - | AJ64: =IF(L64="01",HEX2DEC(U64&V64&W64&X64)/1000,"-") -> - | AK64: =IF(L64="01",HEX2DEC(Y64&Z64)/1000,"-") -> - | AL64: =IF(L64="01",HEX2DEC(AA64&AB64)/10,"-") -> - | AM64: =IF(L64="82",HEX2DEC(M64&N64)/100,"-") -> 50.01 | AN64: =IF(L64="82",HEX2DEC(O64&P64)/10,"-") -> 40.1 | AO64: =IF(L64="82",HEX2DEC(S64&T64)/100,"-") -> 0.17 | AP64: =IF(L64="82",HEX2DEC(W64&X64)/10,"-") -> 9.5 | AQ64: =IF(L64="01",HEX2DEC(M64&N64),"-") -> - | AR64: =IF(L64="01",HEX2DEC(AC64&AD64),"-") -> - | AS64: =IF(L64="82",HEX2DEC(Q64&R64),"-") -> 0 | AT64: =IF(L64="82",HEX2DEC(U64&V64),"-") -> 1000 | AU64: =IF(L64="82",HEX2DEC(Y64&Z64),"-") -> 6 | AV64: =IF(L64="82",HEX2DEC(AA64&AB64),"-") -> 6770 | AW64: =IF(L64="82",HEX2DEC(AC64&AD64),"-") -> 54969
A65: 09:17:52 | B65: 95 7310xxyy 7310xxyy 82138901880000001103E8005F0006A82B244D0E 1 | C65: =MID(SUBSTITUTE($B65," ",""),C$5*2+1,2) -> 95 | D65: =MID(SUBSTITUTE($B65," ",""),D$5*2+1,2) -> 73 | E65: =MID(SUBSTITUTE($B65," ",""),E$5*2+1,2) -> 10 | F65: =MID(SUBSTITUTE($B65," ",""),F$5*2+1,2) -> xx | G65: =MID(SUBSTITUTE($B65," ",""),G$5*2+1,2) -> yy | H65: =MID(SUBSTITUTE($B65," ",""),H$5*2+1,2) -> 73 | I65: =MID(SUBSTITUTE($B65," ",""),I$5*2+1,2) -> 10 | J65: =MID(SUBSTITUTE($B65," ",""),J$5*2+1,2) -> xx | K65: =MID(SUBSTITUTE($B65," ",""),K$5*2+1,2) -> yy | L65: =MID(SUBSTITUTE($B65," ",""),L$5*2+1,2) -> 82 | M65: =MID(SUBSTITUTE($B65," ",""),M$5*2+1,2) -> 13 | N65: =MID(SUBSTITUTE($B65," ",""),N$5*2+1,2) -> 89 | O65: =MID(SUBSTITUTE($B65," ",""),O$5*2+1,2) -> 01 | P65: =MID(SUBSTITUTE($B65," ",""),P$5*2+1,2) -> 88 | Q65: =MID(SUBSTITUTE($B65," ",""),Q$5*2+1,2) -> 00 | R65: =MID(SUBSTITUTE($B65," ",""),R$5*2+1,2) -> 00 | S65: =MID(SUBSTITUTE($B65," ",""),S$5*2+1,2) -> 00 | T65: =MID(SUBSTITUTE($B65," ",""),T$5*2+1,2) -> 11 | U65: =MID(SUBSTITUTE($B65," ",""),U$5*2+1,2) -> 03 | V65: =MID(SUBSTITUTE($B65," ",""),V$5*2+1,2) -> E8 | W65: =MID(SUBSTITUTE($B65," ",""),W$5*2+1,2) -> 00 | X65: =MID(SUBSTITUTE($B65," ",""),X$5*2+1,2) -> 5F | Y65: =MID(SUBSTITUTE($B65," ",""),Y$5*2+1,2) -> 00 | Z65: =MID(SUBSTITUTE($B65," ",""),Z$5*2+1,2) -> 06 | AA65: =MID(SUBSTITUTE($B65," ",""),AA$5*2+1,2) -> A8 | AB65: =MID(SUBSTITUTE($B65," ",""),AB$5*2+1,2) -> 2B | AC65: =MID(SUBSTITUTE($B65," ",""),AC$5*2+1,2) -> 24 | AD65: =MID(SUBSTITUTE($B65," ",""),AD$5*2+1,2) -> 4D | AE65: =MID(SUBSTITUTE($B65," ",""),AE$5*2+1,2) -> 0E | AF65: =MID(SUBSTITUTE($B65," ",""),AF$5*2+1,2) -> 1 | AG65: =IF(L65="01",HEX2DEC(O65&P65)/10,"-") -> - | AH65: =IF(L65="01",HEX2DEC(Q65&R65)/100,"-") -> - | AI65: =IF(L65="01",HEX2DEC(S65&T65)/10,"-") -> - | AJ65: =IF(L65="01",HEX2DEC(U65&V65&W65&X65)/1000,"-") -> - | AK65: =IF(L65="01",HEX2DEC(Y65&Z65)/1000,"-") -> - | AL65: =IF(L65="01",HEX2DEC(AA65&AB65)/10,"-") -> - | AM65: =IF(L65="82",HEX2DEC(M65&N65)/100,"-") -> 50.01 | AN65: =IF(L65="82",HEX2DEC(O65&P65)/10,"-") -> 39.2 | AO65: =IF(L65="82",HEX2DEC(S65&T65)/100,"-") -> 0.17 | AP65: =IF(L65="82",HEX2DEC(W65&X65)/10,"-") -> 9.5 | AQ65: =IF(L65="01",HEX2DEC(M65&N65),"-") -> - | AR65: =IF(L65="01",HEX2DEC(AC65&AD65),"-") -> - | AS65: =IF(L65="82",HEX2DEC(Q65&R65),"-") -> 0 | AT65: =IF(L65="82",HEX2DEC(U65&V65),"-") -> 1000 | AU65: =IF(L65="82",HEX2DEC(Y65&Z65),"-") -> 6 | AV65: =IF(L65="82",HEX2DEC(AA65&AB65),"-") -> 43051 | AW65: =IF(L65="82",HEX2DEC(AC65&AD65),"-") -> 9293
A66: 09:18:04 | B66: 95 7310xxyy 7310xxyy 010001019F006101900000FA80001E092ABCC91A 1 | C66: =MID(SUBSTITUTE($B66," ",""),C$5*2+1,2) -> 95 | D66: =MID(SUBSTITUTE($B66," ",""),D$5*2+1,2) -> 73 | E66: =MID(SUBSTITUTE($B66," ",""),E$5*2+1,2) -> 10 | F66: =MID(SUBSTITUTE($B66," ",""),F$5*2+1,2) -> xx | G66: =MID(SUBSTITUTE($B66," ",""),G$5*2+1,2) -> yy | H66: =MID(SUBSTITUTE($B66," ",""),H$5*2+1,2) -> 73 | I66: =MID(SUBSTITUTE($B66," ",""),I$5*2+1,2) -> 10 | J66: =MID(SUBSTITUTE($B66," ",""),J$5*2+1,2) -> xx | K66: =MID(SUBSTITUTE($B66," ",""),K$5*2+1,2) -> yy | L66: =MID(SUBSTITUTE($B66," ",""),L$5*2+1,2) -> 01 | M66: =MID(SUBSTITUTE($B66," ",""),M$5*2+1,2) -> 00 | N66: =MID(SUBSTITUTE($B66," ",""),N$5*2+1,2) -> 01 | O66: =MID(SUBSTITUTE($B66," ",""),O$5*2+1,2) -> 01 | P66: =MID(SUBSTITUTE($B66," ",""),P$5*2+1,2) -> 9F | Q66: =MID(SUBSTITUTE($B66," ",""),Q$5*2+1,2) -> 00 | R66: =MID(SUBSTITUTE($B66," ",""),R$5*2+1,2) -> 61 | S66: =MID(SUBSTITUTE($B66," ",""),S$5*2+1,2) -> 01 | T66: =MID(SUBSTITUTE($B66," ",""),T$5*2+1,2) -> 90 | U66: =MID(SUBSTITUTE($B66," ",""),U$5*2+1,2) -> 00 | V66: =MID(SUBSTITUTE($B66," ",""),V$5*2+1,2) -> 00 | W66: =MID(SUBSTITUTE($B66," ",""),W$5*2+1,2) -> FA | X66: =MID(SUBSTITUTE($B66," ",""),X$5*2+1,2) -> 80 | Y66: =MID(SUBSTITUTE($B66," ",""),Y$5*2+1,2) -> 00 | Z66: =MID(SUBSTITUTE($B66," ",""),Z$5*2+1,2) -> 1E | AA66: =MID(SUBSTITUTE($B66," ",""),AA$5*2+1,2) -> 09 | AB66: =MID(SUBSTITUTE($B66," ",""),AB$5*2+1,2) -> 2A | AC66: =MID(SUBSTITUTE($B66," ",""),AC$5*2+1,2) -> BC | AD66: =MID(SUBSTITUTE($B66," ",""),AD$5*2+1,2) -> C9 | AE66: =MID(SUBSTITUTE($B66," ",""),AE$5*2+1,2) -> 1A | AF66: =MID(SUBSTITUTE($B66," ",""),AF$5*2+1,2) -> 1 | AG66: =IF(L66="01",HEX2DEC(O66&P66)/10,"-") -> 41.5 | AH66: =IF(L66="01",HEX2DEC(Q66&R66)/100,"-") -> 0.97 | AI66: =IF(L66="01",HEX2DEC(S66&T66)/10,"-") -> 40 | AJ66: =IF(L66="01",HEX2DEC(U66&V66&W66&X66)/1000,"-") -> 64.128 | AK66: =IF(L66="01",HEX2DEC(Y66&Z66)/1000,"-") -> 0.03 | AL66: =IF(L66="01",HEX2DEC(AA66&AB66)/10,"-") -> 234.6 | AM66: =IF(L66="82",HEX2DEC(M66&N66)/100,"-") -> - | AN66: =IF(L66="82",HEX2DEC(O66&P66)/10,"-") -> - | AO66: =IF(L66="82",HEX2DEC(S66&T66)/100,"-") -> - | AP66: =IF(L66="82",HEX2DEC(W66&X66)/10,"-") -> - | AQ66: =IF(L66="01",HEX2DEC(M66&N66),"-") -> 1 | AR66: =IF(L66="01",HEX2DEC(AC66&AD66),"-") -> 48329 | AS66: =IF(L66="82",HEX2DEC(Q66&R66),"-") -> - | AT66: =IF(L66="82",HEX2DEC(U66&V66),"-") -> - | AU66: =IF(L66="82",HEX2DEC(Y66&Z66),"-") -> - | AV66: =IF(L66="82",HEX2DEC(AA66&AB66),"-") -> - | AW66: =IF(L66="82",HEX2DEC(AC66&AD66),"-") -> -
A67: 09:18:04 | B67: 95 7310xxyy 7310xxyy 821388017D0000001003E8005F0006C2D14125A1 1 | C67: =MID(SUBSTITUTE($B67," ",""),C$5*2+1,2) -> 95 | D67: =MID(SUBSTITUTE($B67," ",""),D$5*2+1,2) -> 73 | E67: =MID(SUBSTITUTE($B67," ",""),E$5*2+1,2) -> 10 | F67: =MID(SUBSTITUTE($B67," ",""),F$5*2+1,2) -> xx | G67: =MID(SUBSTITUTE($B67," ",""),G$5*2+1,2) -> yy | H67: =MID(SUBSTITUTE($B67," ",""),H$5*2+1,2) -> 73 | I67: =MID(SUBSTITUTE($B67," ",""),I$5*2+1,2) -> 10 | J67: =MID(SUBSTITUTE($B67," ",""),J$5*2+1,2) -> xx | K67: =MID(SUBSTITUTE($B67," ",""),K$5*2+1,2) -> yy | L67: =MID(SUBSTITUTE($B67," ",""),L$5*2+1,2) -> 82 | M67: =MID(SUBSTITUTE($B67," ",""),M$5*2+1,2) -> 13 | N67: =MID(SUBSTITUTE($B67," ",""),N$5*2+1,2) -> 88 | O67: =MID(SUBSTITUTE($B67," ",""),O$5*2+1,2) -> 01 | P67: =MID(SUBSTITUTE($B67," ",""),P$5*2+1,2) -> 7D | Q67: =MID(SUBSTITUTE($B67," ",""),Q$5*2+1,2) -> 00 | R67: =MID(SUBSTITUTE($B67," ",""),R$5*2+1,2) -> 00 | S67: =MID(SUBSTITUTE($B67," ",""),S$5*2+1,2) -> 00 | T67: =MID(SUBSTITUTE($B67," ",""),T$5*2+1,2) -> 10 | U67: =MID(SUBSTITUTE($B67," ",""),U$5*2+1,2) -> 03 | V67: =MID(SUBSTITUTE($B67," ",""),V$5*2+1,2) -> E8 | W67: =MID(SUBSTITUTE($B67," ",""),W$5*2+1,2) -> 00 | X67: =MID(SUBSTITUTE($B67," ",""),X$5*2+1,2) -> 5F | Y67: =MID(SUBSTITUTE($B67," ",""),Y$5*2+1,2) -> 00 | Z67: =MID(SUBSTITUTE($B67," ",""),Z$5*2+1,2) -> 06 | AA67: =MID(SUBSTITUTE($B67," ",""),AA$5*2+1,2) -> C2 | AB67: =MID(SUBSTITUTE($B67," ",""),AB$5*2+1,2) -> D1 | AC67: =MID(SUBSTITUTE($B67," ",""),AC$5*2+1,2) -> 41 | AD67: =MID(SUBSTITUTE($B67," ",""),AD$5*2+1,2) -> 25 | AE67: =MID(SUBSTITUTE($B67," ",""),AE$5*2+1,2) -> A1 | AF67: =MID(SUBSTITUTE($B67," ",""),AF$5*2+1,2) -> 1 | AG67: =IF(L67="01",HEX2DEC(O67&P67)/10,"-") -> - | AH67: =IF(L67="01",HEX2DEC(Q67&R67)/100,"-") -> - | AI67: =IF(L67="01",HEX2DEC(S67&T67)/10,"-") -> - | AJ67: =IF(L67="01",HEX2DEC(U67&V67&W67&X67)/1000,"-") -> - | AK67: =IF(L67="01",HEX2DEC(Y67&Z67)/1000,"-") -> - | AL67: =IF(L67="01",HEX2DEC(AA67&AB67)/10,"-") -> - | AM67: =IF(L67="82",HEX2DEC(M67&N67)/100,"-") -> 50 | AN67: =IF(L67="82",HEX2DEC(O67&P67)/10,"-") -> 38.1 | AO67: =IF(L67="82",HEX2DEC(S67&T67)/100,"-") -> 0.16 | AP67: =IF(L67="82",HEX2DEC(W67&X67)/10,"-") -> 9.5 | AQ67: =IF(L67="01",HEX2DEC(M67&N67),"-") -> - | AR67: =IF(L67="01",HEX2DEC(AC67&AD67),"-") -> - | AS67: =IF(L67="82",HEX2DEC(Q67&R67),"-") -> 0 | AT67: =IF(L67="82",HEX2DEC(U67&V67),"-") -> 1000 | AU67: =IF(L67="82",HEX2DEC(Y67&Z67),"-") -> 6 | AV67: =IF(L67="82",HEX2DEC(AA67&AB67),"-") -> 49873 | AW67: =IF(L67="82",HEX2DEC(AC67&AD67),"-") -> 16677
A68: 09:18:08 | B68: 95 7310xxyy 7310xxyy 821388017D0000001003E8005F0006C2D141B7F1 1 | C68: =MID(SUBSTITUTE($B68," ",""),C$5*2+1,2) -> 95 | D68: =MID(SUBSTITUTE($B68," ",""),D$5*2+1,2) -> 73 | E68: =MID(SUBSTITUTE($B68," ",""),E$5*2+1,2) -> 10 | F68: =MID(SUBSTITUTE($B68," ",""),F$5*2+1,2) -> xx | G68: =MID(SUBSTITUTE($B68," ",""),G$5*2+1,2) -> yy | H68: =MID(SUBSTITUTE($B68," ",""),H$5*2+1,2) -> 73 | I68: =MID(SUBSTITUTE($B68," ",""),I$5*2+1,2) -> 10 | J68: =MID(SUBSTITUTE($B68," ",""),J$5*2+1,2) -> xx | K68: =MID(SUBSTITUTE($B68," ",""),K$5*2+1,2) -> yy | L68: =MID(SUBSTITUTE($B68," ",""),L$5*2+1,2) -> 82 | M68: =MID(SUBSTITUTE($B68," ",""),M$5*2+1,2) -> 13 | N68: =MID(SUBSTITUTE($B68," ",""),N$5*2+1,2) -> 88 | O68: =MID(SUBSTITUTE($B68," ",""),O$5*2+1,2) -> 01 | P68: =MID(SUBSTITUTE($B68," ",""),P$5*2+1,2) -> 7D | Q68: =MID(SUBSTITUTE($B68," ",""),Q$5*2+1,2) -> 00 | R68: =MID(SUBSTITUTE($B68," ",""),R$5*2+1,2) -> 00 | S68: =MID(SUBSTITUTE($B68," ",""),S$5*2+1,2) -> 00 | T68: =MID(SUBSTITUTE($B68," ",""),T$5*2+1,2) -> 10 | U68: =MID(SUBSTITUTE($B68," ",""),U$5*2+1,2) -> 03 | V68: =MID(SUBSTITUTE($B68," ",""),V$5*2+1,2) -> E8 | W68: =MID(SUBSTITUTE($B68," ",""),W$5*2+1,2) -> 00 | X68: =MID(SUBSTITUTE($B68," ",""),X$5*2+1,2) -> 5F | Y68: =MID(SUBSTITUTE($B68," ",""),Y$5*2+1,2) -> 00 | Z68: =MID(SUBSTITUTE($B68," ",""),Z$5*2+1,2) -> 06 | AA68: =MID(SUBSTITUTE($B68," ",""),AA$5*2+1,2) -> C2 | AB68: =MID(SUBSTITUTE($B68," ",""),AB$5*2+1,2) -> D1 | AC68: =MID(SUBSTITUTE($B68," ",""),AC$5*2+1,2) -> 41 | AD68: =MID(SUBSTITUTE($B68," ",""),AD$5*2+1,2) -> B7 | AE68: =MID(SUBSTITUTE($B68," ",""),AE$5*2+1,2) -> F1 | AF68: =MID(SUBSTITUTE($B68," ",""),AF$5*2+1,2) -> 1 | AG68: =IF(L68="01",HEX2DEC(O68&P68)/10,"-") -> - | AH68: =IF(L68="01",HEX2DEC(Q68&R68)/100,"-") -> - | AI68: =IF(L68="01",HEX2DEC(S68&T68)/10,"-") -> - | AJ68: =IF(L68="01",HEX2DEC(U68&V68&W68&X68)/1000,"-") -> - | AK68: =IF(L68="01",HEX2DEC(Y68&Z68)/1000,"-") -> - | AL68: =IF(L68="01",HEX2DEC(AA68&AB68)/10,"-") -> - | AM68: =IF(L68="82",HEX2DEC(M68&N68)/100,"-") -> 50 | AN68: =IF(L68="82",HEX2DEC(O68&P68)/10,"-") -> 38.1 | AO68: =IF(L68="82",HEX2DEC(S68&T68)/100,"-") -> 0.16 | AP68: =IF(L68="82",HEX2DEC(W68&X68)/10,"-") -> 9.5 | AQ68: =IF(L68="01",HEX2DEC(M68&N68),"-") -> - | AR68: =IF(L68="01",HEX2DEC(AC68&AD68),"-") -> - | AS68: =IF(L68="82",HEX2DEC(Q68&R68),"-") -> 0 | AT68: =IF(L68="82",HEX2DEC(U68&V68),"-") -> 1000 | AU68: =IF(L68="82",HEX2DEC(Y68&Z68),"-") -> 6 | AV68: =IF(L68="82",HEX2DEC(AA68&AB68),"-") -> 49873 | AW68: =IF(L68="82",HEX2DEC(AC68&AD68),"-") -> 16823
A69: 09:18:20 | B69: 95 7310xxyy 7310xxyy 82138A016F0000001003E8005F00069F23FEB18D 1 | C69: =MID(SUBSTITUTE($B69," ",""),C$5*2+1,2) -> 95 | D69: =MID(SUBSTITUTE($B69," ",""),D$5*2+1,2) -> 73 | E69: =MID(SUBSTITUTE($B69," ",""),E$5*2+1,2) -> 10 | F69: =MID(SUBSTITUTE($B69," ",""),F$5*2+1,2) -> xx | G69: =MID(SUBSTITUTE($B69," ",""),G$5*2+1,2) -> yy | H69: =MID(SUBSTITUTE($B69," ",""),H$5*2+1,2) -> 73 | I69: =MID(SUBSTITUTE($B69," ",""),I$5*2+1,2) -> 10 | J69: =MID(SUBSTITUTE($B69," ",""),J$5*2+1,2) -> xx | K69: =MID(SUBSTITUTE($B69," ",""),K$5*2+1,2) -> yy | L69: =MID(SUBSTITUTE($B69," ",""),L$5*2+1,2) -> 82 | M69: =MID(SUBSTITUTE($B69," ",""),M$5*2+1,2) -> 13 | N69: =MID(SUBSTITUTE($B69," ",""),N$5*2+1,2) -> 8A | O69: =MID(SUBSTITUTE($B69," ",""),O$5*2+1,2) -> 01 | P69: =MID(SUBSTITUTE($B69," ",""),P$5*2+1,2) -> 6F | Q69: =MID(SUBSTITUTE($B69," ",""),Q$5*2+1,2) -> 00 | R69: =MID(SUBSTITUTE($B69," ",""),R$5*2+1,2) -> 00 | S69: =MID(SUBSTITUTE($B69," ",""),S$5*2+1,2) -> 00 | T69: =MID(SUBSTITUTE($B69," ",""),T$5*2+1,2) -> 10 | U69: =MID(SUBSTITUTE($B69," ",""),U$5*2+1,2) -> 03 | V69: =MID(SUBSTITUTE($B69," ",""),V$5*2+1,2) -> E8 | W69: =MID(SUBSTITUTE($B69," ",""),W$5*2+1,2) -> 00 | X69: =MID(SUBSTITUTE($B69," ",""),X$5*2+1,2) -> 5F | Y69: =MID(SUBSTITUTE($B69," ",""),Y$5*2+1,2) -> 00 | Z69: =MID(SUBSTITUTE($B69," ",""),Z$5*2+1,2) -> 06 | AA69: =MID(SUBSTITUTE($B69," ",""),AA$5*2+1,2) -> 9F | AB69: =MID(SUBSTITUTE($B69," ",""),AB$5*2+1,2) -> 23 | AC69: =MID(SUBSTITUTE($B69," ",""),AC$5*2+1,2) -> FE | AD69: =MID(SUBSTITUTE($B69," ",""),AD$5*2+1,2) -> B1 | AE69: =MID(SUBSTITUTE($B69," ",""),AE$5*2+1,2) -> 8D | AF69: =MID(SUBSTITUTE($B69," ",""),AF$5*2+1,2) -> 1 | AG69: =IF(L69="01",HEX2DEC(O69&P69)/10,"-") -> - | AH69: =IF(L69="01",HEX2DEC(Q69&R69)/100,"-") -> - | AI69: =IF(L69="01",HEX2DEC(S69&T69)/10,"-") -> - | AJ69: =IF(L69="01",HEX2DEC(U69&V69&W69&X69)/1000,"-") -> - | AK69: =IF(L69="01",HEX2DEC(Y69&Z69)/1000,"-") -> - | AL69: =IF(L69="01",HEX2DEC(AA69&AB69)/10,"-") -> - | AM69: =IF(L69="82",HEX2DEC(M69&N69)/100,"-") -> 50.02 | AN69: =IF(L69="82",HEX2DEC(O69&P69)/10,"-") -> 36.7 | AO69: =IF(L69="82",HEX2DEC(S69&T69)/100,"-") -> 0.16 | AP69: =IF(L69="82",HEX2DEC(W69&X69)/10,"-") -> 9.5 | AQ69: =IF(L69="01",HEX2DEC(M69&N69),"-") -> - | AR69: =IF(L69="01",HEX2DEC(AC69&AD69),"-") -> - | AS69: =IF(L69="82",HEX2DEC(Q69&R69),"-") -> 0 | AT69: =IF(L69="82",HEX2DEC(U69&V69),"-") -> 1000 | AU69: =IF(L69="82",HEX2DEC(Y69&Z69),"-") -> 6 | AV69: =IF(L69="82",HEX2DEC(AA69&AB69),"-") -> 40739 | AW69: =IF(L69="82",HEX2DEC(AC69&AD69),"-") -> 65201
A70: 09:18:40 | B70: 95 7310xxyy 7310xxyy 82138901510000000E03E80060000633B1DC5E65 1 | C70: =MID(SUBSTITUTE($B70," ",""),C$5*2+1,2) -> 95 | D70: =MID(SUBSTITUTE($B70," ",""),D$5*2+1,2) -> 73 | E70: =MID(SUBSTITUTE($B70," ",""),E$5*2+1,2) -> 10 | F70: =MID(SUBSTITUTE($B70," ",""),F$5*2+1,2) -> xx | G70: =MID(SUBSTITUTE($B70," ",""),G$5*2+1,2) -> yy | H70: =MID(SUBSTITUTE($B70," ",""),H$5*2+1,2) -> 73 | I70: =MID(SUBSTITUTE($B70," ",""),I$5*2+1,2) -> 10 | J70: =MID(SUBSTITUTE($B70," ",""),J$5*2+1,2) -> xx | K70: =MID(SUBSTITUTE($B70," ",""),K$5*2+1,2) -> yy | L70: =MID(SUBSTITUTE($B70," ",""),L$5*2+1,2) -> 82 | M70: =MID(SUBSTITUTE($B70," ",""),M$5*2+1,2) -> 13 | N70: =MID(SUBSTITUTE($B70," ",""),N$5*2+1,2) -> 89 | O70: =MID(SUBSTITUTE($B70," ",""),O$5*2+1,2) -> 01 | P70: =MID(SUBSTITUTE($B70," ",""),P$5*2+1,2) -> 51 | Q70: =MID(SUBSTITUTE($B70," ",""),Q$5*2+1,2) -> 00 | R70: =MID(SUBSTITUTE($B70," ",""),R$5*2+1,2) -> 00 | S70: =MID(SUBSTITUTE($B70," ",""),S$5*2+1,2) -> 00 | T70: =MID(SUBSTITUTE($B70," ",""),T$5*2+1,2) -> 0E | U70: =MID(SUBSTITUTE($B70," ",""),U$5*2+1,2) -> 03 | V70: =MID(SUBSTITUTE($B70," ",""),V$5*2+1,2) -> E8 | W70: =MID(SUBSTITUTE($B70," ",""),W$5*2+1,2) -> 00 | X70: =MID(SUBSTITUTE($B70," ",""),X$5*2+1,2) -> 60 | Y70: =MID(SUBSTITUTE($B70," ",""),Y$5*2+1,2) -> 00 | Z70: =MID(SUBSTITUTE($B70," ",""),Z$5*2+1,2) -> 06 | AA70: =MID(SUBSTITUTE($B70," ",""),AA$5*2+1,2) -> 33 | AB70: =MID(SUBSTITUTE($B70," ",""),AB$5*2+1,2) -> B1 | AC70: =MID(SUBSTITUTE($B70," ",""),AC$5*2+1,2) -> DC | AD70: =MID(SUBSTITUTE($B70," ",""),AD$5*2+1,2) -> 5E | AE70: =MID(SUBSTITUTE($B70," ",""),AE$5*2+1,2) -> 65 | AF70: =MID(SUBSTITUTE($B70," ",""),AF$5*2+1,2) -> 1 | AG70: =IF(L70="01",HEX2DEC(O70&P70)/10,"-") -> - | AH70: =IF(L70="01",HEX2DEC(Q70&R70)/100,"-") -> - | AI70: =IF(L70="01",HEX2DEC(S70&T70)/10,"-") -> - | AJ70: =IF(L70="01",HEX2DEC(U70&V70&W70&X70)/1000,"-") -> - | AK70: =IF(L70="01",HEX2DEC(Y70&Z70)/1000,"-") -> - | AL70: =IF(L70="01",HEX2DEC(AA70&AB70)/10,"-") -> - | AM70: =IF(L70="82",HEX2DEC(M70&N70)/100,"-") -> 50.01 | AN70: =IF(L70="82",HEX2DEC(O70&P70)/10,"-") -> 33.7 | AO70: =IF(L70="82",HEX2DEC(S70&T70)/100,"-") -> 0.14 | AP70: =IF(L70="82",HEX2DEC(W70&X70)/10,"-") -> 9.6 | AQ70: =IF(L70="01",HEX2DEC(M70&N70),"-") -> - | AR70: =IF(L70="01",HEX2DEC(AC70&AD70),"-") -> - | AS70: =IF(L70="82",HEX2DEC(Q70&R70),"-") -> 0 | AT70: =IF(L70="82",HEX2DEC(U70&V70),"-") -> 1000 | AU70: =IF(L70="82",HEX2DEC(Y70&Z70),"-") -> 6 | AV70: =IF(L70="82",HEX2DEC(AA70&AB70),"-") -> 13233 | AW70: =IF(L70="82",HEX2DEC(AC70&AD70),"-") -> 56414
A71: 09:19:04 | B71: 95 7310xxyy 7310xxyy 82138A012F0000000D03E800600006A54ACFF9B4 1 | C71: =MID(SUBSTITUTE($B71," ",""),C$5*2+1,2) -> 95 | D71: =MID(SUBSTITUTE($B71," ",""),D$5*2+1,2) -> 73 | E71: =MID(SUBSTITUTE($B71," ",""),E$5*2+1,2) -> 10 | F71: =MID(SUBSTITUTE($B71," ",""),F$5*2+1,2) -> xx | G71: =MID(SUBSTITUTE($B71," ",""),G$5*2+1,2) -> yy | H71: =MID(SUBSTITUTE($B71," ",""),H$5*2+1,2) -> 73 | I71: =MID(SUBSTITUTE($B71," ",""),I$5*2+1,2) -> 10 | J71: =MID(SUBSTITUTE($B71," ",""),J$5*2+1,2) -> xx | K71: =MID(SUBSTITUTE($B71," ",""),K$5*2+1,2) -> yy | L71: =MID(SUBSTITUTE($B71," ",""),L$5*2+1,2) -> 82 | M71: =MID(SUBSTITUTE($B71," ",""),M$5*2+1,2) -> 13 | N71: =MID(SUBSTITUTE($B71," ",""),N$5*2+1,2) -> 8A | O71: =MID(SUBSTITUTE($B71," ",""),O$5*2+1,2) -> 01 | P71: =MID(SUBSTITUTE($B71," ",""),P$5*2+1,2) -> 2F | Q71: =MID(SUBSTITUTE($B71," ",""),Q$5*2+1,2) -> 00 | R71: =MID(SUBSTITUTE($B71," ",""),R$5*2+1,2) -> 00 | S71: =MID(SUBSTITUTE($B71," ",""),S$5*2+1,2) -> 00 | T71: =MID(SUBSTITUTE($B71," ",""),T$5*2+1,2) -> 0D | U71: =MID(SUBSTITUTE($B71," ",""),U$5*2+1,2) -> 03 | V71: =MID(SUBSTITUTE($B71," ",""),V$5*2+1,2) -> E8 | W71: =MID(SUBSTITUTE($B71," ",""),W$5*2+1,2) -> 00 | X71: =MID(SUBSTITUTE($B71," ",""),X$5*2+1,2) -> 60 | Y71: =MID(SUBSTITUTE($B71," ",""),Y$5*2+1,2) -> 00 | Z71: =MID(SUBSTITUTE($B71," ",""),Z$5*2+1,2) -> 06 | AA71: =MID(SUBSTITUTE($B71," ",""),AA$5*2+1,2) -> A5 | AB71: =MID(SUBSTITUTE($B71," ",""),AB$5*2+1,2) -> 4A | AC71: =MID(SUBSTITUTE($B71," ",""),AC$5*2+1,2) -> CF | AD71: =MID(SUBSTITUTE($B71," ",""),AD$5*2+1,2) -> F9 | AE71: =MID(SUBSTITUTE($B71," ",""),AE$5*2+1,2) -> B4 | AF71: =MID(SUBSTITUTE($B71," ",""),AF$5*2+1,2) -> 1 | AG71: =IF(L71="01",HEX2DEC(O71&P71)/10,"-") -> - | AH71: =IF(L71="01",HEX2DEC(Q71&R71)/100,"-") -> - | AI71: =IF(L71="01",HEX2DEC(S71&T71)/10,"-") -> - | AJ71: =IF(L71="01",HEX2DEC(U71&V71&W71&X71)/1000,"-") -> - | AK71: =IF(L71="01",HEX2DEC(Y71&Z71)/1000,"-") -> - | AL71: =IF(L71="01",HEX2DEC(AA71&AB71)/10,"-") -> - | AM71: =IF(L71="82",HEX2DEC(M71&N71)/100,"-") -> 50.02 | AN71: =IF(L71="82",HEX2DEC(O71&P71)/10,"-") -> 30.3 | AO71: =IF(L71="82",HEX2DEC(S71&T71)/100,"-") -> 0.13 | AP71: =IF(L71="82",HEX2DEC(W71&X71)/10,"-") -> 9.6 | AQ71: =IF(L71="01",HEX2DEC(M71&N71),"-") -> - | AR71: =IF(L71="01",HEX2DEC(AC71&AD71),"-") -> - | AS71: =IF(L71="82",HEX2DEC(Q71&R71),"-") -> 0 | AT71: =IF(L71="82",HEX2DEC(U71&V71),"-") -> 1000 | AU71: =IF(L71="82",HEX2DEC(Y71&Z71),"-") -> 6 | AV71: =IF(L71="82",HEX2DEC(AA71&AB71),"-") -> 42314 | AW71: =IF(L71="82",HEX2DEC(AC71&AD71),"-") -> 53241
A72: 09:19:55 | B72: 95 7310xxyy 7310xxyy 82138700F40000000A03E8006000064A54EEED78 1 | C72: =MID(SUBSTITUTE($B72," ",""),C$5*2+1,2) -> 95 | D72: =MID(SUBSTITUTE($B72," ",""),D$5*2+1,2) -> 73 | E72: =MID(SUBSTITUTE($B72," ",""),E$5*2+1,2) -> 10 | F72: =MID(SUBSTITUTE($B72," ",""),F$5*2+1,2) -> xx | G72: =MID(SUBSTITUTE($B72," ",""),G$5*2+1,2) -> yy | H72: =MID(SUBSTITUTE($B72," ",""),H$5*2+1,2) -> 73 | I72: =MID(SUBSTITUTE($B72," ",""),I$5*2+1,2) -> 10 | J72: =MID(SUBSTITUTE($B72," ",""),J$5*2+1,2) -> xx | K72: =MID(SUBSTITUTE($B72," ",""),K$5*2+1,2) -> yy | L72: =MID(SUBSTITUTE($B72," ",""),L$5*2+1,2) -> 82 | M72: =MID(SUBSTITUTE($B72," ",""),M$5*2+1,2) -> 13 | N72: =MID(SUBSTITUTE($B72," ",""),N$5*2+1,2) -> 87 | O72: =MID(SUBSTITUTE($B72," ",""),O$5*2+1,2) -> 00 | P72: =MID(SUBSTITUTE($B72," ",""),P$5*2+1,2) -> F4 | Q72: =MID(SUBSTITUTE($B72," ",""),Q$5*2+1,2) -> 00 | R72: =MID(SUBSTITUTE($B72," ",""),R$5*2+1,2) -> 00 | S72: =MID(SUBSTITUTE($B72," ",""),S$5*2+1,2) -> 00 | T72: =MID(SUBSTITUTE($B72," ",""),T$5*2+1,2) -> 0A | U72: =MID(SUBSTITUTE($B72," ",""),U$5*2+1,2) -> 03 | V72: =MID(SUBSTITUTE($B72," ",""),V$5*2+1,2) -> E8 | W72: =MID(SUBSTITUTE($B72," ",""),W$5*2+1,2) -> 00 | X72: =MID(SUBSTITUTE($B72," ",""),X$5*2+1,2) -> 60 | Y72: =MID(SUBSTITUTE($B72," ",""),Y$5*2+1,2) -> 00 | Z72: =MID(SUBSTITUTE($B72," ",""),Z$5*2+1,2) -> 06 | AA72: =MID(SUBSTITUTE($B72," ",""),AA$5*2+1,2) -> 4A | AB72: =MID(SUBSTITUTE($B72," ",""),AB$5*2+1,2) -> 54 | AC72: =MID(SUBSTITUTE($B72," ",""),AC$5*2+1,2) -> EE | AD72: =MID(SUBSTITUTE($B72," ",""),AD$5*2+1,2) -> ED | AE72: =MID(SUBSTITUTE($B72," ",""),AE$5*2+1,2) -> 78 | AF72: =MID(SUBSTITUTE($B72," ",""),AF$5*2+1,2) -> 1 | AG72: =IF(L72="01",HEX2DEC(O72&P72)/10,"-") -> - | AH72: =IF(L72="01",HEX2DEC(Q72&R72)/100,"-") -> - | AI72: =IF(L72="01",HEX2DEC(S72&T72)/10,"-") -> - | AJ72: =IF(L72="01",HEX2DEC(U72&V72&W72&X72)/1000,"-") -> - | AK72: =IF(L72="01",HEX2DEC(Y72&Z72)/1000,"-") -> - | AL72: =IF(L72="01",HEX2DEC(AA72&AB72)/10,"-") -> - | AM72: =IF(L72="82",HEX2DEC(M72&N72)/100,"-") -> 49.99 | AN72: =IF(L72="82",HEX2DEC(O72&P72)/10,"-") -> 24.4 | AO72: =IF(L72="82",HEX2DEC(S72&T72)/100,"-") -> 0.1 | AP72: =IF(L72="82",HEX2DEC(W72&X72)/10,"-") -> 9.6 | AQ72: =IF(L72="01",HEX2DEC(M72&N72),"-") -> - | AR72: =IF(L72="01",HEX2DEC(AC72&AD72),"-") -> - | AS72: =IF(L72="82",HEX2DEC(Q72&R72),"-") -> 0 | AT72: =IF(L72="82",HEX2DEC(U72&V72),"-") -> 1000 | AU72: =IF(L72="82",HEX2DEC(Y72&Z72),"-") -> 6 | AV72: =IF(L72="82",HEX2DEC(AA72&AB72),"-") -> 19028 | AW72: =IF(L72="82",HEX2DEC(AC72&AD72),"-") -> 61165
A73: 09:19:56 | B73: 95 7310xxyy 7310xxyy 82138700F40000000A03E8006000064A54EEA450 1 | C73: =MID(SUBSTITUTE($B73," ",""),C$5*2+1,2) -> 95 | D73: =MID(SUBSTITUTE($B73," ",""),D$5*2+1,2) -> 73 | E73: =MID(SUBSTITUTE($B73," ",""),E$5*2+1,2) -> 10 | F73: =MID(SUBSTITUTE($B73," ",""),F$5*2+1,2) -> xx | G73: =MID(SUBSTITUTE($B73," ",""),G$5*2+1,2) -> yy | H73: =MID(SUBSTITUTE($B73," ",""),H$5*2+1,2) -> 73 | I73: =MID(SUBSTITUTE($B73," ",""),I$5*2+1,2) -> 10 | J73: =MID(SUBSTITUTE($B73," ",""),J$5*2+1,2) -> xx | K73: =MID(SUBSTITUTE($B73," ",""),K$5*2+1,2) -> yy | L73: =MID(SUBSTITUTE($B73," ",""),L$5*2+1,2) -> 82 | M73: =MID(SUBSTITUTE($B73," ",""),M$5*2+1,2) -> 13 | N73: =MID(SUBSTITUTE($B73," ",""),N$5*2+1,2) -> 87 | O73: =MID(SUBSTITUTE($B73," ",""),O$5*2+1,2) -> 00 | P73: =MID(SUBSTITUTE($B73," ",""),P$5*2+1,2) -> F4 | Q73: =MID(SUBSTITUTE($B73," ",""),Q$5*2+1,2) -> 00 | R73: =MID(SUBSTITUTE($B73," ",""),R$5*2+1,2) -> 00 | S73: =MID(SUBSTITUTE($B73," ",""),S$5*2+1,2) -> 00 | T73: =MID(SUBSTITUTE($B73," ",""),T$5*2+1,2) -> 0A | U73: =MID(SUBSTITUTE($B73," ",""),U$5*2+1,2) -> 03 | V73: =MID(SUBSTITUTE($B73," ",""),V$5*2+1,2) -> E8 | W73: =MID(SUBSTITUTE($B73," ",""),W$5*2+1,2) -> 00 | X73: =MID(SUBSTITUTE($B73," ",""),X$5*2+1,2) -> 60 | Y73: =MID(SUBSTITUTE($B73," ",""),Y$5*2+1,2) -> 00 | Z73: =MID(SUBSTITUTE($B73," ",""),Z$5*2+1,2) -> 06 | AA73: =MID(SUBSTITUTE($B73," ",""),AA$5*2+1,2) -> 4A | AB73: =MID(SUBSTITUTE($B73," ",""),AB$5*2+1,2) -> 54 | AC73: =MID(SUBSTITUTE($B73," ",""),AC$5*2+1,2) -> EE | AD73: =MID(SUBSTITUTE($B73," ",""),AD$5*2+1,2) -> A4 | AE73: =MID(SUBSTITUTE($B73," ",""),AE$5*2+1,2) -> 50 | AF73: =MID(SUBSTITUTE($B73," ",""),AF$5*2+1,2) -> 1 | AG73: =IF(L73="01",HEX2DEC(O73&P73)/10,"-") -> - | AH73: =IF(L73="01",HEX2DEC(Q73&R73)/100,"-") -> - | AI73: =IF(L73="01",HEX2DEC(S73&T73)/10,"-") -> - | AJ73: =IF(L73="01",HEX2DEC(U73&V73&W73&X73)/1000,"-") -> - | AK73: =IF(L73="01",HEX2DEC(Y73&Z73)/1000,"-") -> - | AL73: =IF(L73="01",HEX2DEC(AA73&AB73)/10,"-") -> - | AM73: =IF(L73="82",HEX2DEC(M73&N73)/100,"-") -> 49.99 | AN73: =IF(L73="82",HEX2DEC(O73&P73)/10,"-") -> 24.4 | AO73: =IF(L73="82",HEX2DEC(S73&T73)/100,"-") -> 0.1 | AP73: =IF(L73="82",HEX2DEC(W73&X73)/10,"-") -> 9.6 | AQ73: =IF(L73="01",HEX2DEC(M73&N73),"-") -> - | AR73: =IF(L73="01",HEX2DEC(AC73&AD73),"-") -> - | AS73: =IF(L73="82",HEX2DEC(Q73&R73),"-") -> 0 | AT73: =IF(L73="82",HEX2DEC(U73&V73),"-") -> 1000 | AU73: =IF(L73="82",HEX2DEC(Y73&Z73),"-") -> 6 | AV73: =IF(L73="82",HEX2DEC(AA73&AB73),"-") -> 19028 | AW73: =IF(L73="82",HEX2DEC(AC73&AD73),"-") -> 61092
A74: 09:20:04 | B74: 95 7310xxyy 7310xxyy 0100010197003D00F60000FA81001F09298C6EE8 1 | C74: =MID(SUBSTITUTE($B74," ",""),C$5*2+1,2) -> 95 | D74: =MID(SUBSTITUTE($B74," ",""),D$5*2+1,2) -> 73 | E74: =MID(SUBSTITUTE($B74," ",""),E$5*2+1,2) -> 10 | F74: =MID(SUBSTITUTE($B74," ",""),F$5*2+1,2) -> xx | G74: =MID(SUBSTITUTE($B74," ",""),G$5*2+1,2) -> yy | H74: =MID(SUBSTITUTE($B74," ",""),H$5*2+1,2) -> 73 | I74: =MID(SUBSTITUTE($B74," ",""),I$5*2+1,2) -> 10 | J74: =MID(SUBSTITUTE($B74," ",""),J$5*2+1,2) -> xx | K74: =MID(SUBSTITUTE($B74," ",""),K$5*2+1,2) -> yy | L74: =MID(SUBSTITUTE($B74," ",""),L$5*2+1,2) -> 01 | M74: =MID(SUBSTITUTE($B74," ",""),M$5*2+1,2) -> 00 | N74: =MID(SUBSTITUTE($B74," ",""),N$5*2+1,2) -> 01 | O74: =MID(SUBSTITUTE($B74," ",""),O$5*2+1,2) -> 01 | P74: =MID(SUBSTITUTE($B74," ",""),P$5*2+1,2) -> 97 | Q74: =MID(SUBSTITUTE($B74," ",""),Q$5*2+1,2) -> 00 | R74: =MID(SUBSTITUTE($B74," ",""),R$5*2+1,2) -> 3D | S74: =MID(SUBSTITUTE($B74," ",""),S$5*2+1,2) -> 00 | T74: =MID(SUBSTITUTE($B74," ",""),T$5*2+1,2) -> F6 | U74: =MID(SUBSTITUTE($B74," ",""),U$5*2+1,2) -> 00 | V74: =MID(SUBSTITUTE($B74," ",""),V$5*2+1,2) -> 00 | W74: =MID(SUBSTITUTE($B74," ",""),W$5*2+1,2) -> FA | X74: =MID(SUBSTITUTE($B74," ",""),X$5*2+1,2) -> 81 | Y74: =MID(SUBSTITUTE($B74," ",""),Y$5*2+1,2) -> 00 | Z74: =MID(SUBSTITUTE($B74," ",""),Z$5*2+1,2) -> 1F | AA74: =MID(SUBSTITUTE($B74," ",""),AA$5*2+1,2) -> 09 | AB74: =MID(SUBSTITUTE($B74," ",""),AB$5*2+1,2) -> 29 | AC74: =MID(SUBSTITUTE($B74," ",""),AC$5*2+1,2) -> 8C | AD74: =MID(SUBSTITUTE($B74," ",""),AD$5*2+1,2) -> 6E | AE74: =MID(SUBSTITUTE($B74," ",""),AE$5*2+1,2) -> E8 | AF74: =MID(SUBSTITUTE($B74," ",""),AF$5*2+1,2) -> 1 | AG74: =IF(L74="01",HEX2DEC(O74&P74)/10,"-") -> 40.7 | AH74: =IF(L74="01",HEX2DEC(Q74&R74)/100,"-") -> 0.61 | AI74: =IF(L74="01",HEX2DEC(S74&T74)/10,"-") -> 24.6 | AJ74: =IF(L74="01",HEX2DEC(U74&V74&W74&X74)/1000,"-") -> 64.129 | AK74: =IF(L74="01",HEX2DEC(Y74&Z74)/1000,"-") -> 0.031 | AL74: =IF(L74="01",HEX2DEC(AA74&AB74)/10,"-") -> 234.5 | AM74: =IF(L74="82",HEX2DEC(M74&N74)/100,"-") -> - | AN74: =IF(L74="82",HEX2DEC(O74&P74)/10,"-") -> - | AO74: =IF(L74="82",HEX2DEC(S74&T74)/100,"-") -> - | AP74: =IF(L74="82",HEX2DEC(W74&X74)/10,"-") -> - | AQ74: =IF(L74="01",HEX2DEC(M74&N74),"-") -> 1 | AR74: =IF(L74="01",HEX2DEC(AC74&AD74),"-") -> 35950 | AS74: =IF(L74="82",HEX2DEC(Q74&R74),"-") -> - | AT74: =IF(L74="82",HEX2DEC(U74&V74),"-") -> - | AU74: =IF(L74="82",HEX2DEC(Y74&Z74),"-") -> - | AV74: =IF(L74="82",HEX2DEC(AA74&AB74),"-") -> - | AW74: =IF(L74="82",HEX2DEC(AC74&AD74),"-") -> -
A75: 09:20:04 | B75: 95 7310xxyy 7310xxyy 82138800EA0000000A03E8006000069A354E5AFC 5C B18D B388 B562 B8B6 5E65 BE5C B8B6 B562 B8B6 B388 F9B4 B562 BE5C B388 B562 B8B6 BE5C B388 B562 B8B6 B388 ED78 A450 B388 6EE8 1 | C75: =MID(SUBSTITUTE($B75," ",""),C$5*2+1,2) -> 95 | D75: =MID(SUBSTITUTE($B75," ",""),D$5*2+1,2) -> 73 | E75: =MID(SUBSTITUTE($B75," ",""),E$5*2+1,2) -> 10 | F75: =MID(SUBSTITUTE($B75," ",""),F$5*2+1,2) -> xx | G75: =MID(SUBSTITUTE($B75," ",""),G$5*2+1,2) -> yy | H75: =MID(SUBSTITUTE($B75," ",""),H$5*2+1,2) -> 73 | I75: =MID(SUBSTITUTE($B75," ",""),I$5*2+1,2) -> 10 | J75: =MID(SUBSTITUTE($B75," ",""),J$5*2+1,2) -> xx | K75: =MID(SUBSTITUTE($B75," ",""),K$5*2+1,2) -> yy | L75: =MID(SUBSTITUTE($B75," ",""),L$5*2+1,2) -> 82 | M75: =MID(SUBSTITUTE($B75," ",""),M$5*2+1,2) -> 13 | N75: =MID(SUBSTITUTE($B75," ",""),N$5*2+1,2) -> 88 | O75: =MID(SUBSTITUTE($B75," ",""),O$5*2+1,2) -> 00 | P75: =MID(SUBSTITUTE($B75," ",""),P$5*2+1,2) -> EA | Q75: =MID(SUBSTITUTE($B75," ",""),Q$5*2+1,2) -> 00 | R75: =MID(SUBSTITUTE($B75," ",""),R$5*2+1,2) -> 00 | S75: =MID(SUBSTITUTE($B75," ",""),S$5*2+1,2) -> 00 | T75: =MID(SUBSTITUTE($B75," ",""),T$5*2+1,2) -> 0A | U75: =MID(SUBSTITUTE($B75," ",""),U$5*2+1,2) -> 03 | V75: =MID(SUBSTITUTE($B75," ",""),V$5*2+1,2) -> E8 | W75: =MID(SUBSTITUTE($B75," ",""),W$5*2+1,2) -> 00 | X75: =MID(SUBSTITUTE($B75," ",""),X$5*2+1,2) -> 60 | Y75: =MID(SUBSTITUTE($B75," ",""),Y$5*2+1,2) -> 00 | Z75: =MID(SUBSTITUTE($B75," ",""),Z$5*2+1,2) -> 06 | AA75: =MID(SUBSTITUTE($B75," ",""),AA$5*2+1,2) -> 9A | AB75: =MID(SUBSTITUTE($B75," ",""),AB$5*2+1,2) -> 35 | AC75: =MID(SUBSTITUTE($B75," ",""),AC$5*2+1,2) -> 4E | AD75: =MID(SUBSTITUTE($B75," ",""),AD$5*2+1,2) -> 5A | AE75: =MID(SUBSTITUTE($B75," ",""),AE$5*2+1,2) -> FC | AF75: =MID(SUBSTITUTE($B75," ",""),AF$5*2+1,2) -> 5C | AG75: =IF(L75="01",HEX2DEC(O75&P75)/10,"-") -> - | AH75: =IF(L75="01",HEX2DEC(Q75&R75)/100,"-") -> - | AI75: =IF(L75="01",HEX2DEC(S75&T75)/10,"-") -> - | AJ75: =IF(L75="01",HEX2DEC(U75&V75&W75&X75)/1000,"-") -> - | AK75: =IF(L75="01",HEX2DEC(Y75&Z75)/1000,"-") -> - | AL75: =IF(L75="01",HEX2DEC(AA75&AB75)/10,"-") -> - | AM75: =IF(L75="82",HEX2DEC(M75&N75)/100,"-") -> 50 | AN75: =IF(L75="82",HEX2DEC(O75&P75)/10,"-") -> 23.4 | AO75: =IF(L75="82",HEX2DEC(S75&T75)/100,"-") -> 0.1 | AP75: =IF(L75="82",HEX2DEC(W75&X75)/10,"-") -> 9.6 | AQ75: =IF(L75="01",HEX2DEC(M75&N75),"-") -> - | AR75: =IF(L75="01",HEX2DEC(AC75&AD75),"-") -> - | AS75: =IF(L75="82",HEX2DEC(Q75&R75),"-") -> 0 | AT75: =IF(L75="82",HEX2DEC(U75&V75),"-") -> 1000 | AU75: =IF(L75="82",HEX2DEC(Y75&Z75),"-") -> 6 | AV75: =IF(L75="82",HEX2DEC(AA75&AB75),"-") -> 39477 | AW75: =IF(L75="82",HEX2DEC(AC75&AD75),"-") -> 20058
A76: 09:20:08 | B76: 95 7310xxyy 7310xxyy 82138800EA0000000A03E8006000069A354E8184 1 | C76: =MID(SUBSTITUTE($B76," ",""),C$5*2+1,2) -> 95 | D76: =MID(SUBSTITUTE($B76," ",""),D$5*2+1,2) -> 73 | E76: =MID(SUBSTITUTE($B76," ",""),E$5*2+1,2) -> 10 | F76: =MID(SUBSTITUTE($B76," ",""),F$5*2+1,2) -> xx | G76: =MID(SUBSTITUTE($B76," ",""),G$5*2+1,2) -> yy | H76: =MID(SUBSTITUTE($B76," ",""),H$5*2+1,2) -> 73 | I76: =MID(SUBSTITUTE($B76," ",""),I$5*2+1,2) -> 10 | J76: =MID(SUBSTITUTE($B76," ",""),J$5*2+1,2) -> xx | K76: =MID(SUBSTITUTE($B76," ",""),K$5*2+1,2) -> yy | L76: =MID(SUBSTITUTE($B76," ",""),L$5*2+1,2) -> 82 | M76: =MID(SUBSTITUTE($B76," ",""),M$5*2+1,2) -> 13 | N76: =MID(SUBSTITUTE($B76," ",""),N$5*2+1,2) -> 88 | O76: =MID(SUBSTITUTE($B76," ",""),O$5*2+1,2) -> 00 | P76: =MID(SUBSTITUTE($B76," ",""),P$5*2+1,2) -> EA | Q76: =MID(SUBSTITUTE($B76," ",""),Q$5*2+1,2) -> 00 | R76: =MID(SUBSTITUTE($B76," ",""),R$5*2+1,2) -> 00 | S76: =MID(SUBSTITUTE($B76," ",""),S$5*2+1,2) -> 00 | T76: =MID(SUBSTITUTE($B76," ",""),T$5*2+1,2) -> 0A | U76: =MID(SUBSTITUTE($B76," ",""),U$5*2+1,2) -> 03 | V76: =MID(SUBSTITUTE($B76," ",""),V$5*2+1,2) -> E8 | W76: =MID(SUBSTITUTE($B76," ",""),W$5*2+1,2) -> 00 | X76: =MID(SUBSTITUTE($B76," ",""),X$5*2+1,2) -> 60 | Y76: =MID(SUBSTITUTE($B76," ",""),Y$5*2+1,2) -> 00 | Z76: =MID(SUBSTITUTE($B76," ",""),Z$5*2+1,2) -> 06 | AA76: =MID(SUBSTITUTE($B76," ",""),AA$5*2+1,2) -> 9A | AB76: =MID(SUBSTITUTE($B76," ",""),AB$5*2+1,2) -> 35 | AC76: =MID(SUBSTITUTE($B76," ",""),AC$5*2+1,2) -> 4E | AD76: =MID(SUBSTITUTE($B76," ",""),AD$5*2+1,2) -> 81 | AE76: =MID(SUBSTITUTE($B76," ",""),AE$5*2+1,2) -> 84 | AF76: =MID(SUBSTITUTE($B76," ",""),AF$5*2+1,2) -> 1 | AG76: =IF(L76="01",HEX2DEC(O76&P76)/10,"-") -> - | AH76: =IF(L76="01",HEX2DEC(Q76&R76)/100,"-") -> - | AI76: =IF(L76="01",HEX2DEC(S76&T76)/10,"-") -> - | AJ76: =IF(L76="01",HEX2DEC(U76&V76&W76&X76)/1000,"-") -> - | AK76: =IF(L76="01",HEX2DEC(Y76&Z76)/1000,"-") -> - | AL76: =IF(L76="01",HEX2DEC(AA76&AB76)/10,"-") -> - | AM76: =IF(L76="82",HEX2DEC(M76&N76)/100,"-") -> 50 | AN76: =IF(L76="82",HEX2DEC(O76&P76)/10,"-") -> 23.4 | AO76: =IF(L76="82",HEX2DEC(S76&T76)/100,"-") -> 0.1 | AP76: =IF(L76="82",HEX2DEC(W76&X76)/10,"-") -> 9.6 | AQ76: =IF(L76="01",HEX2DEC(M76&N76),"-") -> - | AR76: =IF(L76="01",HEX2DEC(AC76&AD76),"-") -> - | AS76: =IF(L76="82",HEX2DEC(Q76&R76),"-") -> 0 | AT76: =IF(L76="82",HEX2DEC(U76&V76),"-") -> 1000 | AU76: =IF(L76="82",HEX2DEC(Y76&Z76),"-") -> 6 | AV76: =IF(L76="82",HEX2DEC(AA76&AB76),"-") -> 39477 | AW76: =IF(L76="82",HEX2DEC(AC76&AD76),"-") -> 20097
A77: 09:20:16 | B77: 95 7310xxyy 7310xxyy 0100010195003B00F00000FA81001F092C8B6FB9 1 | C77: =MID(SUBSTITUTE($B77," ",""),C$5*2+1,2) -> 95 | D77: =MID(SUBSTITUTE($B77," ",""),D$5*2+1,2) -> 73 | E77: =MID(SUBSTITUTE($B77," ",""),E$5*2+1,2) -> 10 | F77: =MID(SUBSTITUTE($B77," ",""),F$5*2+1,2) -> xx | G77: =MID(SUBSTITUTE($B77," ",""),G$5*2+1,2) -> yy | H77: =MID(SUBSTITUTE($B77," ",""),H$5*2+1,2) -> 73 | I77: =MID(SUBSTITUTE($B77," ",""),I$5*2+1,2) -> 10 | J77: =MID(SUBSTITUTE($B77," ",""),J$5*2+1,2) -> xx | K77: =MID(SUBSTITUTE($B77," ",""),K$5*2+1,2) -> yy | L77: =MID(SUBSTITUTE($B77," ",""),L$5*2+1,2) -> 01 | M77: =MID(SUBSTITUTE($B77," ",""),M$5*2+1,2) -> 00 | N77: =MID(SUBSTITUTE($B77," ",""),N$5*2+1,2) -> 01 | O77: =MID(SUBSTITUTE($B77," ",""),O$5*2+1,2) -> 01 | P77: =MID(SUBSTITUTE($B77," ",""),P$5*2+1,2) -> 95 | Q77: =MID(SUBSTITUTE($B77," ",""),Q$5*2+1,2) -> 00 | R77: =MID(SUBSTITUTE($B77," ",""),R$5*2+1,2) -> 3B | S77: =MID(SUBSTITUTE($B77," ",""),S$5*2+1,2) -> 00 | T77: =MID(SUBSTITUTE($B77," ",""),T$5*2+1,2) -> F0 | U77: =MID(SUBSTITUTE($B77," ",""),U$5*2+1,2) -> 00 | V77: =MID(SUBSTITUTE($B77," ",""),V$5*2+1,2) -> 00 | W77: =MID(SUBSTITUTE($B77," ",""),W$5*2+1,2) -> FA | X77: =MID(SUBSTITUTE($B77," ",""),X$5*2+1,2) -> 81 | Y77: =MID(SUBSTITUTE($B77," ",""),Y$5*2+1,2) -> 00 | Z77: =MID(SUBSTITUTE($B77," ",""),Z$5*2+1,2) -> 1F | AA77: =MID(SUBSTITUTE($B77," ",""),AA$5*2+1,2) -> 09 | AB77: =MID(SUBSTITUTE($B77," ",""),AB$5*2+1,2) -> 2C | AC77: =MID(SUBSTITUTE($B77," ",""),AC$5*2+1,2) -> 8B | AD77: =MID(SUBSTITUTE($B77," ",""),AD$5*2+1,2) -> 6F | AE77: =MID(SUBSTITUTE($B77," ",""),AE$5*2+1,2) -> B9 | AF77: =MID(SUBSTITUTE($B77," ",""),AF$5*2+1,2) -> 1 | AG77: =IF(L77="01",HEX2DEC(O77&P77)/10,"-") -> 40.5 | AH77: =IF(L77="01",HEX2DEC(Q77&R77)/100,"-") -> 0.59 | AI77: =IF(L77="01",HEX2DEC(S77&T77)/10,"-") -> 24 | AJ77: =IF(L77="01",HEX2DEC(U77&V77&W77&X77)/1000,"-") -> 64.129 | AK77: =IF(L77="01",HEX2DEC(Y77&Z77)/1000,"-") -> 0.031 | AL77: =IF(L77="01",HEX2DEC(AA77&AB77)/10,"-") -> 234.8 | AM77: =IF(L77="82",HEX2DEC(M77&N77)/100,"-") -> - | AN77: =IF(L77="82",HEX2DEC(O77&P77)/10,"-") -> - | AO77: =IF(L77="82",HEX2DEC(S77&T77)/100,"-") -> - | AP77: =IF(L77="82",HEX2DEC(W77&X77)/10,"-") -> - | AQ77: =IF(L77="01",HEX2DEC(M77&N77),"-") -> 1 | AR77: =IF(L77="01",HEX2DEC(AC77&AD77),"-") -> 35695 | AS77: =IF(L77="82",HEX2DEC(Q77&R77),"-") -> - | AT77: =IF(L77="82",HEX2DEC(U77&V77),"-") -> - | AU77: =IF(L77="82",HEX2DEC(Y77&Z77),"-") -> - | AV77: =IF(L77="82",HEX2DEC(AA77&AB77),"-") -> - | AW77: =IF(L77="82",HEX2DEC(AC77&AD77),"-") -> -
A78: 09:20:16 | B78: 95 7310xxyy 7310xxyy 82138800E40000000A03E800610006E93F388F92 1 | C78: =MID(SUBSTITUTE($B78," ",""),C$5*2+1,2) -> 95 | D78: =MID(SUBSTITUTE($B78," ",""),D$5*2+1,2) -> 73 | E78: =MID(SUBSTITUTE($B78," ",""),E$5*2+1,2) -> 10 | F78: =MID(SUBSTITUTE($B78," ",""),F$5*2+1,2) -> xx | G78: =MID(SUBSTITUTE($B78," ",""),G$5*2+1,2) -> yy | H78: =MID(SUBSTITUTE($B78," ",""),H$5*2+1,2) -> 73 | I78: =MID(SUBSTITUTE($B78," ",""),I$5*2+1,2) -> 10 | J78: =MID(SUBSTITUTE($B78," ",""),J$5*2+1,2) -> xx | K78: =MID(SUBSTITUTE($B78," ",""),K$5*2+1,2) -> yy | L78: =MID(SUBSTITUTE($B78," ",""),L$5*2+1,2) -> 82 | M78: =MID(SUBSTITUTE($B78," ",""),M$5*2+1,2) -> 13 | N78: =MID(SUBSTITUTE($B78," ",""),N$5*2+1,2) -> 88 | O78: =MID(SUBSTITUTE($B78," ",""),O$5*2+1,2) -> 00 | P78: =MID(SUBSTITUTE($B78," ",""),P$5*2+1,2) -> E4 | Q78: =MID(SUBSTITUTE($B78," ",""),Q$5*2+1,2) -> 00 | R78: =MID(SUBSTITUTE($B78," ",""),R$5*2+1,2) -> 00 | S78: =MID(SUBSTITUTE($B78," ",""),S$5*2+1,2) -> 00 | T78: =MID(SUBSTITUTE($B78," ",""),T$5*2+1,2) -> 0A | U78: =MID(SUBSTITUTE($B78," ",""),U$5*2+1,2) -> 03 | V78: =MID(SUBSTITUTE($B78," ",""),V$5*2+1,2) -> E8 | W78: =MID(SUBSTITUTE($B78," ",""),W$5*2+1,2) -> 00 | X78: =MID(SUBSTITUTE($B78," ",""),X$5*2+1,2) -> 61 | Y78: =MID(SUBSTITUTE($B78," ",""),Y$5*2+1,2) -> 00 | Z78: =MID(SUBSTITUTE($B78," ",""),Z$5*2+1,2) -> 06 | AA78: =MID(SUBSTITUTE($B78," ",""),AA$5*2+1,2) -> E9 | AB78: =MID(SUBSTITUTE($B78," ",""),AB$5*2+1,2) -> 3F | AC78: =MID(SUBSTITUTE($B78," ",""),AC$5*2+1,2) -> 38 | AD78: =MID(SUBSTITUTE($B78," ",""),AD$5*2+1,2) -> 8F | AE78: =MID(SUBSTITUTE($B78," ",""),AE$5*2+1,2) -> 92 | AF78: =MID(SUBSTITUTE($B78," ",""),AF$5*2+1,2) -> 1 | AG78: =IF(L78="01",HEX2DEC(O78&P78)/10,"-") -> - | AH78: =IF(L78="01",HEX2DEC(Q78&R78)/100,"-") -> - | AI78: =IF(L78="01",HEX2DEC(S78&T78)/10,"-") -> - | AJ78: =IF(L78="01",HEX2DEC(U78&V78&W78&X78)/1000,"-") -> - | AK78: =IF(L78="01",HEX2DEC(Y78&Z78)/1000,"-") -> - | AL78: =IF(L78="01",HEX2DEC(AA78&AB78)/10,"-") -> - | AM78: =IF(L78="82",HEX2DEC(M78&N78)/100,"-") -> 50 | AN78: =IF(L78="82",HEX2DEC(O78&P78)/10,"-") -> 22.8 | AO78: =IF(L78="82",HEX2DEC(S78&T78)/100,"-") -> 0.1 | AP78: =IF(L78="82",HEX2DEC(W78&X78)/10,"-") -> 9.7 | AQ78: =IF(L78="01",HEX2DEC(M78&N78),"-") -> - | AR78: =IF(L78="01",HEX2DEC(AC78&AD78),"-") -> - | AS78: =IF(L78="82",HEX2DEC(Q78&R78),"-") -> 0 | AT78: =IF(L78="82",HEX2DEC(U78&V78),"-") -> 1000 | AU78: =IF(L78="82",HEX2DEC(Y78&Z78),"-") -> 6 | AV78: =IF(L78="82",HEX2DEC(AA78&AB78),"-") -> 59711 | AW78: =IF(L78="82",HEX2DEC(AC78&AD78),"-") -> 14479
A79: 09:20:20 | B79: 95 7310xxyy 7310xxyy 82138800E40000000A03E800610006E93F381DC2 1 | C79: =MID(SUBSTITUTE($B79," ",""),C$5*2+1,2) -> 95 | D79: =MID(SUBSTITUTE($B79," ",""),D$5*2+1,2) -> 73 | E79: =MID(SUBSTITUTE($B79," ",""),E$5*2+1,2) -> 10 | F79: =MID(SUBSTITUTE($B79," ",""),F$5*2+1,2) -> xx | G79: =MID(SUBSTITUTE($B79," ",""),G$5*2+1,2) -> yy | H79: =MID(SUBSTITUTE($B79," ",""),H$5*2+1,2) -> 73 | I79: =MID(SUBSTITUTE($B79," ",""),I$5*2+1,2) -> 10 | J79: =MID(SUBSTITUTE($B79," ",""),J$5*2+1,2) -> xx | K79: =MID(SUBSTITUTE($B79," ",""),K$5*2+1,2) -> yy | L79: =MID(SUBSTITUTE($B79," ",""),L$5*2+1,2) -> 82 | M79: =MID(SUBSTITUTE($B79," ",""),M$5*2+1,2) -> 13 | N79: =MID(SUBSTITUTE($B79," ",""),N$5*2+1,2) -> 88 | O79: =MID(SUBSTITUTE($B79," ",""),O$5*2+1,2) -> 00 | P79: =MID(SUBSTITUTE($B79," ",""),P$5*2+1,2) -> E4 | Q79: =MID(SUBSTITUTE($B79," ",""),Q$5*2+1,2) -> 00 | R79: =MID(SUBSTITUTE($B79," ",""),R$5*2+1,2) -> 00 | S79: =MID(SUBSTITUTE($B79," ",""),S$5*2+1,2) -> 00 | T79: =MID(SUBSTITUTE($B79," ",""),T$5*2+1,2) -> 0A | U79: =MID(SUBSTITUTE($B79," ",""),U$5*2+1,2) -> 03 | V79: =MID(SUBSTITUTE($B79," ",""),V$5*2+1,2) -> E8 | W79: =MID(SUBSTITUTE($B79," ",""),W$5*2+1,2) -> 00 | X79: =MID(SUBSTITUTE($B79," ",""),X$5*2+1,2) -> 61 | Y79: =MID(SUBSTITUTE($B79," ",""),Y$5*2+1,2) -> 00 | Z79: =MID(SUBSTITUTE($B79," ",""),Z$5*2+1,2) -> 06 | AA79: =MID(SUBSTITUTE($B79," ",""),AA$5*2+1,2) -> E9 | AB79: =MID(SUBSTITUTE($B79," ",""),AB$5*2+1,2) -> 3F | AC79: =MID(SUBSTITUTE($B79," ",""),AC$5*2+1,2) -> 38 | AD79: =MID(SUBSTITUTE($B79," ",""),AD$5*2+1,2) -> 1D | AE79: =MID(SUBSTITUTE($B79," ",""),AE$5*2+1,2) -> C2 | AF79: =MID(SUBSTITUTE($B79," ",""),AF$5*2+1,2) -> 1 | AG79: =IF(L79="01",HEX2DEC(O79&P79)/10,"-") -> - | AH79: =IF(L79="01",HEX2DEC(Q79&R79)/100,"-") -> - | AI79: =IF(L79="01",HEX2DEC(S79&T79)/10,"-") -> - | AJ79: =IF(L79="01",HEX2DEC(U79&V79&W79&X79)/1000,"-") -> - | AK79: =IF(L79="01",HEX2DEC(Y79&Z79)/1000,"-") -> - | AL79: =IF(L79="01",HEX2DEC(AA79&AB79)/10,"-") -> - | AM79: =IF(L79="82",HEX2DEC(M79&N79)/100,"-") -> 50 | AN79: =IF(L79="82",HEX2DEC(O79&P79)/10,"-") -> 22.8 | AO79: =IF(L79="82",HEX2DEC(S79&T79)/100,"-") -> 0.1 | AP79: =IF(L79="82",HEX2DEC(W79&X79)/10,"-") -> 9.7 | AQ79: =IF(L79="01",HEX2DEC(M79&N79),"-") -> - | AR79: =IF(L79="01",HEX2DEC(AC79&AD79),"-") -> - | AS79: =IF(L79="82",HEX2DEC(Q79&R79),"-") -> 0 | AT79: =IF(L79="82",HEX2DEC(U79&V79),"-") -> 1000 | AU79: =IF(L79="82",HEX2DEC(Y79&Z79),"-") -> 6 | AV79: =IF(L79="82",HEX2DEC(AA79&AB79),"-") -> 59711 | AW79: =IF(L79="82",HEX2DEC(AC79&AD79),"-") -> 14365
A80: 09:20:28 | B80: 95 7310xxyy 7310xxyy 82138800E20000000A03E8006100060159B0AE39 1 | C80: =MID(SUBSTITUTE($B80," ",""),C$5*2+1,2) -> 95 | D80: =MID(SUBSTITUTE($B80," ",""),D$5*2+1,2) -> 73 | E80: =MID(SUBSTITUTE($B80," ",""),E$5*2+1,2) -> 10 | F80: =MID(SUBSTITUTE($B80," ",""),F$5*2+1,2) -> xx | G80: =MID(SUBSTITUTE($B80," ",""),G$5*2+1,2) -> yy | H80: =MID(SUBSTITUTE($B80," ",""),H$5*2+1,2) -> 73 | I80: =MID(SUBSTITUTE($B80," ",""),I$5*2+1,2) -> 10 | J80: =MID(SUBSTITUTE($B80," ",""),J$5*2+1,2) -> xx | K80: =MID(SUBSTITUTE($B80," ",""),K$5*2+1,2) -> yy | L80: =MID(SUBSTITUTE($B80," ",""),L$5*2+1,2) -> 82 | M80: =MID(SUBSTITUTE($B80," ",""),M$5*2+1,2) -> 13 | N80: =MID(SUBSTITUTE($B80," ",""),N$5*2+1,2) -> 88 | O80: =MID(SUBSTITUTE($B80," ",""),O$5*2+1,2) -> 00 | P80: =MID(SUBSTITUTE($B80," ",""),P$5*2+1,2) -> E2 | Q80: =MID(SUBSTITUTE($B80," ",""),Q$5*2+1,2) -> 00 | R80: =MID(SUBSTITUTE($B80," ",""),R$5*2+1,2) -> 00 | S80: =MID(SUBSTITUTE($B80," ",""),S$5*2+1,2) -> 00 | T80: =MID(SUBSTITUTE($B80," ",""),T$5*2+1,2) -> 0A | U80: =MID(SUBSTITUTE($B80," ",""),U$5*2+1,2) -> 03 | V80: =MID(SUBSTITUTE($B80," ",""),V$5*2+1,2) -> E8 | W80: =MID(SUBSTITUTE($B80," ",""),W$5*2+1,2) -> 00 | X80: =MID(SUBSTITUTE($B80," ",""),X$5*2+1,2) -> 61 | Y80: =MID(SUBSTITUTE($B80," ",""),Y$5*2+1,2) -> 00 | Z80: =MID(SUBSTITUTE($B80," ",""),Z$5*2+1,2) -> 06 | AA80: =MID(SUBSTITUTE($B80," ",""),AA$5*2+1,2) -> 01 | AB80: =MID(SUBSTITUTE($B80," ",""),AB$5*2+1,2) -> 59 | AC80: =MID(SUBSTITUTE($B80," ",""),AC$5*2+1,2) -> B0 | AD80: =MID(SUBSTITUTE($B80," ",""),AD$5*2+1,2) -> AE | AE80: =MID(SUBSTITUTE($B80," ",""),AE$5*2+1,2) -> 39 | AF80: =MID(SUBSTITUTE($B80," ",""),AF$5*2+1,2) -> 1 | AG80: =IF(L80="01",HEX2DEC(O80&P80)/10,"-") -> - | AH80: =IF(L80="01",HEX2DEC(Q80&R80)/100,"-") -> - | AI80: =IF(L80="01",HEX2DEC(S80&T80)/10,"-") -> - | AJ80: =IF(L80="01",HEX2DEC(U80&V80&W80&X80)/1000,"-") -> - | AK80: =IF(L80="01",HEX2DEC(Y80&Z80)/1000,"-") -> - | AL80: =IF(L80="01",HEX2DEC(AA80&AB80)/10,"-") -> - | AM80: =IF(L80="82",HEX2DEC(M80&N80)/100,"-") -> 50 | AN80: =IF(L80="82",HEX2DEC(O80&P80)/10,"-") -> 22.6 | AO80: =IF(L80="82",HEX2DEC(S80&T80)/100,"-") -> 0.1 | AP80: =IF(L80="82",HEX2DEC(W80&X80)/10,"-") -> 9.7 | AQ80: =IF(L80="01",HEX2DEC(M80&N80),"-") -> - | AR80: =IF(L80="01",HEX2DEC(AC80&AD80),"-") -> - | AS80: =IF(L80="82",HEX2DEC(Q80&R80),"-") -> 0 | AT80: =IF(L80="82",HEX2DEC(U80&V80),"-") -> 1000 | AU80: =IF(L80="82",HEX2DEC(Y80&Z80),"-") -> 6 | AV80: =IF(L80="82",HEX2DEC(AA80&AB80),"-") -> 345 | AW80: =IF(L80="82",HEX2DEC(AC80&AD80),"-") -> 45230
A81: 09:20:33 | B81: 95 7310xxyy 7310xxyy 82138800E20000000A03E8006100060159B0E711 1 | C81: =MID(SUBSTITUTE($B81," ",""),C$5*2+1,2) -> 95 | D81: =MID(SUBSTITUTE($B81," ",""),D$5*2+1,2) -> 73 | E81: =MID(SUBSTITUTE($B81," ",""),E$5*2+1,2) -> 10 | F81: =MID(SUBSTITUTE($B81," ",""),F$5*2+1,2) -> xx | G81: =MID(SUBSTITUTE($B81," ",""),G$5*2+1,2) -> yy | H81: =MID(SUBSTITUTE($B81," ",""),H$5*2+1,2) -> 73 | I81: =MID(SUBSTITUTE($B81," ",""),I$5*2+1,2) -> 10 | J81: =MID(SUBSTITUTE($B81," ",""),J$5*2+1,2) -> xx | K81: =MID(SUBSTITUTE($B81," ",""),K$5*2+1,2) -> yy | L81: =MID(SUBSTITUTE($B81," ",""),L$5*2+1,2) -> 82 | M81: =MID(SUBSTITUTE($B81," ",""),M$5*2+1,2) -> 13 | N81: =MID(SUBSTITUTE($B81," ",""),N$5*2+1,2) -> 88 | O81: =MID(SUBSTITUTE($B81," ",""),O$5*2+1,2) -> 00 | P81: =MID(SUBSTITUTE($B81," ",""),P$5*2+1,2) -> E2 | Q81: =MID(SUBSTITUTE($B81," ",""),Q$5*2+1,2) -> 00 | R81: =MID(SUBSTITUTE($B81," ",""),R$5*2+1,2) -> 00 | S81: =MID(SUBSTITUTE($B81," ",""),S$5*2+1,2) -> 00 | T81: =MID(SUBSTITUTE($B81," ",""),T$5*2+1,2) -> 0A | U81: =MID(SUBSTITUTE($B81," ",""),U$5*2+1,2) -> 03 | V81: =MID(SUBSTITUTE($B81," ",""),V$5*2+1,2) -> E8 | W81: =MID(SUBSTITUTE($B81," ",""),W$5*2+1,2) -> 00 | X81: =MID(SUBSTITUTE($B81," ",""),X$5*2+1,2) -> 61 | Y81: =MID(SUBSTITUTE($B81," ",""),Y$5*2+1,2) -> 00 | Z81: =MID(SUBSTITUTE($B81," ",""),Z$5*2+1,2) -> 06 | AA81: =MID(SUBSTITUTE($B81," ",""),AA$5*2+1,2) -> 01 | AB81: =MID(SUBSTITUTE($B81," ",""),AB$5*2+1,2) -> 59 | AC81: =MID(SUBSTITUTE($B81," ",""),AC$5*2+1,2) -> B0 | AD81: =MID(SUBSTITUTE($B81," ",""),AD$5*2+1,2) -> E7 | AE81: =MID(SUBSTITUTE($B81," ",""),AE$5*2+1,2) -> 11 | AF81: =MID(SUBSTITUTE($B81," ",""),AF$5*2+1,2) -> 1 | AG81: =IF(L81="01",HEX2DEC(O81&P81)/10,"-") -> - | AH81: =IF(L81="01",HEX2DEC(Q81&R81)/100,"-") -> - | AI81: =IF(L81="01",HEX2DEC(S81&T81)/10,"-") -> - | AJ81: =IF(L81="01",HEX2DEC(U81&V81&W81&X81)/1000,"-") -> - | AK81: =IF(L81="01",HEX2DEC(Y81&Z81)/1000,"-") -> - | AL81: =IF(L81="01",HEX2DEC(AA81&AB81)/10,"-") -> - | AM81: =IF(L81="82",HEX2DEC(M81&N81)/100,"-") -> 50 | AN81: =IF(L81="82",HEX2DEC(O81&P81)/10,"-") -> 22.6 | AO81: =IF(L81="82",HEX2DEC(S81&T81)/100,"-") -> 0.1 | AP81: =IF(L81="82",HEX2DEC(W81&X81)/10,"-") -> 9.7 | AQ81: =IF(L81="01",HEX2DEC(M81&N81),"-") -> - | AR81: =IF(L81="01",HEX2DEC(AC81&AD81),"-") -> - | AS81: =IF(L81="82",HEX2DEC(Q81&R81),"-") -> 0 | AT81: =IF(L81="82",HEX2DEC(U81&V81),"-") -> 1000 | AU81: =IF(L81="82",HEX2DEC(Y81&Z81),"-") -> 6 | AV81: =IF(L81="82",HEX2DEC(AA81&AB81),"-") -> 345 | AW81: =IF(L81="82",HEX2DEC(AC81&AD81),"-") -> 45287
A82: 09:20:40 | B82: 95 7310xxyy 7310xxyy 82138700E20000000A03E8006100062218DDC26B 1 | C82: =MID(SUBSTITUTE($B82," ",""),C$5*2+1,2) -> 95 | D82: =MID(SUBSTITUTE($B82," ",""),D$5*2+1,2) -> 73 | E82: =MID(SUBSTITUTE($B82," ",""),E$5*2+1,2) -> 10 | F82: =MID(SUBSTITUTE($B82," ",""),F$5*2+1,2) -> xx | G82: =MID(SUBSTITUTE($B82," ",""),G$5*2+1,2) -> yy | H82: =MID(SUBSTITUTE($B82," ",""),H$5*2+1,2) -> 73 | I82: =MID(SUBSTITUTE($B82," ",""),I$5*2+1,2) -> 10 | J82: =MID(SUBSTITUTE($B82," ",""),J$5*2+1,2) -> xx | K82: =MID(SUBSTITUTE($B82," ",""),K$5*2+1,2) -> yy | L82: =MID(SUBSTITUTE($B82," ",""),L$5*2+1,2) -> 82 | M82: =MID(SUBSTITUTE($B82," ",""),M$5*2+1,2) -> 13 | N82: =MID(SUBSTITUTE($B82," ",""),N$5*2+1,2) -> 87 | O82: =MID(SUBSTITUTE($B82," ",""),O$5*2+1,2) -> 00 | P82: =MID(SUBSTITUTE($B82," ",""),P$5*2+1,2) -> E2 | Q82: =MID(SUBSTITUTE($B82," ",""),Q$5*2+1,2) -> 00 | R82: =MID(SUBSTITUTE($B82," ",""),R$5*2+1,2) -> 00 | S82: =MID(SUBSTITUTE($B82," ",""),S$5*2+1,2) -> 00 | T82: =MID(SUBSTITUTE($B82," ",""),T$5*2+1,2) -> 0A | U82: =MID(SUBSTITUTE($B82," ",""),U$5*2+1,2) -> 03 | V82: =MID(SUBSTITUTE($B82," ",""),V$5*2+1,2) -> E8 | W82: =MID(SUBSTITUTE($B82," ",""),W$5*2+1,2) -> 00 | X82: =MID(SUBSTITUTE($B82," ",""),X$5*2+1,2) -> 61 | Y82: =MID(SUBSTITUTE($B82," ",""),Y$5*2+1,2) -> 00 | Z82: =MID(SUBSTITUTE($B82," ",""),Z$5*2+1,2) -> 06 | AA82: =MID(SUBSTITUTE($B82," ",""),AA$5*2+1,2) -> 22 | AB82: =MID(SUBSTITUTE($B82," ",""),AB$5*2+1,2) -> 18 | AC82: =MID(SUBSTITUTE($B82," ",""),AC$5*2+1,2) -> DD | AD82: =MID(SUBSTITUTE($B82," ",""),AD$5*2+1,2) -> C2 | AE82: =MID(SUBSTITUTE($B82," ",""),AE$5*2+1,2) -> 6B | AF82: =MID(SUBSTITUTE($B82," ",""),AF$5*2+1,2) -> 1 | AG82: =IF(L82="01",HEX2DEC(O82&P82)/10,"-") -> - | AH82: =IF(L82="01",HEX2DEC(Q82&R82)/100,"-") -> - | AI82: =IF(L82="01",HEX2DEC(S82&T82)/10,"-") -> - | AJ82: =IF(L82="01",HEX2DEC(U82&V82&W82&X82)/1000,"-") -> - | AK82: =IF(L82="01",HEX2DEC(Y82&Z82)/1000,"-") -> - | AL82: =IF(L82="01",HEX2DEC(AA82&AB82)/10,"-") -> - | AM82: =IF(L82="82",HEX2DEC(M82&N82)/100,"-") -> 49.99 | AN82: =IF(L82="82",HEX2DEC(O82&P82)/10,"-") -> 22.6 | AO82: =IF(L82="82",HEX2DEC(S82&T82)/100,"-") -> 0.1 | AP82: =IF(L82="82",HEX2DEC(W82&X82)/10,"-") -> 9.7 | AQ82: =IF(L82="01",HEX2DEC(M82&N82),"-") -> - | AR82: =IF(L82="01",HEX2DEC(AC82&AD82),"-") -> - | AS82: =IF(L82="82",HEX2DEC(Q82&R82),"-") -> 0 | AT82: =IF(L82="82",HEX2DEC(U82&V82),"-") -> 1000 | AU82: =IF(L82="82",HEX2DEC(Y82&Z82),"-") -> 6 | AV82: =IF(L82="82",HEX2DEC(AA82&AB82),"-") -> 8728 | AW82: =IF(L82="82",HEX2DEC(AC82&AD82),"-") -> 56770
A83: 09:21:04 | B83: 95 7310xxyy 7310xxyy 0100010195003C00F10000FA81001F092A8BEB39 1 | C83: =MID(SUBSTITUTE($B83," ",""),C$5*2+1,2) -> 95 | D83: =MID(SUBSTITUTE($B83," ",""),D$5*2+1,2) -> 73 | E83: =MID(SUBSTITUTE($B83," ",""),E$5*2+1,2) -> 10 | F83: =MID(SUBSTITUTE($B83," ",""),F$5*2+1,2) -> xx | G83: =MID(SUBSTITUTE($B83," ",""),G$5*2+1,2) -> yy | H83: =MID(SUBSTITUTE($B83," ",""),H$5*2+1,2) -> 73 | I83: =MID(SUBSTITUTE($B83," ",""),I$5*2+1,2) -> 10 | J83: =MID(SUBSTITUTE($B83," ",""),J$5*2+1,2) -> xx | K83: =MID(SUBSTITUTE($B83," ",""),K$5*2+1,2) -> yy | L83: =MID(SUBSTITUTE($B83," ",""),L$5*2+1,2) -> 01 | M83: =MID(SUBSTITUTE($B83," ",""),M$5*2+1,2) -> 00 | N83: =MID(SUBSTITUTE($B83," ",""),N$5*2+1,2) -> 01 | O83: =MID(SUBSTITUTE($B83," ",""),O$5*2+1,2) -> 01 | P83: =MID(SUBSTITUTE($B83," ",""),P$5*2+1,2) -> 95 | Q83: =MID(SUBSTITUTE($B83," ",""),Q$5*2+1,2) -> 00 | R83: =MID(SUBSTITUTE($B83," ",""),R$5*2+1,2) -> 3C | S83: =MID(SUBSTITUTE($B83," ",""),S$5*2+1,2) -> 00 | T83: =MID(SUBSTITUTE($B83," ",""),T$5*2+1,2) -> F1 | U83: =MID(SUBSTITUTE($B83," ",""),U$5*2+1,2) -> 00 | V83: =MID(SUBSTITUTE($B83," ",""),V$5*2+1,2) -> 00 | W83: =MID(SUBSTITUTE($B83," ",""),W$5*2+1,2) -> FA | X83: =MID(SUBSTITUTE($B83," ",""),X$5*2+1,2) -> 81 | Y83: =MID(SUBSTITUTE($B83," ",""),Y$5*2+1,2) -> 00 | Z83: =MID(SUBSTITUTE($B83," ",""),Z$5*2+1,2) -> 1F | AA83: =MID(SUBSTITUTE($B83," ",""),AA$5*2+1,2) -> 09 | AB83: =MID(SUBSTITUTE($B83," ",""),AB$5*2+1,2) -> 2A | AC83: =MID(SUBSTITUTE($B83," ",""),AC$5*2+1,2) -> 8B | AD83: =MID(SUBSTITUTE($B83," ",""),AD$5*2+1,2) -> EB | AE83: =MID(SUBSTITUTE($B83," ",""),AE$5*2+1,2) -> 39 | AF83: =MID(SUBSTITUTE($B83," ",""),AF$5*2+1,2) -> 1 | AG83: =IF(L83="01",HEX2DEC(O83&P83)/10,"-") -> 40.5 | AH83: =IF(L83="01",HEX2DEC(Q83&R83)/100,"-") -> 0.6 | AI83: =IF(L83="01",HEX2DEC(S83&T83)/10,"-") -> 24.1 | AJ83: =IF(L83="01",HEX2DEC(U83&V83&W83&X83)/1000,"-") -> 64.129 | AK83: =IF(L83="01",HEX2DEC(Y83&Z83)/1000,"-") -> 0.031 | AL83: =IF(L83="01",HEX2DEC(AA83&AB83)/10,"-") -> 234.6 | AM83: =IF(L83="82",HEX2DEC(M83&N83)/100,"-") -> - | AN83: =IF(L83="82",HEX2DEC(O83&P83)/10,"-") -> - | AO83: =IF(L83="82",HEX2DEC(S83&T83)/100,"-") -> - | AP83: =IF(L83="82",HEX2DEC(W83&X83)/10,"-") -> - | AQ83: =IF(L83="01",HEX2DEC(M83&N83),"-") -> 1 | AR83: =IF(L83="01",HEX2DEC(AC83&AD83),"-") -> 35819 | AS83: =IF(L83="82",HEX2DEC(Q83&R83),"-") -> - | AT83: =IF(L83="82",HEX2DEC(U83&V83),"-") -> - | AU83: =IF(L83="82",HEX2DEC(Y83&Z83),"-") -> - | AV83: =IF(L83="82",HEX2DEC(AA83&AB83),"-") -> - | AW83: =IF(L83="82",HEX2DEC(AC83&AD83),"-") -> -
A84: 09:21:04 | B84: 95 7310xxyy 7310xxyy 82138A00E50000000A03E800610006A7DD975B9B 1 | C84: =MID(SUBSTITUTE($B84," ",""),C$5*2+1,2) -> 95 | D84: =MID(SUBSTITUTE($B84," ",""),D$5*2+1,2) -> 73 | E84: =MID(SUBSTITUTE($B84," ",""),E$5*2+1,2) -> 10 | F84: =MID(SUBSTITUTE($B84," ",""),F$5*2+1,2) -> xx | G84: =MID(SUBSTITUTE($B84," ",""),G$5*2+1,2) -> yy | H84: =MID(SUBSTITUTE($B84," ",""),H$5*2+1,2) -> 73 | I84: =MID(SUBSTITUTE($B84," ",""),I$5*2+1,2) -> 10 | J84: =MID(SUBSTITUTE($B84," ",""),J$5*2+1,2) -> xx | K84: =MID(SUBSTITUTE($B84," ",""),K$5*2+1,2) -> yy | L84: =MID(SUBSTITUTE($B84," ",""),L$5*2+1,2) -> 82 | M84: =MID(SUBSTITUTE($B84," ",""),M$5*2+1,2) -> 13 | N84: =MID(SUBSTITUTE($B84," ",""),N$5*2+1,2) -> 8A | O84: =MID(SUBSTITUTE($B84," ",""),O$5*2+1,2) -> 00 | P84: =MID(SUBSTITUTE($B84," ",""),P$5*2+1,2) -> E5 | Q84: =MID(SUBSTITUTE($B84," ",""),Q$5*2+1,2) -> 00 | R84: =MID(SUBSTITUTE($B84," ",""),R$5*2+1,2) -> 00 | S84: =MID(SUBSTITUTE($B84," ",""),S$5*2+1,2) -> 00 | T84: =MID(SUBSTITUTE($B84," ",""),T$5*2+1,2) -> 0A | U84: =MID(SUBSTITUTE($B84," ",""),U$5*2+1,2) -> 03 | V84: =MID(SUBSTITUTE($B84," ",""),V$5*2+1,2) -> E8 | W84: =MID(SUBSTITUTE($B84," ",""),W$5*2+1,2) -> 00 | X84: =MID(SUBSTITUTE($B84," ",""),X$5*2+1,2) -> 61 | Y84: =MID(SUBSTITUTE($B84," ",""),Y$5*2+1,2) -> 00 | Z84: =MID(SUBSTITUTE($B84," ",""),Z$5*2+1,2) -> 06 | AA84: =MID(SUBSTITUTE($B84," ",""),AA$5*2+1,2) -> A7 | AB84: =MID(SUBSTITUTE($B84," ",""),AB$5*2+1,2) -> DD | AC84: =MID(SUBSTITUTE($B84," ",""),AC$5*2+1,2) -> 97 | AD84: =MID(SUBSTITUTE($B84," ",""),AD$5*2+1,2) -> 5B | AE84: =MID(SUBSTITUTE($B84," ",""),AE$5*2+1,2) -> 9B | AF84: =MID(SUBSTITUTE($B84," ",""),AF$5*2+1,2) -> 1 | AG84: =IF(L84="01",HEX2DEC(O84&P84)/10,"-") -> - | AH84: =IF(L84="01",HEX2DEC(Q84&R84)/100,"-") -> - | AI84: =IF(L84="01",HEX2DEC(S84&T84)/10,"-") -> - | AJ84: =IF(L84="01",HEX2DEC(U84&V84&W84&X84)/1000,"-") -> - | AK84: =IF(L84="01",HEX2DEC(Y84&Z84)/1000,"-") -> - | AL84: =IF(L84="01",HEX2DEC(AA84&AB84)/10,"-") -> - | AM84: =IF(L84="82",HEX2DEC(M84&N84)/100,"-") -> 50.02 | AN84: =IF(L84="82",HEX2DEC(O84&P84)/10,"-") -> 22.9 | AO84: =IF(L84="82",HEX2DEC(S84&T84)/100,"-") -> 0.1 | AP84: =IF(L84="82",HEX2DEC(W84&X84)/10,"-") -> 9.7 | AQ84: =IF(L84="01",HEX2DEC(M84&N84),"-") -> - | AR84: =IF(L84="01",HEX2DEC(AC84&AD84),"-") -> - | AS84: =IF(L84="82",HEX2DEC(Q84&R84),"-") -> 0 | AT84: =IF(L84="82",HEX2DEC(U84&V84),"-") -> 1000 | AU84: =IF(L84="82",HEX2DEC(Y84&Z84),"-") -> 6 | AV84: =IF(L84="82",HEX2DEC(AA84&AB84),"-") -> 42973 | AW84: =IF(L84="82",HEX2DEC(AC84&AD84),"-") -> 38747
A85: 09:21:16 | B85: 95 7310xxyy 7310xxyy 0100010194003C00F20000FA81001F092685CC1C 1 | C85: =MID(SUBSTITUTE($B85," ",""),C$5*2+1,2) -> 95 | D85: =MID(SUBSTITUTE($B85," ",""),D$5*2+1,2) -> 73 | E85: =MID(SUBSTITUTE($B85," ",""),E$5*2+1,2) -> 10 | F85: =MID(SUBSTITUTE($B85," ",""),F$5*2+1,2) -> xx | G85: =MID(SUBSTITUTE($B85," ",""),G$5*2+1,2) -> yy | H85: =MID(SUBSTITUTE($B85," ",""),H$5*2+1,2) -> 73 | I85: =MID(SUBSTITUTE($B85," ",""),I$5*2+1,2) -> 10 | J85: =MID(SUBSTITUTE($B85," ",""),J$5*2+1,2) -> xx | K85: =MID(SUBSTITUTE($B85," ",""),K$5*2+1,2) -> yy | L85: =MID(SUBSTITUTE($B85," ",""),L$5*2+1,2) -> 01 | M85: =MID(SUBSTITUTE($B85," ",""),M$5*2+1,2) -> 00 | N85: =MID(SUBSTITUTE($B85," ",""),N$5*2+1,2) -> 01 | O85: =MID(SUBSTITUTE($B85," ",""),O$5*2+1,2) -> 01 | P85: =MID(SUBSTITUTE($B85," ",""),P$5*2+1,2) -> 94 | Q85: =MID(SUBSTITUTE($B85," ",""),Q$5*2+1,2) -> 00 | R85: =MID(SUBSTITUTE($B85," ",""),R$5*2+1,2) -> 3C | S85: =MID(SUBSTITUTE($B85," ",""),S$5*2+1,2) -> 00 | T85: =MID(SUBSTITUTE($B85," ",""),T$5*2+1,2) -> F2 | U85: =MID(SUBSTITUTE($B85," ",""),U$5*2+1,2) -> 00 | V85: =MID(SUBSTITUTE($B85," ",""),V$5*2+1,2) -> 00 | W85: =MID(SUBSTITUTE($B85," ",""),W$5*2+1,2) -> FA | X85: =MID(SUBSTITUTE($B85," ",""),X$5*2+1,2) -> 81 | Y85: =MID(SUBSTITUTE($B85," ",""),Y$5*2+1,2) -> 00 | Z85: =MID(SUBSTITUTE($B85," ",""),Z$5*2+1,2) -> 1F | AA85: =MID(SUBSTITUTE($B85," ",""),AA$5*2+1,2) -> 09 | AB85: =MID(SUBSTITUTE($B85," ",""),AB$5*2+1,2) -> 26 | AC85: =MID(SUBSTITUTE($B85," ",""),AC$5*2+1,2) -> 85 | AD85: =MID(SUBSTITUTE($B85," ",""),AD$5*2+1,2) -> CC | AE85: =MID(SUBSTITUTE($B85," ",""),AE$5*2+1,2) -> 1C | AF85: =MID(SUBSTITUTE($B85," ",""),AF$5*2+1,2) -> 1 | AG85: =IF(L85="01",HEX2DEC(O85&P85)/10,"-") -> 40.4 | AH85: =IF(L85="01",HEX2DEC(Q85&R85)/100,"-") -> 0.6 | AI85: =IF(L85="01",HEX2DEC(S85&T85)/10,"-") -> 24.2 | AJ85: =IF(L85="01",HEX2DEC(U85&V85&W85&X85)/1000,"-") -> 64.129 | AK85: =IF(L85="01",HEX2DEC(Y85&Z85)/1000,"-") -> 0.031 | AL85: =IF(L85="01",HEX2DEC(AA85&AB85)/10,"-") -> 234.2 | AM85: =IF(L85="82",HEX2DEC(M85&N85)/100,"-") -> - | AN85: =IF(L85="82",HEX2DEC(O85&P85)/10,"-") -> - | AO85: =IF(L85="82",HEX2DEC(S85&T85)/100,"-") -> - | AP85: =IF(L85="82",HEX2DEC(W85&X85)/10,"-") -> - | AQ85: =IF(L85="01",HEX2DEC(M85&N85),"-") -> 1 | AR85: =IF(L85="01",HEX2DEC(AC85&AD85),"-") -> 34252 | AS85: =IF(L85="82",HEX2DEC(Q85&R85),"-") -> - | AT85: =IF(L85="82",HEX2DEC(U85&V85),"-") -> - | AU85: =IF(L85="82",HEX2DEC(Y85&Z85),"-") -> - | AV85: =IF(L85="82",HEX2DEC(AA85&AB85),"-") -> - | AW85: =IF(L85="82",HEX2DEC(AC85&AD85),"-") -> -
A86: 09:21:16 | B86: 95 7310xxyy 7310xxyy 82138900E60000000A03E8006100064271DE2F32 1 | C86: =MID(SUBSTITUTE($B86," ",""),C$5*2+1,2) -> 95 | D86: =MID(SUBSTITUTE($B86," ",""),D$5*2+1,2) -> 73 | E86: =MID(SUBSTITUTE($B86," ",""),E$5*2+1,2) -> 10 | F86: =MID(SUBSTITUTE($B86," ",""),F$5*2+1,2) -> xx | G86: =MID(SUBSTITUTE($B86," ",""),G$5*2+1,2) -> yy | H86: =MID(SUBSTITUTE($B86," ",""),H$5*2+1,2) -> 73 | I86: =MID(SUBSTITUTE($B86," ",""),I$5*2+1,2) -> 10 | J86: =MID(SUBSTITUTE($B86," ",""),J$5*2+1,2) -> xx | K86: =MID(SUBSTITUTE($B86," ",""),K$5*2+1,2) -> yy | L86: =MID(SUBSTITUTE($B86," ",""),L$5*2+1,2) -> 82 | M86: =MID(SUBSTITUTE($B86," ",""),M$5*2+1,2) -> 13 | N86: =MID(SUBSTITUTE($B86," ",""),N$5*2+1,2) -> 89 | O86: =MID(SUBSTITUTE($B86," ",""),O$5*2+1,2) -> 00 | P86: =MID(SUBSTITUTE($B86," ",""),P$5*2+1,2) -> E6 | Q86: =MID(SUBSTITUTE($B86," ",""),Q$5*2+1,2) -> 00 | R86: =MID(SUBSTITUTE($B86," ",""),R$5*2+1,2) -> 00 | S86: =MID(SUBSTITUTE($B86," ",""),S$5*2+1,2) -> 00 | T86: =MID(SUBSTITUTE($B86," ",""),T$5*2+1,2) -> 0A | U86: =MID(SUBSTITUTE($B86," ",""),U$5*2+1,2) -> 03 | V86: =MID(SUBSTITUTE($B86," ",""),V$5*2+1,2) -> E8 | W86: =MID(SUBSTITUTE($B86," ",""),W$5*2+1,2) -> 00 | X86: =MID(SUBSTITUTE($B86," ",""),X$5*2+1,2) -> 61 | Y86: =MID(SUBSTITUTE($B86," ",""),Y$5*2+1,2) -> 00 | Z86: =MID(SUBSTITUTE($B86," ",""),Z$5*2+1,2) -> 06 | AA86: =MID(SUBSTITUTE($B86," ",""),AA$5*2+1,2) -> 42 | AB86: =MID(SUBSTITUTE($B86," ",""),AB$5*2+1,2) -> 71 | AC86: =MID(SUBSTITUTE($B86," ",""),AC$5*2+1,2) -> DE | AD86: =MID(SUBSTITUTE($B86," ",""),AD$5*2+1,2) -> 2F | AE86: =MID(SUBSTITUTE($B86," ",""),AE$5*2+1,2) -> 32 | AF86: =MID(SUBSTITUTE($B86," ",""),AF$5*2+1,2) -> 1 | AG86: =IF(L86="01",HEX2DEC(O86&P86)/10,"-") -> - | AH86: =IF(L86="01",HEX2DEC(Q86&R86)/100,"-") -> - | AI86: =IF(L86="01",HEX2DEC(S86&T86)/10,"-") -> - | AJ86: =IF(L86="01",HEX2DEC(U86&V86&W86&X86)/1000,"-") -> - | AK86: =IF(L86="01",HEX2DEC(Y86&Z86)/1000,"-") -> - | AL86: =IF(L86="01",HEX2DEC(AA86&AB86)/10,"-") -> - | AM86: =IF(L86="82",HEX2DEC(M86&N86)/100,"-") -> 50.01 | AN86: =IF(L86="82",HEX2DEC(O86&P86)/10,"-") -> 23 | AO86: =IF(L86="82",HEX2DEC(S86&T86)/100,"-") -> 0.1 | AP86: =IF(L86="82",HEX2DEC(W86&X86)/10,"-") -> 9.7 | AQ86: =IF(L86="01",HEX2DEC(M86&N86),"-") -> - | AR86: =IF(L86="01",HEX2DEC(AC86&AD86),"-") -> - | AS86: =IF(L86="82",HEX2DEC(Q86&R86),"-") -> 0 | AT86: =IF(L86="82",HEX2DEC(U86&V86),"-") -> 1000 | AU86: =IF(L86="82",HEX2DEC(Y86&Z86),"-") -> 6 | AV86: =IF(L86="82",HEX2DEC(AA86&AB86),"-") -> 17009 | AW86: =IF(L86="82",HEX2DEC(AC86&AD86),"-") -> 56879
A87: 09:21:28 | B87: 95 7310xxyy 7310xxyy 0100010199003C00F40000FA81001F092189516F 1 | C87: =MID(SUBSTITUTE($B87," ",""),C$5*2+1,2) -> 95 | D87: =MID(SUBSTITUTE($B87," ",""),D$5*2+1,2) -> 73 | E87: =MID(SUBSTITUTE($B87," ",""),E$5*2+1,2) -> 10 | F87: =MID(SUBSTITUTE($B87," ",""),F$5*2+1,2) -> xx | G87: =MID(SUBSTITUTE($B87," ",""),G$5*2+1,2) -> yy | H87: =MID(SUBSTITUTE($B87," ",""),H$5*2+1,2) -> 73 | I87: =MID(SUBSTITUTE($B87," ",""),I$5*2+1,2) -> 10 | J87: =MID(SUBSTITUTE($B87," ",""),J$5*2+1,2) -> xx | K87: =MID(SUBSTITUTE($B87," ",""),K$5*2+1,2) -> yy | L87: =MID(SUBSTITUTE($B87," ",""),L$5*2+1,2) -> 01 | M87: =MID(SUBSTITUTE($B87," ",""),M$5*2+1,2) -> 00 | N87: =MID(SUBSTITUTE($B87," ",""),N$5*2+1,2) -> 01 | O87: =MID(SUBSTITUTE($B87," ",""),O$5*2+1,2) -> 01 | P87: =MID(SUBSTITUTE($B87," ",""),P$5*2+1,2) -> 99 | Q87: =MID(SUBSTITUTE($B87," ",""),Q$5*2+1,2) -> 00 | R87: =MID(SUBSTITUTE($B87," ",""),R$5*2+1,2) -> 3C | S87: =MID(SUBSTITUTE($B87," ",""),S$5*2+1,2) -> 00 | T87: =MID(SUBSTITUTE($B87," ",""),T$5*2+1,2) -> F4 | U87: =MID(SUBSTITUTE($B87," ",""),U$5*2+1,2) -> 00 | V87: =MID(SUBSTITUTE($B87," ",""),V$5*2+1,2) -> 00 | W87: =MID(SUBSTITUTE($B87," ",""),W$5*2+1,2) -> FA | X87: =MID(SUBSTITUTE($B87," ",""),X$5*2+1,2) -> 81 | Y87: =MID(SUBSTITUTE($B87," ",""),Y$5*2+1,2) -> 00 | Z87: =MID(SUBSTITUTE($B87," ",""),Z$5*2+1,2) -> 1F | AA87: =MID(SUBSTITUTE($B87," ",""),AA$5*2+1,2) -> 09 | AB87: =MID(SUBSTITUTE($B87," ",""),AB$5*2+1,2) -> 21 | AC87: =MID(SUBSTITUTE($B87," ",""),AC$5*2+1,2) -> 89 | AD87: =MID(SUBSTITUTE($B87," ",""),AD$5*2+1,2) -> 51 | AE87: =MID(SUBSTITUTE($B87," ",""),AE$5*2+1,2) -> 6F | AF87: =MID(SUBSTITUTE($B87," ",""),AF$5*2+1,2) -> 1 | AG87: =IF(L87="01",HEX2DEC(O87&P87)/10,"-") -> 40.9 | AH87: =IF(L87="01",HEX2DEC(Q87&R87)/100,"-") -> 0.6 | AI87: =IF(L87="01",HEX2DEC(S87&T87)/10,"-") -> 24.4 | AJ87: =IF(L87="01",HEX2DEC(U87&V87&W87&X87)/1000,"-") -> 64.129 | AK87: =IF(L87="01",HEX2DEC(Y87&Z87)/1000,"-") -> 0.031 | AL87: =IF(L87="01",HEX2DEC(AA87&AB87)/10,"-") -> 233.7 | AM87: =IF(L87="82",HEX2DEC(M87&N87)/100,"-") -> - | AN87: =IF(L87="82",HEX2DEC(O87&P87)/10,"-") -> - | AO87: =IF(L87="82",HEX2DEC(S87&T87)/100,"-") -> - | AP87: =IF(L87="82",HEX2DEC(W87&X87)/10,"-") -> - | AQ87: =IF(L87="01",HEX2DEC(M87&N87),"-") -> 1 | AR87: =IF(L87="01",HEX2DEC(AC87&AD87),"-") -> 35153 | AS87: =IF(L87="82",HEX2DEC(Q87&R87),"-") -> - | AT87: =IF(L87="82",HEX2DEC(U87&V87),"-") -> - | AU87: =IF(L87="82",HEX2DEC(Y87&Z87),"-") -> - | AV87: =IF(L87="82",HEX2DEC(AA87&AB87),"-") -> - | AW87: =IF(L87="82",HEX2DEC(AC87&AD87),"-") -> -
A88: 09:21:32 | B88: 95 7310xxyy 7310xxyy 82138800E80000000A03E8006000063D05DB99C3 1 | C88: =MID(SUBSTITUTE($B88," ",""),C$5*2+1,2) -> 95 | D88: =MID(SUBSTITUTE($B88," ",""),D$5*2+1,2) -> 73 | E88: =MID(SUBSTITUTE($B88," ",""),E$5*2+1,2) -> 10 | F88: =MID(SUBSTITUTE($B88," ",""),F$5*2+1,2) -> xx | G88: =MID(SUBSTITUTE($B88," ",""),G$5*2+1,2) -> yy | H88: =MID(SUBSTITUTE($B88," ",""),H$5*2+1,2) -> 73 | I88: =MID(SUBSTITUTE($B88," ",""),I$5*2+1,2) -> 10 | J88: =MID(SUBSTITUTE($B88," ",""),J$5*2+1,2) -> xx | K88: =MID(SUBSTITUTE($B88," ",""),K$5*2+1,2) -> yy | L88: =MID(SUBSTITUTE($B88," ",""),L$5*2+1,2) -> 82 | M88: =MID(SUBSTITUTE($B88," ",""),M$5*2+1,2) -> 13 | N88: =MID(SUBSTITUTE($B88," ",""),N$5*2+1,2) -> 88 | O88: =MID(SUBSTITUTE($B88," ",""),O$5*2+1,2) -> 00 | P88: =MID(SUBSTITUTE($B88," ",""),P$5*2+1,2) -> E8 | Q88: =MID(SUBSTITUTE($B88," ",""),Q$5*2+1,2) -> 00 | R88: =MID(SUBSTITUTE($B88," ",""),R$5*2+1,2) -> 00 | S88: =MID(SUBSTITUTE($B88," ",""),S$5*2+1,2) -> 00 | T88: =MID(SUBSTITUTE($B88," ",""),T$5*2+1,2) -> 0A | U88: =MID(SUBSTITUTE($B88," ",""),U$5*2+1,2) -> 03 | V88: =MID(SUBSTITUTE($B88," ",""),V$5*2+1,2) -> E8 | W88: =MID(SUBSTITUTE($B88," ",""),W$5*2+1,2) -> 00 | X88: =MID(SUBSTITUTE($B88," ",""),X$5*2+1,2) -> 60 | Y88: =MID(SUBSTITUTE($B88," ",""),Y$5*2+1,2) -> 00 | Z88: =MID(SUBSTITUTE($B88," ",""),Z$5*2+1,2) -> 06 | AA88: =MID(SUBSTITUTE($B88," ",""),AA$5*2+1,2) -> 3D | AB88: =MID(SUBSTITUTE($B88," ",""),AB$5*2+1,2) -> 05 | AC88: =MID(SUBSTITUTE($B88," ",""),AC$5*2+1,2) -> DB | AD88: =MID(SUBSTITUTE($B88," ",""),AD$5*2+1,2) -> 99 | AE88: =MID(SUBSTITUTE($B88," ",""),AE$5*2+1,2) -> C3 | AF88: =MID(SUBSTITUTE($B88," ",""),AF$5*2+1,2) -> 1 | AG88: =IF(L88="01",HEX2DEC(O88&P88)/10,"-") -> - | AH88: =IF(L88="01",HEX2DEC(Q88&R88)/100,"-") -> - | AI88: =IF(L88="01",HEX2DEC(S88&T88)/10,"-") -> - | AJ88: =IF(L88="01",HEX2DEC(U88&V88&W88&X88)/1000,"-") -> - | AK88: =IF(L88="01",HEX2DEC(Y88&Z88)/1000,"-") -> - | AL88: =IF(L88="01",HEX2DEC(AA88&AB88)/10,"-") -> - | AM88: =IF(L88="82",HEX2DEC(M88&N88)/100,"-") -> 50 | AN88: =IF(L88="82",HEX2DEC(O88&P88)/10,"-") -> 23.2 | AO88: =IF(L88="82",HEX2DEC(S88&T88)/100,"-") -> 0.1 | AP88: =IF(L88="82",HEX2DEC(W88&X88)/10,"-") -> 9.6 | AQ88: =IF(L88="01",HEX2DEC(M88&N88),"-") -> - | AR88: =IF(L88="01",HEX2DEC(AC88&AD88),"-") -> - | AS88: =IF(L88="82",HEX2DEC(Q88&R88),"-") -> 0 | AT88: =IF(L88="82",HEX2DEC(U88&V88),"-") -> 1000 | AU88: =IF(L88="82",HEX2DEC(Y88&Z88),"-") -> 6 | AV88: =IF(L88="82",HEX2DEC(AA88&AB88),"-") -> 15621 | AW88: =IF(L88="82",HEX2DEC(AC88&AD88),"-") -> 56217
A89: 09:21:44 | B89: 95 7310xxyy 7310xxyy 82138A00EA0000000A03E8006000065D46F86ACD 1 | C89: =MID(SUBSTITUTE($B89," ",""),C$5*2+1,2) -> 95 | D89: =MID(SUBSTITUTE($B89," ",""),D$5*2+1,2) -> 73 | E89: =MID(SUBSTITUTE($B89," ",""),E$5*2+1,2) -> 10 | F89: =MID(SUBSTITUTE($B89," ",""),F$5*2+1,2) -> xx | G89: =MID(SUBSTITUTE($B89," ",""),G$5*2+1,2) -> yy | H89: =MID(SUBSTITUTE($B89," ",""),H$5*2+1,2) -> 73 | I89: =MID(SUBSTITUTE($B89," ",""),I$5*2+1,2) -> 10 | J89: =MID(SUBSTITUTE($B89," ",""),J$5*2+1,2) -> xx | K89: =MID(SUBSTITUTE($B89," ",""),K$5*2+1,2) -> yy | L89: =MID(SUBSTITUTE($B89," ",""),L$5*2+1,2) -> 82 | M89: =MID(SUBSTITUTE($B89," ",""),M$5*2+1,2) -> 13 | N89: =MID(SUBSTITUTE($B89," ",""),N$5*2+1,2) -> 8A | O89: =MID(SUBSTITUTE($B89," ",""),O$5*2+1,2) -> 00 | P89: =MID(SUBSTITUTE($B89," ",""),P$5*2+1,2) -> EA | Q89: =MID(SUBSTITUTE($B89," ",""),Q$5*2+1,2) -> 00 | R89: =MID(SUBSTITUTE($B89," ",""),R$5*2+1,2) -> 00 | S89: =MID(SUBSTITUTE($B89," ",""),S$5*2+1,2) -> 00 | T89: =MID(SUBSTITUTE($B89," ",""),T$5*2+1,2) -> 0A | U89: =MID(SUBSTITUTE($B89," ",""),U$5*2+1,2) -> 03 | V89: =MID(SUBSTITUTE($B89," ",""),V$5*2+1,2) -> E8 | W89: =MID(SUBSTITUTE($B89," ",""),W$5*2+1,2) -> 00 | X89: =MID(SUBSTITUTE($B89," ",""),X$5*2+1,2) -> 60 | Y89: =MID(SUBSTITUTE($B89," ",""),Y$5*2+1,2) -> 00 | Z89: =MID(SUBSTITUTE($B89," ",""),Z$5*2+1,2) -> 06 | AA89: =MID(SUBSTITUTE($B89," ",""),AA$5*2+1,2) -> 5D | AB89: =MID(SUBSTITUTE($B89," ",""),AB$5*2+1,2) -> 46 | AC89: =MID(SUBSTITUTE($B89," ",""),AC$5*2+1,2) -> F8 | AD89: =MID(SUBSTITUTE($B89," ",""),AD$5*2+1,2) -> 6A | AE89: =MID(SUBSTITUTE($B89," ",""),AE$5*2+1,2) -> CD | AF89: =MID(SUBSTITUTE($B89," ",""),AF$5*2+1,2) -> 1 | AG89: =IF(L89="01",HEX2DEC(O89&P89)/10,"-") -> - | AH89: =IF(L89="01",HEX2DEC(Q89&R89)/100,"-") -> - | AI89: =IF(L89="01",HEX2DEC(S89&T89)/10,"-") -> - | AJ89: =IF(L89="01",HEX2DEC(U89&V89&W89&X89)/1000,"-") -> - | AK89: =IF(L89="01",HEX2DEC(Y89&Z89)/1000,"-") -> - | AL89: =IF(L89="01",HEX2DEC(AA89&AB89)/10,"-") -> - | AM89: =IF(L89="82",HEX2DEC(M89&N89)/100,"-") -> 50.02 | AN89: =IF(L89="82",HEX2DEC(O89&P89)/10,"-") -> 23.4 | AO89: =IF(L89="82",HEX2DEC(S89&T89)/100,"-") -> 0.1 | AP89: =IF(L89="82",HEX2DEC(W89&X89)/10,"-") -> 9.6 | AQ89: =IF(L89="01",HEX2DEC(M89&N89),"-") -> - | AR89: =IF(L89="01",HEX2DEC(AC89&AD89),"-") -> - | AS89: =IF(L89="82",HEX2DEC(Q89&R89),"-") -> 0 | AT89: =IF(L89="82",HEX2DEC(U89&V89),"-") -> 1000 | AU89: =IF(L89="82",HEX2DEC(Y89&Z89),"-") -> 6 | AV89: =IF(L89="82",HEX2DEC(AA89&AB89),"-") -> 23878 | AW89: =IF(L89="82",HEX2DEC(AC89&AD89),"-") -> 63594
A90: 09:21:52 | B90: 95 7310xxyy 7310xxyy 82138900EA0000000A03E80061000607997F6121 1 | C90: =MID(SUBSTITUTE($B90," ",""),C$5*2+1,2) -> 95 | D90: =MID(SUBSTITUTE($B90," ",""),D$5*2+1,2) -> 73 | E90: =MID(SUBSTITUTE($B90," ",""),E$5*2+1,2) -> 10 | F90: =MID(SUBSTITUTE($B90," ",""),F$5*2+1,2) -> xx | G90: =MID(SUBSTITUTE($B90," ",""),G$5*2+1,2) -> yy | H90: =MID(SUBSTITUTE($B90," ",""),H$5*2+1,2) -> 73 | I90: =MID(SUBSTITUTE($B90," ",""),I$5*2+1,2) -> 10 | J90: =MID(SUBSTITUTE($B90," ",""),J$5*2+1,2) -> xx | K90: =MID(SUBSTITUTE($B90," ",""),K$5*2+1,2) -> yy | L90: =MID(SUBSTITUTE($B90," ",""),L$5*2+1,2) -> 82 | M90: =MID(SUBSTITUTE($B90," ",""),M$5*2+1,2) -> 13 | N90: =MID(SUBSTITUTE($B90," ",""),N$5*2+1,2) -> 89 | O90: =MID(SUBSTITUTE($B90," ",""),O$5*2+1,2) -> 00 | P90: =MID(SUBSTITUTE($B90," ",""),P$5*2+1,2) -> EA | Q90: =MID(SUBSTITUTE($B90," ",""),Q$5*2+1,2) -> 00 | R90: =MID(SUBSTITUTE($B90," ",""),R$5*2+1,2) -> 00 | S90: =MID(SUBSTITUTE($B90," ",""),S$5*2+1,2) -> 00 | T90: =MID(SUBSTITUTE($B90," ",""),T$5*2+1,2) -> 0A | U90: =MID(SUBSTITUTE($B90," ",""),U$5*2+1,2) -> 03 | V90: =MID(SUBSTITUTE($B90," ",""),V$5*2+1,2) -> E8 | W90: =MID(SUBSTITUTE($B90," ",""),W$5*2+1,2) -> 00 | X90: =MID(SUBSTITUTE($B90," ",""),X$5*2+1,2) -> 61 | Y90: =MID(SUBSTITUTE($B90," ",""),Y$5*2+1,2) -> 00 | Z90: =MID(SUBSTITUTE($B90," ",""),Z$5*2+1,2) -> 06 | AA90: =MID(SUBSTITUTE($B90," ",""),AA$5*2+1,2) -> 07 | AB90: =MID(SUBSTITUTE($B90," ",""),AB$5*2+1,2) -> 99 | AC90: =MID(SUBSTITUTE($B90," ",""),AC$5*2+1,2) -> 7F | AD90: =MID(SUBSTITUTE($B90," ",""),AD$5*2+1,2) -> 61 | AE90: =MID(SUBSTITUTE($B90," ",""),AE$5*2+1,2) -> 21 | AF90: =MID(SUBSTITUTE($B90," ",""),AF$5*2+1,2) -> 1 | AG90: =IF(L90="01",HEX2DEC(O90&P90)/10,"-") -> - | AH90: =IF(L90="01",HEX2DEC(Q90&R90)/100,"-") -> - | AI90: =IF(L90="01",HEX2DEC(S90&T90)/10,"-") -> - | AJ90: =IF(L90="01",HEX2DEC(U90&V90&W90&X90)/1000,"-") -> - | AK90: =IF(L90="01",HEX2DEC(Y90&Z90)/1000,"-") -> - | AL90: =IF(L90="01",HEX2DEC(AA90&AB90)/10,"-") -> - | AM90: =IF(L90="82",HEX2DEC(M90&N90)/100,"-") -> 50.01 | AN90: =IF(L90="82",HEX2DEC(O90&P90)/10,"-") -> 23.4 | AO90: =IF(L90="82",HEX2DEC(S90&T90)/100,"-") -> 0.1 | AP90: =IF(L90="82",HEX2DEC(W90&X90)/10,"-") -> 9.7 | AQ90: =IF(L90="01",HEX2DEC(M90&N90),"-") -> - | AR90: =IF(L90="01",HEX2DEC(AC90&AD90),"-") -> - | AS90: =IF(L90="82",HEX2DEC(Q90&R90),"-") -> 0 | AT90: =IF(L90="82",HEX2DEC(U90&V90),"-") -> 1000 | AU90: =IF(L90="82",HEX2DEC(Y90&Z90),"-") -> 6 | AV90: =IF(L90="82",HEX2DEC(AA90&AB90),"-") -> 1945 | AW90: =IF(L90="82",HEX2DEC(AC90&AD90),"-") -> 32609
A91: 09:22:52 | B91: 95 7310xxyy 7310xxyy 0100010195003E00FA0000FA8200200924B0CDAF 5AFC 8184 6FB9 8F92 1DC2 AE39 E711 BE5C C26B B388 BE5C EB39 5B9B CC1C 2F32 516F 99C3 6ACD B388 6121 BE5C B8B6 B388 B562 B388 CDA1 | C91: =MID(SUBSTITUTE($B91," ",""),C$5*2+1,2) -> 95 | D91: =MID(SUBSTITUTE($B91," ",""),D$5*2+1,2) -> 73 | E91: =MID(SUBSTITUTE($B91," ",""),E$5*2+1,2) -> 10 | F91: =MID(SUBSTITUTE($B91," ",""),F$5*2+1,2) -> xx | G91: =MID(SUBSTITUTE($B91," ",""),G$5*2+1,2) -> yy | H91: =MID(SUBSTITUTE($B91," ",""),H$5*2+1,2) -> 73 | I91: =MID(SUBSTITUTE($B91," ",""),I$5*2+1,2) -> 10 | J91: =MID(SUBSTITUTE($B91," ",""),J$5*2+1,2) -> xx | K91: =MID(SUBSTITUTE($B91," ",""),K$5*2+1,2) -> yy | L91: =MID(SUBSTITUTE($B91," ",""),L$5*2+1,2) -> 01 | M91: =MID(SUBSTITUTE($B91," ",""),M$5*2+1,2) -> 00 | N91: =MID(SUBSTITUTE($B91," ",""),N$5*2+1,2) -> 01 | O91: =MID(SUBSTITUTE($B91," ",""),O$5*2+1,2) -> 01 | P91: =MID(SUBSTITUTE($B91," ",""),P$5*2+1,2) -> 95 | Q91: =MID(SUBSTITUTE($B91," ",""),Q$5*2+1,2) -> 00 | R91: =MID(SUBSTITUTE($B91," ",""),R$5*2+1,2) -> 3E | S91: =MID(SUBSTITUTE($B91," ",""),S$5*2+1,2) -> 00 | T91: =MID(SUBSTITUTE($B91," ",""),T$5*2+1,2) -> FA | U91: =MID(SUBSTITUTE($B91," ",""),U$5*2+1,2) -> 00 | V91: =MID(SUBSTITUTE($B91," ",""),V$5*2+1,2) -> 00 | W91: =MID(SUBSTITUTE($B91," ",""),W$5*2+1,2) -> FA | X91: =MID(SUBSTITUTE($B91," ",""),X$5*2+1,2) -> 82 | Y91: =MID(SUBSTITUTE($B91," ",""),Y$5*2+1,2) -> 00 | Z91: =MID(SUBSTITUTE($B91," ",""),Z$5*2+1,2) -> 20 | AA91: =MID(SUBSTITUTE($B91," ",""),AA$5*2+1,2) -> 09 | AB91: =MID(SUBSTITUTE($B91," ",""),AB$5*2+1,2) -> 24 | AC91: =MID(SUBSTITUTE($B91," ",""),AC$5*2+1,2) -> B0 | AD91: =MID(SUBSTITUTE($B91," ",""),AD$5*2+1,2) -> CD | AE91: =MID(SUBSTITUTE($B91," ",""),AE$5*2+1,2) -> AF | AF91: =MID(SUBSTITUTE($B91," ",""),AF$5*2+1,2) -> 5A | AG91: =IF(L91="01",HEX2DEC(O91&P91)/10,"-") -> 40.5 | AH91: =IF(L91="01",HEX2DEC(Q91&R91)/100,"-") -> 0.62 | AI91: =IF(L91="01",HEX2DEC(S91&T91)/10,"-") -> 25 | AJ91: =IF(L91="01",HEX2DEC(U91&V91&W91&X91)/1000,"-") -> 64.13 | AK91: =IF(L91="01",HEX2DEC(Y91&Z91)/1000,"-") -> 0.032 | AL91: =IF(L91="01",HEX2DEC(AA91&AB91)/10,"-") -> 234 | AM91: =IF(L91="82",HEX2DEC(M91&N91)/100,"-") -> - | AN91: =IF(L91="82",HEX2DEC(O91&P91)/10,"-") -> - | AO91: =IF(L91="82",HEX2DEC(S91&T91)/100,"-") -> - | AP91: =IF(L91="82",HEX2DEC(W91&X91)/10,"-") -> - | AQ91: =IF(L91="01",HEX2DEC(M91&N91),"-") -> 1 | AR91: =IF(L91="01",HEX2DEC(AC91&AD91),"-") -> 45261 | AS91: =IF(L91="82",HEX2DEC(Q91&R91),"-") -> - | AT91: =IF(L91="82",HEX2DEC(U91&V91),"-") -> - | AU91: =IF(L91="82",HEX2DEC(Y91&Z91),"-") -> - | AV91: =IF(L91="82",HEX2DEC(AA91&AB91),"-") -> - | AW91: =IF(L91="82",HEX2DEC(AC91&AD91),"-") -> -
A92: 09:22:52 | B92: 95 7310xxyy 7310xxyy 82138900EE0000000A03E8006100060D8E66D0E9 1 | C92: =MID(SUBSTITUTE($B92," ",""),C$5*2+1,2) -> 95 | D92: =MID(SUBSTITUTE($B92," ",""),D$5*2+1,2) -> 73 | E92: =MID(SUBSTITUTE($B92," ",""),E$5*2+1,2) -> 10 | F92: =MID(SUBSTITUTE($B92," ",""),F$5*2+1,2) -> xx | G92: =MID(SUBSTITUTE($B92," ",""),G$5*2+1,2) -> yy | H92: =MID(SUBSTITUTE($B92," ",""),H$5*2+1,2) -> 73 | I92: =MID(SUBSTITUTE($B92," ",""),I$5*2+1,2) -> 10 | J92: =MID(SUBSTITUTE($B92," ",""),J$5*2+1,2) -> xx | K92: =MID(SUBSTITUTE($B92," ",""),K$5*2+1,2) -> yy | L92: =MID(SUBSTITUTE($B92," ",""),L$5*2+1,2) -> 82 | M92: =MID(SUBSTITUTE($B92," ",""),M$5*2+1,2) -> 13 | N92: =MID(SUBSTITUTE($B92," ",""),N$5*2+1,2) -> 89 | O92: =MID(SUBSTITUTE($B92," ",""),O$5*2+1,2) -> 00 | P92: =MID(SUBSTITUTE($B92," ",""),P$5*2+1,2) -> EE | Q92: =MID(SUBSTITUTE($B92," ",""),Q$5*2+1,2) -> 00 | R92: =MID(SUBSTITUTE($B92," ",""),R$5*2+1,2) -> 00 | S92: =MID(SUBSTITUTE($B92," ",""),S$5*2+1,2) -> 00 | T92: =MID(SUBSTITUTE($B92," ",""),T$5*2+1,2) -> 0A | U92: =MID(SUBSTITUTE($B92," ",""),U$5*2+1,2) -> 03 | V92: =MID(SUBSTITUTE($B92," ",""),V$5*2+1,2) -> E8 | W92: =MID(SUBSTITUTE($B92," ",""),W$5*2+1,2) -> 00 | X92: =MID(SUBSTITUTE($B92," ",""),X$5*2+1,2) -> 61 | Y92: =MID(SUBSTITUTE($B92," ",""),Y$5*2+1,2) -> 00 | Z92: =MID(SUBSTITUTE($B92," ",""),Z$5*2+1,2) -> 06 | AA92: =MID(SUBSTITUTE($B92," ",""),AA$5*2+1,2) -> 0D | AB92: =MID(SUBSTITUTE($B92," ",""),AB$5*2+1,2) -> 8E | AC92: =MID(SUBSTITUTE($B92," ",""),AC$5*2+1,2) -> 66 | AD92: =MID(SUBSTITUTE($B92," ",""),AD$5*2+1,2) -> D0 | AE92: =MID(SUBSTITUTE($B92," ",""),AE$5*2+1,2) -> E9 | AF92: =MID(SUBSTITUTE($B92," ",""),AF$5*2+1,2) -> 1 | AG92: =IF(L92="01",HEX2DEC(O92&P92)/10,"-") -> - | AH92: =IF(L92="01",HEX2DEC(Q92&R92)/100,"-") -> - | AI92: =IF(L92="01",HEX2DEC(S92&T92)/10,"-") -> - | AJ92: =IF(L92="01",HEX2DEC(U92&V92&W92&X92)/1000,"-") -> - | AK92: =IF(L92="01",HEX2DEC(Y92&Z92)/1000,"-") -> - | AL92: =IF(L92="01",HEX2DEC(AA92&AB92)/10,"-") -> - | AM92: =IF(L92="82",HEX2DEC(M92&N92)/100,"-") -> 50.01 | AN92: =IF(L92="82",HEX2DEC(O92&P92)/10,"-") -> 23.8 | AO92: =IF(L92="82",HEX2DEC(S92&T92)/100,"-") -> 0.1 | AP92: =IF(L92="82",HEX2DEC(W92&X92)/10,"-") -> 9.7 | AQ92: =IF(L92="01",HEX2DEC(M92&N92),"-") -> - | AR92: =IF(L92="01",HEX2DEC(AC92&AD92),"-") -> - | AS92: =IF(L92="82",HEX2DEC(Q92&R92),"-") -> 0 | AT92: =IF(L92="82",HEX2DEC(U92&V92),"-") -> 1000 | AU92: =IF(L92="82",HEX2DEC(Y92&Z92),"-") -> 6 | AV92: =IF(L92="82",HEX2DEC(AA92&AB92),"-") -> 3470 | AW92: =IF(L92="82",HEX2DEC(AC92&AD92),"-") -> 26320
A93: 09:23:04 | B93: 95 7310xxyy 7310xxyy 0100010195003E00FB0000FA8200200928BD362A 1 | C93: =MID(SUBSTITUTE($B93," ",""),C$5*2+1,2) -> 95 | D93: =MID(SUBSTITUTE($B93," ",""),D$5*2+1,2) -> 73 | E93: =MID(SUBSTITUTE($B93," ",""),E$5*2+1,2) -> 10 | F93: =MID(SUBSTITUTE($B93," ",""),F$5*2+1,2) -> xx | G93: =MID(SUBSTITUTE($B93," ",""),G$5*2+1,2) -> yy | H93: =MID(SUBSTITUTE($B93," ",""),H$5*2+1,2) -> 73 | I93: =MID(SUBSTITUTE($B93," ",""),I$5*2+1,2) -> 10 | J93: =MID(SUBSTITUTE($B93," ",""),J$5*2+1,2) -> xx | K93: =MID(SUBSTITUTE($B93," ",""),K$5*2+1,2) -> yy | L93: =MID(SUBSTITUTE($B93," ",""),L$5*2+1,2) -> 01 | M93: =MID(SUBSTITUTE($B93," ",""),M$5*2+1,2) -> 00 | N93: =MID(SUBSTITUTE($B93," ",""),N$5*2+1,2) -> 01 | O93: =MID(SUBSTITUTE($B93," ",""),O$5*2+1,2) -> 01 | P93: =MID(SUBSTITUTE($B93," ",""),P$5*2+1,2) -> 95 | Q93: =MID(SUBSTITUTE($B93," ",""),Q$5*2+1,2) -> 00 | R93: =MID(SUBSTITUTE($B93," ",""),R$5*2+1,2) -> 3E | S93: =MID(SUBSTITUTE($B93," ",""),S$5*2+1,2) -> 00 | T93: =MID(SUBSTITUTE($B93," ",""),T$5*2+1,2) -> FB | U93: =MID(SUBSTITUTE($B93," ",""),U$5*2+1,2) -> 00 | V93: =MID(SUBSTITUTE($B93," ",""),V$5*2+1,2) -> 00 | W93: =MID(SUBSTITUTE($B93," ",""),W$5*2+1,2) -> FA | X93: =MID(SUBSTITUTE($B93," ",""),X$5*2+1,2) -> 82 | Y93: =MID(SUBSTITUTE($B93," ",""),Y$5*2+1,2) -> 00 | Z93: =MID(SUBSTITUTE($B93," ",""),Z$5*2+1,2) -> 20 | AA93: =MID(SUBSTITUTE($B93," ",""),AA$5*2+1,2) -> 09 | AB93: =MID(SUBSTITUTE($B93," ",""),AB$5*2+1,2) -> 28 | AC93: =MID(SUBSTITUTE($B93," ",""),AC$5*2+1,2) -> BD | AD93: =MID(SUBSTITUTE($B93," ",""),AD$5*2+1,2) -> 36 | AE93: =MID(SUBSTITUTE($B93," ",""),AE$5*2+1,2) -> 2A | AF93: =MID(SUBSTITUTE($B93," ",""),AF$5*2+1,2) -> 1 | AG93: =IF(L93="01",HEX2DEC(O93&P93)/10,"-") -> 40.5 | AH93: =IF(L93="01",HEX2DEC(Q93&R93)/100,"-") -> 0.62 | AI93: =IF(L93="01",HEX2DEC(S93&T93)/10,"-") -> 25.1 | AJ93: =IF(L93="01",HEX2DEC(U93&V93&W93&X93)/1000,"-") -> 64.13 | AK93: =IF(L93="01",HEX2DEC(Y93&Z93)/1000,"-") -> 0.032 | AL93: =IF(L93="01",HEX2DEC(AA93&AB93)/10,"-") -> 234.4 | AM93: =IF(L93="82",HEX2DEC(M93&N93)/100,"-") -> - | AN93: =IF(L93="82",HEX2DEC(O93&P93)/10,"-") -> - | AO93: =IF(L93="82",HEX2DEC(S93&T93)/100,"-") -> - | AP93: =IF(L93="82",HEX2DEC(W93&X93)/10,"-") -> - | AQ93: =IF(L93="01",HEX2DEC(M93&N93),"-") -> 1 | AR93: =IF(L93="01",HEX2DEC(AC93&AD93),"-") -> 48438 | AS93: =IF(L93="82",HEX2DEC(Q93&R93),"-") -> - | AT93: =IF(L93="82",HEX2DEC(U93&V93),"-") -> - | AU93: =IF(L93="82",HEX2DEC(Y93&Z93),"-") -> - | AV93: =IF(L93="82",HEX2DEC(AA93&AB93),"-") -> - | AW93: =IF(L93="82",HEX2DEC(AC93&AD93),"-") -> -
A94: 09:23:04 | B94: 95 7310xxyy 7310xxyy 82138900EF0000000A03E800600006A81A574A19 1 | C94: =MID(SUBSTITUTE($B94," ",""),C$5*2+1,2) -> 95 | D94: =MID(SUBSTITUTE($B94," ",""),D$5*2+1,2) -> 73 | E94: =MID(SUBSTITUTE($B94," ",""),E$5*2+1,2) -> 10 | F94: =MID(SUBSTITUTE($B94," ",""),F$5*2+1,2) -> xx | G94: =MID(SUBSTITUTE($B94," ",""),G$5*2+1,2) -> yy | H94: =MID(SUBSTITUTE($B94," ",""),H$5*2+1,2) -> 73 | I94: =MID(SUBSTITUTE($B94," ",""),I$5*2+1,2) -> 10 | J94: =MID(SUBSTITUTE($B94," ",""),J$5*2+1,2) -> xx | K94: =MID(SUBSTITUTE($B94," ",""),K$5*2+1,2) -> yy | L94: =MID(SUBSTITUTE($B94," ",""),L$5*2+1,2) -> 82 | M94: =MID(SUBSTITUTE($B94," ",""),M$5*2+1,2) -> 13 | N94: =MID(SUBSTITUTE($B94," ",""),N$5*2+1,2) -> 89 | O94: =MID(SUBSTITUTE($B94," ",""),O$5*2+1,2) -> 00 | P94: =MID(SUBSTITUTE($B94," ",""),P$5*2+1,2) -> EF | Q94: =MID(SUBSTITUTE($B94," ",""),Q$5*2+1,2) -> 00 | R94: =MID(SUBSTITUTE($B94," ",""),R$5*2+1,2) -> 00 | S94: =MID(SUBSTITUTE($B94," ",""),S$5*2+1,2) -> 00 | T94: =MID(SUBSTITUTE($B94," ",""),T$5*2+1,2) -> 0A | U94: =MID(SUBSTITUTE($B94," ",""),U$5*2+1,2) -> 03 | V94: =MID(SUBSTITUTE($B94," ",""),V$5*2+1,2) -> E8 | W94: =MID(SUBSTITUTE($B94," ",""),W$5*2+1,2) -> 00 | X94: =MID(SUBSTITUTE($B94," ",""),X$5*2+1,2) -> 60 | Y94: =MID(SUBSTITUTE($B94," ",""),Y$5*2+1,2) -> 00 | Z94: =MID(SUBSTITUTE($B94," ",""),Z$5*2+1,2) -> 06 | AA94: =MID(SUBSTITUTE($B94," ",""),AA$5*2+1,2) -> A8 | AB94: =MID(SUBSTITUTE($B94," ",""),AB$5*2+1,2) -> 1A | AC94: =MID(SUBSTITUTE($B94," ",""),AC$5*2+1,2) -> 57 | AD94: =MID(SUBSTITUTE($B94," ",""),AD$5*2+1,2) -> 4A | AE94: =MID(SUBSTITUTE($B94," ",""),AE$5*2+1,2) -> 19 | AF94: =MID(SUBSTITUTE($B94," ",""),AF$5*2+1,2) -> 1 | AG94: =IF(L94="01",HEX2DEC(O94&P94)/10,"-") -> - | AH94: =IF(L94="01",HEX2DEC(Q94&R94)/100,"-") -> - | AI94: =IF(L94="01",HEX2DEC(S94&T94)/10,"-") -> - | AJ94: =IF(L94="01",HEX2DEC(U94&V94&W94&X94)/1000,"-") -> - | AK94: =IF(L94="01",HEX2DEC(Y94&Z94)/1000,"-") -> - | AL94: =IF(L94="01",HEX2DEC(AA94&AB94)/10,"-") -> - | AM94: =IF(L94="82",HEX2DEC(M94&N94)/100,"-") -> 50.01 | AN94: =IF(L94="82",HEX2DEC(O94&P94)/10,"-") -> 23.9 | AO94: =IF(L94="82",HEX2DEC(S94&T94)/100,"-") -> 0.1 | AP94: =IF(L94="82",HEX2DEC(W94&X94)/10,"-") -> 9.6 | AQ94: =IF(L94="01",HEX2DEC(M94&N94),"-") -> - | AR94: =IF(L94="01",HEX2DEC(AC94&AD94),"-") -> - | AS94: =IF(L94="82",HEX2DEC(Q94&R94),"-") -> 0 | AT94: =IF(L94="82",HEX2DEC(U94&V94),"-") -> 1000 | AU94: =IF(L94="82",HEX2DEC(Y94&Z94),"-") -> 6 | AV94: =IF(L94="82",HEX2DEC(AA94&AB94),"-") -> 43034 | AW94: =IF(L94="82",HEX2DEC(AC94&AD94),"-") -> 22346
A95: 09:23:08 | B95: 95 7310xxyy 7310xxyy 82138900EF0000000A03E800600006A81A57D849 1 | C95: =MID(SUBSTITUTE($B95," ",""),C$5*2+1,2) -> 95 | D95: =MID(SUBSTITUTE($B95," ",""),D$5*2+1,2) -> 73 | E95: =MID(SUBSTITUTE($B95," ",""),E$5*2+1,2) -> 10 | F95: =MID(SUBSTITUTE($B95," ",""),F$5*2+1,2) -> xx | G95: =MID(SUBSTITUTE($B95," ",""),G$5*2+1,2) -> yy | H95: =MID(SUBSTITUTE($B95," ",""),H$5*2+1,2) -> 73 | I95: =MID(SUBSTITUTE($B95," ",""),I$5*2+1,2) -> 10 | J95: =MID(SUBSTITUTE($B95," ",""),J$5*2+1,2) -> xx | K95: =MID(SUBSTITUTE($B95," ",""),K$5*2+1,2) -> yy | L95: =MID(SUBSTITUTE($B95," ",""),L$5*2+1,2) -> 82 | M95: =MID(SUBSTITUTE($B95," ",""),M$5*2+1,2) -> 13 | N95: =MID(SUBSTITUTE($B95," ",""),N$5*2+1,2) -> 89 | O95: =MID(SUBSTITUTE($B95," ",""),O$5*2+1,2) -> 00 | P95: =MID(SUBSTITUTE($B95," ",""),P$5*2+1,2) -> EF | Q95: =MID(SUBSTITUTE($B95," ",""),Q$5*2+1,2) -> 00 | R95: =MID(SUBSTITUTE($B95," ",""),R$5*2+1,2) -> 00 | S95: =MID(SUBSTITUTE($B95," ",""),S$5*2+1,2) -> 00 | T95: =MID(SUBSTITUTE($B95," ",""),T$5*2+1,2) -> 0A | U95: =MID(SUBSTITUTE($B95," ",""),U$5*2+1,2) -> 03 | V95: =MID(SUBSTITUTE($B95," ",""),V$5*2+1,2) -> E8 | W95: =MID(SUBSTITUTE($B95," ",""),W$5*2+1,2) -> 00 | X95: =MID(SUBSTITUTE($B95," ",""),X$5*2+1,2) -> 60 | Y95: =MID(SUBSTITUTE($B95," ",""),Y$5*2+1,2) -> 00 | Z95: =MID(SUBSTITUTE($B95," ",""),Z$5*2+1,2) -> 06 | AA95: =MID(SUBSTITUTE($B95," ",""),AA$5*2+1,2) -> A8 | AB95: =MID(SUBSTITUTE($B95," ",""),AB$5*2+1,2) -> 1A | AC95: =MID(SUBSTITUTE($B95," ",""),AC$5*2+1,2) -> 57 | AD95: =MID(SUBSTITUTE($B95," ",""),AD$5*2+1,2) -> D8 | AE95: =MID(SUBSTITUTE($B95," ",""),AE$5*2+1,2) -> 49 | AF95: =MID(SUBSTITUTE($B95," ",""),AF$5*2+1,2) -> 1 | AG95: =IF(L95="01",HEX2DEC(O95&P95)/10,"-") -> - | AH95: =IF(L95="01",HEX2DEC(Q95&R95)/100,"-") -> - | AI95: =IF(L95="01",HEX2DEC(S95&T95)/10,"-") -> - | AJ95: =IF(L95="01",HEX2DEC(U95&V95&W95&X95)/1000,"-") -> - | AK95: =IF(L95="01",HEX2DEC(Y95&Z95)/1000,"-") -> - | AL95: =IF(L95="01",HEX2DEC(AA95&AB95)/10,"-") -> - | AM95: =IF(L95="82",HEX2DEC(M95&N95)/100,"-") -> 50.01 | AN95: =IF(L95="82",HEX2DEC(O95&P95)/10,"-") -> 23.9 | AO95: =IF(L95="82",HEX2DEC(S95&T95)/100,"-") -> 0.1 | AP95: =IF(L95="82",HEX2DEC(W95&X95)/10,"-") -> 9.6 | AQ95: =IF(L95="01",HEX2DEC(M95&N95),"-") -> - | AR95: =IF(L95="01",HEX2DEC(AC95&AD95),"-") -> - | AS95: =IF(L95="82",HEX2DEC(Q95&R95),"-") -> 0 | AT95: =IF(L95="82",HEX2DEC(U95&V95),"-") -> 1000 | AU95: =IF(L95="82",HEX2DEC(Y95&Z95),"-") -> 6 | AV95: =IF(L95="82",HEX2DEC(AA95&AB95),"-") -> 43034 | AW95: =IF(L95="82",HEX2DEC(AC95&AD95),"-") -> 22488
A96: 09:23:56 | B96: 95 7310xxyy 7310xxyy 82138900F40000000A03E8006000067E5FDF4DFB 1 | C96: =MID(SUBSTITUTE($B96," ",""),C$5*2+1,2) -> 95 | D96: =MID(SUBSTITUTE($B96," ",""),D$5*2+1,2) -> 73 | E96: =MID(SUBSTITUTE($B96," ",""),E$5*2+1,2) -> 10 | F96: =MID(SUBSTITUTE($B96," ",""),F$5*2+1,2) -> xx | G96: =MID(SUBSTITUTE($B96," ",""),G$5*2+1,2) -> yy | H96: =MID(SUBSTITUTE($B96," ",""),H$5*2+1,2) -> 73 | I96: =MID(SUBSTITUTE($B96," ",""),I$5*2+1,2) -> 10 | J96: =MID(SUBSTITUTE($B96," ",""),J$5*2+1,2) -> xx | K96: =MID(SUBSTITUTE($B96," ",""),K$5*2+1,2) -> yy | L96: =MID(SUBSTITUTE($B96," ",""),L$5*2+1,2) -> 82 | M96: =MID(SUBSTITUTE($B96," ",""),M$5*2+1,2) -> 13 | N96: =MID(SUBSTITUTE($B96," ",""),N$5*2+1,2) -> 89 | O96: =MID(SUBSTITUTE($B96," ",""),O$5*2+1,2) -> 00 | P96: =MID(SUBSTITUTE($B96," ",""),P$5*2+1,2) -> F4 | Q96: =MID(SUBSTITUTE($B96," ",""),Q$5*2+1,2) -> 00 | R96: =MID(SUBSTITUTE($B96," ",""),R$5*2+1,2) -> 00 | S96: =MID(SUBSTITUTE($B96," ",""),S$5*2+1,2) -> 00 | T96: =MID(SUBSTITUTE($B96," ",""),T$5*2+1,2) -> 0A | U96: =MID(SUBSTITUTE($B96," ",""),U$5*2+1,2) -> 03 | V96: =MID(SUBSTITUTE($B96," ",""),V$5*2+1,2) -> E8 | W96: =MID(SUBSTITUTE($B96," ",""),W$5*2+1,2) -> 00 | X96: =MID(SUBSTITUTE($B96," ",""),X$5*2+1,2) -> 60 | Y96: =MID(SUBSTITUTE($B96," ",""),Y$5*2+1,2) -> 00 | Z96: =MID(SUBSTITUTE($B96," ",""),Z$5*2+1,2) -> 06 | AA96: =MID(SUBSTITUTE($B96," ",""),AA$5*2+1,2) -> 7E | AB96: =MID(SUBSTITUTE($B96," ",""),AB$5*2+1,2) -> 5F | AC96: =MID(SUBSTITUTE($B96," ",""),AC$5*2+1,2) -> DF | AD96: =MID(SUBSTITUTE($B96," ",""),AD$5*2+1,2) -> 4D | AE96: =MID(SUBSTITUTE($B96," ",""),AE$5*2+1,2) -> FB | AF96: =MID(SUBSTITUTE($B96," ",""),AF$5*2+1,2) -> 1 | AG96: =IF(L96="01",HEX2DEC(O96&P96)/10,"-") -> - | AH96: =IF(L96="01",HEX2DEC(Q96&R96)/100,"-") -> - | AI96: =IF(L96="01",HEX2DEC(S96&T96)/10,"-") -> - | AJ96: =IF(L96="01",HEX2DEC(U96&V96&W96&X96)/1000,"-") -> - | AK96: =IF(L96="01",HEX2DEC(Y96&Z96)/1000,"-") -> - | AL96: =IF(L96="01",HEX2DEC(AA96&AB96)/10,"-") -> - | AM96: =IF(L96="82",HEX2DEC(M96&N96)/100,"-") -> 50.01 | AN96: =IF(L96="82",HEX2DEC(O96&P96)/10,"-") -> 24.4 | AO96: =IF(L96="82",HEX2DEC(S96&T96)/100,"-") -> 0.1 | AP96: =IF(L96="82",HEX2DEC(W96&X96)/10,"-") -> 9.6 | AQ96: =IF(L96="01",HEX2DEC(M96&N96),"-") -> - | AR96: =IF(L96="01",HEX2DEC(AC96&AD96),"-") -> - | AS96: =IF(L96="82",HEX2DEC(Q96&R96),"-") -> 0 | AT96: =IF(L96="82",HEX2DEC(U96&V96),"-") -> 1000 | AU96: =IF(L96="82",HEX2DEC(Y96&Z96),"-") -> 6 | AV96: =IF(L96="82",HEX2DEC(AA96&AB96),"-") -> 32351 | AW96: =IF(L96="82",HEX2DEC(AC96&AD96),"-") -> 57165
A97: 09:24:28 | B97: 95 7310xxyy 7310xxyy 0100010195004001030000FA820020091E0C1372 1 | C97: =MID(SUBSTITUTE($B97," ",""),C$5*2+1,2) -> 95 | D97: =MID(SUBSTITUTE($B97," ",""),D$5*2+1,2) -> 73 | E97: =MID(SUBSTITUTE($B97," ",""),E$5*2+1,2) -> 10 | F97: =MID(SUBSTITUTE($B97," ",""),F$5*2+1,2) -> xx | G97: =MID(SUBSTITUTE($B97," ",""),G$5*2+1,2) -> yy | H97: =MID(SUBSTITUTE($B97," ",""),H$5*2+1,2) -> 73 | I97: =MID(SUBSTITUTE($B97," ",""),I$5*2+1,2) -> 10 | J97: =MID(SUBSTITUTE($B97," ",""),J$5*2+1,2) -> xx | K97: =MID(SUBSTITUTE($B97," ",""),K$5*2+1,2) -> yy | L97: =MID(SUBSTITUTE($B97," ",""),L$5*2+1,2) -> 01 | M97: =MID(SUBSTITUTE($B97," ",""),M$5*2+1,2) -> 00 | N97: =MID(SUBSTITUTE($B97," ",""),N$5*2+1,2) -> 01 | O97: =MID(SUBSTITUTE($B97," ",""),O$5*2+1,2) -> 01 | P97: =MID(SUBSTITUTE($B97," ",""),P$5*2+1,2) -> 95 | Q97: =MID(SUBSTITUTE($B97," ",""),Q$5*2+1,2) -> 00 | R97: =MID(SUBSTITUTE($B97," ",""),R$5*2+1,2) -> 40 | S97: =MID(SUBSTITUTE($B97," ",""),S$5*2+1,2) -> 01 | T97: =MID(SUBSTITUTE($B97," ",""),T$5*2+1,2) -> 03 | U97: =MID(SUBSTITUTE($B97," ",""),U$5*2+1,2) -> 00 | V97: =MID(SUBSTITUTE($B97," ",""),V$5*2+1,2) -> 00 | W97: =MID(SUBSTITUTE($B97," ",""),W$5*2+1,2) -> FA | X97: =MID(SUBSTITUTE($B97," ",""),X$5*2+1,2) -> 82 | Y97: =MID(SUBSTITUTE($B97," ",""),Y$5*2+1,2) -> 00 | Z97: =MID(SUBSTITUTE($B97," ",""),Z$5*2+1,2) -> 20 | AA97: =MID(SUBSTITUTE($B97," ",""),AA$5*2+1,2) -> 09 | AB97: =MID(SUBSTITUTE($B97," ",""),AB$5*2+1,2) -> 1E | AC97: =MID(SUBSTITUTE($B97," ",""),AC$5*2+1,2) -> 0C | AD97: =MID(SUBSTITUTE($B97," ",""),AD$5*2+1,2) -> 13 | AE97: =MID(SUBSTITUTE($B97," ",""),AE$5*2+1,2) -> 72 | AF97: =MID(SUBSTITUTE($B97," ",""),AF$5*2+1,2) -> 1 | AG97: =IF(L97="01",HEX2DEC(O97&P97)/10,"-") -> 40.5 | AH97: =IF(L97="01",HEX2DEC(Q97&R97)/100,"-") -> 0.64 | AI97: =IF(L97="01",HEX2DEC(S97&T97)/10,"-") -> 25.9 | AJ97: =IF(L97="01",HEX2DEC(U97&V97&W97&X97)/1000,"-") -> 64.13 | AK97: =IF(L97="01",HEX2DEC(Y97&Z97)/1000,"-") -> 0.032 | AL97: =IF(L97="01",HEX2DEC(AA97&AB97)/10,"-") -> 233.4 | AM97: =IF(L97="82",HEX2DEC(M97&N97)/100,"-") -> - | AN97: =IF(L97="82",HEX2DEC(O97&P97)/10,"-") -> - | AO97: =IF(L97="82",HEX2DEC(S97&T97)/100,"-") -> - | AP97: =IF(L97="82",HEX2DEC(W97&X97)/10,"-") -> - | AQ97: =IF(L97="01",HEX2DEC(M97&N97),"-") -> 1 | AR97: =IF(L97="01",HEX2DEC(AC97&AD97),"-") -> 3091 | AS97: =IF(L97="82",HEX2DEC(Q97&R97),"-") -> - | AT97: =IF(L97="82",HEX2DEC(U97&V97),"-") -> - | AU97: =IF(L97="82",HEX2DEC(Y97&Z97),"-") -> - | AV97: =IF(L97="82",HEX2DEC(AA97&AB97),"-") -> - | AW97: =IF(L97="82",HEX2DEC(AC97&AD97),"-") -> -
A98: 09:24:28 | B98: 95 7310xxyy 7310xxyy 82138900F60000000B03E80062000666AB32D428 1 | C98: =MID(SUBSTITUTE($B98," ",""),C$5*2+1,2) -> 95 | D98: =MID(SUBSTITUTE($B98," ",""),D$5*2+1,2) -> 73 | E98: =MID(SUBSTITUTE($B98," ",""),E$5*2+1,2) -> 10 | F98: =MID(SUBSTITUTE($B98," ",""),F$5*2+1,2) -> xx | G98: =MID(SUBSTITUTE($B98," ",""),G$5*2+1,2) -> yy | H98: =MID(SUBSTITUTE($B98," ",""),H$5*2+1,2) -> 73 | I98: =MID(SUBSTITUTE($B98," ",""),I$5*2+1,2) -> 10 | J98: =MID(SUBSTITUTE($B98," ",""),J$5*2+1,2) -> xx | K98: =MID(SUBSTITUTE($B98," ",""),K$5*2+1,2) -> yy | L98: =MID(SUBSTITUTE($B98," ",""),L$5*2+1,2) -> 82 | M98: =MID(SUBSTITUTE($B98," ",""),M$5*2+1,2) -> 13 | N98: =MID(SUBSTITUTE($B98," ",""),N$5*2+1,2) -> 89 | O98: =MID(SUBSTITUTE($B98," ",""),O$5*2+1,2) -> 00 | P98: =MID(SUBSTITUTE($B98," ",""),P$5*2+1,2) -> F6 | Q98: =MID(SUBSTITUTE($B98," ",""),Q$5*2+1,2) -> 00 | R98: =MID(SUBSTITUTE($B98," ",""),R$5*2+1,2) -> 00 | S98: =MID(SUBSTITUTE($B98," ",""),S$5*2+1,2) -> 00 | T98: =MID(SUBSTITUTE($B98," ",""),T$5*2+1,2) -> 0B | U98: =MID(SUBSTITUTE($B98," ",""),U$5*2+1,2) -> 03 | V98: =MID(SUBSTITUTE($B98," ",""),V$5*2+1,2) -> E8 | W98: =MID(SUBSTITUTE($B98," ",""),W$5*2+1,2) -> 00 | X98: =MID(SUBSTITUTE($B98," ",""),X$5*2+1,2) -> 62 | Y98: =MID(SUBSTITUTE($B98," ",""),Y$5*2+1,2) -> 00 | Z98: =MID(SUBSTITUTE($B98," ",""),Z$5*2+1,2) -> 06 | AA98: =MID(SUBSTITUTE($B98," ",""),AA$5*2+1,2) -> 66 | AB98: =MID(SUBSTITUTE($B98," ",""),AB$5*2+1,2) -> AB | AC98: =MID(SUBSTITUTE($B98," ",""),AC$5*2+1,2) -> 32 | AD98: =MID(SUBSTITUTE($B98," ",""),AD$5*2+1,2) -> D4 | AE98: =MID(SUBSTITUTE($B98," ",""),AE$5*2+1,2) -> 28 | AF98: =MID(SUBSTITUTE($B98," ",""),AF$5*2+1,2) -> 1 | AG98: =IF(L98="01",HEX2DEC(O98&P98)/10,"-") -> - | AH98: =IF(L98="01",HEX2DEC(Q98&R98)/100,"-") -> - | AI98: =IF(L98="01",HEX2DEC(S98&T98)/10,"-") -> - | AJ98: =IF(L98="01",HEX2DEC(U98&V98&W98&X98)/1000,"-") -> - | AK98: =IF(L98="01",HEX2DEC(Y98&Z98)/1000,"-") -> - | AL98: =IF(L98="01",HEX2DEC(AA98&AB98)/10,"-") -> - | AM98: =IF(L98="82",HEX2DEC(M98&N98)/100,"-") -> 50.01 | AN98: =IF(L98="82",HEX2DEC(O98&P98)/10,"-") -> 24.6 | AO98: =IF(L98="82",HEX2DEC(S98&T98)/100,"-") -> 0.11 | AP98: =IF(L98="82",HEX2DEC(W98&X98)/10,"-") -> 9.8 | AQ98: =IF(L98="01",HEX2DEC(M98&N98),"-") -> - | AR98: =IF(L98="01",HEX2DEC(AC98&AD98),"-") -> - | AS98: =IF(L98="82",HEX2DEC(Q98&R98),"-") -> 0 | AT98: =IF(L98="82",HEX2DEC(U98&V98),"-") -> 1000 | AU98: =IF(L98="82",HEX2DEC(Y98&Z98),"-") -> 6 | AV98: =IF(L98="82",HEX2DEC(AA98&AB98),"-") -> 26283 | AW98: =IF(L98="82",HEX2DEC(AC98&AD98),"-") -> 13012
A99: 09:24:52 | B99: 95 7310xxyy 7310xxyy 82138A00FD0000000B03E800610006E3D4C378C6 1 | C99: =MID(SUBSTITUTE($B99," ",""),C$5*2+1,2) -> 95 | D99: =MID(SUBSTITUTE($B99," ",""),D$5*2+1,2) -> 73 | E99: =MID(SUBSTITUTE($B99," ",""),E$5*2+1,2) -> 10 | F99: =MID(SUBSTITUTE($B99," ",""),F$5*2+1,2) -> xx | G99: =MID(SUBSTITUTE($B99," ",""),G$5*2+1,2) -> yy | H99: =MID(SUBSTITUTE($B99," ",""),H$5*2+1,2) -> 73 | I99: =MID(SUBSTITUTE($B99," ",""),I$5*2+1,2) -> 10 | J99: =MID(SUBSTITUTE($B99," ",""),J$5*2+1,2) -> xx | K99: =MID(SUBSTITUTE($B99," ",""),K$5*2+1,2) -> yy | L99: =MID(SUBSTITUTE($B99," ",""),L$5*2+1,2) -> 82 | M99: =MID(SUBSTITUTE($B99," ",""),M$5*2+1,2) -> 13 | N99: =MID(SUBSTITUTE($B99," ",""),N$5*2+1,2) -> 8A | O99: =MID(SUBSTITUTE($B99," ",""),O$5*2+1,2) -> 00 | P99: =MID(SUBSTITUTE($B99," ",""),P$5*2+1,2) -> FD | Q99: =MID(SUBSTITUTE($B99," ",""),Q$5*2+1,2) -> 00 | R99: =MID(SUBSTITUTE($B99," ",""),R$5*2+1,2) -> 00 | S99: =MID(SUBSTITUTE($B99," ",""),S$5*2+1,2) -> 00 | T99: =MID(SUBSTITUTE($B99," ",""),T$5*2+1,2) -> 0B | U99: =MID(SUBSTITUTE($B99," ",""),U$5*2+1,2) -> 03 | V99: =MID(SUBSTITUTE($B99," ",""),V$5*2+1,2) -> E8 | W99: =MID(SUBSTITUTE($B99," ",""),W$5*2+1,2) -> 00 | X99: =MID(SUBSTITUTE($B99," ",""),X$5*2+1,2) -> 61 | Y99: =MID(SUBSTITUTE($B99," ",""),Y$5*2+1,2) -> 00 | Z99: =MID(SUBSTITUTE($B99," ",""),Z$5*2+1,2) -> 06 | AA99: =MID(SUBSTITUTE($B99," ",""),AA$5*2+1,2) -> E3 | AB99: =MID(SUBSTITUTE($B99," ",""),AB$5*2+1,2) -> D4 | AC99: =MID(SUBSTITUTE($B99," ",""),AC$5*2+1,2) -> C3 | AD99: =MID(SUBSTITUTE($B99," ",""),AD$5*2+1,2) -> 78 | AE99: =MID(SUBSTITUTE($B99," ",""),AE$5*2+1,2) -> C6 | AF99: =MID(SUBSTITUTE($B99," ",""),AF$5*2+1,2) -> 1 | AG99: =IF(L99="01",HEX2DEC(O99&P99)/10,"-") -> - | AH99: =IF(L99="01",HEX2DEC(Q99&R99)/100,"-") -> - | AI99: =IF(L99="01",HEX2DEC(S99&T99)/10,"-") -> - | AJ99: =IF(L99="01",HEX2DEC(U99&V99&W99&X99)/1000,"-") -> - | AK99: =IF(L99="01",HEX2DEC(Y99&Z99)/1000,"-") -> - | AL99: =IF(L99="01",HEX2DEC(AA99&AB99)/10,"-") -> - | AM99: =IF(L99="82",HEX2DEC(M99&N99)/100,"-") -> 50.02 | AN99: =IF(L99="82",HEX2DEC(O99&P99)/10,"-") -> 25.3 | AO99: =IF(L99="82",HEX2DEC(S99&T99)/100,"-") -> 0.11 | AP99: =IF(L99="82",HEX2DEC(W99&X99)/10,"-") -> 9.7 | AQ99: =IF(L99="01",HEX2DEC(M99&N99),"-") -> - | AR99: =IF(L99="01",HEX2DEC(AC99&AD99),"-") -> - | AS99: =IF(L99="82",HEX2DEC(Q99&R99),"-") -> 0 | AT99: =IF(L99="82",HEX2DEC(U99&V99),"-") -> 1000 | AU99: =IF(L99="82",HEX2DEC(Y99&Z99),"-") -> 6 | AV99: =IF(L99="82",HEX2DEC(AA99&AB99),"-") -> 58324 | AW99: =IF(L99="82",HEX2DEC(AC99&AD99),"-") -> 50040
A100: 09:26:40 | B100: 95 7310xxyy 7310xxyy 010001019A0046011F0000FA830021091F187921 1 | C100: =MID(SUBSTITUTE($B100," ",""),C$5*2+1,2) -> 95 | D100: =MID(SUBSTITUTE($B100," ",""),D$5*2+1,2) -> 73 | E100: =MID(SUBSTITUTE($B100," ",""),E$5*2+1,2) -> 10 | F100: =MID(SUBSTITUTE($B100," ",""),F$5*2+1,2) -> xx | G100: =MID(SUBSTITUTE($B100," ",""),G$5*2+1,2) -> yy | H100: =MID(SUBSTITUTE($B100," ",""),H$5*2+1,2) -> 73 | I100: =MID(SUBSTITUTE($B100," ",""),I$5*2+1,2) -> 10 | J100: =MID(SUBSTITUTE($B100," ",""),J$5*2+1,2) -> xx | K100: =MID(SUBSTITUTE($B100," ",""),K$5*2+1,2) -> yy | L100: =MID(SUBSTITUTE($B100," ",""),L$5*2+1,2) -> 01 | M100: =MID(SUBSTITUTE($B100," ",""),M$5*2+1,2) -> 00 | N100: =MID(SUBSTITUTE($B100," ",""),N$5*2+1,2) -> 01 | O100: =MID(SUBSTITUTE($B100," ",""),O$5*2+1,2) -> 01 | P100: =MID(SUBSTITUTE($B100," ",""),P$5*2+1,2) -> 9A | Q100: =MID(SUBSTITUTE($B100," ",""),Q$5*2+1,2) -> 00 | R100: =MID(SUBSTITUTE($B100," ",""),R$5*2+1,2) -> 46 | S100: =MID(SUBSTITUTE($B100," ",""),S$5*2+1,2) -> 01 | T100: =MID(SUBSTITUTE($B100," ",""),T$5*2+1,2) -> 1F | U100: =MID(SUBSTITUTE($B100," ",""),U$5*2+1,2) -> 00 | V100: =MID(SUBSTITUTE($B100," ",""),V$5*2+1,2) -> 00 | W100: =MID(SUBSTITUTE($B100," ",""),W$5*2+1,2) -> FA | X100: =MID(SUBSTITUTE($B100," ",""),X$5*2+1,2) -> 83 | Y100: =MID(SUBSTITUTE($B100," ",""),Y$5*2+1,2) -> 00 | Z100: =MID(SUBSTITUTE($B100," ",""),Z$5*2+1,2) -> 21 | AA100: =MID(SUBSTITUTE($B100," ",""),AA$5*2+1,2) -> 09 | AB100: =MID(SUBSTITUTE($B100," ",""),AB$5*2+1,2) -> 1F | AC100: =MID(SUBSTITUTE($B100," ",""),AC$5*2+1,2) -> 18 | AD100: =MID(SUBSTITUTE($B100," ",""),AD$5*2+1,2) -> 79 | AE100: =MID(SUBSTITUTE($B100," ",""),AE$5*2+1,2) -> 21 | AF100: =MID(SUBSTITUTE($B100," ",""),AF$5*2+1,2) -> 1 | AG100: =IF(L100="01",HEX2DEC(O100&P100)/10,"-") -> 41 | AH100: =IF(L100="01",HEX2DEC(Q100&R100)/100,"-") -> 0.7 | AI100: =IF(L100="01",HEX2DEC(S100&T100)/10,"-") -> 28.7 | AJ100: =IF(L100="01",HEX2DEC(U100&V100&W100&X100)/1000,"-") -> 64.131 | AK100: =IF(L100="01",HEX2DEC(Y100&Z100)/1000,"-") -> 0.033 | AL100: =IF(L100="01",HEX2DEC(AA100&AB100)/10,"-") -> 233.5 | AM100: =IF(L100="82",HEX2DEC(M100&N100)/100,"-") -> - | AN100: =IF(L100="82",HEX2DEC(O100&P100)/10,"-") -> - | AO100: =IF(L100="82",HEX2DEC(S100&T100)/100,"-") -> - | AP100: =IF(L100="82",HEX2DEC(W100&X100)/10,"-") -> - | AQ100: =IF(L100="01",HEX2DEC(M100&N100),"-") -> 1 | AR100: =IF(L100="01",HEX2DEC(AC100&AD100),"-") -> 6265 | AS100: =IF(L100="82",HEX2DEC(Q100&R100),"-") -> - | AT100: =IF(L100="82",HEX2DEC(U100&V100),"-") -> - | AU100: =IF(L100="82",HEX2DEC(Y100&Z100),"-") -> - | AV100: =IF(L100="82",HEX2DEC(AA100&AB100),"-") -> - | AW100: =IF(L100="82",HEX2DEC(AC100&AD100),"-") -> -
A101: 09:26:41 | B101: 95 7310xxyy 7310xxyy 010001019A0046011F0000FA830021091F18A259 1 | C101: =MID(SUBSTITUTE($B101," ",""),C$5*2+1,2) -> 95 | D101: =MID(SUBSTITUTE($B101," ",""),D$5*2+1,2) -> 73 | E101: =MID(SUBSTITUTE($B101," ",""),E$5*2+1,2) -> 10 | F101: =MID(SUBSTITUTE($B101," ",""),F$5*2+1,2) -> xx | G101: =MID(SUBSTITUTE($B101," ",""),G$5*2+1,2) -> yy | H101: =MID(SUBSTITUTE($B101," ",""),H$5*2+1,2) -> 73 | I101: =MID(SUBSTITUTE($B101," ",""),I$5*2+1,2) -> 10 | J101: =MID(SUBSTITUTE($B101," ",""),J$5*2+1,2) -> xx | K101: =MID(SUBSTITUTE($B101," ",""),K$5*2+1,2) -> yy | L101: =MID(SUBSTITUTE($B101," ",""),L$5*2+1,2) -> 01 | M101: =MID(SUBSTITUTE($B101," ",""),M$5*2+1,2) -> 00 | N101: =MID(SUBSTITUTE($B101," ",""),N$5*2+1,2) -> 01 | O101: =MID(SUBSTITUTE($B101," ",""),O$5*2+1,2) -> 01 | P101: =MID(SUBSTITUTE($B101," ",""),P$5*2+1,2) -> 9A | Q101: =MID(SUBSTITUTE($B101," ",""),Q$5*2+1,2) -> 00 | R101: =MID(SUBSTITUTE($B101," ",""),R$5*2+1,2) -> 46 | S101: =MID(SUBSTITUTE($B101," ",""),S$5*2+1,2) -> 01 | T101: =MID(SUBSTITUTE($B101," ",""),T$5*2+1,2) -> 1F | U101: =MID(SUBSTITUTE($B101," ",""),U$5*2+1,2) -> 00 | V101: =MID(SUBSTITUTE($B101," ",""),V$5*2+1,2) -> 00 | W101: =MID(SUBSTITUTE($B101," ",""),W$5*2+1,2) -> FA | X101: =MID(SUBSTITUTE($B101," ",""),X$5*2+1,2) -> 83 | Y101: =MID(SUBSTITUTE($B101," ",""),Y$5*2+1,2) -> 00 | Z101: =MID(SUBSTITUTE($B101," ",""),Z$5*2+1,2) -> 21 | AA101: =MID(SUBSTITUTE($B101," ",""),AA$5*2+1,2) -> 09 | AB101: =MID(SUBSTITUTE($B101," ",""),AB$5*2+1,2) -> 1F | AC101: =MID(SUBSTITUTE($B101," ",""),AC$5*2+1,2) -> 18 | AD101: =MID(SUBSTITUTE($B101," ",""),AD$5*2+1,2) -> A2 | AE101: =MID(SUBSTITUTE($B101," ",""),AE$5*2+1,2) -> 59 | AF101: =MID(SUBSTITUTE($B101," ",""),AF$5*2+1,2) -> 1 | AG101: =IF(L101="01",HEX2DEC(O101&P101)/10,"-") -> 41 | AH101: =IF(L101="01",HEX2DEC(Q101&R101)/100,"-") -> 0.7 | AI101: =IF(L101="01",HEX2DEC(S101&T101)/10,"-") -> 28.7 | AJ101: =IF(L101="01",HEX2DEC(U101&V101&W101&X101)/1000,"-") -> 64.131 | AK101: =IF(L101="01",HEX2DEC(Y101&Z101)/1000,"-") -> 0.033 | AL101: =IF(L101="01",HEX2DEC(AA101&AB101)/10,"-") -> 233.5 | AM101: =IF(L101="82",HEX2DEC(M101&N101)/100,"-") -> - | AN101: =IF(L101="82",HEX2DEC(O101&P101)/10,"-") -> - | AO101: =IF(L101="82",HEX2DEC(S101&T101)/100,"-") -> - | AP101: =IF(L101="82",HEX2DEC(W101&X101)/10,"-") -> - | AQ101: =IF(L101="01",HEX2DEC(M101&N101),"-") -> 1 | AR101: =IF(L101="01",HEX2DEC(AC101&AD101),"-") -> 6306 | AS101: =IF(L101="82",HEX2DEC(Q101&R101),"-") -> - | AT101: =IF(L101="82",HEX2DEC(U101&V101),"-") -> - | AU101: =IF(L101="82",HEX2DEC(Y101&Z101),"-") -> - | AV101: =IF(L101="82",HEX2DEC(AA101&AB101),"-") -> - | AW101: =IF(L101="82",HEX2DEC(AC101&AD101),"-") -> -
A102: 09:26:44 | B102: 95 7310xxyy 7310xxyy 82138A01110000000C03E800610006A853E5CD8F 1 | C102: =MID(SUBSTITUTE($B102," ",""),C$5*2+1,2) -> 95 | D102: =MID(SUBSTITUTE($B102," ",""),D$5*2+1,2) -> 73 | E102: =MID(SUBSTITUTE($B102," ",""),E$5*2+1,2) -> 10 | F102: =MID(SUBSTITUTE($B102," ",""),F$5*2+1,2) -> xx | G102: =MID(SUBSTITUTE($B102," ",""),G$5*2+1,2) -> yy | H102: =MID(SUBSTITUTE($B102," ",""),H$5*2+1,2) -> 73 | I102: =MID(SUBSTITUTE($B102," ",""),I$5*2+1,2) -> 10 | J102: =MID(SUBSTITUTE($B102," ",""),J$5*2+1,2) -> xx | K102: =MID(SUBSTITUTE($B102," ",""),K$5*2+1,2) -> yy | L102: =MID(SUBSTITUTE($B102," ",""),L$5*2+1,2) -> 82 | M102: =MID(SUBSTITUTE($B102," ",""),M$5*2+1,2) -> 13 | N102: =MID(SUBSTITUTE($B102," ",""),N$5*2+1,2) -> 8A | O102: =MID(SUBSTITUTE($B102," ",""),O$5*2+1,2) -> 01 | P102: =MID(SUBSTITUTE($B102," ",""),P$5*2+1,2) -> 11 | Q102: =MID(SUBSTITUTE($B102," ",""),Q$5*2+1,2) -> 00 | R102: =MID(SUBSTITUTE($B102," ",""),R$5*2+1,2) -> 00 | S102: =MID(SUBSTITUTE($B102," ",""),S$5*2+1,2) -> 00 | T102: =MID(SUBSTITUTE($B102," ",""),T$5*2+1,2) -> 0C | U102: =MID(SUBSTITUTE($B102," ",""),U$5*2+1,2) -> 03 | V102: =MID(SUBSTITUTE($B102," ",""),V$5*2+1,2) -> E8 | W102: =MID(SUBSTITUTE($B102," ",""),W$5*2+1,2) -> 00 | X102: =MID(SUBSTITUTE($B102," ",""),X$5*2+1,2) -> 61 | Y102: =MID(SUBSTITUTE($B102," ",""),Y$5*2+1,2) -> 00 | Z102: =MID(SUBSTITUTE($B102," ",""),Z$5*2+1,2) -> 06 | AA102: =MID(SUBSTITUTE($B102," ",""),AA$5*2+1,2) -> A8 | AB102: =MID(SUBSTITUTE($B102," ",""),AB$5*2+1,2) -> 53 | AC102: =MID(SUBSTITUTE($B102," ",""),AC$5*2+1,2) -> E5 | AD102: =MID(SUBSTITUTE($B102," ",""),AD$5*2+1,2) -> CD | AE102: =MID(SUBSTITUTE($B102," ",""),AE$5*2+1,2) -> 8F | AF102: =MID(SUBSTITUTE($B102," ",""),AF$5*2+1,2) -> 1 | AG102: =IF(L102="01",HEX2DEC(O102&P102)/10,"-") -> - | AH102: =IF(L102="01",HEX2DEC(Q102&R102)/100,"-") -> - | AI102: =IF(L102="01",HEX2DEC(S102&T102)/10,"-") -> - | AJ102: =IF(L102="01",HEX2DEC(U102&V102&W102&X102)/1000,"-") -> - | AK102: =IF(L102="01",HEX2DEC(Y102&Z102)/1000,"-") -> - | AL102: =IF(L102="01",HEX2DEC(AA102&AB102)/10,"-") -> - | AM102: =IF(L102="82",HEX2DEC(M102&N102)/100,"-") -> 50.02 | AN102: =IF(L102="82",HEX2DEC(O102&P102)/10,"-") -> 27.3 | AO102: =IF(L102="82",HEX2DEC(S102&T102)/100,"-") -> 0.12 | AP102: =IF(L102="82",HEX2DEC(W102&X102)/10,"-") -> 9.7 | AQ102: =IF(L102="01",HEX2DEC(M102&N102),"-") -> - | AR102: =IF(L102="01",HEX2DEC(AC102&AD102),"-") -> - | AS102: =IF(L102="82",HEX2DEC(Q102&R102),"-") -> 0 | AT102: =IF(L102="82",HEX2DEC(U102&V102),"-") -> 1000 | AU102: =IF(L102="82",HEX2DEC(Y102&Z102),"-") -> 6 | AV102: =IF(L102="82",HEX2DEC(AA102&AB102),"-") -> 43091 | AW102: =IF(L102="82",HEX2DEC(AC102&AD102),"-") -> 58829
A103: 09:27:08 | B103: 95 7310xxyy 7310xxyy 82138901160000000C03E800640006A9E452AA2B 1 | C103: =MID(SUBSTITUTE($B103," ",""),C$5*2+1,2) -> 95 | D103: =MID(SUBSTITUTE($B103," ",""),D$5*2+1,2) -> 73 | E103: =MID(SUBSTITUTE($B103," ",""),E$5*2+1,2) -> 10 | F103: =MID(SUBSTITUTE($B103," ",""),F$5*2+1,2) -> xx | G103: =MID(SUBSTITUTE($B103," ",""),G$5*2+1,2) -> yy | H103: =MID(SUBSTITUTE($B103," ",""),H$5*2+1,2) -> 73 | I103: =MID(SUBSTITUTE($B103," ",""),I$5*2+1,2) -> 10 | J103: =MID(SUBSTITUTE($B103," ",""),J$5*2+1,2) -> xx | K103: =MID(SUBSTITUTE($B103," ",""),K$5*2+1,2) -> yy | L103: =MID(SUBSTITUTE($B103," ",""),L$5*2+1,2) -> 82 | M103: =MID(SUBSTITUTE($B103," ",""),M$5*2+1,2) -> 13 | N103: =MID(SUBSTITUTE($B103," ",""),N$5*2+1,2) -> 89 | O103: =MID(SUBSTITUTE($B103," ",""),O$5*2+1,2) -> 01 | P103: =MID(SUBSTITUTE($B103," ",""),P$5*2+1,2) -> 16 | Q103: =MID(SUBSTITUTE($B103," ",""),Q$5*2+1,2) -> 00 | R103: =MID(SUBSTITUTE($B103," ",""),R$5*2+1,2) -> 00 | S103: =MID(SUBSTITUTE($B103," ",""),S$5*2+1,2) -> 00 | T103: =MID(SUBSTITUTE($B103," ",""),T$5*2+1,2) -> 0C | U103: =MID(SUBSTITUTE($B103," ",""),U$5*2+1,2) -> 03 | V103: =MID(SUBSTITUTE($B103," ",""),V$5*2+1,2) -> E8 | W103: =MID(SUBSTITUTE($B103," ",""),W$5*2+1,2) -> 00 | X103: =MID(SUBSTITUTE($B103," ",""),X$5*2+1,2) -> 64 | Y103: =MID(SUBSTITUTE($B103," ",""),Y$5*2+1,2) -> 00 | Z103: =MID(SUBSTITUTE($B103," ",""),Z$5*2+1,2) -> 06 | AA103: =MID(SUBSTITUTE($B103," ",""),AA$5*2+1,2) -> A9 | AB103: =MID(SUBSTITUTE($B103," ",""),AB$5*2+1,2) -> E4 | AC103: =MID(SUBSTITUTE($B103," ",""),AC$5*2+1,2) -> 52 | AD103: =MID(SUBSTITUTE($B103," ",""),AD$5*2+1,2) -> AA | AE103: =MID(SUBSTITUTE($B103," ",""),AE$5*2+1,2) -> 2B | AF103: =MID(SUBSTITUTE($B103," ",""),AF$5*2+1,2) -> 1 | AG103: =IF(L103="01",HEX2DEC(O103&P103)/10,"-") -> - | AH103: =IF(L103="01",HEX2DEC(Q103&R103)/100,"-") -> - | AI103: =IF(L103="01",HEX2DEC(S103&T103)/10,"-") -> - | AJ103: =IF(L103="01",HEX2DEC(U103&V103&W103&X103)/1000,"-") -> - | AK103: =IF(L103="01",HEX2DEC(Y103&Z103)/1000,"-") -> - | AL103: =IF(L103="01",HEX2DEC(AA103&AB103)/10,"-") -> - | AM103: =IF(L103="82",HEX2DEC(M103&N103)/100,"-") -> 50.01 | AN103: =IF(L103="82",HEX2DEC(O103&P103)/10,"-") -> 27.8 | AO103: =IF(L103="82",HEX2DEC(S103&T103)/100,"-") -> 0.12 | AP103: =IF(L103="82",HEX2DEC(W103&X103)/10,"-") -> 10 | AQ103: =IF(L103="01",HEX2DEC(M103&N103),"-") -> - | AR103: =IF(L103="01",HEX2DEC(AC103&AD103),"-") -> - | AS103: =IF(L103="82",HEX2DEC(Q103&R103),"-") -> 0 | AT103: =IF(L103="82",HEX2DEC(U103&V103),"-") -> 1000 | AU103: =IF(L103="82",HEX2DEC(Y103&Z103),"-") -> 6 | AV103: =IF(L103="82",HEX2DEC(AA103&AB103),"-") -> 43492 | AW103: =IF(L103="82",HEX2DEC(AC103&AD103),"-") -> 21162
A104: 09:27:52 | B104: 95 7310xxyy 7310xxyy 82138801090000000B03E800640006DFC019C132 1 | C104: =MID(SUBSTITUTE($B104," ",""),C$5*2+1,2) -> 95 | D104: =MID(SUBSTITUTE($B104," ",""),D$5*2+1,2) -> 73 | E104: =MID(SUBSTITUTE($B104," ",""),E$5*2+1,2) -> 10 | F104: =MID(SUBSTITUTE($B104," ",""),F$5*2+1,2) -> xx | G104: =MID(SUBSTITUTE($B104," ",""),G$5*2+1,2) -> yy | H104: =MID(SUBSTITUTE($B104," ",""),H$5*2+1,2) -> 73 | I104: =MID(SUBSTITUTE($B104," ",""),I$5*2+1,2) -> 10 | J104: =MID(SUBSTITUTE($B104," ",""),J$5*2+1,2) -> xx | K104: =MID(SUBSTITUTE($B104," ",""),K$5*2+1,2) -> yy | L104: =MID(SUBSTITUTE($B104," ",""),L$5*2+1,2) -> 82 | M104: =MID(SUBSTITUTE($B104," ",""),M$5*2+1,2) -> 13 | N104: =MID(SUBSTITUTE($B104," ",""),N$5*2+1,2) -> 88 | O104: =MID(SUBSTITUTE($B104," ",""),O$5*2+1,2) -> 01 | P104: =MID(SUBSTITUTE($B104," ",""),P$5*2+1,2) -> 09 | Q104: =MID(SUBSTITUTE($B104," ",""),Q$5*2+1,2) -> 00 | R104: =MID(SUBSTITUTE($B104," ",""),R$5*2+1,2) -> 00 | S104: =MID(SUBSTITUTE($B104," ",""),S$5*2+1,2) -> 00 | T104: =MID(SUBSTITUTE($B104," ",""),T$5*2+1,2) -> 0B | U104: =MID(SUBSTITUTE($B104," ",""),U$5*2+1,2) -> 03 | V104: =MID(SUBSTITUTE($B104," ",""),V$5*2+1,2) -> E8 | W104: =MID(SUBSTITUTE($B104," ",""),W$5*2+1,2) -> 00 | X104: =MID(SUBSTITUTE($B104," ",""),X$5*2+1,2) -> 64 | Y104: =MID(SUBSTITUTE($B104," ",""),Y$5*2+1,2) -> 00 | Z104: =MID(SUBSTITUTE($B104," ",""),Z$5*2+1,2) -> 06 | AA104: =MID(SUBSTITUTE($B104," ",""),AA$5*2+1,2) -> DF | AB104: =MID(SUBSTITUTE($B104," ",""),AB$5*2+1,2) -> C0 | AC104: =MID(SUBSTITUTE($B104," ",""),AC$5*2+1,2) -> 19 | AD104: =MID(SUBSTITUTE($B104," ",""),AD$5*2+1,2) -> C1 | AE104: =MID(SUBSTITUTE($B104," ",""),AE$5*2+1,2) -> 32 | AF104: =MID(SUBSTITUTE($B104," ",""),AF$5*2+1,2) -> 1 | AG104: =IF(L104="01",HEX2DEC(O104&P104)/10,"-") -> - | AH104: =IF(L104="01",HEX2DEC(Q104&R104)/100,"-") -> - | AI104: =IF(L104="01",HEX2DEC(S104&T104)/10,"-") -> - | AJ104: =IF(L104="01",HEX2DEC(U104&V104&W104&X104)/1000,"-") -> - | AK104: =IF(L104="01",HEX2DEC(Y104&Z104)/1000,"-") -> - | AL104: =IF(L104="01",HEX2DEC(AA104&AB104)/10,"-") -> - | AM104: =IF(L104="82",HEX2DEC(M104&N104)/100,"-") -> 50 | AN104: =IF(L104="82",HEX2DEC(O104&P104)/10,"-") -> 26.5 | AO104: =IF(L104="82",HEX2DEC(S104&T104)/100,"-") -> 0.11 | AP104: =IF(L104="82",HEX2DEC(W104&X104)/10,"-") -> 10 | AQ104: =IF(L104="01",HEX2DEC(M104&N104),"-") -> - | AR104: =IF(L104="01",HEX2DEC(AC104&AD104),"-") -> - | AS104: =IF(L104="82",HEX2DEC(Q104&R104),"-") -> 0 | AT104: =IF(L104="82",HEX2DEC(U104&V104),"-") -> 1000 | AU104: =IF(L104="82",HEX2DEC(Y104&Z104),"-") -> 6 | AV104: =IF(L104="82",HEX2DEC(AA104&AB104),"-") -> 57280 | AW104: =IF(L104="82",HEX2DEC(AC104&AD104),"-") -> 6593
A105: 09:27:56 | B105: 95 7310xxyy 7310xxyy 82138801090000000B03E800640006DFC0191A4A 1 | C105: =MID(SUBSTITUTE($B105," ",""),C$5*2+1,2) -> 95 | D105: =MID(SUBSTITUTE($B105," ",""),D$5*2+1,2) -> 73 | E105: =MID(SUBSTITUTE($B105," ",""),E$5*2+1,2) -> 10 | F105: =MID(SUBSTITUTE($B105," ",""),F$5*2+1,2) -> xx | G105: =MID(SUBSTITUTE($B105," ",""),G$5*2+1,2) -> yy | H105: =MID(SUBSTITUTE($B105," ",""),H$5*2+1,2) -> 73 | I105: =MID(SUBSTITUTE($B105," ",""),I$5*2+1,2) -> 10 | J105: =MID(SUBSTITUTE($B105," ",""),J$5*2+1,2) -> xx | K105: =MID(SUBSTITUTE($B105," ",""),K$5*2+1,2) -> yy | L105: =MID(SUBSTITUTE($B105," ",""),L$5*2+1,2) -> 82 | M105: =MID(SUBSTITUTE($B105," ",""),M$5*2+1,2) -> 13 | N105: =MID(SUBSTITUTE($B105," ",""),N$5*2+1,2) -> 88 | O105: =MID(SUBSTITUTE($B105," ",""),O$5*2+1,2) -> 01 | P105: =MID(SUBSTITUTE($B105," ",""),P$5*2+1,2) -> 09 | Q105: =MID(SUBSTITUTE($B105," ",""),Q$5*2+1,2) -> 00 | R105: =MID(SUBSTITUTE($B105," ",""),R$5*2+1,2) -> 00 | S105: =MID(SUBSTITUTE($B105," ",""),S$5*2+1,2) -> 00 | T105: =MID(SUBSTITUTE($B105," ",""),T$5*2+1,2) -> 0B | U105: =MID(SUBSTITUTE($B105," ",""),U$5*2+1,2) -> 03 | V105: =MID(SUBSTITUTE($B105," ",""),V$5*2+1,2) -> E8 | W105: =MID(SUBSTITUTE($B105," ",""),W$5*2+1,2) -> 00 | X105: =MID(SUBSTITUTE($B105," ",""),X$5*2+1,2) -> 64 | Y105: =MID(SUBSTITUTE($B105," ",""),Y$5*2+1,2) -> 00 | Z105: =MID(SUBSTITUTE($B105," ",""),Z$5*2+1,2) -> 06 | AA105: =MID(SUBSTITUTE($B105," ",""),AA$5*2+1,2) -> DF | AB105: =MID(SUBSTITUTE($B105," ",""),AB$5*2+1,2) -> C0 | AC105: =MID(SUBSTITUTE($B105," ",""),AC$5*2+1,2) -> 19 | AD105: =MID(SUBSTITUTE($B105," ",""),AD$5*2+1,2) -> 1A | AE105: =MID(SUBSTITUTE($B105," ",""),AE$5*2+1,2) -> 4A | AF105: =MID(SUBSTITUTE($B105," ",""),AF$5*2+1,2) -> 1 | AG105: =IF(L105="01",HEX2DEC(O105&P105)/10,"-") -> - | AH105: =IF(L105="01",HEX2DEC(Q105&R105)/100,"-") -> - | AI105: =IF(L105="01",HEX2DEC(S105&T105)/10,"-") -> - | AJ105: =IF(L105="01",HEX2DEC(U105&V105&W105&X105)/1000,"-") -> - | AK105: =IF(L105="01",HEX2DEC(Y105&Z105)/1000,"-") -> - | AL105: =IF(L105="01",HEX2DEC(AA105&AB105)/10,"-") -> - | AM105: =IF(L105="82",HEX2DEC(M105&N105)/100,"-") -> 50 | AN105: =IF(L105="82",HEX2DEC(O105&P105)/10,"-") -> 26.5 | AO105: =IF(L105="82",HEX2DEC(S105&T105)/100,"-") -> 0.11 | AP105: =IF(L105="82",HEX2DEC(W105&X105)/10,"-") -> 10 | AQ105: =IF(L105="01",HEX2DEC(M105&N105),"-") -> - | AR105: =IF(L105="01",HEX2DEC(AC105&AD105),"-") -> - | AS105: =IF(L105="82",HEX2DEC(Q105&R105),"-") -> 0 | AT105: =IF(L105="82",HEX2DEC(U105&V105),"-") -> 1000 | AU105: =IF(L105="82",HEX2DEC(Y105&Z105),"-") -> 6 | AV105: =IF(L105="82",HEX2DEC(AA105&AB105),"-") -> 57280 | AW105: =IF(L105="82",HEX2DEC(AC105&AD105),"-") -> 6426
A106: 09:28:04 | B106: 95 7310xxyy 7310xxyy 82138701020000000B03E800650006B7BE0A32DE 1 | C106: =MID(SUBSTITUTE($B106," ",""),C$5*2+1,2) -> 95 | D106: =MID(SUBSTITUTE($B106," ",""),D$5*2+1,2) -> 73 | E106: =MID(SUBSTITUTE($B106," ",""),E$5*2+1,2) -> 10 | F106: =MID(SUBSTITUTE($B106," ",""),F$5*2+1,2) -> xx | G106: =MID(SUBSTITUTE($B106," ",""),G$5*2+1,2) -> yy | H106: =MID(SUBSTITUTE($B106," ",""),H$5*2+1,2) -> 73 | I106: =MID(SUBSTITUTE($B106," ",""),I$5*2+1,2) -> 10 | J106: =MID(SUBSTITUTE($B106," ",""),J$5*2+1,2) -> xx | K106: =MID(SUBSTITUTE($B106," ",""),K$5*2+1,2) -> yy | L106: =MID(SUBSTITUTE($B106," ",""),L$5*2+1,2) -> 82 | M106: =MID(SUBSTITUTE($B106," ",""),M$5*2+1,2) -> 13 | N106: =MID(SUBSTITUTE($B106," ",""),N$5*2+1,2) -> 87 | O106: =MID(SUBSTITUTE($B106," ",""),O$5*2+1,2) -> 01 | P106: =MID(SUBSTITUTE($B106," ",""),P$5*2+1,2) -> 02 | Q106: =MID(SUBSTITUTE($B106," ",""),Q$5*2+1,2) -> 00 | R106: =MID(SUBSTITUTE($B106," ",""),R$5*2+1,2) -> 00 | S106: =MID(SUBSTITUTE($B106," ",""),S$5*2+1,2) -> 00 | T106: =MID(SUBSTITUTE($B106," ",""),T$5*2+1,2) -> 0B | U106: =MID(SUBSTITUTE($B106," ",""),U$5*2+1,2) -> 03 | V106: =MID(SUBSTITUTE($B106," ",""),V$5*2+1,2) -> E8 | W106: =MID(SUBSTITUTE($B106," ",""),W$5*2+1,2) -> 00 | X106: =MID(SUBSTITUTE($B106," ",""),X$5*2+1,2) -> 65 | Y106: =MID(SUBSTITUTE($B106," ",""),Y$5*2+1,2) -> 00 | Z106: =MID(SUBSTITUTE($B106," ",""),Z$5*2+1,2) -> 06 | AA106: =MID(SUBSTITUTE($B106," ",""),AA$5*2+1,2) -> B7 | AB106: =MID(SUBSTITUTE($B106," ",""),AB$5*2+1,2) -> BE | AC106: =MID(SUBSTITUTE($B106," ",""),AC$5*2+1,2) -> 0A | AD106: =MID(SUBSTITUTE($B106," ",""),AD$5*2+1,2) -> 32 | AE106: =MID(SUBSTITUTE($B106," ",""),AE$5*2+1,2) -> DE | AF106: =MID(SUBSTITUTE($B106," ",""),AF$5*2+1,2) -> 1 | AG106: =IF(L106="01",HEX2DEC(O106&P106)/10,"-") -> - | AH106: =IF(L106="01",HEX2DEC(Q106&R106)/100,"-") -> - | AI106: =IF(L106="01",HEX2DEC(S106&T106)/10,"-") -> - | AJ106: =IF(L106="01",HEX2DEC(U106&V106&W106&X106)/1000,"-") -> - | AK106: =IF(L106="01",HEX2DEC(Y106&Z106)/1000,"-") -> - | AL106: =IF(L106="01",HEX2DEC(AA106&AB106)/10,"-") -> - | AM106: =IF(L106="82",HEX2DEC(M106&N106)/100,"-") -> 49.99 | AN106: =IF(L106="82",HEX2DEC(O106&P106)/10,"-") -> 25.8 | AO106: =IF(L106="82",HEX2DEC(S106&T106)/100,"-") -> 0.11 | AP106: =IF(L106="82",HEX2DEC(W106&X106)/10,"-") -> 10.1 | AQ106: =IF(L106="01",HEX2DEC(M106&N106),"-") -> - | AR106: =IF(L106="01",HEX2DEC(AC106&AD106),"-") -> - | AS106: =IF(L106="82",HEX2DEC(Q106&R106),"-") -> 0 | AT106: =IF(L106="82",HEX2DEC(U106&V106),"-") -> 1000 | AU106: =IF(L106="82",HEX2DEC(Y106&Z106),"-") -> 6 | AV106: =IF(L106="82",HEX2DEC(AA106&AB106),"-") -> 47038 | AW106: =IF(L106="82",HEX2DEC(AC106&AD106),"-") -> 2610
A107: 09:28:05 | B107: 95 7310xxyy 7310xxyy 0100010199004201100000FA840022091D167BD6 1 | C107: =MID(SUBSTITUTE($B107," ",""),C$5*2+1,2) -> 95 | D107: =MID(SUBSTITUTE($B107," ",""),D$5*2+1,2) -> 73 | E107: =MID(SUBSTITUTE($B107," ",""),E$5*2+1,2) -> 10 | F107: =MID(SUBSTITUTE($B107," ",""),F$5*2+1,2) -> xx | G107: =MID(SUBSTITUTE($B107," ",""),G$5*2+1,2) -> yy | H107: =MID(SUBSTITUTE($B107," ",""),H$5*2+1,2) -> 73 | I107: =MID(SUBSTITUTE($B107," ",""),I$5*2+1,2) -> 10 | J107: =MID(SUBSTITUTE($B107," ",""),J$5*2+1,2) -> xx | K107: =MID(SUBSTITUTE($B107," ",""),K$5*2+1,2) -> yy | L107: =MID(SUBSTITUTE($B107," ",""),L$5*2+1,2) -> 01 | M107: =MID(SUBSTITUTE($B107," ",""),M$5*2+1,2) -> 00 | N107: =MID(SUBSTITUTE($B107," ",""),N$5*2+1,2) -> 01 | O107: =MID(SUBSTITUTE($B107," ",""),O$5*2+1,2) -> 01 | P107: =MID(SUBSTITUTE($B107," ",""),P$5*2+1,2) -> 99 | Q107: =MID(SUBSTITUTE($B107," ",""),Q$5*2+1,2) -> 00 | R107: =MID(SUBSTITUTE($B107," ",""),R$5*2+1,2) -> 42 | S107: =MID(SUBSTITUTE($B107," ",""),S$5*2+1,2) -> 01 | T107: =MID(SUBSTITUTE($B107," ",""),T$5*2+1,2) -> 10 | U107: =MID(SUBSTITUTE($B107," ",""),U$5*2+1,2) -> 00 | V107: =MID(SUBSTITUTE($B107," ",""),V$5*2+1,2) -> 00 | W107: =MID(SUBSTITUTE($B107," ",""),W$5*2+1,2) -> FA | X107: =MID(SUBSTITUTE($B107," ",""),X$5*2+1,2) -> 84 | Y107: =MID(SUBSTITUTE($B107," ",""),Y$5*2+1,2) -> 00 | Z107: =MID(SUBSTITUTE($B107," ",""),Z$5*2+1,2) -> 22 | AA107: =MID(SUBSTITUTE($B107," ",""),AA$5*2+1,2) -> 09 | AB107: =MID(SUBSTITUTE($B107," ",""),AB$5*2+1,2) -> 1D | AC107: =MID(SUBSTITUTE($B107," ",""),AC$5*2+1,2) -> 16 | AD107: =MID(SUBSTITUTE($B107," ",""),AD$5*2+1,2) -> 7B | AE107: =MID(SUBSTITUTE($B107," ",""),AE$5*2+1,2) -> D6 | AF107: =MID(SUBSTITUTE($B107," ",""),AF$5*2+1,2) -> 1 | AG107: =IF(L107="01",HEX2DEC(O107&P107)/10,"-") -> 40.9 | AH107: =IF(L107="01",HEX2DEC(Q107&R107)/100,"-") -> 0.66 | AI107: =IF(L107="01",HEX2DEC(S107&T107)/10,"-") -> 27.2 | AJ107: =IF(L107="01",HEX2DEC(U107&V107&W107&X107)/1000,"-") -> 64.132 | AK107: =IF(L107="01",HEX2DEC(Y107&Z107)/1000,"-") -> 0.034 | AL107: =IF(L107="01",HEX2DEC(AA107&AB107)/10,"-") -> 233.3 | AM107: =IF(L107="82",HEX2DEC(M107&N107)/100,"-") -> - | AN107: =IF(L107="82",HEX2DEC(O107&P107)/10,"-") -> - | AO107: =IF(L107="82",HEX2DEC(S107&T107)/100,"-") -> - | AP107: =IF(L107="82",HEX2DEC(W107&X107)/10,"-") -> - | AQ107: =IF(L107="01",HEX2DEC(M107&N107),"-") -> 1 | AR107: =IF(L107="01",HEX2DEC(AC107&AD107),"-") -> 5755 | AS107: =IF(L107="82",HEX2DEC(Q107&R107),"-") -> - | AT107: =IF(L107="82",HEX2DEC(U107&V107),"-") -> - | AU107: =IF(L107="82",HEX2DEC(Y107&Z107),"-") -> - | AV107: =IF(L107="82",HEX2DEC(AA107&AB107),"-") -> - | AW107: =IF(L107="82",HEX2DEC(AC107&AD107),"-") -> -
A108: 09:28:09 | B108: 95 7310xxyy 7310xxyy 82138701020000000B03E800650006B7BE0A7BF6 F D0E9 362A 4A19 D849 BE5C B8B6 4DFB B8B6 B388 1372 D428 78C6 B562 BE5C 7921 A259 CD8F AA2B BE5C B8B6 B562 C132 1A4A 32DE 7BD6 71 | C108: =MID(SUBSTITUTE($B108," ",""),C$5*2+1,2) -> 95 | D108: =MID(SUBSTITUTE($B108," ",""),D$5*2+1,2) -> 73 | E108: =MID(SUBSTITUTE($B108," ",""),E$5*2+1,2) -> 10 | F108: =MID(SUBSTITUTE($B108," ",""),F$5*2+1,2) -> xx | G108: =MID(SUBSTITUTE($B108," ",""),G$5*2+1,2) -> yy | H108: =MID(SUBSTITUTE($B108," ",""),H$5*2+1,2) -> 73 | I108: =MID(SUBSTITUTE($B108," ",""),I$5*2+1,2) -> 10 | J108: =MID(SUBSTITUTE($B108," ",""),J$5*2+1,2) -> xx | K108: =MID(SUBSTITUTE($B108," ",""),K$5*2+1,2) -> yy | L108: =MID(SUBSTITUTE($B108," ",""),L$5*2+1,2) -> 82 | M108: =MID(SUBSTITUTE($B108," ",""),M$5*2+1,2) -> 13 | N108: =MID(SUBSTITUTE($B108," ",""),N$5*2+1,2) -> 87 | O108: =MID(SUBSTITUTE($B108," ",""),O$5*2+1,2) -> 01 | P108: =MID(SUBSTITUTE($B108," ",""),P$5*2+1,2) -> 02 | Q108: =MID(SUBSTITUTE($B108," ",""),Q$5*2+1,2) -> 00 | R108: =MID(SUBSTITUTE($B108," ",""),R$5*2+1,2) -> 00 | S108: =MID(SUBSTITUTE($B108," ",""),S$5*2+1,2) -> 00 | T108: =MID(SUBSTITUTE($B108," ",""),T$5*2+1,2) -> 0B | U108: =MID(SUBSTITUTE($B108," ",""),U$5*2+1,2) -> 03 | V108: =MID(SUBSTITUTE($B108," ",""),V$5*2+1,2) -> E8 | W108: =MID(SUBSTITUTE($B108," ",""),W$5*2+1,2) -> 00 | X108: =MID(SUBSTITUTE($B108," ",""),X$5*2+1,2) -> 65 | Y108: =MID(SUBSTITUTE($B108," ",""),Y$5*2+1,2) -> 00 | Z108: =MID(SUBSTITUTE($B108," ",""),Z$5*2+1,2) -> 06 | AA108: =MID(SUBSTITUTE($B108," ",""),AA$5*2+1,2) -> B7 | AB108: =MID(SUBSTITUTE($B108," ",""),AB$5*2+1,2) -> BE | AC108: =MID(SUBSTITUTE($B108," ",""),AC$5*2+1,2) -> 0A | AD108: =MID(SUBSTITUTE($B108," ",""),AD$5*2+1,2) -> 7B | AE108: =MID(SUBSTITUTE($B108," ",""),AE$5*2+1,2) -> F6 | AF108: =MID(SUBSTITUTE($B108," ",""),AF$5*2+1,2) -> FD | AG108: =IF(L108="01",HEX2DEC(O108&P108)/10,"-") -> - | AH108: =IF(L108="01",HEX2DEC(Q108&R108)/100,"-") -> - | AI108: =IF(L108="01",HEX2DEC(S108&T108)/10,"-") -> - | AJ108: =IF(L108="01",HEX2DEC(U108&V108&W108&X108)/1000,"-") -> - | AK108: =IF(L108="01",HEX2DEC(Y108&Z108)/1000,"-") -> - | AL108: =IF(L108="01",HEX2DEC(AA108&AB108)/10,"-") -> - | AM108: =IF(L108="82",HEX2DEC(M108&N108)/100,"-") -> 49.99 | AN108: =IF(L108="82",HEX2DEC(O108&P108)/10,"-") -> 25.8 | AO108: =IF(L108="82",HEX2DEC(S108&T108)/100,"-") -> 0.11 | AP108: =IF(L108="82",HEX2DEC(W108&X108)/10,"-") -> 10.1 | AQ108: =IF(L108="01",HEX2DEC(M108&N108),"-") -> - | AR108: =IF(L108="01",HEX2DEC(AC108&AD108),"-") -> - | AS108: =IF(L108="82",HEX2DEC(Q108&R108),"-") -> 0 | AT108: =IF(L108="82",HEX2DEC(U108&V108),"-") -> 1000 | AU108: =IF(L108="82",HEX2DEC(Y108&Z108),"-") -> 6 | AV108: =IF(L108="82",HEX2DEC(AA108&AB108),"-") -> 47038 | AW108: =IF(L108="82",HEX2DEC(AC108&AD108),"-") -> 2683
A109: 09:28:28 | B109: 95 7310xxyy 7310xxyy 0100010197003E00FE0000FA840022091B8D4DAC 1 | C109: =MID(SUBSTITUTE($B109," ",""),C$5*2+1,2) -> 95 | D109: =MID(SUBSTITUTE($B109," ",""),D$5*2+1,2) -> 73 | E109: =MID(SUBSTITUTE($B109," ",""),E$5*2+1,2) -> 10 | F109: =MID(SUBSTITUTE($B109," ",""),F$5*2+1,2) -> xx | G109: =MID(SUBSTITUTE($B109," ",""),G$5*2+1,2) -> yy | H109: =MID(SUBSTITUTE($B109," ",""),H$5*2+1,2) -> 73 | I109: =MID(SUBSTITUTE($B109," ",""),I$5*2+1,2) -> 10 | J109: =MID(SUBSTITUTE($B109," ",""),J$5*2+1,2) -> xx | K109: =MID(SUBSTITUTE($B109," ",""),K$5*2+1,2) -> yy | L109: =MID(SUBSTITUTE($B109," ",""),L$5*2+1,2) -> 01 | M109: =MID(SUBSTITUTE($B109," ",""),M$5*2+1,2) -> 00 | N109: =MID(SUBSTITUTE($B109," ",""),N$5*2+1,2) -> 01 | O109: =MID(SUBSTITUTE($B109," ",""),O$5*2+1,2) -> 01 | P109: =MID(SUBSTITUTE($B109," ",""),P$5*2+1,2) -> 97 | Q109: =MID(SUBSTITUTE($B109," ",""),Q$5*2+1,2) -> 00 | R109: =MID(SUBSTITUTE($B109," ",""),R$5*2+1,2) -> 3E | S109: =MID(SUBSTITUTE($B109," ",""),S$5*2+1,2) -> 00 | T109: =MID(SUBSTITUTE($B109," ",""),T$5*2+1,2) -> FE | U109: =MID(SUBSTITUTE($B109," ",""),U$5*2+1,2) -> 00 | V109: =MID(SUBSTITUTE($B109," ",""),V$5*2+1,2) -> 00 | W109: =MID(SUBSTITUTE($B109," ",""),W$5*2+1,2) -> FA | X109: =MID(SUBSTITUTE($B109," ",""),X$5*2+1,2) -> 84 | Y109: =MID(SUBSTITUTE($B109," ",""),Y$5*2+1,2) -> 00 | Z109: =MID(SUBSTITUTE($B109," ",""),Z$5*2+1,2) -> 22 | AA109: =MID(SUBSTITUTE($B109," ",""),AA$5*2+1,2) -> 09 | AB109: =MID(SUBSTITUTE($B109," ",""),AB$5*2+1,2) -> 1B | AC109: =MID(SUBSTITUTE($B109," ",""),AC$5*2+1,2) -> 8D | AD109: =MID(SUBSTITUTE($B109," ",""),AD$5*2+1,2) -> 4D | AE109: =MID(SUBSTITUTE($B109," ",""),AE$5*2+1,2) -> AC | AF109: =MID(SUBSTITUTE($B109," ",""),AF$5*2+1,2) -> 1 | AG109: =IF(L109="01",HEX2DEC(O109&P109)/10,"-") -> 40.7 | AH109: =IF(L109="01",HEX2DEC(Q109&R109)/100,"-") -> 0.62 | AI109: =IF(L109="01",HEX2DEC(S109&T109)/10,"-") -> 25.4 | AJ109: =IF(L109="01",HEX2DEC(U109&V109&W109&X109)/1000,"-") -> 64.132 | AK109: =IF(L109="01",HEX2DEC(Y109&Z109)/1000,"-") -> 0.034 | AL109: =IF(L109="01",HEX2DEC(AA109&AB109)/10,"-") -> 233.1 | AM109: =IF(L109="82",HEX2DEC(M109&N109)/100,"-") -> - | AN109: =IF(L109="82",HEX2DEC(O109&P109)/10,"-") -> - | AO109: =IF(L109="82",HEX2DEC(S109&T109)/100,"-") -> - | AP109: =IF(L109="82",HEX2DEC(W109&X109)/10,"-") -> - | AQ109: =IF(L109="01",HEX2DEC(M109&N109),"-") -> 1 | AR109: =IF(L109="01",HEX2DEC(AC109&AD109),"-") -> 36173 | AS109: =IF(L109="82",HEX2DEC(Q109&R109),"-") -> - | AT109: =IF(L109="82",HEX2DEC(U109&V109),"-") -> - | AU109: =IF(L109="82",HEX2DEC(Y109&Z109),"-") -> - | AV109: =IF(L109="82",HEX2DEC(AA109&AB109),"-") -> - | AW109: =IF(L109="82",HEX2DEC(AC109&AD109),"-") -> -
A110: 09:28:28 | B110: 95 7310xxyy 7310xxyy 82138700F10000000A03E80064000618779EABE9 1 | C110: =MID(SUBSTITUTE($B110," ",""),C$5*2+1,2) -> 95 | D110: =MID(SUBSTITUTE($B110," ",""),D$5*2+1,2) -> 73 | E110: =MID(SUBSTITUTE($B110," ",""),E$5*2+1,2) -> 10 | F110: =MID(SUBSTITUTE($B110," ",""),F$5*2+1,2) -> xx | G110: =MID(SUBSTITUTE($B110," ",""),G$5*2+1,2) -> yy | H110: =MID(SUBSTITUTE($B110," ",""),H$5*2+1,2) -> 73 | I110: =MID(SUBSTITUTE($B110," ",""),I$5*2+1,2) -> 10 | J110: =MID(SUBSTITUTE($B110," ",""),J$5*2+1,2) -> xx | K110: =MID(SUBSTITUTE($B110," ",""),K$5*2+1,2) -> yy | L110: =MID(SUBSTITUTE($B110," ",""),L$5*2+1,2) -> 82 | M110: =MID(SUBSTITUTE($B110," ",""),M$5*2+1,2) -> 13 | N110: =MID(SUBSTITUTE($B110," ",""),N$5*2+1,2) -> 87 | O110: =MID(SUBSTITUTE($B110," ",""),O$5*2+1,2) -> 00 | P110: =MID(SUBSTITUTE($B110," ",""),P$5*2+1,2) -> F1 | Q110: =MID(SUBSTITUTE($B110," ",""),Q$5*2+1,2) -> 00 | R110: =MID(SUBSTITUTE($B110," ",""),R$5*2+1,2) -> 00 | S110: =MID(SUBSTITUTE($B110," ",""),S$5*2+1,2) -> 00 | T110: =MID(SUBSTITUTE($B110," ",""),T$5*2+1,2) -> 0A | U110: =MID(SUBSTITUTE($B110," ",""),U$5*2+1,2) -> 03 | V110: =MID(SUBSTITUTE($B110," ",""),V$5*2+1,2) -> E8 | W110: =MID(SUBSTITUTE($B110," ",""),W$5*2+1,2) -> 00 | X110: =MID(SUBSTITUTE($B110," ",""),X$5*2+1,2) -> 64 | Y110: =MID(SUBSTITUTE($B110," ",""),Y$5*2+1,2) -> 00 | Z110: =MID(SUBSTITUTE($B110," ",""),Z$5*2+1,2) -> 06 | AA110: =MID(SUBSTITUTE($B110," ",""),AA$5*2+1,2) -> 18 | AB110: =MID(SUBSTITUTE($B110," ",""),AB$5*2+1,2) -> 77 | AC110: =MID(SUBSTITUTE($B110," ",""),AC$5*2+1,2) -> 9E | AD110: =MID(SUBSTITUTE($B110," ",""),AD$5*2+1,2) -> AB | AE110: =MID(SUBSTITUTE($B110," ",""),AE$5*2+1,2) -> E9 | AF110: =MID(SUBSTITUTE($B110," ",""),AF$5*2+1,2) -> 1 | AG110: =IF(L110="01",HEX2DEC(O110&P110)/10,"-") -> - | AH110: =IF(L110="01",HEX2DEC(Q110&R110)/100,"-") -> - | AI110: =IF(L110="01",HEX2DEC(S110&T110)/10,"-") -> - | AJ110: =IF(L110="01",HEX2DEC(U110&V110&W110&X110)/1000,"-") -> - | AK110: =IF(L110="01",HEX2DEC(Y110&Z110)/1000,"-") -> - | AL110: =IF(L110="01",HEX2DEC(AA110&AB110)/10,"-") -> - | AM110: =IF(L110="82",HEX2DEC(M110&N110)/100,"-") -> 49.99 | AN110: =IF(L110="82",HEX2DEC(O110&P110)/10,"-") -> 24.1 | AO110: =IF(L110="82",HEX2DEC(S110&T110)/100,"-") -> 0.1 | AP110: =IF(L110="82",HEX2DEC(W110&X110)/10,"-") -> 10 | AQ110: =IF(L110="01",HEX2DEC(M110&N110),"-") -> - | AR110: =IF(L110="01",HEX2DEC(AC110&AD110),"-") -> - | AS110: =IF(L110="82",HEX2DEC(Q110&R110),"-") -> 0 | AT110: =IF(L110="82",HEX2DEC(U110&V110),"-") -> 1000 | AU110: =IF(L110="82",HEX2DEC(Y110&Z110),"-") -> 6 | AV110: =IF(L110="82",HEX2DEC(AA110&AB110),"-") -> 6263 | AW110: =IF(L110="82",HEX2DEC(AC110&AD110),"-") -> 40619
A111: 09:28:40 | B111: 95 7310xxyy 7310xxyy 0100010192003D00F40000FA840022091C86A9B2 1 | C111: =MID(SUBSTITUTE($B111," ",""),C$5*2+1,2) -> 95 | D111: =MID(SUBSTITUTE($B111," ",""),D$5*2+1,2) -> 73 | E111: =MID(SUBSTITUTE($B111," ",""),E$5*2+1,2) -> 10 | F111: =MID(SUBSTITUTE($B111," ",""),F$5*2+1,2) -> xx | G111: =MID(SUBSTITUTE($B111," ",""),G$5*2+1,2) -> yy | H111: =MID(SUBSTITUTE($B111," ",""),H$5*2+1,2) -> 73 | I111: =MID(SUBSTITUTE($B111," ",""),I$5*2+1,2) -> 10 | J111: =MID(SUBSTITUTE($B111," ",""),J$5*2+1,2) -> xx | K111: =MID(SUBSTITUTE($B111," ",""),K$5*2+1,2) -> yy | L111: =MID(SUBSTITUTE($B111," ",""),L$5*2+1,2) -> 01 | M111: =MID(SUBSTITUTE($B111," ",""),M$5*2+1,2) -> 00 | N111: =MID(SUBSTITUTE($B111," ",""),N$5*2+1,2) -> 01 | O111: =MID(SUBSTITUTE($B111," ",""),O$5*2+1,2) -> 01 | P111: =MID(SUBSTITUTE($B111," ",""),P$5*2+1,2) -> 92 | Q111: =MID(SUBSTITUTE($B111," ",""),Q$5*2+1,2) -> 00 | R111: =MID(SUBSTITUTE($B111," ",""),R$5*2+1,2) -> 3D | S111: =MID(SUBSTITUTE($B111," ",""),S$5*2+1,2) -> 00 | T111: =MID(SUBSTITUTE($B111," ",""),T$5*2+1,2) -> F4 | U111: =MID(SUBSTITUTE($B111," ",""),U$5*2+1,2) -> 00 | V111: =MID(SUBSTITUTE($B111," ",""),V$5*2+1,2) -> 00 | W111: =MID(SUBSTITUTE($B111," ",""),W$5*2+1,2) -> FA | X111: =MID(SUBSTITUTE($B111," ",""),X$5*2+1,2) -> 84 | Y111: =MID(SUBSTITUTE($B111," ",""),Y$5*2+1,2) -> 00 | Z111: =MID(SUBSTITUTE($B111," ",""),Z$5*2+1,2) -> 22 | AA111: =MID(SUBSTITUTE($B111," ",""),AA$5*2+1,2) -> 09 | AB111: =MID(SUBSTITUTE($B111," ",""),AB$5*2+1,2) -> 1C | AC111: =MID(SUBSTITUTE($B111," ",""),AC$5*2+1,2) -> 86 | AD111: =MID(SUBSTITUTE($B111," ",""),AD$5*2+1,2) -> A9 | AE111: =MID(SUBSTITUTE($B111," ",""),AE$5*2+1,2) -> B2 | AF111: =MID(SUBSTITUTE($B111," ",""),AF$5*2+1,2) -> 1 | AG111: =IF(L111="01",HEX2DEC(O111&P111)/10,"-") -> 40.2 | AH111: =IF(L111="01",HEX2DEC(Q111&R111)/100,"-") -> 0.61 | AI111: =IF(L111="01",HEX2DEC(S111&T111)/10,"-") -> 24.4 | AJ111: =IF(L111="01",HEX2DEC(U111&V111&W111&X111)/1000,"-") -> 64.132 | AK111: =IF(L111="01",HEX2DEC(Y111&Z111)/1000,"-") -> 0.034 | AL111: =IF(L111="01",HEX2DEC(AA111&AB111)/10,"-") -> 233.2 | AM111: =IF(L111="82",HEX2DEC(M111&N111)/100,"-") -> - | AN111: =IF(L111="82",HEX2DEC(O111&P111)/10,"-") -> - | AO111: =IF(L111="82",HEX2DEC(S111&T111)/100,"-") -> - | AP111: =IF(L111="82",HEX2DEC(W111&X111)/10,"-") -> - | AQ111: =IF(L111="01",HEX2DEC(M111&N111),"-") -> 1 | AR111: =IF(L111="01",HEX2DEC(AC111&AD111),"-") -> 34473 | AS111: =IF(L111="82",HEX2DEC(Q111&R111),"-") -> - | AT111: =IF(L111="82",HEX2DEC(U111&V111),"-") -> - | AU111: =IF(L111="82",HEX2DEC(Y111&Z111),"-") -> - | AV111: =IF(L111="82",HEX2DEC(AA111&AB111),"-") -> - | AW111: =IF(L111="82",HEX2DEC(AC111&AD111),"-") -> -
A112: 09:28:40 | B112: 95 7310xxyy 7310xxyy 82138900E80000000A03E800650006950C7E7024 1 | C112: =MID(SUBSTITUTE($B112," ",""),C$5*2+1,2) -> 95 | D112: =MID(SUBSTITUTE($B112," ",""),D$5*2+1,2) -> 73 | E112: =MID(SUBSTITUTE($B112," ",""),E$5*2+1,2) -> 10 | F112: =MID(SUBSTITUTE($B112," ",""),F$5*2+1,2) -> xx | G112: =MID(SUBSTITUTE($B112," ",""),G$5*2+1,2) -> yy | H112: =MID(SUBSTITUTE($B112," ",""),H$5*2+1,2) -> 73 | I112: =MID(SUBSTITUTE($B112," ",""),I$5*2+1,2) -> 10 | J112: =MID(SUBSTITUTE($B112," ",""),J$5*2+1,2) -> xx | K112: =MID(SUBSTITUTE($B112," ",""),K$5*2+1,2) -> yy | L112: =MID(SUBSTITUTE($B112," ",""),L$5*2+1,2) -> 82 | M112: =MID(SUBSTITUTE($B112," ",""),M$5*2+1,2) -> 13 | N112: =MID(SUBSTITUTE($B112," ",""),N$5*2+1,2) -> 89 | O112: =MID(SUBSTITUTE($B112," ",""),O$5*2+1,2) -> 00 | P112: =MID(SUBSTITUTE($B112," ",""),P$5*2+1,2) -> E8 | Q112: =MID(SUBSTITUTE($B112," ",""),Q$5*2+1,2) -> 00 | R112: =MID(SUBSTITUTE($B112," ",""),R$5*2+1,2) -> 00 | S112: =MID(SUBSTITUTE($B112," ",""),S$5*2+1,2) -> 00 | T112: =MID(SUBSTITUTE($B112," ",""),T$5*2+1,2) -> 0A | U112: =MID(SUBSTITUTE($B112," ",""),U$5*2+1,2) -> 03 | V112: =MID(SUBSTITUTE($B112," ",""),V$5*2+1,2) -> E8 | W112: =MID(SUBSTITUTE($B112," ",""),W$5*2+1,2) -> 00 | X112: =MID(SUBSTITUTE($B112," ",""),X$5*2+1,2) -> 65 | Y112: =MID(SUBSTITUTE($B112," ",""),Y$5*2+1,2) -> 00 | Z112: =MID(SUBSTITUTE($B112," ",""),Z$5*2+1,2) -> 06 | AA112: =MID(SUBSTITUTE($B112," ",""),AA$5*2+1,2) -> 95 | AB112: =MID(SUBSTITUTE($B112," ",""),AB$5*2+1,2) -> 0C | AC112: =MID(SUBSTITUTE($B112," ",""),AC$5*2+1,2) -> 7E | AD112: =MID(SUBSTITUTE($B112," ",""),AD$5*2+1,2) -> 70 | AE112: =MID(SUBSTITUTE($B112," ",""),AE$5*2+1,2) -> 24 | AF112: =MID(SUBSTITUTE($B112," ",""),AF$5*2+1,2) -> 1 | AG112: =IF(L112="01",HEX2DEC(O112&P112)/10,"-") -> - | AH112: =IF(L112="01",HEX2DEC(Q112&R112)/100,"-") -> - | AI112: =IF(L112="01",HEX2DEC(S112&T112)/10,"-") -> - | AJ112: =IF(L112="01",HEX2DEC(U112&V112&W112&X112)/1000,"-") -> - | AK112: =IF(L112="01",HEX2DEC(Y112&Z112)/1000,"-") -> - | AL112: =IF(L112="01",HEX2DEC(AA112&AB112)/10,"-") -> - | AM112: =IF(L112="82",HEX2DEC(M112&N112)/100,"-") -> 50.01 | AN112: =IF(L112="82",HEX2DEC(O112&P112)/10,"-") -> 23.2 | AO112: =IF(L112="82",HEX2DEC(S112&T112)/100,"-") -> 0.1 | AP112: =IF(L112="82",HEX2DEC(W112&X112)/10,"-") -> 10.1 | AQ112: =IF(L112="01",HEX2DEC(M112&N112),"-") -> - | AR112: =IF(L112="01",HEX2DEC(AC112&AD112),"-") -> - | AS112: =IF(L112="82",HEX2DEC(Q112&R112),"-") -> 0 | AT112: =IF(L112="82",HEX2DEC(U112&V112),"-") -> 1000 | AU112: =IF(L112="82",HEX2DEC(Y112&Z112),"-") -> 6 | AV112: =IF(L112="82",HEX2DEC(AA112&AB112),"-") -> 38156 | AW112: =IF(L112="82",HEX2DEC(AC112&AD112),"-") -> 32368
A113: 09:29:04 | B113: 95 7310xxyy 7310xxyy 0100010199003700DF0000FA840022091AAACDA9 1 | C113: =MID(SUBSTITUTE($B113," ",""),C$5*2+1,2) -> 95 | D113: =MID(SUBSTITUTE($B113," ",""),D$5*2+1,2) -> 73 | E113: =MID(SUBSTITUTE($B113," ",""),E$5*2+1,2) -> 10 | F113: =MID(SUBSTITUTE($B113," ",""),F$5*2+1,2) -> xx | G113: =MID(SUBSTITUTE($B113," ",""),G$5*2+1,2) -> yy | H113: =MID(SUBSTITUTE($B113," ",""),H$5*2+1,2) -> 73 | I113: =MID(SUBSTITUTE($B113," ",""),I$5*2+1,2) -> 10 | J113: =MID(SUBSTITUTE($B113," ",""),J$5*2+1,2) -> xx | K113: =MID(SUBSTITUTE($B113," ",""),K$5*2+1,2) -> yy | L113: =MID(SUBSTITUTE($B113," ",""),L$5*2+1,2) -> 01 | M113: =MID(SUBSTITUTE($B113," ",""),M$5*2+1,2) -> 00 | N113: =MID(SUBSTITUTE($B113," ",""),N$5*2+1,2) -> 01 | O113: =MID(SUBSTITUTE($B113," ",""),O$5*2+1,2) -> 01 | P113: =MID(SUBSTITUTE($B113," ",""),P$5*2+1,2) -> 99 | Q113: =MID(SUBSTITUTE($B113," ",""),Q$5*2+1,2) -> 00 | R113: =MID(SUBSTITUTE($B113," ",""),R$5*2+1,2) -> 37 | S113: =MID(SUBSTITUTE($B113," ",""),S$5*2+1,2) -> 00 | T113: =MID(SUBSTITUTE($B113," ",""),T$5*2+1,2) -> DF | U113: =MID(SUBSTITUTE($B113," ",""),U$5*2+1,2) -> 00 | V113: =MID(SUBSTITUTE($B113," ",""),V$5*2+1,2) -> 00 | W113: =MID(SUBSTITUTE($B113," ",""),W$5*2+1,2) -> FA | X113: =MID(SUBSTITUTE($B113," ",""),X$5*2+1,2) -> 84 | Y113: =MID(SUBSTITUTE($B113," ",""),Y$5*2+1,2) -> 00 | Z113: =MID(SUBSTITUTE($B113," ",""),Z$5*2+1,2) -> 22 | AA113: =MID(SUBSTITUTE($B113," ",""),AA$5*2+1,2) -> 09 | AB113: =MID(SUBSTITUTE($B113," ",""),AB$5*2+1,2) -> 1A | AC113: =MID(SUBSTITUTE($B113," ",""),AC$5*2+1,2) -> AA | AD113: =MID(SUBSTITUTE($B113," ",""),AD$5*2+1,2) -> CD | AE113: =MID(SUBSTITUTE($B113," ",""),AE$5*2+1,2) -> A9 | AF113: =MID(SUBSTITUTE($B113," ",""),AF$5*2+1,2) -> 1 | AG113: =IF(L113="01",HEX2DEC(O113&P113)/10,"-") -> 40.9 | AH113: =IF(L113="01",HEX2DEC(Q113&R113)/100,"-") -> 0.55 | AI113: =IF(L113="01",HEX2DEC(S113&T113)/10,"-") -> 22.3 | AJ113: =IF(L113="01",HEX2DEC(U113&V113&W113&X113)/1000,"-") -> 64.132 | AK113: =IF(L113="01",HEX2DEC(Y113&Z113)/1000,"-") -> 0.034 | AL113: =IF(L113="01",HEX2DEC(AA113&AB113)/10,"-") -> 233 | AM113: =IF(L113="82",HEX2DEC(M113&N113)/100,"-") -> - | AN113: =IF(L113="82",HEX2DEC(O113&P113)/10,"-") -> - | AO113: =IF(L113="82",HEX2DEC(S113&T113)/100,"-") -> - | AP113: =IF(L113="82",HEX2DEC(W113&X113)/10,"-") -> - | AQ113: =IF(L113="01",HEX2DEC(M113&N113),"-") -> 1 | AR113: =IF(L113="01",HEX2DEC(AC113&AD113),"-") -> 43725 | AS113: =IF(L113="82",HEX2DEC(Q113&R113),"-") -> - | AT113: =IF(L113="82",HEX2DEC(U113&V113),"-") -> - | AU113: =IF(L113="82",HEX2DEC(Y113&Z113),"-") -> - | AV113: =IF(L113="82",HEX2DEC(AA113&AB113),"-") -> - | AW113: =IF(L113="82",HEX2DEC(AC113&AD113),"-") -> -
A114: 09:29:04 | B114: 95 7310xxyy 7310xxyy 82138700D40000000903E800620006BA88E3288D 1 | C114: =MID(SUBSTITUTE($B114," ",""),C$5*2+1,2) -> 95 | D114: =MID(SUBSTITUTE($B114," ",""),D$5*2+1,2) -> 73 | E114: =MID(SUBSTITUTE($B114," ",""),E$5*2+1,2) -> 10 | F114: =MID(SUBSTITUTE($B114," ",""),F$5*2+1,2) -> xx | G114: =MID(SUBSTITUTE($B114," ",""),G$5*2+1,2) -> yy | H114: =MID(SUBSTITUTE($B114," ",""),H$5*2+1,2) -> 73 | I114: =MID(SUBSTITUTE($B114," ",""),I$5*2+1,2) -> 10 | J114: =MID(SUBSTITUTE($B114," ",""),J$5*2+1,2) -> xx | K114: =MID(SUBSTITUTE($B114," ",""),K$5*2+1,2) -> yy | L114: =MID(SUBSTITUTE($B114," ",""),L$5*2+1,2) -> 82 | M114: =MID(SUBSTITUTE($B114," ",""),M$5*2+1,2) -> 13 | N114: =MID(SUBSTITUTE($B114," ",""),N$5*2+1,2) -> 87 | O114: =MID(SUBSTITUTE($B114," ",""),O$5*2+1,2) -> 00 | P114: =MID(SUBSTITUTE($B114," ",""),P$5*2+1,2) -> D4 | Q114: =MID(SUBSTITUTE($B114," ",""),Q$5*2+1,2) -> 00 | R114: =MID(SUBSTITUTE($B114," ",""),R$5*2+1,2) -> 00 | S114: =MID(SUBSTITUTE($B114," ",""),S$5*2+1,2) -> 00 | T114: =MID(SUBSTITUTE($B114," ",""),T$5*2+1,2) -> 09 | U114: =MID(SUBSTITUTE($B114," ",""),U$5*2+1,2) -> 03 | V114: =MID(SUBSTITUTE($B114," ",""),V$5*2+1,2) -> E8 | W114: =MID(SUBSTITUTE($B114," ",""),W$5*2+1,2) -> 00 | X114: =MID(SUBSTITUTE($B114," ",""),X$5*2+1,2) -> 62 | Y114: =MID(SUBSTITUTE($B114," ",""),Y$5*2+1,2) -> 00 | Z114: =MID(SUBSTITUTE($B114," ",""),Z$5*2+1,2) -> 06 | AA114: =MID(SUBSTITUTE($B114," ",""),AA$5*2+1,2) -> BA | AB114: =MID(SUBSTITUTE($B114," ",""),AB$5*2+1,2) -> 88 | AC114: =MID(SUBSTITUTE($B114," ",""),AC$5*2+1,2) -> E3 | AD114: =MID(SUBSTITUTE($B114," ",""),AD$5*2+1,2) -> 28 | AE114: =MID(SUBSTITUTE($B114," ",""),AE$5*2+1,2) -> 8D | AF114: =MID(SUBSTITUTE($B114," ",""),AF$5*2+1,2) -> 1 | AG114: =IF(L114="01",HEX2DEC(O114&P114)/10,"-") -> - | AH114: =IF(L114="01",HEX2DEC(Q114&R114)/100,"-") -> - | AI114: =IF(L114="01",HEX2DEC(S114&T114)/10,"-") -> - | AJ114: =IF(L114="01",HEX2DEC(U114&V114&W114&X114)/1000,"-") -> - | AK114: =IF(L114="01",HEX2DEC(Y114&Z114)/1000,"-") -> - | AL114: =IF(L114="01",HEX2DEC(AA114&AB114)/10,"-") -> - | AM114: =IF(L114="82",HEX2DEC(M114&N114)/100,"-") -> 49.99 | AN114: =IF(L114="82",HEX2DEC(O114&P114)/10,"-") -> 21.2 | AO114: =IF(L114="82",HEX2DEC(S114&T114)/100,"-") -> 0.09 | AP114: =IF(L114="82",HEX2DEC(W114&X114)/10,"-") -> 9.8 | AQ114: =IF(L114="01",HEX2DEC(M114&N114),"-") -> - | AR114: =IF(L114="01",HEX2DEC(AC114&AD114),"-") -> - | AS114: =IF(L114="82",HEX2DEC(Q114&R114),"-") -> 0 | AT114: =IF(L114="82",HEX2DEC(U114&V114),"-") -> 1000 | AU114: =IF(L114="82",HEX2DEC(Y114&Z114),"-") -> 6 | AV114: =IF(L114="82",HEX2DEC(AA114&AB114),"-") -> 47752 | AW114: =IF(L114="82",HEX2DEC(AC114&AD114),"-") -> 58152
A115: 09:29:32 | B115: 95 7310xxyy 7310xxyy 82138800CC0000000903E8006300062158BE6634 1 | C115: =MID(SUBSTITUTE($B115," ",""),C$5*2+1,2) -> 95 | D115: =MID(SUBSTITUTE($B115," ",""),D$5*2+1,2) -> 73 | E115: =MID(SUBSTITUTE($B115," ",""),E$5*2+1,2) -> 10 | F115: =MID(SUBSTITUTE($B115," ",""),F$5*2+1,2) -> xx | G115: =MID(SUBSTITUTE($B115," ",""),G$5*2+1,2) -> yy | H115: =MID(SUBSTITUTE($B115," ",""),H$5*2+1,2) -> 73 | I115: =MID(SUBSTITUTE($B115," ",""),I$5*2+1,2) -> 10 | J115: =MID(SUBSTITUTE($B115," ",""),J$5*2+1,2) -> xx | K115: =MID(SUBSTITUTE($B115," ",""),K$5*2+1,2) -> yy | L115: =MID(SUBSTITUTE($B115," ",""),L$5*2+1,2) -> 82 | M115: =MID(SUBSTITUTE($B115," ",""),M$5*2+1,2) -> 13 | N115: =MID(SUBSTITUTE($B115," ",""),N$5*2+1,2) -> 88 | O115: =MID(SUBSTITUTE($B115," ",""),O$5*2+1,2) -> 00 | P115: =MID(SUBSTITUTE($B115," ",""),P$5*2+1,2) -> CC | Q115: =MID(SUBSTITUTE($B115," ",""),Q$5*2+1,2) -> 00 | R115: =MID(SUBSTITUTE($B115," ",""),R$5*2+1,2) -> 00 | S115: =MID(SUBSTITUTE($B115," ",""),S$5*2+1,2) -> 00 | T115: =MID(SUBSTITUTE($B115," ",""),T$5*2+1,2) -> 09 | U115: =MID(SUBSTITUTE($B115," ",""),U$5*2+1,2) -> 03 | V115: =MID(SUBSTITUTE($B115," ",""),V$5*2+1,2) -> E8 | W115: =MID(SUBSTITUTE($B115," ",""),W$5*2+1,2) -> 00 | X115: =MID(SUBSTITUTE($B115," ",""),X$5*2+1,2) -> 63 | Y115: =MID(SUBSTITUTE($B115," ",""),Y$5*2+1,2) -> 00 | Z115: =MID(SUBSTITUTE($B115," ",""),Z$5*2+1,2) -> 06 | AA115: =MID(SUBSTITUTE($B115," ",""),AA$5*2+1,2) -> 21 | AB115: =MID(SUBSTITUTE($B115," ",""),AB$5*2+1,2) -> 58 | AC115: =MID(SUBSTITUTE($B115," ",""),AC$5*2+1,2) -> BE | AD115: =MID(SUBSTITUTE($B115," ",""),AD$5*2+1,2) -> 66 | AE115: =MID(SUBSTITUTE($B115," ",""),AE$5*2+1,2) -> 34 | AF115: =MID(SUBSTITUTE($B115," ",""),AF$5*2+1,2) -> 1 | AG115: =IF(L115="01",HEX2DEC(O115&P115)/10,"-") -> - | AH115: =IF(L115="01",HEX2DEC(Q115&R115)/100,"-") -> - | AI115: =IF(L115="01",HEX2DEC(S115&T115)/10,"-") -> - | AJ115: =IF(L115="01",HEX2DEC(U115&V115&W115&X115)/1000,"-") -> - | AK115: =IF(L115="01",HEX2DEC(Y115&Z115)/1000,"-") -> - | AL115: =IF(L115="01",HEX2DEC(AA115&AB115)/10,"-") -> - | AM115: =IF(L115="82",HEX2DEC(M115&N115)/100,"-") -> 50 | AN115: =IF(L115="82",HEX2DEC(O115&P115)/10,"-") -> 20.4 | AO115: =IF(L115="82",HEX2DEC(S115&T115)/100,"-") -> 0.09 | AP115: =IF(L115="82",HEX2DEC(W115&X115)/10,"-") -> 9.9 | AQ115: =IF(L115="01",HEX2DEC(M115&N115),"-") -> - | AR115: =IF(L115="01",HEX2DEC(AC115&AD115),"-") -> - | AS115: =IF(L115="82",HEX2DEC(Q115&R115),"-") -> 0 | AT115: =IF(L115="82",HEX2DEC(U115&V115),"-") -> 1000 | AU115: =IF(L115="82",HEX2DEC(Y115&Z115),"-") -> 6 | AV115: =IF(L115="82",HEX2DEC(AA115&AB115),"-") -> 8536 | AW115: =IF(L115="82",HEX2DEC(AC115&AD115),"-") -> 48742
A116: 09:29:40 | B116: 95 7310xxyy 7310xxyy 82138600CB0000000903E8006400069958080D5E 1 | C116: =MID(SUBSTITUTE($B116," ",""),C$5*2+1,2) -> 95 | D116: =MID(SUBSTITUTE($B116," ",""),D$5*2+1,2) -> 73 | E116: =MID(SUBSTITUTE($B116," ",""),E$5*2+1,2) -> 10 | F116: =MID(SUBSTITUTE($B116," ",""),F$5*2+1,2) -> xx | G116: =MID(SUBSTITUTE($B116," ",""),G$5*2+1,2) -> yy | H116: =MID(SUBSTITUTE($B116," ",""),H$5*2+1,2) -> 73 | I116: =MID(SUBSTITUTE($B116," ",""),I$5*2+1,2) -> 10 | J116: =MID(SUBSTITUTE($B116," ",""),J$5*2+1,2) -> xx | K116: =MID(SUBSTITUTE($B116," ",""),K$5*2+1,2) -> yy | L116: =MID(SUBSTITUTE($B116," ",""),L$5*2+1,2) -> 82 | M116: =MID(SUBSTITUTE($B116," ",""),M$5*2+1,2) -> 13 | N116: =MID(SUBSTITUTE($B116," ",""),N$5*2+1,2) -> 86 | O116: =MID(SUBSTITUTE($B116," ",""),O$5*2+1,2) -> 00 | P116: =MID(SUBSTITUTE($B116," ",""),P$5*2+1,2) -> CB | Q116: =MID(SUBSTITUTE($B116," ",""),Q$5*2+1,2) -> 00 | R116: =MID(SUBSTITUTE($B116," ",""),R$5*2+1,2) -> 00 | S116: =MID(SUBSTITUTE($B116," ",""),S$5*2+1,2) -> 00 | T116: =MID(SUBSTITUTE($B116," ",""),T$5*2+1,2) -> 09 | U116: =MID(SUBSTITUTE($B116," ",""),U$5*2+1,2) -> 03 | V116: =MID(SUBSTITUTE($B116," ",""),V$5*2+1,2) -> E8 | W116: =MID(SUBSTITUTE($B116," ",""),W$5*2+1,2) -> 00 | X116: =MID(SUBSTITUTE($B116," ",""),X$5*2+1,2) -> 64 | Y116: =MID(SUBSTITUTE($B116," ",""),Y$5*2+1,2) -> 00 | Z116: =MID(SUBSTITUTE($B116," ",""),Z$5*2+1,2) -> 06 | AA116: =MID(SUBSTITUTE($B116," ",""),AA$5*2+1,2) -> 99 | AB116: =MID(SUBSTITUTE($B116," ",""),AB$5*2+1,2) -> 58 | AC116: =MID(SUBSTITUTE($B116," ",""),AC$5*2+1,2) -> 08 | AD116: =MID(SUBSTITUTE($B116," ",""),AD$5*2+1,2) -> 0D | AE116: =MID(SUBSTITUTE($B116," ",""),AE$5*2+1,2) -> 5E | AF116: =MID(SUBSTITUTE($B116," ",""),AF$5*2+1,2) -> 1 | AG116: =IF(L116="01",HEX2DEC(O116&P116)/10,"-") -> - | AH116: =IF(L116="01",HEX2DEC(Q116&R116)/100,"-") -> - | AI116: =IF(L116="01",HEX2DEC(S116&T116)/10,"-") -> - | AJ116: =IF(L116="01",HEX2DEC(U116&V116&W116&X116)/1000,"-") -> - | AK116: =IF(L116="01",HEX2DEC(Y116&Z116)/1000,"-") -> - | AL116: =IF(L116="01",HEX2DEC(AA116&AB116)/10,"-") -> - | AM116: =IF(L116="82",HEX2DEC(M116&N116)/100,"-") -> 49.98 | AN116: =IF(L116="82",HEX2DEC(O116&P116)/10,"-") -> 20.3 | AO116: =IF(L116="82",HEX2DEC(S116&T116)/100,"-") -> 0.09 | AP116: =IF(L116="82",HEX2DEC(W116&X116)/10,"-") -> 10 | AQ116: =IF(L116="01",HEX2DEC(M116&N116),"-") -> - | AR116: =IF(L116="01",HEX2DEC(AC116&AD116),"-") -> - | AS116: =IF(L116="82",HEX2DEC(Q116&R116),"-") -> 0 | AT116: =IF(L116="82",HEX2DEC(U116&V116),"-") -> 1000 | AU116: =IF(L116="82",HEX2DEC(Y116&Z116),"-") -> 6 | AV116: =IF(L116="82",HEX2DEC(AA116&AB116),"-") -> 39256 | AW116: =IF(L116="82",HEX2DEC(AC116&AD116),"-") -> 2061
A117: 09:29:44 | B117: 95 7310xxyy 7310xxyy 82138600CB0000000903E800640006995808D626 1 | C117: =MID(SUBSTITUTE($B117," ",""),C$5*2+1,2) -> 95 | D117: =MID(SUBSTITUTE($B117," ",""),D$5*2+1,2) -> 73 | E117: =MID(SUBSTITUTE($B117," ",""),E$5*2+1,2) -> 10 | F117: =MID(SUBSTITUTE($B117," ",""),F$5*2+1,2) -> xx | G117: =MID(SUBSTITUTE($B117," ",""),G$5*2+1,2) -> yy | H117: =MID(SUBSTITUTE($B117," ",""),H$5*2+1,2) -> 73 | I117: =MID(SUBSTITUTE($B117," ",""),I$5*2+1,2) -> 10 | J117: =MID(SUBSTITUTE($B117," ",""),J$5*2+1,2) -> xx | K117: =MID(SUBSTITUTE($B117," ",""),K$5*2+1,2) -> yy | L117: =MID(SUBSTITUTE($B117," ",""),L$5*2+1,2) -> 82 | M117: =MID(SUBSTITUTE($B117," ",""),M$5*2+1,2) -> 13 | N117: =MID(SUBSTITUTE($B117," ",""),N$5*2+1,2) -> 86 | O117: =MID(SUBSTITUTE($B117," ",""),O$5*2+1,2) -> 00 | P117: =MID(SUBSTITUTE($B117," ",""),P$5*2+1,2) -> CB | Q117: =MID(SUBSTITUTE($B117," ",""),Q$5*2+1,2) -> 00 | R117: =MID(SUBSTITUTE($B117," ",""),R$5*2+1,2) -> 00 | S117: =MID(SUBSTITUTE($B117," ",""),S$5*2+1,2) -> 00 | T117: =MID(SUBSTITUTE($B117," ",""),T$5*2+1,2) -> 09 | U117: =MID(SUBSTITUTE($B117," ",""),U$5*2+1,2) -> 03 | V117: =MID(SUBSTITUTE($B117," ",""),V$5*2+1,2) -> E8 | W117: =MID(SUBSTITUTE($B117," ",""),W$5*2+1,2) -> 00 | X117: =MID(SUBSTITUTE($B117," ",""),X$5*2+1,2) -> 64 | Y117: =MID(SUBSTITUTE($B117," ",""),Y$5*2+1,2) -> 00 | Z117: =MID(SUBSTITUTE($B117," ",""),Z$5*2+1,2) -> 06 | AA117: =MID(SUBSTITUTE($B117," ",""),AA$5*2+1,2) -> 99 | AB117: =MID(SUBSTITUTE($B117," ",""),AB$5*2+1,2) -> 58 | AC117: =MID(SUBSTITUTE($B117," ",""),AC$5*2+1,2) -> 08 | AD117: =MID(SUBSTITUTE($B117," ",""),AD$5*2+1,2) -> D6 | AE117: =MID(SUBSTITUTE($B117," ",""),AE$5*2+1,2) -> 26 | AF117: =MID(SUBSTITUTE($B117," ",""),AF$5*2+1,2) -> 1 | AG117: =IF(L117="01",HEX2DEC(O117&P117)/10,"-") -> - | AH117: =IF(L117="01",HEX2DEC(Q117&R117)/100,"-") -> - | AI117: =IF(L117="01",HEX2DEC(S117&T117)/10,"-") -> - | AJ117: =IF(L117="01",HEX2DEC(U117&V117&W117&X117)/1000,"-") -> - | AK117: =IF(L117="01",HEX2DEC(Y117&Z117)/1000,"-") -> - | AL117: =IF(L117="01",HEX2DEC(AA117&AB117)/10,"-") -> - | AM117: =IF(L117="82",HEX2DEC(M117&N117)/100,"-") -> 49.98 | AN117: =IF(L117="82",HEX2DEC(O117&P117)/10,"-") -> 20.3 | AO117: =IF(L117="82",HEX2DEC(S117&T117)/100,"-") -> 0.09 | AP117: =IF(L117="82",HEX2DEC(W117&X117)/10,"-") -> 10 | AQ117: =IF(L117="01",HEX2DEC(M117&N117),"-") -> - | AR117: =IF(L117="01",HEX2DEC(AC117&AD117),"-") -> - | AS117: =IF(L117="82",HEX2DEC(Q117&R117),"-") -> 0 | AT117: =IF(L117="82",HEX2DEC(U117&V117),"-") -> 1000 | AU117: =IF(L117="82",HEX2DEC(Y117&Z117),"-") -> 6 | AV117: =IF(L117="82",HEX2DEC(AA117&AB117),"-") -> 39256 | AW117: =IF(L117="82",HEX2DEC(AC117&AD117),"-") -> 2262
A118: 09:29:52 | B118: 95 7310xxyy 7310xxyy 0100010192003500D60000FA850023092191ACEE 1 | C118: =MID(SUBSTITUTE($B118," ",""),C$5*2+1,2) -> 95 | D118: =MID(SUBSTITUTE($B118," ",""),D$5*2+1,2) -> 73 | E118: =MID(SUBSTITUTE($B118," ",""),E$5*2+1,2) -> 10 | F118: =MID(SUBSTITUTE($B118," ",""),F$5*2+1,2) -> xx | G118: =MID(SUBSTITUTE($B118," ",""),G$5*2+1,2) -> yy | H118: =MID(SUBSTITUTE($B118," ",""),H$5*2+1,2) -> 73 | I118: =MID(SUBSTITUTE($B118," ",""),I$5*2+1,2) -> 10 | J118: =MID(SUBSTITUTE($B118," ",""),J$5*2+1,2) -> xx | K118: =MID(SUBSTITUTE($B118," ",""),K$5*2+1,2) -> yy | L118: =MID(SUBSTITUTE($B118," ",""),L$5*2+1,2) -> 01 | M118: =MID(SUBSTITUTE($B118," ",""),M$5*2+1,2) -> 00 | N118: =MID(SUBSTITUTE($B118," ",""),N$5*2+1,2) -> 01 | O118: =MID(SUBSTITUTE($B118," ",""),O$5*2+1,2) -> 01 | P118: =MID(SUBSTITUTE($B118," ",""),P$5*2+1,2) -> 92 | Q118: =MID(SUBSTITUTE($B118," ",""),Q$5*2+1,2) -> 00 | R118: =MID(SUBSTITUTE($B118," ",""),R$5*2+1,2) -> 35 | S118: =MID(SUBSTITUTE($B118," ",""),S$5*2+1,2) -> 00 | T118: =MID(SUBSTITUTE($B118," ",""),T$5*2+1,2) -> D6 | U118: =MID(SUBSTITUTE($B118," ",""),U$5*2+1,2) -> 00 | V118: =MID(SUBSTITUTE($B118," ",""),V$5*2+1,2) -> 00 | W118: =MID(SUBSTITUTE($B118," ",""),W$5*2+1,2) -> FA | X118: =MID(SUBSTITUTE($B118," ",""),X$5*2+1,2) -> 85 | Y118: =MID(SUBSTITUTE($B118," ",""),Y$5*2+1,2) -> 00 | Z118: =MID(SUBSTITUTE($B118," ",""),Z$5*2+1,2) -> 23 | AA118: =MID(SUBSTITUTE($B118," ",""),AA$5*2+1,2) -> 09 | AB118: =MID(SUBSTITUTE($B118," ",""),AB$5*2+1,2) -> 21 | AC118: =MID(SUBSTITUTE($B118," ",""),AC$5*2+1,2) -> 91 | AD118: =MID(SUBSTITUTE($B118," ",""),AD$5*2+1,2) -> AC | AE118: =MID(SUBSTITUTE($B118," ",""),AE$5*2+1,2) -> EE | AF118: =MID(SUBSTITUTE($B118," ",""),AF$5*2+1,2) -> 1 | AG118: =IF(L118="01",HEX2DEC(O118&P118)/10,"-") -> 40.2 | AH118: =IF(L118="01",HEX2DEC(Q118&R118)/100,"-") -> 0.53 | AI118: =IF(L118="01",HEX2DEC(S118&T118)/10,"-") -> 21.4 | AJ118: =IF(L118="01",HEX2DEC(U118&V118&W118&X118)/1000,"-") -> 64.133 | AK118: =IF(L118="01",HEX2DEC(Y118&Z118)/1000,"-") -> 0.035 | AL118: =IF(L118="01",HEX2DEC(AA118&AB118)/10,"-") -> 233.7 | AM118: =IF(L118="82",HEX2DEC(M118&N118)/100,"-") -> - | AN118: =IF(L118="82",HEX2DEC(O118&P118)/10,"-") -> - | AO118: =IF(L118="82",HEX2DEC(S118&T118)/100,"-") -> - | AP118: =IF(L118="82",HEX2DEC(W118&X118)/10,"-") -> - | AQ118: =IF(L118="01",HEX2DEC(M118&N118),"-") -> 1 | AR118: =IF(L118="01",HEX2DEC(AC118&AD118),"-") -> 37292 | AS118: =IF(L118="82",HEX2DEC(Q118&R118),"-") -> - | AT118: =IF(L118="82",HEX2DEC(U118&V118),"-") -> - | AU118: =IF(L118="82",HEX2DEC(Y118&Z118),"-") -> - | AV118: =IF(L118="82",HEX2DEC(AA118&AB118),"-") -> - | AW118: =IF(L118="82",HEX2DEC(AC118&AD118),"-") -> -
A119: 09:29:52 | B119: 95 7310xxyy 7310xxyy 82138800CB0000000903E800630006C64147661E 1 | C119: =MID(SUBSTITUTE($B119," ",""),C$5*2+1,2) -> 95 | D119: =MID(SUBSTITUTE($B119," ",""),D$5*2+1,2) -> 73 | E119: =MID(SUBSTITUTE($B119," ",""),E$5*2+1,2) -> 10 | F119: =MID(SUBSTITUTE($B119," ",""),F$5*2+1,2) -> xx | G119: =MID(SUBSTITUTE($B119," ",""),G$5*2+1,2) -> yy | H119: =MID(SUBSTITUTE($B119," ",""),H$5*2+1,2) -> 73 | I119: =MID(SUBSTITUTE($B119," ",""),I$5*2+1,2) -> 10 | J119: =MID(SUBSTITUTE($B119," ",""),J$5*2+1,2) -> xx | K119: =MID(SUBSTITUTE($B119," ",""),K$5*2+1,2) -> yy | L119: =MID(SUBSTITUTE($B119," ",""),L$5*2+1,2) -> 82 | M119: =MID(SUBSTITUTE($B119," ",""),M$5*2+1,2) -> 13 | N119: =MID(SUBSTITUTE($B119," ",""),N$5*2+1,2) -> 88 | O119: =MID(SUBSTITUTE($B119," ",""),O$5*2+1,2) -> 00 | P119: =MID(SUBSTITUTE($B119," ",""),P$5*2+1,2) -> CB | Q119: =MID(SUBSTITUTE($B119," ",""),Q$5*2+1,2) -> 00 | R119: =MID(SUBSTITUTE($B119," ",""),R$5*2+1,2) -> 00 | S119: =MID(SUBSTITUTE($B119," ",""),S$5*2+1,2) -> 00 | T119: =MID(SUBSTITUTE($B119," ",""),T$5*2+1,2) -> 09 | U119: =MID(SUBSTITUTE($B119," ",""),U$5*2+1,2) -> 03 | V119: =MID(SUBSTITUTE($B119," ",""),V$5*2+1,2) -> E8 | W119: =MID(SUBSTITUTE($B119," ",""),W$5*2+1,2) -> 00 | X119: =MID(SUBSTITUTE($B119," ",""),X$5*2+1,2) -> 63 | Y119: =MID(SUBSTITUTE($B119," ",""),Y$5*2+1,2) -> 00 | Z119: =MID(SUBSTITUTE($B119," ",""),Z$5*2+1,2) -> 06 | AA119: =MID(SUBSTITUTE($B119," ",""),AA$5*2+1,2) -> C6 | AB119: =MID(SUBSTITUTE($B119," ",""),AB$5*2+1,2) -> 41 | AC119: =MID(SUBSTITUTE($B119," ",""),AC$5*2+1,2) -> 47 | AD119: =MID(SUBSTITUTE($B119," ",""),AD$5*2+1,2) -> 66 | AE119: =MID(SUBSTITUTE($B119," ",""),AE$5*2+1,2) -> 1E | AF119: =MID(SUBSTITUTE($B119," ",""),AF$5*2+1,2) -> 1 | AG119: =IF(L119="01",HEX2DEC(O119&P119)/10,"-") -> - | AH119: =IF(L119="01",HEX2DEC(Q119&R119)/100,"-") -> - | AI119: =IF(L119="01",HEX2DEC(S119&T119)/10,"-") -> - | AJ119: =IF(L119="01",HEX2DEC(U119&V119&W119&X119)/1000,"-") -> - | AK119: =IF(L119="01",HEX2DEC(Y119&Z119)/1000,"-") -> - | AL119: =IF(L119="01",HEX2DEC(AA119&AB119)/10,"-") -> - | AM119: =IF(L119="82",HEX2DEC(M119&N119)/100,"-") -> 50 | AN119: =IF(L119="82",HEX2DEC(O119&P119)/10,"-") -> 20.3 | AO119: =IF(L119="82",HEX2DEC(S119&T119)/100,"-") -> 0.09 | AP119: =IF(L119="82",HEX2DEC(W119&X119)/10,"-") -> 9.9 | AQ119: =IF(L119="01",HEX2DEC(M119&N119),"-") -> - | AR119: =IF(L119="01",HEX2DEC(AC119&AD119),"-") -> - | AS119: =IF(L119="82",HEX2DEC(Q119&R119),"-") -> 0 | AT119: =IF(L119="82",HEX2DEC(U119&V119),"-") -> 1000 | AU119: =IF(L119="82",HEX2DEC(Y119&Z119),"-") -> 6 | AV119: =IF(L119="82",HEX2DEC(AA119&AB119),"-") -> 50753 | AW119: =IF(L119="82",HEX2DEC(AC119&AD119),"-") -> 18278
A120: 09:29:56 | B120: 95 7310xxyy 7310xxyy 82138800CB0000000903E800630006C64147F44E 1 | C120: =MID(SUBSTITUTE($B120," ",""),C$5*2+1,2) -> 95 | D120: =MID(SUBSTITUTE($B120," ",""),D$5*2+1,2) -> 73 | E120: =MID(SUBSTITUTE($B120," ",""),E$5*2+1,2) -> 10 | F120: =MID(SUBSTITUTE($B120," ",""),F$5*2+1,2) -> xx | G120: =MID(SUBSTITUTE($B120," ",""),G$5*2+1,2) -> yy | H120: =MID(SUBSTITUTE($B120," ",""),H$5*2+1,2) -> 73 | I120: =MID(SUBSTITUTE($B120," ",""),I$5*2+1,2) -> 10 | J120: =MID(SUBSTITUTE($B120," ",""),J$5*2+1,2) -> xx | K120: =MID(SUBSTITUTE($B120," ",""),K$5*2+1,2) -> yy | L120: =MID(SUBSTITUTE($B120," ",""),L$5*2+1,2) -> 82 | M120: =MID(SUBSTITUTE($B120," ",""),M$5*2+1,2) -> 13 | N120: =MID(SUBSTITUTE($B120," ",""),N$5*2+1,2) -> 88 | O120: =MID(SUBSTITUTE($B120," ",""),O$5*2+1,2) -> 00 | P120: =MID(SUBSTITUTE($B120," ",""),P$5*2+1,2) -> CB | Q120: =MID(SUBSTITUTE($B120," ",""),Q$5*2+1,2) -> 00 | R120: =MID(SUBSTITUTE($B120," ",""),R$5*2+1,2) -> 00 | S120: =MID(SUBSTITUTE($B120," ",""),S$5*2+1,2) -> 00 | T120: =MID(SUBSTITUTE($B120," ",""),T$5*2+1,2) -> 09 | U120: =MID(SUBSTITUTE($B120," ",""),U$5*2+1,2) -> 03 | V120: =MID(SUBSTITUTE($B120," ",""),V$5*2+1,2) -> E8 | W120: =MID(SUBSTITUTE($B120," ",""),W$5*2+1,2) -> 00 | X120: =MID(SUBSTITUTE($B120," ",""),X$5*2+1,2) -> 63 | Y120: =MID(SUBSTITUTE($B120," ",""),Y$5*2+1,2) -> 00 | Z120: =MID(SUBSTITUTE($B120," ",""),Z$5*2+1,2) -> 06 | AA120: =MID(SUBSTITUTE($B120," ",""),AA$5*2+1,2) -> C6 | AB120: =MID(SUBSTITUTE($B120," ",""),AB$5*2+1,2) -> 41 | AC120: =MID(SUBSTITUTE($B120," ",""),AC$5*2+1,2) -> 47 | AD120: =MID(SUBSTITUTE($B120," ",""),AD$5*2+1,2) -> F4 | AE120: =MID(SUBSTITUTE($B120," ",""),AE$5*2+1,2) -> 4E | AF120: =MID(SUBSTITUTE($B120," ",""),AF$5*2+1,2) -> 1 | AG120: =IF(L120="01",HEX2DEC(O120&P120)/10,"-") -> - | AH120: =IF(L120="01",HEX2DEC(Q120&R120)/100,"-") -> - | AI120: =IF(L120="01",HEX2DEC(S120&T120)/10,"-") -> - | AJ120: =IF(L120="01",HEX2DEC(U120&V120&W120&X120)/1000,"-") -> - | AK120: =IF(L120="01",HEX2DEC(Y120&Z120)/1000,"-") -> - | AL120: =IF(L120="01",HEX2DEC(AA120&AB120)/10,"-") -> - | AM120: =IF(L120="82",HEX2DEC(M120&N120)/100,"-") -> 50 | AN120: =IF(L120="82",HEX2DEC(O120&P120)/10,"-") -> 20.3 | AO120: =IF(L120="82",HEX2DEC(S120&T120)/100,"-") -> 0.09 | AP120: =IF(L120="82",HEX2DEC(W120&X120)/10,"-") -> 9.9 | AQ120: =IF(L120="01",HEX2DEC(M120&N120),"-") -> - | AR120: =IF(L120="01",HEX2DEC(AC120&AD120),"-") -> - | AS120: =IF(L120="82",HEX2DEC(Q120&R120),"-") -> 0 | AT120: =IF(L120="82",HEX2DEC(U120&V120),"-") -> 1000 | AU120: =IF(L120="82",HEX2DEC(Y120&Z120),"-") -> 6 | AV120: =IF(L120="82",HEX2DEC(AA120&AB120),"-") -> 50753 | AW120: =IF(L120="82",HEX2DEC(AC120&AD120),"-") -> 18420
